Workbook

Sheet INTRODUCTORY

Sheet Semicircle
J1: xc | K1: yc | L1: angle | M1: h
J2: scemicircle | K2: to the left | L2: =IF(CALC_POINT!D1=1,TRUE,FALSE) -> TRUE | M2: =h -> 2.5
K3: THETA | M3: ANGLE OF SEMCICIRCLE | O3: =ANGLE -> -3.99 | P3: =LINEST(L9:L17,J9:J17,FALSE,TRUE) -> 0.5875938781
J4: 10 | K4: =N4/10 -> 19.6 | M4: SINGLE RAY | N4: 196
J5: CRITICAL-ANGLE = 90 | K5: 11 | L5: 12 | M5: 13 | O5: =XC -> -0.68 | P5: xc
L6: =TRUE -> TRUE | M6: show rays | O6: =YC -> 0.5 | P6: yc | Z6: regression line | AC6: ="n = "&TEXT(AC9,"0,0000") -> n = 1,4659
K7: Index n= | L7: 1.5 | T7: 0.5 | U7: 0.8 | V7: ="least square fit, n = "&TEXT(AC9,"0,00") -> least square fit, n = 1,47 | Z7: =0 -> 0 | AA7: 0
J8: INCIDENCE ANGLE | K8: EXPECTED REFRACTION ANGLE | L8: Measured angle of refraction | M8: MEASURED INDEX OF REFRACTION | O8: 1 | T8: 0.5 | U8: 0.8 | V8: ="expected n = "&nn -> expected n = 1,5 | Z8: 0.7 | AA8: =AC9*Z8 -> 1.026103977
G9: x` | J9: 6 | K9: =DEGREES(ASIN(SIN(RADIANS(J9))/nn)) -> 3.99593175 | L9: =CALC_POINT!B205 -> 2.85859493 | M9: =IF(circle_left,SIN(RADIANS(J9))/SIN(RADIANS(L9)),IF(L9<>"NO REFRACTION",SIN(RADIANS(L9))/SIN(RADIANS(J9)),"")) -> 2.095968581 | Q9: =IF(circle_left=TRUE,J9,IF(L9<>"NO REFRACTION",L9,0)) -> 6 | R9: =IF(circle_left=TRUE,L9,IF(L9<>"NO REFRACTION",J9,0)) -> 2.85859493 | T9: exp inc | U9: expected | V9: radians of incident | W9: radians of refracted | X9: sin(incident) | Y9: sin(refracted) | AC9: =IF(circle_left,1/AC10,AC10) -> 1.465862824 | AF9: x | AG9: x^2 | AH9: x^3 | AI9: x^4 | AJ9: Y | AK9: XY | AL9: yx^2
E10: 6 | J10: 10 | K10: 6.647777093 | L10: =CALC_POINT!D205 -> 5.547473626 | M10: =IF(circle_left,SIN(RADIANS(J10))/SIN(RADIANS(L10)),IF(L10<>"NO REFRACTION",SIN(RADIANS(L10))/SIN(RADIANS(J10)),"")) -> 1.796289672 | Q10: =IF(circle_left=TRUE,J10,IF(L10<>"NO REFRACTION",L10,0)) -> 10 | R10: =IF(circle_left=TRUE,L10,IF(L10<>"NO REFRACTION",J10,0)) -> 5.547473626 | T10: =IF(U10<>0,SIN(W10),0) -> 0.0498711976 | U10: =IF(SIN(W10)*nn<1,SIN(W10)*nn,0) -> 0.0748067964 | V10: =IF(circle_left,RADIANS(J9), RADIANS(L9)) -> 0.1047197551 | W10: =IF(circle_left,RADIANS(L9),RADIANS(J9)) -> 0.04989189352 | X10: =IF(circle_left,SIN(V10),SIN(W10)) -> 0.1045284633 | Y10: =IF(circle_left,SIN(W10),SIN(V10)) -> 0.0498711976 | Z10: =IF(Y10<>0,MAX(X10:Y10),0) -> 0.1045284633 | AA10: =MIN(X10:Y10) -> 0.0498711976 | AB10: =LINEST(Z10:Z19,AA10:AA19) -> 1.40124622 | AC10: =IF(circle_left,LINEST(Y10:Y19,X10:X19,FALSE,TRUE),AB10) -> 0.6821920741 | AF10: =IF(circle_left=TRUE,J9,L9) -> 6 | AG10: =IF(AF10<>"NO REFRACTION",AF10^2,"") -> 36 | AH10: =IF(AF10<>"NO REFRACTION",AF10^3,"") -> 216 | AI10: =IF(AF10<>"NO REFRACTION",AF10^4,"") -> 1296 | AJ10: =IF(circle_left=TRUE,L9,J9) -> 2.85859493 | AK10: =IF(AF10<>"NO REFRACTION",AJ10*AF10,"") -> 17.15156958 | AL10: =IF(AF10<>"NO REFRACTION",AJ10*AG10,"") -> 102.9094175
J11: 20 | K11: 13.18014216 | L11: =CALC_POINT!F205 -> 12.2459467 | M11: =IF(circle_left,SIN(RADIANS(J11))/SIN(RADIANS(L11)),IF(L11<>"NO REFRACTION",SIN(RADIANS(L11))/SIN(RADIANS(J11)),"")) -> 1.612477013 | Q11: =IF(circle_left=TRUE,J11,IF(L11<>"NO REFRACTION",L11,0)) -> 20 | R11: =IF(circle_left=TRUE,L11,IF(L11<>"NO REFRACTION",J11,0)) -> 12.2459467 | T11: =IF(U11<>0,SIN(W11),0) -> 0.09667047603 | U11: =IF(SIN(W11)*nn<1,SIN(W11)*nn,0) -> 0.1450057141 | V11: =IF(circle_left,RADIANS(J10), RADIANS(L10)) -> 0.1745329252 | W11: 0.09682167995 | X11: 0.1736481777 | Y11: 0.09667047603 | Z11: =IF(Y11<>0,MAX(X11:Y11),0) -> 0.1736481777 | AA11: =MIN(X11:Y11) -> 0.09667047603 | AB11: =LINEST(U10:U19,T10:T19,FALSE,TRUE) -> 1.5 | AC11: =LINEST(Y10:Y18,X10:X18,FALSE,TRUE) -> 0.6821920741 | AD11: 0 | AF11: =IF(circle_left=TRUE,J10,L10) -> 10 | AG11: =IF(AF11<>"NO REFRACTION",AF11^2,"") -> 100 | AH11: =IF(AF11<>"NO REFRACTION",AF11^3,"") -> 1000 | AI11: =IF(AF11<>"NO REFRACTION",AF11^4,"") -> 10000 | AJ11: =IF(circle_left=TRUE,L10,J10) -> 5.547473626 | AK11: =IF(AF11<>"NO REFRACTION",AJ11*AF11,"") -> 55.47473626 | AL11: =IF(AF11<>"NO REFRACTION",AJ11*AG11,"") -> 554.7473626
J12: 30 | K12: 19.47122063 | L12: =CALC_POINT!H205 -> 18.8139058 | M12: =IF(circle_left,SIN(RADIANS(J12))/SIN(RADIANS(L12)),IF(L12<>"NO REFRACTION",SIN(RADIANS(L12))/SIN(RADIANS(J12)),"")) -> 1.550409522 | Q12: =IF(circle_left=TRUE,J12,IF(L12<>"NO REFRACTION",L12,0)) -> 30 | R12: =IF(circle_left=TRUE,L12,IF(L12<>"NO REFRACTION",J12,0)) -> 18.8139058 | T12: 0.2121085389 | U12: =IF(SIN(W12)*nn<1,SIN(W12)*nn,0) -> 0.3181628083 | V12: =IF(circle_left,RADIANS(J11), RADIANS(L11)) -> 0.3490658504 | W12: 0.2137320899 | X12: 0.3420201433 | Y12: 0.2121085389 | Z12: 0.3420201433 | AA12: 0.2121085389 | AC12: 0.009454730462 | AF12: =IF(circle_left=TRUE,J11,L11) -> 20 | AG12: 400 | AH12: 8000 | AI12: 160000 | AJ12: =IF(circle_left=TRUE,L11,J11) -> 12.2459467 | AK12: 244.9189339 | AL12: 4898.378679
J13: 40 | K13: 25.37399394 | L13: =CALC_POINT!J205 -> 25.1140291 | M13: =IF(circle_left,SIN(RADIANS(J13))/SIN(RADIANS(L13)),IF(L13<>"NO REFRACTION",SIN(RADIANS(L13))/SIN(RADIANS(J13)),"")) -> 1.514504217 | Q13: =IF(circle_left=TRUE,J13,IF(L13<>"NO REFRACTION",L13,0)) -> 40 | R13: =IF(circle_left=TRUE,L13,IF(L13<>"NO REFRACTION",J13,0)) -> 25.1140291 | T13: 0.3224954394 | U13: =IF(SIN(W13)*nn<1,SIN(W13)*nn,0) -> 0.4837431591 | V13: =IF(circle_left,RADIANS(J12), RADIANS(L12)) -> 0.5235987756 | W13: 0.3283646014 | X13: 0.5 | Y13: 0.3224954394 | Z13: 0.5 | AA13: 0.3224954394 | AC13: 0.9984657077 | AD13: 0.01893526938 | AF13: =IF(circle_left=TRUE,J12,L12) -> 30 | AG13: 900 | AH13: 27000 | AI13: 810000 | AJ13: =IF(circle_left=TRUE,L12,J12) -> 18.8139058 | AK13: 564.417174 | AL13: 16932.51522
J14: 50 | K14: 30.71022077 | L14: =CALC_POINT!L205 -> 30.98316179 | M14: =IF(circle_left,SIN(RADIANS(J14))/SIN(RADIANS(L14)),IF(L14<>"NO REFRACTION",SIN(RADIANS(L14))/SIN(RADIANS(J14)),"")) -> 1.488082864 | Q14: =IF(circle_left=TRUE,J14,IF(L14<>"NO REFRACTION",L14,0)) -> 50 | R14: =IF(circle_left=TRUE,L14,IF(L14<>"NO REFRACTION",J14,0)) -> 30.98316179 | T14: 0.4244211421 | U14: =IF(SIN(W14)*nn<1,SIN(W14)*nn,0) -> 0.6366317132 | V14: =IF(circle_left,IF(J13="NO REFRACTION",0,RADIANS(J13)),IF(L13="NO REFRACTION",0,RADIANS(L13))) -> 0.6981317008 | W14: 0.4383224962 | X14: 0.6427876097 | Y14: 0.4244211421 | Z14: 0.6427876097 | AA14: 0.4244211421 | AC14: 5206.130305 | AD14: 8 | AF14: =IF(circle_left=TRUE,J13,L13) -> 40 | AG14: 1600 | AH14: 64000 | AI14: 2560000 | AJ14: =IF(circle_left=TRUE,L13,J13) -> 25.1140291 | AK14: 1004.561164 | AL14: 40182.44656
J15: 60 | K15: 35.26438968 | L15: =CALC_POINT!N205 -> 36.23332005 | M15: =IF(circle_left,SIN(RADIANS(J15))/SIN(RADIANS(L15)),IF(L15<>"NO REFRACTION",SIN(RADIANS(L15))/SIN(RADIANS(J15)),"")) -> 1.465170447 | Q15: =IF(circle_left=TRUE,J15,IF(L15<>"NO REFRACTION",L15,0)) -> 60 | R15: =IF(circle_left=TRUE,L15,IF(L15<>"NO REFRACTION",J15,0)) -> 36.23332005 | T15: 0.5147861464 | U15: =IF(SIN(W15)*nn<1,SIN(ASIN(SIN(W15)*nn)),0) -> 0.7721792196 | V15: =IF(circle_left,IF(J14="NO REFRACTION",0,RADIANS(J14)),IF(L14="NO REFRACTION",0,RADIANS(L14))) -> 0.872664626 | W15: 0.5407581859 | X15: 0.7660444431 | Y15: 0.5147861464 | Z15: 0.7660444431 | AA15: 0.5147861464 | AC15: 1.866629005 | AD15: 0.002868355412 | AF15: =IF(circle_left=TRUE,J14,L14) -> 50 | AG15: 2500 | AH15: 125000 | AI15: 6250000 | AJ15: =IF(circle_left=TRUE,L14,J14) -> 30.98316179 | AK15: 1549.158089 | AL15: 77457.90447 | AN15: b*ddd+c*aaa=eee | AP15: *bbb | AQ15: *aaa
J16: 70 | K16: 38.78955642 | L16: =CALC_POINT!P205 -> 40.68633205 | M16: =IF(circle_left,SIN(RADIANS(J16))/SIN(RADIANS(L16)),IF(L16<>"NO REFRACTION",SIN(RADIANS(L16))/SIN(RADIANS(J16)),"")) -> 1.44142867 | Q16: =IF(circle_left=TRUE,J16,IF(L16<>"NO REFRACTION",L16,0)) -> 70 | R16: =IF(circle_left=TRUE,L16,IF(L16<>"NO REFRACTION",J16,0)) -> 40.68633205 | T16: 0.5910748511 | U16: =IF(SIN(W16)*nn<1,SIN(ASIN(SIN(W16)*nn)),0) -> 0.8866122767 | V16: =IF(circle_left,IF(J15="NO REFRACTION",0,RADIANS(J15)),IF(L15="NO REFRACTION",0,RADIANS(L15))) -> 1.047197551 | W16: 0.6323907338 | X16: 0.8660254038 | Y16: 0.5910748511 | Z16: 0.8660254038 | AA16: 0.5910748511 | AF16: =IF(circle_left=TRUE,J15,L15) -> 60 | AG16: 3600 | AH16: 216000 | AI16: 12960000 | AJ16: =IF(circle_left=TRUE,L15,J15) -> 36.23332005 | AK16: 2173.999203 | AL16: 130439.9522 | AN16: b*aaa+c*bbb=ggg | AP16: *aaa | AQ16: *ddd
J17: 80 | K17: 41.03641053 | L17: =CALC_POINT!R205 -> 44.37930474 | M17: =IF(circle_left,SIN(RADIANS(J17))/SIN(RADIANS(L17)),IF(L17<>"NO REFRACTION",SIN(RADIANS(L17))/SIN(RADIANS(J17)),"")) -> 1.408064617 | Q17: =IF(circle_left=TRUE,J17,IF(L17<>"NO REFRACTION",L17,0)) -> 80 | R17: =IF(circle_left=TRUE,L17,IF(L17<>"NO REFRACTION",J17,0)) -> 44.37930474 | T17: =IF(U17<>0,SIN(W17),0) -> 0.6519175318 | U17: =IF(SIN(W17)*nn<1,SIN(ASIN(SIN(W17)*nn)),0) -> 0.9778762977 | V17: =IF(circle_left,IF(J16="NO REFRACTION",0,RADIANS(J16)),IF(L16="NO REFRACTION",0,RADIANS(L16))) -> 1.221730476 | W17: 0.7101104549 | X17: 0.9396926208 | Y17: 0.6519175318 | Z17: 0.9396926208 | AA17: 0.6519175318 | AF17: =IF(circle_left=TRUE,J16,L16) -> 70 | AG17: 4900 | AH17: 343000 | AI17: 24010000 | AJ17: =IF(circle_left=TRUE,L16,J16) -> 40.68633205 | AK17: 2848.043244 | AL17: 199363.0271 | AN17: b*(ddd*bbb-aaa^2)=(eee*bb-aaa*ggg) | AR17: b==(eee*bb-aaa*ggg)/(ddd*bbb-aaa^2)
J18: =THETA -> 19.6 | K18: 12.92258778 | L18: =CALC_POINT!U205 -> 11.97967394 | M18: =IF(circle_left,SIN(RADIANS(J18))/SIN(RADIANS(L18)),SIN(RADIANS(L18))/SIN(RADIANS(J18))) -> 1.616130357 | T18: 0 | U18: =IF(SIN(W18)*nn<1,SIN(ASIN(SIN(W18)*nn)),0) -> 0 | V18: =IF(circle_left,IF(J17="NO REFRACTION",0,RADIANS(J17)),IF(L17="NO REFRACTION",0,RADIANS(L17))) -> 1.396263402 | W18: 0.7745649875 | X18: 0.984807753 | Y18: 0.6994052271 | Z18: 0.984807753 | AA18: 0.6994052271 | AF18: =IF(circle_left=TRUE,J17,L17) -> 80 | AG18: 6400 | AH18: 512000 | AI18: 40960000 | AJ18: =IF(circle_left=TRUE,L17,J17) -> 44.37930474 | AK18: 3550.344379 | AL18: 284027.5503 | AN18: c*(aaa^2-bbb*ddd)=(eee*aaa-ggg*ddd) | AR18: c=(eee*aaa-ggg*ddd)/(aaa^2-bbb*ddd)
J19: 0 | K19: 0 | T19: =IF(U19<>0,SIN(W19),0) -> 0 | U19: =IF(SIN(W19)*nn<1,SIN(ASIN(SIN(W19)*nn)),0) -> 0 | V19: =IF(circle_left,IF(J19="NO REFRACTION",0,RADIANS(J19)),IF(L19="NO REFRACTION",0,RADIANS(L19))) -> 0 | W19: =IF(circle_left,RADIANS(L19),RADIANS(J19)) -> 0 | X19: =IF(circle_left,SIN(V19),SIN(W19)) -> 0 | Y19: =IF(circle_left,SIN(W19),SIN(V19)) -> 0 | Z19: =IF(Y19<>0,MAX(X19:Y19),0) -> 0 | AA19: =MIN(X19:Y19) -> 0 | AL19: =AJ19*AG19 -> 0
N20: Graphs of angels | AF20: =J19 -> 0 | AG20: =J19^2 -> 0 | AH20: =K19^2 -> 0 | AI20: =AF20^4 -> 0 | AJ20: =L19 -> 0 | AK20: =J19*L19 -> 0 | AL20: =AJ20*AG20 -> 0 | AQ20: b | AR20: =(EEE*bbb-aaa*GGG)/(DDD*bbb-aaa^2) -> 0.6287438721
F21: 807386475.1 | O21: x | P21: y | Q21: Y=K+Lx+M(2x^2-1)=K-M+LX+2MX^2 | AE21: SUMS | AF21: =SUM(AF10:AF18) -> 366 | AG21: =SUM(AG10:AG18) -> 20436 | AH21: =SUM(AH10:AH18) -> 1296216 | AI21: =SUM(AI10:AI18) -> 87721296 | AJ21: =SUM(AJ10:AJ18) -> 216.8620688 | AK21: =SUM(AK10:AK18) -> 12008.06849 | AL21: =SUM(AL10:AL18) -> 753959.4313 | AQ21: c | AR21: =(EEE*aaa-GGG*DDD)/(aaa^2-bbb*DDD) -> -0.0006487663141
O22: 0 | P22: =bsq*O22+csq*O22^2 -> 0 | Q22: =bsq2_*O22+csq_2*O22^2 -> 0 | R22: =bsquarte*O22+asquarte*O22^2 -> 0 | S22: =lsq*O22+2*msq*O22^2 -> 0 | AF22: DDD | AG22: AAA | AH22: bbb | AI22: ccc | AJ22: EEE | AK22: GGG | AL22: III | AN22: b*ddd+c*aaa=eee | AP22: *ccc | AQ22: *bbb
M23: ` | O23: =O22+5 -> 5 | P23: =bsq*O23+csq*O23^2 -> 3.127500202 | Q23: =bsq2_*O23+csq_2*O23^2 -> 3.195706125 | R23: =bsquarte*O23+asquarte*O23^2 -> 3.346032264 | S23: =lsq*O23+2*msq*O23^2 -> 3.346032264 | AF23: x | AG23: x^2 | AH23: x^3 | AI23: x^4 | AJ23: Y | AK23: XY | AL23: yx^2 | AN23: b*bbb+c*ccc=iii | AP23: *aaa | AQ23: *ddd
O24: =O23+5 -> 10 | P24: =bsq*O24+csq*O24^2 -> 6.222562089 | Q24: =bsq2_*O24+csq_2*O24^2 -> 6.345557097 | R24: =bsquarte*O24+asquarte*O24^2 -> 6.622224316 | S24: =lsq*O24+2*msq*O24^2 -> 6.622224316 | AH24: Y=A*X^2+B*X | AN24: b*(ddd*ccc-bbb*aaa)=(eee*ccc-iii*aaa)
O25: 15 | P25: =bsq*O25+csq*O25^2 -> 9.28518566 | Q25: =bsq2_*O25+csq_2*O25^2 -> 9.449552915 | R25: =bsquarte*O25+asquarte*O25^2 -> 9.828576153 | S25: =lsq*O25+2*msq*O25^2 -> 9.828576153 | AH25: A= | AI25: =(aaa*iii-GGG*bbb)/(aaa*ccc-bbb^2) -> -0.001396804266 | AJ25: =(aaa*iii-GGG*bbb)/(aaa*ccc-bbb^2) | AN25: b=(eee*ccc-iii*aaa)/(ddd*ccc-bbb*aaa)= | AR25: =(EEE*ccc-iii*aaa)/(DDD*ccc-bbb*aaa) -> 0.6437267403
F26: 807386475.1 | O26: 20 | P26: =bsq*O26+csq*O26^2 -> 12.31537092 | Q26: =bsq2_*O26+csq_2*O26^2 -> 12.50769358 | R26: =bsquarte*O26+asquarte*O26^2 -> 12.96508778 | S26: =lsq*O26+2*msq*O26^2 -> 12.96508778 | AH26: b= | AI26: =(GGG*ccc-iii*bbb)/(aaa*ccc-bbb^2) -> 0.6761904742 | AJ26: =(GGG*ccc-iii*bbb)/(ccc*aaa-bbb^2) | AN26: c*(aaa*bbb-ccc*ddd)=(eee*bbb-iii*ddd)
D27: _ | L27: on error press first semicircle | O27: 25 | P27: =bsq*O27+csq*O27^2 -> 15.31311786 | Q27: =bsq2_*O27+csq_2*O27^2 -> 15.51997909 | R27: =bsquarte*O27+asquarte*O27^2 -> 16.03175919 | S27: =lsq*O27+2*msq*O27^2 -> 16.03175919 | AN27: c=(eee*bbb-iii*ddd)/(aaa*bbb-ccc*ddd) | AR27: =(EEE*bbb-iii*DDD)/(aaa*bbb-ccc*DDD) -> -0.0009171030611
L28: then rays of light | O28: 30 | P28: =bsq*O28+csq*O28^2 -> 18.27842648 | Q28: =bsq2_*O28+csq_2*O28^2 -> 18.48640945 | R28: =bsquarte*O28+asquarte*O28^2 -> 19.02859039 | S28: =lsq*O28+2*msq*O28^2 -> 19.02859039 | AF28: CHEBYSHEV POLYNOMIALS
L29: then parallle bundle | O29: 35 | P29: =bsq*O29+csq*O29^2 -> 21.21129679 | Q29: =bsq2_*O29+csq_2*O29^2 -> 21.40698466 | R29: =bsquarte*O29+asquarte*O29^2 -> 21.95558137 | S29: =lsq*O29+2*msq*O29^2 -> 21.95558137 | AF29: C0 | AG29: C1 | AH29: C2
L30: repeat if necessary | O30: 40 | P30: =bsq*O30+csq*O30^2 -> 24.11172878 | Q30: =bsq2_*O30+csq_2*O30^2 -> 24.28170471 | R30: =bsquarte*O30+asquarte*O30^2 -> 24.81273214 | S30: =lsq*O30+2*msq*O30^2 -> 24.81273214 | AF30: 1 | AG30: X | AH30: 2X^2-1
O31: 45 | P31: =bsq*O31+csq*O31^2 -> 26.97972246 | Q31: =bsq2_*O31+csq_2*O31^2 -> 27.11056961 | R31: =bsquarte*O31+asquarte*O31^2 -> 27.6000427 | S31: =lsq*O31+2*msq*O31^2 -> 27.6000427 | AF31: K | AG31: L | AH31: M | AI31: Y=K+Lx+M(2x^2-1)=K-M+LX+2MX^2
O32: 50 | P32: =bsq*O32+csq*O32^2 -> 29.81527782 | Q32: =bsq2_*O32+csq_2*O32^2 -> 29.89357936 | R32: =bsquarte*O32+asquarte*O32^2 -> 30.31751305 | S32: =lsq*O32+2*msq*O32^2 -> 30.31751305 | AI32: Y(0)=0 | AJ32: K=M
O33: 55 | P33: =bsq*O33+csq*O33^2 -> 32.61839486 | Q33: =bsq2_*O33+csq_2*O33^2 -> 32.63073396 | R33: =bsquarte*O33+asquarte*O33^2 -> 32.96514318 | S33: =lsq*O33+2*msq*O33^2 -> 32.96514318 | AI33: (Y-Yi)^2=L^2X^2+4M^2X^4+Yi^2+4LMX^3-2LYiX-4MX^2Yi
O34: 60 | P34: =bsq*O34+csq*O34^2 -> 35.38907359 | Q34: =bsq2_*O34+csq_2*O34^2 -> 35.3220334 | R34: =bsquarte*O34+asquarte*O34^2 -> 35.5429331 | S34: =lsq*O34+2*msq*O34^2 -> 35.5429331 | AI34: DS/DL=2LX^2+4MX^3-2YiX=0
C35: PTOLEMY'S DATA | O35: 65 | P35: =bsq*O35+csq*O35^2 -> 38.12731401 | Q35: =bsq2_*O35+csq_2*O35^2 -> 37.96747768 | R35: =bsquarte*O35+asquarte*O35^2 -> 38.0508828 | S35: =lsq*O35+2*msq*O35^2 -> 38.0508828 | AI35: DS/DM=8MX^4+4LX^3-4X^2Yi=0
C36: water | F36: glass | O36: 70 | P36: =bsq*O36+csq*O36^2 -> 40.83311611 | Q36: =bsq2_*O36+csq_2*O36^2 -> 40.56706682 | R36: =bsquarte*O36+asquarte*O36^2 -> 40.48899229 | S36: =lsq*O36+2*msq*O36^2 -> 40.48899229 | AI36: AAA*L+2*bbb*M=GGG | AL36: *ccc | AM36: *bbb
A37: incidence | B37: refraction | C37: first difference | D37: second difference | E37: refraction | F37: first difference | G37: second difference | O37: 75 | P37: =bsq*O37+csq*O37^2 -> 43.50647989 | Q37: =bsq2_*O37+csq_2*O37^2 -> 43.1208008 | R37: =bsquarte*O37+asquarte*O37^2 -> 42.85726157 | S37: =lsq*O37+2*msq*O37^2 -> 42.85726157 | AI37: bbb*L+2*ccc*M=III | AL37: *bbb | AM37: *aaa
A38: 0 | B38: 0 | C38: =B39-B38 -> 8 | E38: 0 | F38: =E39-E38 -> 7 | O38: 80 | P38: =bsq*O38+csq*O38^2 -> 46.14740536 | Q38: =bsq2_*O38+csq_2*O38^2 -> 45.62867963 | R38: =bsquarte*O38+asquarte*O38^2 -> 45.15569064 | S38: =lsq*O38+2*msq*O38^2 -> 45.15569064 | AI38: AAA*ccc*L+2*ccc*bbb*M=GGGccc
A39: 10 | B39: 8 | C39: =B40-B39 -> 7.5 | D39: =C39-C38 -> -0.5 | E39: 7 | F39: =E40-E39 -> 6.5 | G39: =F39-F38 -> -0.5 | Q39: A_PTOLEMY | R39: =-0.0025 -> -0.0025 | S39: B_WATER | T39: =(B39-A_PTOLEMY*100)/10 -> 0.825 | U39: B_GLASS | V39: =(E39-A_PTOLEMY*100)/10 -> 0.725 | AI39: bbb^2*L+2*ccc*bbb*M=III*bbb
A40: 20 | B40: 15.5 | C40: =B41-B40 -> 7 | D40: =C40-C39 -> -0.5 | E40: 13.5 | F40: =E41-E40 -> 6 | G40: =F40-F39 -> -0.5 | Q40: x | R40: PTOLEMY | S40: WATER | T40: GLASS | AI40: L=(GGG*ccc-iii*bbb)/(aaa*ccc-bbb^2) | AM40: =(GGG*ccc-iii*bbb)/(aaa*ccc-bbb^2) -> 0.6761904742
A41: 30 | B41: 22.5 | C41: 6.5 | D41: -0.5 | E41: 19.5 | F41: 5.5 | G41: -0.5 | Q41: 0 | R41: =lsq*Q41+2*msq*Q41^2 -> 0 | S41: =A_PTOLEMY*Q41^2+B_GLASS*Q41 -> 0 | T41: =A_PTOLEMY*Q41^2+B_GLASS*Q41 -> 0 | AI41: aaa*bbb*L+2*bbb^2M=ggg*bbb
A42: 40 | B42: 29 | C42: 6 | D42: -0.5 | E42: 25 | F42: 5 | G42: -0.5 | Q42: =Q41+10 -> 10 | R42: =lsq*Q42+2*msq*Q42^2 -> 6.622224316 | S42: =A_PTOLEMY*Q42^2+B_WATER*Q42 -> 8 | T42: =A_PTOLEMY*Q42^2+B_GLASS*Q42 -> 7 | AI42: aaa*bbb*L+2*ccc*aaa*M=iii*aaa
A43: 50 | B43: 35 | C43: 5.5 | D43: -0.5 | E43: 30 | F43: 4.5 | G43: -0.5 | Q43: =Q42+10 -> 20 | R43: =lsq*Q43+2*msq*Q43^2 -> 12.96508778 | S43: =A_PTOLEMY*Q43^2+B_WATER*Q43 -> 15.5 | T43: =A_PTOLEMY*Q43^2+B_GLASS*Q43 -> 13.5 | AI43: M=(ggg*bbb-iii*aaa)/2/(bbb^2-ccc*aaa) | AM43: =(GGG*bbb-iii*aaa)/2/(bbb^2-ccc*aaa) -> -0.0006984021328
A44: 60 | B44: 40.5 | C44: 5 | D44: -0.5 | E44: 34.5 | F44: 4 | G44: -0.5 | Q44: 30 | R44: =lsq*Q44+2*msq*Q44^2 -> 19.02859039 | S44: =A_PTOLEMY*Q44^2+B_WATER*Q44 -> 22.5 | T44: =A_PTOLEMY*Q44^2+B_GLASS*Q44 -> 19.5 | AI44: K= | AJ44: =AM43 -> -0.0006984021328
A45: 70 | B45: 45.5 | C45: 4.5 | D45: -0.5 | E45: 38.5 | F45: 3.5 | G45: -0.5 | Q45: 40 | R45: =lsq*Q45+2*msq*Q45^2 -> 24.81273214 | S45: =A_PTOLEMY*Q45^2+B_WATER*Q45 -> 29 | T45: =A_PTOLEMY*Q45^2+B_GLASS*Q45 -> 25
A46: 80 | B46: 50 | E46: 42 | Q46: 50 | R46: =lsq*Q46+2*msq*Q46^2 -> 30.31751305 | S46: =A_PTOLEMY*Q46^2+B_WATER*Q46 -> 35 | T46: =A_PTOLEMY*Q46^2+B_GLASS*Q46 -> 30
Q47: 60 | R47: =lsq*Q47+2*msq*Q47^2 -> 35.5429331 | S47: =A_PTOLEMY*Q47^2+B_WATER*Q47 -> 40.5 | T47: =A_PTOLEMY*Q47^2+B_GLASS*Q47 -> 34.5
I48: ANGLE_GRAPHS | Q48: 70 | R48: =lsq*Q48+2*msq*Q48^2 -> 40.48899229 | S48: =A_PTOLEMY*Q48^2+B_WATER*Q48 -> 45.5 | T48: =A_PTOLEMY*Q48^2+B_GLASS*Q48 -> 38.5
Q49: 80 | R49: =lsq*Q49+2*msq*Q49^2 -> 45.15569064 | S49: =A_PTOLEMY*Q49^2+B_WATER*Q49 -> 50 | T49: =A_PTOLEMY*Q49^2+B_GLASS*Q49 -> 42
Q50: 90 | R50: =lsq*Q50+2*msq*Q50^2 -> 49.54302813 | S50: =A_PTOLEMY*Q50^2+B_WATER*Q50 -> 54 | T50: =A_PTOLEMY*Q50^2+B_GLASS*Q50 -> 45
Q51: 100 | R51: =lsq*Q51+2*msq*Q51^2 -> 53.65100477 | S51: =A_PTOLEMY*Q51^2+B_WATER*Q51 -> 57.5 | T51: =A_PTOLEMY*Q51^2+B_GLASS*Q51 -> 47.5
Q52: 110 | R52: =lsq*Q52+2*msq*Q52^2 -> 57.47962055 | S52: =A_PTOLEMY*Q52^2+B_WATER*Q52 -> 60.5 | T52: =A_PTOLEMY*Q52^2+B_GLASS*Q52 -> 49.5
Q53: 120 | R53: =lsq*Q53+2*msq*Q53^2 -> 61.02887548 | S53: =A_PTOLEMY*Q53^2+B_WATER*Q53 -> 63 | T53: =A_PTOLEMY*Q53^2+B_GLASS*Q53 -> 51
Q54: 130 | R54: =lsq*Q54+2*msq*Q54^2 -> 64.29876956 | S54: =A_PTOLEMY*Q54^2+B_WATER*Q54 -> 65 | T54: =A_PTOLEMY*Q54^2+B_GLASS*Q54 -> 52
Q55: 140 | R55: =lsq*Q55+2*msq*Q55^2 -> 67.28930278 | S55: =A_PTOLEMY*Q55^2+B_WATER*Q55 -> 66.5 | T55: =A_PTOLEMY*Q55^2+B_GLASS*Q55 -> 52.5
Q56: 150 | R56: =lsq*Q56+2*msq*Q56^2 -> 70.00047516 | S56: =A_PTOLEMY*Q56^2+B_WATER*Q56 -> 67.5 | T56: =A_PTOLEMY*Q56^2+B_GLASS*Q56 -> 52.5
Q57: 160 | R57: =lsq*Q57+2*msq*Q57^2 -> 72.43228668 | S57: =A_PTOLEMY*Q57^2+B_WATER*Q57 -> 68 | T57: =A_PTOLEMY*Q57^2+B_GLASS*Q57 -> 52
Q58: =Q57+10 -> 170 | R58: =lsq*Q58+2*msq*Q58^2 -> 74.58473734 | S58: =A_PTOLEMY*Q58^2+B_WATER*Q58 -> 68 | T58: =A_PTOLEMY*Q58^2+B_GLASS*Q58 -> 51
Q59: 180 | R59: =lsq*Q59+2*msq*Q59^2 -> 76.45782715 | S59: =A_PTOLEMY*Q59^2+B_WATER*Q59 -> 67.5 | T59: =A_PTOLEMY*Q59^2+B_GLASS*Q59 -> 49.5
Q60: 190 | R60: =lsq*Q60+2*msq*Q60^2 -> 78.05155611 | S60: =A_PTOLEMY*Q60^2+B_WATER*Q60 -> 66.5 | T60: =A_PTOLEMY*Q60^2+B_GLASS*Q60 -> 47.5
Q61: 200 | R61: =lsq*Q61+2*msq*Q61^2 -> 79.36592422 | S61: =A_PTOLEMY*Q61^2+B_WATER*Q61 -> 65 | T61: =A_PTOLEMY*Q61^2+B_GLASS*Q61 -> 45
Q62: 210 | R62: =lsq*Q62+2*msq*Q62^2 -> 80.40093147 | S62: =A_PTOLEMY*Q62^2+B_WATER*Q62 -> 63 | T62: =A_PTOLEMY*Q62^2+B_GLASS*Q62 -> 42
Q63: 220 | R63: =lsq*Q63+2*msq*Q63^2 -> 81.15657787 | S63: =A_PTOLEMY*Q63^2+B_WATER*Q63 -> 60.5 | T63: =A_PTOLEMY*Q63^2+B_GLASS*Q63 -> 38.5
Q64: 230 | R64: =lsq*Q64+2*msq*Q64^2 -> 81.63286342 | S64: =A_PTOLEMY*Q64^2+B_WATER*Q64 -> 57.5 | T64: =A_PTOLEMY*Q64^2+B_GLASS*Q64 -> 34.5
Q65: 240 | R65: =lsq*Q65+2*msq*Q65^2 -> 81.82978811 | S65: =A_PTOLEMY*Q65^2+B_WATER*Q65 -> 54 | T65: =A_PTOLEMY*Q65^2+B_GLASS*Q65 -> 30
Q66: 250 | R66: =lsq*Q66+2*msq*Q66^2 -> 81.74735196 | S66: =A_PTOLEMY*Q66^2+B_WATER*Q66 -> 50 | T66: =A_PTOLEMY*Q66^2+B_GLASS*Q66 -> 25
Q67: 260 | R67: =lsq*Q67+2*msq*Q67^2 -> 81.38555494 | S67: =A_PTOLEMY*Q67^2+B_WATER*Q67 -> 45.5 | T67: =A_PTOLEMY*Q67^2+B_GLASS*Q67 -> 19.5
Q68: 270 | R68: =lsq*Q68+2*msq*Q68^2 -> 80.74439708 | S68: =A_PTOLEMY*Q68^2+B_WATER*Q68 -> 40.5 | T68: =A_PTOLEMY*Q68^2+B_GLASS*Q68 -> 13.5
Q69: 280 | R69: =lsq*Q69+2*msq*Q69^2 -> 79.82387836 | S69: =A_PTOLEMY*Q69^2+B_WATER*Q69 -> 35 | T69: =A_PTOLEMY*Q69^2+B_GLASS*Q69 -> 7
Q70: 290 | R70: =lsq*Q70+2*msq*Q70^2 -> 78.62399879 | S70: =A_PTOLEMY*Q70^2+B_WATER*Q70 -> 29 | T70: =A_PTOLEMY*Q70^2+B_GLASS*Q70 -> 0
Q71: 300 | R71: =lsq*Q71+2*msq*Q71^2 -> 77.14475836 | S71: =A_PTOLEMY*Q71^2+B_WATER*Q71 -> 22.5 | T71: =A_PTOLEMY*Q71^2+B_GLASS*Q71 -> -7.5
Q72: 310 | R72: =lsq*Q72+2*msq*Q72^2 -> 75.38615709 | S72: =A_PTOLEMY*Q72^2+B_WATER*Q72 -> 15.5 | T72: =A_PTOLEMY*Q72^2+B_GLASS*Q72 -> -15.5
Q73: 320 | R73: =lsq*Q73+2*msq*Q73^2 -> 73.34819496 | S73: =A_PTOLEMY*Q73^2+B_WATER*Q73 -> 8 | T73: =A_PTOLEMY*Q73^2+B_GLASS*Q73 -> -24
Q74: 330 | R74: =lsq*Q74+2*msq*Q74^2 -> 71.03087197 | S74: =A_PTOLEMY*Q74^2+B_WATER*Q74 -> 0 | T74: =A_PTOLEMY*Q74^2+B_GLASS*Q74 -> -33
Q75: 340 | R75: =lsq*Q75+2*msq*Q75^2 -> 68.43418813 | S75: =A_PTOLEMY*Q75^2+B_WATER*Q75 -> -8.5 | T75: =A_PTOLEMY*Q75^2+B_GLASS*Q75 -> -42.5
Q76: 350 | R76: =lsq*Q76+2*msq*Q76^2 -> 65.55814344 | S76: =A_PTOLEMY*Q76^2+B_WATER*Q76 -> -17.5 | T76: =A_PTOLEMY*Q76^2+B_GLASS*Q76 -> -52.5 | U76: =RADIANS(U75) -> 0 | V76: =RADIANS(V75) -> 0 | W76: =RADIANS(W75) -> 0 | X76: =RADIANS(X75) -> 0 | Y76: =RADIANS(Y75) -> 0
Q77: 360 | R77: =lsq*Q77+2*msq*Q77^2 -> 62.4027379 | S77: =A_PTOLEMY*Q77^2+B_WATER*Q77 -> -27 | T77: =A_PTOLEMY*Q77^2+B_GLASS*Q77 -> -63
Q78: 370 | R78: =lsq*Q78+2*msq*Q78^2 -> 58.9679715 | S78: =A_PTOLEMY*Q78^2+B_WATER*Q78 -> -37 | T78: =A_PTOLEMY*Q78^2+B_GLASS*Q78 -> -74
Q79: 380 | R79: =lsq*Q79+2*msq*Q79^2 -> 55.25384425 | S79: =A_PTOLEMY*Q79^2+B_WATER*Q79 -> -47.5 | T79: =A_PTOLEMY*Q79^2+B_GLASS*Q79 -> -85.5
Q80: 390 | R80: =lsq*Q80+2*msq*Q80^2 -> 51.26035615 | S80: =A_PTOLEMY*Q80^2+B_WATER*Q80 -> -58.5 | T80: =A_PTOLEMY*Q80^2+B_GLASS*Q80 -> -97.5
Q81: 400 | R81: =lsq*Q81+2*msq*Q81^2 -> 46.9875072 | S81: =A_PTOLEMY*Q81^2+B_WATER*Q81 -> -70 | T81: =A_PTOLEMY*Q81^2+B_GLASS*Q81 -> -110
Q82: 410 | R82: =lsq*Q82+2*msq*Q82^2 -> 42.43529739 | S82: =A_PTOLEMY*Q82^2+B_WATER*Q82 -> -82 | T82: =A_PTOLEMY*Q82^2+B_GLASS*Q82 -> -123
Q83: 420 | R83: =lsq*Q83+2*msq*Q83^2 -> 37.60372673 | S83: =A_PTOLEMY*Q83^2+B_WATER*Q83 -> -94.5 | T83: =A_PTOLEMY*Q83^2+B_GLASS*Q83 -> -136.5
Q84: 430 | R84: =lsq*Q84+2*msq*Q84^2 -> 32.49279521 | S84: =A_PTOLEMY*Q84^2+B_WATER*Q84 -> -107.5 | T84: =A_PTOLEMY*Q84^2+B_GLASS*Q84 -> -150.5
Q85: 440 | R85: =lsq*Q85+2*msq*Q85^2 -> 27.10250284 | S85: =A_PTOLEMY*Q85^2+B_WATER*Q85 -> -121 | T85: =A_PTOLEMY*Q85^2+B_GLASS*Q85 -> -165
Q86: 450 | R86: =lsq*Q86+2*msq*Q86^2 -> 21.43284962 | S86: =A_PTOLEMY*Q86^2+B_WATER*Q86 -> -135 | T86: =A_PTOLEMY*Q86^2+B_GLASS*Q86 -> -180
Q87: 460 | R87: =lsq*Q87+2*msq*Q87^2 -> 15.48383555 | S87: =A_PTOLEMY*Q87^2+B_WATER*Q87 -> -149.5 | T87: =A_PTOLEMY*Q87^2+B_GLASS*Q87 -> -195.5
Q88: 470 | R88: =lsq*Q88+2*msq*Q88^2 -> 9.25546062 | S88: =A_PTOLEMY*Q88^2+B_WATER*Q88 -> -164.5 | T88: =A_PTOLEMY*Q88^2+B_GLASS*Q88 -> -211.5
Q89: 480 | R89: =lsq*Q89+2*msq*Q89^2 -> 2.747724839 | S89: =A_PTOLEMY*Q89^2+B_WATER*Q89 -> -180 | T89: =A_PTOLEMY*Q89^2+B_GLASS*Q89 -> -228
Q90: 490 | R90: =lsq*Q90+2*msq*Q90^2 -> -4.039371795 | S90: =A_PTOLEMY*Q90^2+B_WATER*Q90 -> -196 | T90: =A_PTOLEMY*Q90^2+B_GLASS*Q90 -> -245
Q91: 500 | R91: =lsq*Q91+2*msq*Q91^2 -> -11.10582928 | S91: =A_PTOLEMY*Q91^2+B_WATER*Q91 -> -212.5 | T91: =A_PTOLEMY*Q91^2+B_GLASS*Q91 -> -262.5
Q92: 510 | R92: =lsq*Q92+2*msq*Q92^2 -> -18.45164762 | S92: =A_PTOLEMY*Q92^2+B_WATER*Q92 -> -229.5 | T92: =A_PTOLEMY*Q92^2+B_GLASS*Q92 -> -280.5
Q93: 520 | R93: =lsq*Q93+2*msq*Q93^2 -> -26.07682681 | S93: =A_PTOLEMY*Q93^2+B_WATER*Q93 -> -247 | T93: =A_PTOLEMY*Q93^2+B_GLASS*Q93 -> -299
Q94: 530 | R94: =lsq*Q94+2*msq*Q94^2 -> -33.98136686 | S94: =A_PTOLEMY*Q94^2+B_WATER*Q94 -> -265 | T94: =A_PTOLEMY*Q94^2+B_GLASS*Q94 -> -318
J95: =XC+RADIUS_OF_SEMICIRCLE*SIN(radiansg) -> -5.898677368 | K95: =YC+RADIUS_OF_SEMICIRCLE*COS(radiansg) -> 75.31821574 | L95: =XC-RADIUS_OF_SEMICIRCLE*SIN(radiansg) -> 4.538677368 | M95: =YC-RADIUS_OF_SEMICIRCLE*COS(radiansg) -> -74.31821574 | N95: =IF(circle_left,J95,L95) -> -5.898677368 | O95: =IF(circle_left,K95,M95) -> 75.31821574 | Q95: 540 | R95: =lsq*Q95+2*msq*Q95^2 -> -42.16526776 | S95: =A_PTOLEMY*Q95^2+B_WATER*Q95 -> -283.5 | T95: =A_PTOLEMY*Q95^2+B_GLASS*Q95 -> -337.5
J96: =XC-RADIUS_OF_SEMICIRCLE*SIN(radiansg) -> 4.538677368 | K96: =YC-RADIUS_OF_SEMICIRCLE*COS(radiansg) -> -74.31821574 | L96: =XC+RADIUS_OF_SEMICIRCLE*SIN(radiansg) -> -5.898677368 | M96: =YC+RADIUS_OF_SEMICIRCLE*COS(radiansg) -> 75.31821574 | N96: 4.538677368 | O96: -74.31821574 | Q96: 550 | R96: =lsq*Q96+2*msq*Q96^2 -> -50.62852951 | S96: =A_PTOLEMY*Q96^2+B_WATER*Q96 -> -302.5 | T96: =A_PTOLEMY*Q96^2+B_GLASS*Q96 -> -357.5
I97: 0 | J97: =-RADIUS_OF_SEMICIRCLE*SIN(radiansg+PI()/180*I97)+XC -> 4.538677368 | K97: =YC-RADIUS_OF_SEMICIRCLE*COS(radiansg+PI()/180*I88) -> -74.31821574 | L97: =RADIUS_OF_SEMICIRCLE*SIN(radiansg+PI()/180*I97)+XC -> -5.898677368 | M97: =YC+RADIUS_OF_SEMICIRCLE*COS(radiansg+PI()/180*I97) -> 75.31821574 | N97: 4.538677368 | O97: -74.31821574 | Q97: 560 | R97: =lsq*Q97+2*msq*Q97^2 -> -59.37115212 | S97: =A_PTOLEMY*Q97^2+B_WATER*Q97 -> -322 | T97: =A_PTOLEMY*Q97^2+B_GLASS*Q97 -> -378
I98: =I97+1 -> 1 | J98: 3.232124628 | K98: =YC-RADIUS_OF_SEMICIRCLE*COS(radiansg+PI()/180*I89) -> -74.31821574 | L98: -4.592124628 | M98: 75.39789904 | N98: 3.232124628 | O98: -74.31821574 | Q98: 570 | R98: =lsq*Q98+2*msq*Q98^2 -> -68.39313558 | S98: =A_PTOLEMY*Q98^2+B_WATER*Q98 -> -342 | T98: =A_PTOLEMY*Q98^2+B_GLASS*Q98 -> -399
I99: =I98+1 -> 2 | J99: 1.924380218 | K99: =YC-RADIUS_OF_SEMICIRCLE*COS(radiansg+PI()/180*I90) -> -74.31821574 | L99: -3.284380218 | M99: 75.45476772 | N99: 1.924380218 | O99: -74.31821574 | Q99: 580 | R99: =lsq*Q99+2*msq*Q99^2 -> -77.69447989 | S99: =A_PTOLEMY*Q99^2+B_WATER*Q99 -> -362.5 | T99: =A_PTOLEMY*Q99^2+B_GLASS*Q99 -> -420.5
A100: -2.405234692 | B100: -72.33941924 | E100: 150 | F100: 0 | I100: 3 | J100: 0.6158424872 | K100: =YC-RADIUS_OF_SEMICIRCLE*COS(radiansg+PI()/180*I97) -> -74.31821574 | L100: -1.975842487 | M100: 75.48880445 | N100: 0.6158424872 | O100: -74.31821574 | Q100: 590 | R100: =lsq*Q100+2*msq*Q100^2 -> -87.27518505 | S100: =A_PTOLEMY*Q100^2+B_WATER*Q100 -> -383.5 | T100: =A_PTOLEMY*Q100^2+B_GLASS*Q100 -> -442.5
A101: -3.710615563 | B101: -72.24241269 | C101: 7.405234692 | D101: 77.33941924 | E101: 149.9086241 | F101: 5.234924505 | I101: 4 | J101: -0.6930899693 | K101: -74.39789904 | L101: -0.6669100307 | M101: 75.49999886 | N101: -0.6930899693 | O101: -74.39789904 | Q101: 600 | R101: =lsq*Q101+2*msq*Q101^2 -> -97.13525107 | S101: =A_PTOLEMY*Q101^2+B_WATER*Q101 -> -405 | T101: =A_PTOLEMY*Q101^2+B_GLASS*Q101 -> -465
A102: -5.014104621 | B102: -72.12263887 | C102: -2.405234692 | D102: -72.33941924 | E102: 149.6346075 | F102: 10.46347106 | I102: 5 | J102: -2.002018439 | K102: -74.45476772 | L102: 0.6420184385 | M102: 75.48834754 | N102: -2.002018439 | O102: -74.45476772
A103: -6.315304809 | B103: -71.98013427 | E103: 149.1782843 | F103: 15.67926949 | I103: 6 | J103: -3.310544208 | K103: -74.48880445 | L103: 1.950544208 | M103: 75.45385405 | N103: -3.310544208 | O103: -74.48880445
A104: -7.613819771 | B104: -71.8149423 | E104: 148.5402103 | F104: 20.87596514 | I104: 7 | J104: -4.618268688 | K104: -74.49999886 | L104: 3.258268688 | M104: 75.39652889 | N104: -4.618268688 | O104: -74.49999886
A105: -8.909253964 | B105: -71.62711329 | E105: 147.721163 | F105: 26.04722665 | I105: 8 | J105: -5.924793534 | K105: -74.48834754 | L105: 4.564793534 | M105: 75.31638952 | N105: -5.924793534 | O105: -74.48834754
A106: -10.20121279 | B106: -71.41670443 | E106: 146.7221401 | F106: 31.18675362 | I106: 9 | J106: -7.229720765 | K106: -74.45385405 | L106: 5.869720765 | M106: 75.21346035 | N106: -7.229720765 | O106: -74.45385405
A107: -11.4893027 | B107: -71.18377983 | E107: 145.5443589 | F107: 36.28828434 | I107: 10 | J107: -8.532652887 | K107: -74.39652889 | L107: 7.172652887 | M107: 75.08777274 | N107: -8.532652887 | O107: -74.39652889
A108: -12.77313134 | B108: -70.92841044 | E108: 144.1892544 | F108: 41.34560337 | I108: 11 | J108: -9.833193015 | K108: -74.31638952 | L108: 8.473193015 | M108: 74.93936497 | N108: -9.833193015 | O108: -74.31638952
A109: -14.05230763 | B109: -70.65067404 | E109: 142.6584774 | F109: 46.35254916 | I109: 12 | J109: -11.13094499 | K109: -74.21346035 | L109: 9.770944992 | M109: 74.76828225 | N109: -11.13094499 | O109: -74.21346035
A110: -15.32644192 | B110: -70.35065524 | E110: 140.9538931 | F110: 51.3030215 | I110: 13 | J110: -12.42551351 | K110: -74.08777274 | L110: 11.06551351 | M110: 74.57457669 | N110: -12.42551351 | O110: -74.08777274
A111: -16.59514612 | B111: -70.02844542 | E111: 139.0775782 | F111: 56.19098901 | I111: 14 | J111: -13.71650423 | K111: -73.93936497 | L111: 12.35650423 | M111: 74.3583073 | N111: -13.71650423 | O111: -73.93936497
A112: -17.85803374 | B112: -69.68414273 | E112: 137.0318186 | F112: 61.01049646 | I112: 15 | J112: -15.0035239 | K112: -73.76828225 | L112: 13.6435239 | M112: 74.11953995 | N112: -15.0035239 | O112: -73.76828225
A113: -19.11472011 | B113: -69.31785206 | E113: 134.8191069 | F113: 65.75567202 | I113: 16 | J113: -16.2861805 | K113: -73.57457669 | L113: 14.9261805 | M113: 73.85834738 | N113: -16.2861805 | O113: -73.57457669
A114: -20.36482243 | B114: -68.92968497 | E114: 132.4421389 | F114: 70.42073442 | I114: 17 | J114: -17.56408329 | K114: -73.3583073 | L114: 16.20408329 | M114: 73.57480914 | N114: -17.56408329 | O114: -73.3583073
A115: -21.6079599 | B115: -68.51975971 | E115: 129.9038106 | F115: 75 | I115: 18 | J115: -18.83684303 | K115: -73.11953995 | L115: 17.47684303 | M115: 73.26901161 | N115: -18.83684303 | O115: -73.11953995
A116: -22.84375385 | B116: -68.08820114 | E116: 127.2072144 | F116: 79.48788963 | I116: 19 | J116: -20.10407203 | K116: -72.85834738 | L116: 18.74407203 | M116: 72.94104793 | N116: -20.10407203 | O116: -72.85834738
A117: -24.07182785 | B117: -67.63514073 | E117: 124.3556359 | F117: 83.87893552 | I117: 20 | J117: -21.36538426 | K117: -72.57480914 | L117: 20.00538426 | M117: 72.59101801 | N117: -21.36538426 | O117: -72.57480914
A118: -25.29180781 | B118: -67.16071647 | E118: 121.3525492 | F118: 88.16778784 | I118: 21 | J118: -22.62039552 | K118: -72.26901161 | L118: 21.26039552 | M118: 72.21902847 | N118: -22.62039552 | O118: -72.26901161
A119: -26.50332212 | B119: -66.66507288 | E119: 118.201613 | F119: 92.3492213 | I119: 22 | J119: -23.86872353 | K119: -71.94104793 | L119: 22.50872353 | M119: 71.82519261 | N119: -23.86872353 | O119: -71.94104793
A120: -27.70600174 | B120: -66.14836093 | E120: 114.9066665 | F120: 96.41814145 | I120: 23 | J120: -25.10998802 | K120: -71.59101801 | L120: 23.74998802 | M120: 71.40963041 | N120: -25.10998802 | O120: -71.59101801
A121: -28.89948032 | B121: -65.61073804 | E121: 111.4717238 | F121: 100.369591 | I121: 24 | J121: -26.34381091 | K121: -71.21902847 | L121: 24.98381091 | M121: 70.97246845 | N121: -26.34381091 | O121: -71.21902847
A122: -30.08339431 | B122: -65.05236795 | E122: 107.9009701 | F122: 104.1987556 | I122: 25 | J122: -27.56981635 | K122: -70.82519261 | L122: 26.20981635 | M122: 70.5138399 | N122: -27.56981635 | O122: -70.82519261
A123: -31.25738308 | B123: -64.47342076 | E123: 104.1987556 | F123: 107.9009701 | I123: 26 | J123: -28.78763089 | K123: -70.40963041 | L123: 27.42763089 | M123: 70.03388444 | N123: -28.78763089 | O123: -70.40963041
A124: -32.42108902 | B124: -63.87407281 | E124: 100.369591 | F124: 111.4717238 | I124: 27 | J124: -29.99688357 | K124: -69.97246845 | L124: 28.63688357 | M124: 69.5327483 | N124: -29.99688357 | O124: -69.97246845
A125: -33.57415767 | B125: -63.25450668 | E125: 96.41814145 | F125: 114.9066665 | I125: 28 | J125: -31.19720605 | K125: -69.5138399 | L125: 29.83720605 | M125: 69.01058411 | N125: -31.19720605 | O125: -69.5138399
A126: -34.71623778 | B126: -62.61491109 | E126: 92.3492213 | F126: 118.201613 | I126: 29 | J126: -32.38823269 | K126: -69.03388444 | L126: 31.02823269 | M126: 68.46755093 | N126: -32.38823269 | O126: -69.03388444
A127: -35.84698146 | B127: -61.95548086 | E127: 88.16778784 | F127: 121.3525492 | I127: 30 | J127: -33.56960069 | K127: -68.5327483 | L127: 32.20960069 | M127: 67.90381418 | N127: =IF(circle_left,J127,L127) -> -33.56960069 | O127: =IF(circle_left,K127,M127) -> -68.5327483
A128: -36.96604427 | B128: -61.27641687 | E128: 83.87893552 | F128: 124.3556359 | I128: 31 | J128: -34.74095021 | K128: -68.01058411 | L128: 33.38095021 | M128: 67.31954557 | N128: -34.74095021 | O128: -68.01058411
A129: -38.07308535 | B129: -60.57792597 | E129: 79.48788963 | F129: 127.2072144 | I129: 32 | J129: =-RADIUS_OF_SEMICIRCLE*SIN(radiansg+PI()/180*I129)+XC -> -35.90192443 | K129: -67.46755093 | L129: =RADIUS_OF_SEMICIRCLE*SIN(radiansg+PI()/180*I129)+XC -> 34.54192443 | M129: =YC+RADIUS_OF_SEMICIRCLE*COS(radiansg+PI()/180*I129) -> 66.71492309 | N129: -35.90192443 | O129: -67.46755093
A130: -39.16776748 | B130: -59.86022092 | E130: 75 | F130: 129.9038106 | I130: 33 | J130: -37.05216971 | K130: -66.90381418 | L130: 35.69216971 | M130: 66.09013089 | N130: -37.05216971 | O130: -66.90381418
A131: -40.24975719 | B131: -59.12352035 | E131: 70.42073442 | F131: 132.4421389 | I131: 34 | J131: -38.19133567 | K131: -66.31954557 | L131: 36.83133567 | M131: 65.44535931 | N131: -38.19133567 | O131: -66.31954557
A132: -41.31872492 | B132: -58.36804865 | E132: 65.75567202 | F132: 134.8191069 | I132: 35 | J132: -39.31907532 | K132: =YC-RADIUS_OF_SEMICIRCLE*COS(radiansg+PI()/180*I129) -> -65.71492309 | L132: 37.95907532 | M132: 64.78080474 | N132: -39.31907532 | O132: -65.71492309
A133: -42.37434504 | B133: -57.59403595 | E133: 61.01049646 | F133: 137.0318186 | I133: 36 | J133: -40.43504514 | K133: -65.09013089 | L133: 39.07504514 | M133: 64.09666962 | N133: -40.43504514 | O133: -65.09013089
A134: -43.416296 | B134: -56.80171803 | E134: 56.19098901 | F134: 139.0775782 | I134: 37 | J134: -41.53890518 | K134: -64.44535931 | L134: 40.17890518 | M134: 63.39316233 | N134: -41.53890518 | O134: -64.44535931
A135: -44.44426041 | B135: -55.99133623 | E135: 51.3030215 | F135: 140.9538931 | I135: 38 | J135: -42.6303192 | K135: -63.78080474 | L135: 41.2703192 | M135: 62.67049718 | N135: -42.6303192 | O135: -63.78080474
A136: -45.45792515 | B136: -55.16313741 | E136: 46.35254916 | F136: 142.6584774 | I136: 39 | J136: -43.70895475 | K136: -63.09666962 | L136: 42.34895475 | M136: 61.92889429 | N136: -43.70895475 | O136: -63.09666962
A137: -46.45698143 | B137: -54.31737383 | E137: 41.34560337 | F137: 144.1892544 | I137: 40 | J137: -44.77448326 | K137: -62.39316233 | L137: 43.41448326 | M137: 61.16857956 | N137: -44.77448326 | O137: -62.39316233
A138: -47.44112495 | B138: -53.45430313 | E138: 36.28828434 | F138: 145.5443589 | I138: 41 | J138: -45.82658016 | K138: -61.67049718 | L138: 44.46658016 | M138: 60.3897846 | N138: -45.82658016 | O138: -61.67049718
A139: -48.41005591 | B139: -52.57418821 | E139: 31.18675362 | F139: 146.7221401 | I139: 42 | J139: -46.86492498 | K139: -60.92889429 | L139: 45.50492498 | M139: 59.59274663 | N139: -46.86492498 | O139: -60.92889429
A140: -49.36347918 | B140: -51.67729715 | E140: 26.04722665 | F140: 147.721163 | I140: 43 | J140: -47.88920143 | K140: -60.16857956 | L140: 46.52920143 | M140: 58.77770844 | N140: -47.88920143 | O140: -60.16857956
A141: -50.30110433 | B141: -50.76390317 | E141: 20.87596514 | F141: 148.5402103 | I141: 44 | J141: -48.89909749 | K141: -59.3897846 | L141: 47.53909749 | M141: 57.94491829 | N141: -48.89909749 | O141: -59.3897846
A142: -51.22264576 | B142: -49.83428449 | E142: 15.67926949 | F142: 149.1782843 | I142: 45 | J142: -49.89430555 | K142: -58.59274663 | L142: 48.53430555 | M142: 57.09462986 | N142: -49.89430555 | O142: -58.59274663
A143: -52.12782274 | B143: -48.88872427 | E143: 10.46347106 | F143: 149.6346075 | I143: 46 | J143: -50.87452246 | K143: -57.77770844 | L143: 49.51452246 | M143: 56.22710216 | N143: -50.87452246 | O143: -57.77770844
A144: -53.01635956 | B144: -47.92751056 | E144: 5.234924505 | F144: 149.9086241 | I144: 47 | J144: -51.83944962 | K144: -56.94491829 | L144: 50.47944962 | M144: 55.34259945 | N144: -51.83944962 | O144: -56.94491829
A145: -53.88798556 | B145: -46.95093613 | E145: 9.184547654e-15 | F145: 150 | I145: 48 | J145: -52.78879313 | K145: -56.09462986 | L145: 51.42879313 | M145: 54.44139115 | N145: -52.78879313 | O145: -56.09462986
A146: -54.74243523 | B146: -45.95929847 | E146: -5.234924505 | F146: 149.9086241 | I146: 49 | J146: -53.72226379 | K146: -55.22710216 | L146: 52.36226379 | M146: 53.52375178 | N146: -53.72226379 | O146: -55.22710216
A147: -55.57944831 | B147: -44.95289964 | E147: -10.46347106 | F147: 149.6346075 | I147: 50 | J147: -54.63957726 | K147: -54.34259945 | L147: 53.27957726 | M147: 52.58996085 | N147: -54.63957726 | O147: -54.34259945
A148: -56.39876982 | B148: -43.9320462 | E148: -15.67926949 | F148: 149.1782843 | I148: 51 | J148: -55.54045412 | K148: -53.44139115 | L148: 54.18045412 | M148: 51.64030283 | N148: -55.54045412 | O148: -53.44139115
A149: -57.20015019 | B149: -42.8970491 | E149: -20.87596514 | F149: 148.5402103 | I149: 52 | J149: -56.42461996 | K149: -52.52375178 | L149: 55.06461996 | M149: 50.67506697 | N149: -56.42461996 | O149: -52.52375178
A150: -57.98334532 | B150: -41.84822363 | E150: -26.04722665 | F150: 147.721163 | I150: 53 | J150: -57.29180545 | K150: -51.58996085 | L150: 55.93180545 | M150: 49.6945473 | N150: -57.29180545 | O150: -51.58996085
A151: -58.74811664 | B151: -40.78588925 | E151: -31.18675362 | F151: 146.7221401 | I151: 54 | J151: -58.14174643 | K151: -50.64030283 | L151: 56.78174643 | M151: 48.69904249 | N151: -58.14174643 | O151: -50.64030283
A152: -59.49423118 | B152: -39.71036958 | E152: -36.28828434 | F152: 145.5443589 | I152: 55 | J152: -58.97418401 | K152: -49.67506697 | L152: 57.61418401 | M152: 47.68885579 | N152: -58.97418401 | O152: -49.67506697
A153: -60.22146169 | B153: -38.62199221 | E153: -41.34560337 | F153: 144.1892544 | I153: 56 | J153: -59.78886461 | K153: -48.6945473 | L153: 58.42886461 | M153: 46.66429491 | N153: -59.78886461 | O153: -48.6945473
A154: -60.92958663 | B154: -37.52108869 | E154: -46.35254916 | F154: 142.6584774 | I154: 57 | J154: -60.58554008 | K154: -47.69904249 | L154: 59.22554008 | M154: 45.62567193 | N154: -60.58554008 | O154: -47.69904249
A155: -61.6183903 | B155: -36.40799436 | E155: -51.3030215 | F155: 140.9538931 | I155: 58 | J155: -61.36396774 | K155: -46.68885579 | L155: 60.00396774 | M155: 44.57330324 | N155: -61.36396774 | O155: -46.68885579
A156: -62.28766289 | B156: -35.28304828 | E156: -56.19098901 | F156: 139.0775782 | I156: 59 | J156: -62.12391048 | K156: -45.66429491 | L156: 60.76391048 | M156: 43.5075094 | N156: -62.12391048 | O156: -45.66429491
A157: -62.93720053 | B157: -34.14659311 | E157: -61.01049646 | F157: 137.0318186 | I157: 60 | J157: -62.86513681 | K157: -44.62567193 | L157: 61.50513681 | M157: 42.42861505 | N157: -62.86513681 | O157: -44.62567193
A158: -63.56680537 | B158: -32.99897504 | E158: -65.75567202 | F158: 134.8191069 | I158: 61 | J158: -63.58742095 | K158: -43.57330324 | L158: 62.22742095 | M158: 41.33694883 | N158: -63.58742095 | O158: -43.57330324
A159: -64.17628561 | B159: -31.84054363 | E159: -70.42073442 | F159: 132.4421389 | I159: 62 | J159: -64.29054287 | K159: -42.5075094 | L159: 62.93054287 | M159: 40.23284329 | N159: =IF(circle_left,J159,L159) -> -64.29054287 | O159: =IF(circle_left,K159,M159) -> -42.5075094
A160: -64.76545561 | B160: -30.67165177 | E160: -75 | F160: 129.9038106 | I160: 63 | J160: -64.97428841 | K160: -41.42861505 | L160: 63.61428841 | M160: 39.11663474 | N160: -64.97428841 | O160: -41.42861505
A161: -65.33413591 | B161: -29.49265549 | E161: -79.48788963 | F161: 127.2072144 | I161: 64 | J161: =-RADIUS_OF_SEMICIRCLE*SIN(radiansg+PI()/180*I161)+XC -> -65.63844928 | K161: -40.33694883 | L161: =RADIUS_OF_SEMICIRCLE*SIN(radiansg+PI()/180*I161)+XC -> 64.27844928 | M161: =YC+RADIUS_OF_SEMICIRCLE*COS(radiansg+PI()/180*I161) -> 37.98866318 | N161: -65.63844928 | O161: -40.33694883
A162: -65.88215327 | B162: -28.30391395 | E162: -83.87893552 | F162: 124.3556359 | I162: 65 | J162: -66.28282318 | K162: -39.23284329 | L162: 64.92282318 | M162: 36.84927222 | N162: -66.28282318 | O162: -39.23284329
A163: -66.40934076 | B163: -27.10578923 | E163: -88.16778784 | F163: 121.3525492 | I163: =I162+1 -> 66 | J163: -66.90721382 | K163: -38.11663474 | L163: 65.54721382 | M163: 35.69880892 | N163: -66.90721382 | O163: -38.11663474
A164: -66.9155378 | B164: -25.8986463 | E164: -92.3492213 | F164: 118.201613 | I164: 67 | J164: -67.51143102 | K164: =YC-RADIUS_OF_SEMICIRCLE*COS(radiansg+PI()/180*I161) -> -36.98866318 | L164: 66.15143102 | M164: 34.53762371 | N164: -67.51143102 | O164: -36.98866318
A165: -67.4005902 | B165: -24.68285287 | E165: -96.41814145 | F165: 114.9066665 | I165: 68 | J165: -68.09529071 | K165: -35.84927222 | L165: 66.73529071 | M165: 33.36607032 | N165: -68.09529071 | O165: -35.84927222
A166: -67.86435019 | B166: -23.45877928 | E166: -100.369591 | F166: 111.4717238 | I166: 69 | J166: -68.65861505 | K166: -34.69880892 | L166: 67.29861505 | M166: 32.18450561 | N166: -68.65861505 | O166: -34.69880892
A167: -68.30667653 | B167: -22.22679839 | E167: -104.1987556 | F167: 107.9009701 | I167: 70 | J167: -69.20123245 | K167: -33.53762371 | L167: 67.84123245 | M167: 30.99328948 | N167: -69.20123245 | O167: -33.53762371
A168: -68.72743447 | B168: -20.98728549 | E168: -107.9009701 | F168: 104.1987556 | I168: 71 | J168: -69.72297762 | K168: -32.36607032 | L168: 68.36297762 | M168: 29.79278481 | N168: -69.72297762 | O168: -32.36607032
A169: -69.12649583 | B169: -19.74061812 | E169: -111.4717238 | F169: 100.369591 | I169: 72 | J169: -70.22369162 | K169: -31.18450561 | L169: 68.86369162 | M169: 28.58335727 | N169: -70.22369162 | O169: -31.18450561
A170: -69.50373908 | B170: -18.48717605 | E170: -114.9066665 | F170: 96.41814145 | I170: 73 | J170: -70.70322195 | K170: -29.99328948 | L170: 69.34322195 | M170: 27.36537527 | N170: -70.70322195 | O170: -29.99328948
A171: -69.85904929 | B171: -17.22734108 | E171: -118.201613 | F171: 92.3492213 | I171: 74 | J171: -71.16142252 | K171: -28.79278481 | L171: 69.80142252 | M171: 26.13920981 | N171: -71.16142252 | O171: -28.79278481
A172: -70.19231823 | B172: -15.96149698 | E172: -121.3525492 | F172: 88.16778784 | I172: 75 | J172: -71.59815377 | K172: -27.58335727 | L172: 70.23815377 | M172: 24.9052344 | N172: -71.59815377 | O172: -27.58335727
A173: -70.50344438 | B173: -14.69002932 | E173: -124.3556359 | F173: 83.87893552 | I173: 76 | J173: -72.01328266 | K173: -26.36537527 | L173: 70.65328266 | M173: 23.66382492 | N173: -72.01328266 | O173: -26.36537527
A174: -70.79233298 | B174: -13.41332541 | E174: -127.2072144 | F174: 79.48788963 | I174: 77 | J174: -72.40668274 | K174: -25.13920981 | L174: 71.04668274 | M174: 22.41535952 | N174: -72.40668274 | O174: -25.13920981
A175: -71.05889603 | B175: -12.13177415 | E175: -129.9038106 | F175: 75 | I175: 78 | J175: -72.77823418 | K175: -23.9052344 | L175: 71.41823418 | M175: 21.16021849 | N175: -72.77823418 | O175: -23.9052344
A176: -71.30305232 | B176: -10.84576591 | E176: -132.4421389 | F176: 70.42073442 | I176: 79 | J176: -73.1278238 | K176: -22.66382492 | L176: 71.7678238 | M176: 19.89878415 | N176: -73.1278238 | O176: -22.66382492
A177: -71.52472749 | B177: -9.55569242 | E177: -134.8191069 | F177: 65.75567202 | I177: 80 | J177: -73.45534511 | K177: -21.41535952 | L177: 72.09534511 | M177: 18.63144075 | N177: -73.45534511 | O177: -21.41535952
A178: -71.72385401 | B178: -8.261946649 | E178: -137.0318186 | F178: 61.01049646 | I178: 81 | J178: -73.76069835 | K178: -20.16021849 | L178: 72.40069835 | M178: 17.35857434 | N178: -73.76069835 | O178: -20.16021849
A179: -71.90037123 | B179: -6.964922685 | E179: -139.0775782 | F179: 56.19098901 | I179: 82 | J179: -74.0437905 | K179: -18.89878415 | L179: 72.6837905 | M179: 16.08057265 | N179: -74.0437905 | O179: -18.89878415
A180: -72.05422537 | B180: -5.665015614 | E180: -140.9538931 | F180: 51.3030215 | I180: 83 | J180: -74.30453532 | K180: -17.63144075 | L180: 72.94453532 | M180: 14.79782497 | N180: -74.30453532 | O180: -17.63144075
A181: -72.18536957 | B181: -4.3626214 | E181: -142.6584774 | F181: 46.35254916 | I181: 84 | J181: -74.5428534 | K181: -16.35857434 | L181: 73.1828534 | M181: 13.51072202 | N181: -74.5428534 | O181: -16.35857434
A182: -72.29376388 | B182: -3.058136765 | E182: -144.1892544 | F182: 41.34560337 | I182: 85 | J182: -74.75867214 | K182: -15.08057265 | L182: 73.39867214 | M182: 12.21965589 | N182: -74.75867214 | O182: -15.08057265
A183: -72.37937529 | B183: -1.751959067 | E183: -145.5443589 | F183: 36.28828434 | I183: 86 | J183: -74.9519258 | K183: -13.79782497 | L183: 73.5919258 | M183: 10.92501983 | N183: -74.9519258 | O183: -13.79782497
A184: -72.44217772 | B184: -0.4444861819 | E184: -146.7221401 | F184: 31.18675362 | I184: 87 | J184: -75.12255551 | K184: -12.51072202 | L184: 73.76255551 | M184: 9.627208217 | N184: -75.12255551 | O184: -12.51072202
A185: -72.48215203 | B185: 0.8638836224 | E185: -147.721163 | F185: 26.04722665 | I185: 88 | J185: -75.27050929 | K185: -11.21965589 | L185: 73.91050929 | M185: 8.326616365 | N185: -75.27050929 | O185: -11.21965589
A186: -72.49928605 | B186: 2.172751804 | E186: -148.5402103 | F186: 20.87596514 | I186: 89 | J186: -75.39574208 | K186: -9.925019834 | L186: 74.03574208 | M186: 7.023640448 | N186: -75.39574208 | O186: -9.925019834
A187: -72.49357457 | B187: 3.481719668 | E187: -149.1782843 | F187: 15.67926949 | I187: 90 | J187: -75.49821574 | K187: -8.627208217 | L187: 74.13821574 | M187: 5.718677368 | N187: -75.49821574 | O187: -8.627208217
A188: -72.46501931 | B188: 4.790388491 | E188: -149.6346075 | F188: 10.46347106 | I188: 91 | J188: -75.57789904 | K188: -7.326616365 | L188: 74.21789904 | M188: 4.412124628 | N188: -75.57789904 | O188: -7.326616365
A189: -72.41362899 | B189: 6.098359639 | E189: -149.9086241 | F189: 5.234924505 | I189: 92 | J189: -75.63476772 | K189: -6.023640448 | L189: 74.27476772 | M189: 3.104380218 | N189: -75.63476772 | O189: -6.023640448
A190: -72.33941924 | B190: 7.405234692 | E190: -150 | F190: 1.836909531e-14 | I190: 93 | J190: -75.66880445 | K190: -4.718677368 | L190: 74.30880445 | M190: 1.795842487 | N190: -75.66880445 | O190: -4.718677368
A191: -72.24241269 | B191: 8.710615563 | E191: -149.9086241 | F191: -5.234924505 | I191: 94 | J191: -75.67999886 | K191: -3.412124628 | L191: 74.31999886 | M191: 0.4869100307 | N191: =IF(circle_left,J191,L191) -> -75.67999886 | O191: =IF(circle_left,K191,M191) -> -3.412124628
A192: -72.12263887 | B192: 10.01410462 | E192: -149.6346075 | F192: -10.46347106 | I192: 95 | J192: -75.66834754 | K192: -2.104380218 | L192: 74.30834754 | M192: -0.8220184385 | N192: -75.66834754 | O192: -2.104380218
A193: -71.98013427 | B193: 11.31530481 | E193: -149.1782843 | F193: -15.67926949 | I193: 96 | J193: =-RADIUS_OF_SEMICIRCLE*SIN(radiansg+PI()/180*I193)+XC -> -75.63385405 | K193: -0.7958424872 | L193: =RADIUS_OF_SEMICIRCLE*SIN(radiansg+PI()/180*I193)+XC -> 74.27385405 | M193: =YC+RADIUS_OF_SEMICIRCLE*COS(radiansg+PI()/180*I193) -> -2.130544208 | N193: -75.63385405 | O193: -0.7958424872
A194: -71.8149423 | B194: 12.61381977 | E194: -148.5402103 | F194: -20.87596514 | I194: 97 | J194: -75.57652889 | K194: 0.5130899693 | L194: 74.21652889 | M194: -3.438268688 | N194: -75.57652889 | O194: 0.5130899693
A195: -71.62711329 | B195: 13.90925396 | E195: -147.721163 | F195: -26.04722665 | I195: 98 | J195: -75.49638952 | K195: 1.822018439 | L195: 74.13638952 | M195: -4.744793534 | N195: -75.49638952 | O195: 1.822018439
A196: -71.41670443 | B196: 15.20121279 | E196: -146.7221401 | F196: -31.18675362 | I196: 99 | J196: -75.39346035 | K196: =YC-RADIUS_OF_SEMICIRCLE*COS(radiansg+PI()/180*I193) -> 3.130544208 | L196: 74.03346035 | M196: -6.049720765 | N196: -75.39346035 | O196: 3.130544208
A197: -71.18377983 | B197: 16.4893027 | E197: -145.5443589 | F197: -36.28828434 | I197: 100 | J197: -75.26777274 | K197: 4.438268688 | L197: 73.90777274 | M197: -7.352652887 | N197: -75.26777274 | O197: 4.438268688
A198: -70.92841044 | B198: 17.77313134 | E198: -144.1892544 | F198: -41.34560337 | I198: 101 | J198: -75.11936497 | K198: 5.744793534 | L198: 73.75936497 | M198: -8.653193015 | N198: -75.11936497 | O198: 5.744793534
A199: -70.65067404 | B199: 19.05230763 | E199: -142.6584774 | F199: -46.35254916 | I199: 102 | J199: -74.94828225 | K199: 7.049720765 | L199: 73.58828225 | M199: -9.950944992 | N199: -74.94828225 | O199: 7.049720765
A200: -70.35065524 | B200: 20.32644192 | E200: -140.9538931 | F200: -51.3030215 | I200: 103 | J200: -74.75457669 | K200: 8.352652887 | L200: 73.39457669 | M200: -11.24551351 | N200: -74.75457669 | O200: 8.352652887
... 264 more rows

Sheet ORTHO_TRIANGLE
J1: =Y15 -> -7.229383425 | K1: incidence = | L1: =M50 -> -70.2 | M1: single ray | O1: dedo11 | P1: =O55 -> 34.45070727 | Q1: deviation angle | V1: tangent | Z1: Least deviation | AB1: 900 | AD1: tangent | AE1: SECOND REFRACTION IN THE FRAME OF TRIANGLE | AJ1: =ASIN(1/nn) -> 0.7297276562 | AM1: =1/nn -> 0.6666666667 | AQ1: 900
K2: side | L2: a | M2: 90 | N2: least angle for not refraction | P2: =J1 -> -7.229383425 | V2: x | W2: y | X2: IF WE DRAW | AD2: at -XCT | AE2: at -YCT | AF2: FIRST REFRACTION | AH2: =-(PI()/4-AJ1) -> -0.05567050717 | AI2: =DEGREES(AH2) -> -3.189685104 | AJ2: =DEGREES(AJ1) -> 41.8103149 | AM2: =ASIN(AM1) -> 0.7297276562 | AN2: =DEGREES(AM2) -> 41.8103149
L3: =nn -> 1.5 | M3: Index of refraction | P3: theta2 for tangent | R3: theta1 | T3: incident from right | V3: =AF3*COS(RADIANSGT)+AG3*SIN(RADIANSGT)+XCT -> 147.1386337 | W3: =-AF3*SIN(RADIANSGT)+AG3*COS(RADIANSGT)+YCT -> -18.95553361 | X3: =IF(L$4,V3,0) -> 147.1386337 | Y3: =IF(L$4,W3,0) -> -18.95553361 | Z3: =IF($L$5,AB7*COS(RADIANSGT)+AC7*SIN(RADIANSGT)+XCT,0) -> 122.8256504 | AA3: =IF($L$5,-AB7*SIN(RADIANSGT)+AC7*COS(RADIANSGT)+YCT,0) -> -86.20377228 | AB3: =IF($L$5,150*COS($T5)-XCT,0) -> 120.8256504 | AC3: =IF($L$5,-150*SIN($T5),0) -> -86.10377228 | AD3: =(150)*COS($T$4)-XCT -> 146.7882791 | AE3: =-(150)*SIN($T4)-YCT -> -18.92755868 | AF3: =AD3*COS(RADIANSGT)+AE3*SIN(RADIANSGT) -> 145.8229607 | AG3: =AD3*SIN(RADIANSGT)+AE3*COS(RADIANSGT) -> -12.50672903 | AH3: REFRACTION | AI3: =ATAN(AG3/AF3) -> -0.08555715463 | AJ3: =DEGREES(AI3) -> -4.902063867 | AM3: =PI()/4-AM2 -> 0.05567050717 | AN3: =DEGREES(AM3) -> 3.189685104
K4: print | L4: TRUE | M4: show ray that exists tangent | P4: =ASIN(1/nn) -> 0.7297276562 | Q4: =DEGREES(P4) -> 41.8103149 | R4: =PI()/4-P4 -> 0.05567050717 | S4: =DEGREES(R4) -> 3.189685104 | T4: =ASIN(nn*SIN(R4))+RADIANSGT -> 0.1271930704 | U4: =DEGREES(T4) -> 7.28762612 | V4: =AF4*COS(RADIANSGT)+AG4*SIN(RADIANSGT)+XCT -> 2 | W4: =-AF4*SIN(RADIANSGT)+AG4*COS(RADIANSGT)+YCT -> -0.1 | X4: =IF(L$4,V4,0) -> 2 | Y4: =IF(L$4,W4,0) -> -0.1 | Z4: =IF($L$5,AB8*COS(RADIANSGT)+AC8*SIN(RADIANSGT)+XCT,0) -> 2.220446049e-16 | AA4: =IF($L$5,-AB8*SIN(RADIANSGT)+AC8*COS(RADIANSGT)+YCT,0) -> 0 | AB4: =0-XCT -> -2 | AC4: =IF($L$5,-150*SIN($U6)-YCT,0) -> 0.1 | AF4: =0 -> 0 | AG4: 0 | AH4: for incident | AI4: =SIN(AH2)*nn -> -0.08346263386 | AJ4: =DEGREES(AI4) -> -4.782056667 | AM4: =ASIN(nn*SIN(AM3)) -> 0.08355983915 | AN4: =DEGREES(AM4) -> 4.78762612 | AO4: =AN4+ANGLE -> 0.79762612
A5: ` | K5: print | L5: TRUE | M5: least deviation | O5: least | P5: =RADIANS(Q5) -> 0.3926990817 | Q5: =22.5 -> 22.5 | R5: =RADIANS(S5) -> 0.3926990817 | S5: =22.5 -> 22.5 | T5: =ASIN(nn*SIN(R5)) -> 0.6114131198 | U5: =DEGREES(T5) -> 35.0313913 | V5: =AF5*COS(RADIANSGT)+AG5*SIN(RADIANSGT)+XCT -> -40.48042963 | W5: =-AF5*SIN(RADIANSGT)+AG5*COS(RADIANSGT)+YCT -> 4.132386813 | X5: =IF(L$4,V5,0) -> -40.48042963 | Y5: =IF(L$4,W5,0) -> 4.132386813 | Z5: =IF($L$5,AB9*COS(RADIANSGT)+AC9*SIN(RADIANSGT)+XCT,0) -> -31.81980515 | AA5: =IF($L$5,-AB9*SIN(RADIANSGT)+AC9*COS(RADIANSGT)+YCT,0) -> 11.18019485 | AB5: =IF($L$5,-a/2*SIN(PI()/4)-XCT,0) -> -33.81980515 | AC5: =IF($L$5,a/2+AB5-YCT,0) -> 11.28019485 | AF5: =a/2/(TAN(AH$2)-1) -> -42.6246118 | AG5: =a/2+AF5 -> 2.375388203 | AH5: x | AI5: =(150-XCT)*COS(AI4) -> 147.4848143 | AN5: =DEGREES(AM5) -> 0
J6: XCTT | K6: =(O6-30)/10 -> 2 | O6: 50 | V6: =AF6*COS(RADIANSGT)+AG6*SIN(RADIANSGT)+XCT -> -204.5706494 | W6: =-AF6*SIN(RADIANSGT)+AG6*COS(RADIANSGT)+YCT -> -146.2285969 | X6: =IF(L$4,V6,0) -> -204.5706494 | Y6: =IF(L$4,W6,0) -> -146.2285969 | Z6: =IF($L$5,AB10*COS(RADIANSGT)+AC10*SIN(RADIANSGT)+XCT,0) -> -200 | AA6: =IF($L$5,-AB10*SIN(RADIANSGT)+AC10*COS(RADIANSGT)+YCT,0) -> 40.38837809 | AB6: =IF($L$5,-200-XCT,0) -> -202 | AC6: =IF($L$5,AC5-(-200-AB5)*TAN(PI()/4-$T5),0) -> 40.48837809 | AF6: -200 | AG6: =-200+a+miny -> -155 | AH6: y= | AI6: =(150-YCT)*SIN(AI4) -> -12.51320168
J7: YCTT | K7: =(O7-30)/10 -> -0.1 | O7: 29 | V7: R1 | X7: measured angle for tangent | Z7: =DEGREES(ABS(ASIN(((Z3-Z4)*(AA5-AA6)-(Z5-Z6)*(AA3-AA4))/(150*SQRT((Z5-Z6)^2+(AA5-AA6)^2))))) -> 25.22058496 | AB7: =AB3*COS(RADIANSGT)-AC3*SIN(RADIANSGT) -> 124.466445 | AC7: =AB3*SIN(RADIANSGT)+AC3*COS(RADIANSGT) -> -80.75147972
J8: ANGLE_T | K8: =(O8-30)/10 -> 2.5 | N8: Second: ROTATION at angle g: | O8: 55 | V8: =SQRT((V3-V4)^2+(W3-W4)^2) -> 146.3583074 | W8: =(V3-V4)*X10-(W3-W4)*X9 -> 1852.812151 | X8: =ASIN(W8/(V8*V10)) -> 0.08564273745 | Y8: =DEGREES(X8) -> 4.906967402 | AB8: =AB4*COS(RADIANSGT)-AC4*SIN(RADIANSGT) -> -2.002458382 | AC8: =AB4*SIN(RADIANSGT)+AC4*COS(RADIANSGT) -> 0.01266604743
J9: RADIANSGT | K9: =RADIANS(ANGLE_T) -> 0.0436332313 | L9: miny= | M9: =-a/2 -> -45 | O9: X1=X-XCT Y1=Y-YCT | V9: R2 | X9: =150*COS(RADIANSGT)-XCT -> 147.8572332 | Y9: x_PERPENDICULAR | Z9: 22.5 | AB9: =AB5*COS(RADIANSGT)-AC5*SIN(RADIANSGT) -> -34.27965138 | AC9: =AB5*SIN(RADIANSGT)+AC5*COS(RADIANSGT) -> 9.794259419
J10: show red rays | L10: the lower y=miny-a | Q10: x11=x1cosg-y1sing y11=x1sing+y1cosg | V10: =SQRT(X9^2+X10^2) -> 147.9975422 | X10: =-150*SIN(RADIANSGT)-YCT -> -6.442908105 | Y10: y_PERPENDICULAR | AB10: =AB6*COS(RADIANSGT)-AC6*SIN(RADIANSGT) -> -203.573819 | AC10: =AB6*SIN(RADIANSGT)+AC6*COS(RADIANSGT) -> 31.63872588
J11: TRUE | L11: lowy= | M11: =-miny+a -> 135 | V11: R11 | W11: =SQRT(X11^2+Y11^2) -> 152 | X11: =150+XCT -> 152 | Y11: 0
J12: Show radii of goniometric | L12: triangle | V12: R22 | W12: =SQRT(X12^2+Y12^2) -> 151.9966073 | X12: =(150)*COS(T4)+XCT -> 150.7882791 | Y12: =-(150)*SIN(T4)+YCT -> -19.12755868
E13: d | J13: TRUE | L13: =-a -> -90 | M13: =miny -> -45 | V13: R11XR22= | W13: =X11*Y12-Y11*X12 -> -2907.38892 | X13: SIN | Y13: =W13/(W12*W11) -> -0.1258420107
L14: 0 | M14: =miny -> -45 | X14: ASIN | Y14: =ASIN(Y13) -> -0.1261765437 | Z14: =Y14+T4 -> 0.001016526788
L15: =0 -> 0 | M15: =miny+a -> 45 | X15: DEGREES | Y15: =DEGREES(Y14) -> -7.229383425
L16: =-a -> -90 | M16: =miny -> -45
J17: triangle | L17: in lab frame | O17: =" least square fit n = "&TEXT(AN36,"0,00") -> least square fit n = 1,37
J18: =-XCT -> -2 | K18: =-YCT -> 0.1 | L18: =J18*COS(RADIANSGT)+K18*SIN(RADIANSGT) -> -1.993734504 | M18: =-J18*SIN(RADIANSGT)+K18*COS(RADIANSGT) -> 0.1871435969
J19: =L13-XCT -> -92 | K19: =M13-YCT -> -44.9 | L19: =J19*COS(RADIANSGT)+K19*SIN(RADIANSGT) -> -93.87094688 | M19: =-J19*SIN(RADIANSGT)+K19*COS(RADIANSGT) -> -40.84428151
J20: =L14-XCT -> -2 | K20: =M14-YCT -> -44.9 | L20: =J20*COS(RADIANSGT)+K20*SIN(RADIANSGT) -> -3.956606936 | M20: =-J20*SIN(RADIANSGT)+K20*COS(RADIANSGT) -> -44.77002637
J21: =L15-XCT -> -2 | K21: =M15-YCT -> 45.1 | L21: =J21*COS(RADIANSGT)+K21*SIN(RADIANSGT) -> -0.03086207299 | M21: =-J21*SIN(RADIANSGT)+K21*COS(RADIANSGT) -> 45.14431357
J22: =L16-XCT -> -92 | K22: =M16-YCT -> -44.9 | L22: =J22*COS(RADIANSGT)+K22*SIN(RADIANSGT) -> -93.87094688 | M22: =-J22*SIN(RADIANSGT)+K22*COS(RADIANSGT) -> -40.84428151
AE23: POINTS AT DIAGONAL SHOWING ANGLE OF REFRACTION
AD24: ANGLE | AG24: refraction angle | AJ24: measured | AN24: sin(incidence) | AO24: sin(refraction) | AY24: x | AZ24: x^2 | BA24: x^3 | BB24: x^4 | BC24: Y | BD24: XY | BE24: yx^2 | BF24: WITH MEASURED INDEX OF REFRACTION
N25: =L27+10 -> 10 | AD25: 0 | AE25: =IF(L47,L40,"") ->  | AF25: =IF(LR7,M40,"") ->  | AG25: =IF(L47,ATAN(AF25/AE25),"") ->  | AH25: =IF(M47,SIN(RADIANS(AD25))/SIN(AG25),"") ->  | AI25: =IF(AH25<>"",ABS(AH25),"") ->  | AJ25: =IF(I45,ABS(DEGREES(AH25)),"") ->  | AK25: 0 | AL25: =AD25-ANGLE_T -> -2.5 | AN25: =IF(AD25>-1000,SIN(ABS(RADIANS(AD25))),0) -> 0 | AO25: 0 | AY25: =AD25 -> 0 | AZ25: =AY25^2 -> 0 | BA25: =AY25^3 -> 0 | BB25: =AY25^4 -> 0 | BC25: 0 | BD25: =AY25*BC25 -> 0 | BE25: =BC25*AZ25 -> 0 | BF25: =DEGREES(ASIN(SIN(RADIANS(AY25))/$AN$36)) -> 0
J26: XCT | K26: =XCT -> 2 | N26: =(150)*COS(RADIANS(-N25))-XCT -> 145.721163 | AD26: =AD25+10 -> 10 | AE26: =IF(N45,N38,-1000) -> -39.14343914 | AF26: =IF(O47,O40,-1000) -> 5.357512883 | AG26: =IF(O47,ATAN(AF26/AE26),"") -> -0.1360235553 | AH26: =IF(O48,SIN(RADIANS(AD26))/SIN(AG26),"") -> -1.280548949 | AI26: =IF(AH26<>"",ABS(AH26),"") -> 1.280548949 | AJ26: =IF(O$47,ABS(DEGREES(AG26)),"") -> 7.793575632 | AK26: =DEGREES(ASIN(SIN(RADIANS(AD26))/nn)) -> 6.647777093 | AL26: 7.5 | AM26: =AK26-ANGLE_T -> 4.147777093 | AN26: 0.1736481777 | AO26: =IF(AF26>-1000,SIN(ABS((ABS(AG26)))),0) -> 0.1356044826 | AY26: =AD26 -> 10 | AZ26: =AY26^2 -> 100 | BA26: =AY26^3 -> 1000 | BB26: =AY26^4 -> 10000 | BC26: =AJ26 -> 7.793575632 | BD26: =AY26*BC26 -> 77.93575632 | BE26: =BC26*AZ26 -> 779.3575632 | BF26: =DEGREES(ASIN(SIN(RADIANS(AY26))/$AN$36)) -> 7.283039585
J27: YCT | K27: =YCT -> -0.1 | L27: 0 | M27: =L27 -> 0 | N27: 0 | O27: =N25 -> 10 | P27: =N25+10 -> 20 | Q27: =P27 -> 20 | R27: =P27+10 -> 30 | S27: =R27 -> 30 | T27: =R27+10 -> 40 | U27: =T27 -> 40 | V27: =T27+10 -> 50 | W27: =V27 -> 50 | X27: =V27+10 -> 60 | Y27: =X27 -> 60 | Z27: =X27+10 -> 70 | AA27: =Z27 -> 70 | AB27: =Z27+10 -> 80 | AC27: =AB27 -> 80 | AD27: =AD26+10 -> 20 | AE27: =IF(P47,P40,-1000) -> -34.90012614 | AF27: =IF(Q47,Q40,-1000) -> 9.245792867 | AG27: =IF(P47,ATAN(AF27/AE27),"") -> -0.2589723559 | AH27: =IF(P47,SIN(RADIANS(AD27))/SIN(AG27),"") -> -1.335560678 | AI27: =IF(AH27<>"",ABS(AH27),"") -> 1.335560678 | AJ27: =IF(O48,ABS(DEGREES(AG27)),"") -> 14.838023 | AK27: 13.18014216 | AL27: 17.5 | AM27: 10.68014216 | AN27: 0.3420201433 | AO27: =IF(AF27>-1000,SIN(ABS((ABS(AG27)))),0) -> 0.2560873114 | AY27: 20 | AZ27: 400 | BA27: 8000 | BB27: 160000 | BC27: 14.838023 | BD27: 296.7604601 | BE27: 5935.209202 | BF27: 14.4591748
J28: h | K28: =h -> 2.5 | L28: =(150)*COS(RADIANS(-L27))-XCT -> 148 | M28: =(150)*SIN(RADIANS(-M27))-YCT -> 0.1 | N28: =(miny+a)/(TAN(N$42)-1)-XCT -> -43.34233307 | O28: =(150)*SIN(RADIANS(-O27))-YCT -> -25.94722665 | P28: =(150)*COS(RADIANS(-P27))-XCT -> 138.9538931 | Q28: =(150)*SIN(RADIANS(-Q27))-YCT -> -51.2030215 | R28: =(150)*COS(RADIANS(-R27))-XCT -> 127.9038106 | S28: =(150)*SIN(RADIANS(-S27))-YCT -> -74.9 | T28: =(150)*COS(RADIANS(-T27))-XCT -> 112.9066665 | U28: =(150)*SIN(RADIANS(-U27))-YCT -> -96.31814145 | V28: =(150)*COS(RADIANS(-V27))-XCT -> 94.41814145 | W28: =(150)*SIN(RADIANS(-W27))-YCT -> -114.8066665 | X28: =(150)*COS(RADIANS(-X27))-XCT -> 73 | Y28: =(150)*SIN(RADIANS(-Y27))-YCT -> -129.8038106 | Z28: =(150)*COS(RADIANS(-Z27))-XCT -> 49.3030215 | AA28: =(150)*SIN(RADIANS(-AA27))-YCT -> -140.8538931 | AB28: =(150)*COS(RADIANS(-AB27))-XCT -> 24.04722665 | AC28: =(150)*SIN(RADIANS(-AC27))-YCT -> -147.621163 | AD28: 30 | AE28: =IF(R47,R40,-1000) -> -31.37445619 | AF28: =IF(S47,S40,-1000) -> 12.47647415 | AG28: =IF(R48,ATAN(AF28/AE28),"") -> -0.378490479 | AH28: =IF(R47,SIN(RADIANS(AD28))/SIN(AG28),"") -> -1.353113293 | AI28: 1.353113293 | AJ28: =IF(P47,ABS(DEGREES(AG28)),"") -> 21.68590703 | AK28: 19.47122063 | AL28: 27.5 | AM28: 16.97122063 | AN28: 0.5 | AO28: 0.3695182086 | AY28: 30 | AZ28: 900 | BA28: 27000 | BB28: 810000 | BC28: 21.68590703 | BD28: 650.577211 | BE28: 19517.31633 | BF28: 21.40896801
L29: 0 | M29: 0 | N29: =IF(N$45,-200-XCT,N28+ABS(O30+a/4)/TAN(PI()/4+N$44)-XCT) -> -202 | O29: 0 | P29: 0 | Q29: 0 | R29: 0 | S29: 0 | T29: 0 | U29: 0 | V29: 0 | W29: 0 | X29: 0 | Y29: 0 | Z29: 0 | AA29: 0 | AB29: 0 | AC29: 0 | AD29: 40 | AE29: =IF(T47,T40,-1000) -> -28.40250571 | AF29: =IF(U47,U40,-1000) -> 15.19976502 | AG29: =IF(T47,ATAN(AF29/AE29),"") -> -0.4913751101 | AH29: =IF(T47,SIN(RADIANS(AD29))/SIN(AG29),"") -> -1.362303569 | AI29: 1.362303569 | AJ29: =IF(T47,ABS(DEGREES(AG29)),"") -> 28.15371996 | AK29: 25.37399394 | AL29: 37.5 | AM29: 22.87399394 | AN29: 0.6427876097 | AO29: 0.4718387476 | AY29: 40 | AZ29: 1600 | BA29: 64000 | BB29: 2560000 | BC29: 28.15371996 | BD29: 1126.148799 | BE29: 45045.95194 | BF29: 27.98652486
L30: =(miny+a)/(TAN(L$44)-1)-XCT -> -48.36988176 | M30: =L30+a+miny-YCT -> -3.269881762 | N30: =N26*COS(RADIANSGT)-O28*SIN(RADIANSGT) -> 146.7142708 | O30: =N28+a+miny-YCT -> 1.757666931 | P30: =(miny+a)/(TAN(P$44)-1)-XCT -> -39.27266315 | Q30: =P30+a+miny-YCT -> 5.827336847 | R30: =(miny+a)/(TAN(R$44)-1)-XCT -> -35.8912692 | S30: =R30+a+miny-YCT -> 9.208730801 | T30: =(miny+a)/(TAN(T$44)-1)-XCT -> -33.04093564 | U30: =T30+a+miny-YCT -> 12.05906436 | V30: =(miny+a)/(TAN(V$44)-1)-XCT -> -30.64185471 | W30: =V30+a+miny-YCT -> 14.45814529 | X30: =(miny+a)/(TAN(X$44)-1)-XCT -> -28.6739507 | Y30: =X30+a+miny-YCT -> 16.4260493 | Z30: =(miny+a)/(TAN(Z$44)-1)-XCT -> -27.16499422 | AA30: =Z30+a+miny-YCT -> 17.93500578 | AB30: =(miny+a)/(TAN(AB$44)-1)-XCT -> -26.17406305 | AC30: =AB30+a+miny-YCT -> 18.92593695 | AD30: 50 | AE30: =IF(V47,V40,-1000) -> -25.90106173 | AF30: =IF(W47,W40,-1000) -> 17.49191612 | AG30: =IF(V47,ATAN(AF30/AE30),"") -> -0.5939803716 | AH30: =IF(V47,SIN(RADIANS(AD30))/SIN(AG30),"") -> -1.368757615 | AI30: 1.368757615 | AJ30: =IF(V47,ABS(DEGREES(AG30)),"") -> 34.03256841 | AK30: 30.71022077 | AL30: 47.5 | AM30: 28.21022077 | AN30: 0.7660444431 | AO30: 0.5596640596 | AY30: 50 | AZ30: 2500 | BA30: 125000 | BB30: 6250000 | BC30: 34.03256841 | BD30: 1701.62842 | BE30: 85081.42102 | BF30: 34.00373397
L31: =IF(L$47,-200-XCT,L30+ABS(M30+a/4)/TAN(PI()/4+L$46)-XCT) -> -49.80177619 | M31: =IF(M47,M30+(L31-L30)*TAN(M$49)-YCT-h,-a/2-YCT) -> -44.9 | N31: 0 | O31: =IF(O37,O30+(N29-N28)*TAN(O$49)-YCT-h,-a/2-YCT-h) -> -89.96085908 | P31: =IF(P$47,-200-XCT,P30+ABS(Q30+a/4)/TAN(PI()/4+P$46)-XCT) -> -202 | Q31: =IF(Q37,Q30+(P31-P30)*TAN(Q$49)-YCT-h,-a/2-YCT-h) -> -26.47499221 | R31: =IF(R$47,-200-XCT,R30+ABS(S30+a/4)/TAN(PI()/4+R$46)-XCT) -> -202 | S31: =IF(S37,S30+(R31-R30)*TAN(S$49)-YCT-h,-a/2-YCT-h) -> 13.62195411 | T31: =IF(T$47,-200-XCT,T30+ABS(U30+a/4)/TAN(PI()/4+T$46)-XCT) -> -202 | U31: =IF(U37,U30+(T31-T30)*TAN(U$49)-YCT-h,-a/2-YCT-h) -> 48.15970365 | V31: =IF(V$47,-200-XCT,V30+ABS(W30+a/4)/TAN(PI()/4+V$46)-XCT) -> -202 | W31: =IF(W37,W30+(V31-V30)*TAN(W$49)-YCT-h,-a/2-YCT-h) -> 80.36670275 | X31: =IF(X$47,-200-XCT,X30+ABS(Y30+a/4)/TAN(PI()/4+X$46)-XCT) -> -202 | Y31: =IF(Y37,Y30+(X31-X30)*TAN(Y$49)-YCT-h,-a/2-YCT-h) -> 110.5839605 | Z31: =IF(Z$47,-200-XCT,Z30+ABS(AA30+a/4)/TAN(PI()/4+Z$46)-XCT) -> -202 | AA31: =IF(AA37,AA30+(Z31-Z30)*TAN(AA$49)-YCT-h,-a/2-YCT-h) -> 137.2202719 | AB31: =IF(AB$47,-200-XCT,AB30+ABS(AC30+a/4)/TAN(PI()/4+AB$46)-XCT) -> -202 | AC31: =IF(AC37,AC30+(AB31-AB30)*TAN(AC$49)-YCT-h,-a/2-YCT-h) -> 156.935874 | AD31: 60 | AE31: =IF(X47,X40,-1000) -> -23.84919196 | AF31: =IF(Y47,Y40,-1000) -> 19.37210835 | AG31: =IF(Y47,ATAN(AF31/AE31),"") -> -0.6821811608 | AH31: =IF(W47,SIN(RADIANS(AD31))/SIN(AG31),"") -> -1.373580525 | AI31: 1.373580525 | AJ31: =IF(X47,ABS(DEGREES(AG31)),"") -> 39.08610138 | AK31: 35.26438968 | AL31: 57.5 | AM31: 32.76438968 | AN31: 0.8660254038 | AO31: 0.6304875381 | AY31: 60 | AZ31: 3600 | BA31: 216000 | BB31: 12960000 | BC31: 39.08610138 | BD31: 2345.166083 | BE31: 140709.965 | BF31: 39.21539728
L32: =L28*COS(RADIANSGT)-M28*SIN(RADIANSGT) -> 147.8547749 | M32: =L28*SIN(RADIANSGT)+M28*COS(RADIANSGT) -> 6.555574152 | N32: =(miny+a)/(TAN(N$42)-1) -> -41.34233307 | O32: =N26*SIN(RADIANSGT)+O28*COS(RADIANSGT) -> -19.56626279 | P32: =P28*COS(RADIANSGT)-Q28*SIN(RADIANSGT) -> 141.0550842 | Q32: =P28*SIN(RADIANSGT)+Q28*COS(RADIANSGT) -> -45.09320388 | R32: =R28*COS(RADIANSGT)-S28*SIN(RADIANSGT) -> 131.0491666 | S32: =R28*SIN(RADIANSGT)+S28*COS(RADIANSGT) -> -69.24962594 | T32: =T28*COS(RADIANSGT)-U28*SIN(RADIANSGT) -> 117.0005427 | U32: =T28*SIN(RADIANSGT)+U28*COS(RADIANSGT) -> -91.3015483 | V32: =V28*COS(RADIANSGT)-W28*SIN(RADIANSGT) -> 99.33607276 | W32: =V28*SIN(RADIANSGT)+W28*COS(RADIANSGT) -> -110.5789345 | X32: =X28*COS(RADIANSGT)-Y28*SIN(RADIANSGT) -> 78.59248287 | Y32: =X28*SIN(RADIANSGT)+Y28*COS(RADIANSGT) -> -126.4960508 | Z32: =Z28*COS(RADIANSGT)-AA28*SIN(RADIANSGT) -> 55.40005647 | AA32: =Z28*SIN(RADIANSGT)+AA28*COS(RADIANSGT) -> -138.5692638 | AB32: =AB28*COS(RADIANSGT)-AC28*SIN(RADIANSGT) -> 30.46348371 | AC32: =AB28*SIN(RADIANSGT)+AC28*COS(RADIANSGT) -> -146.431735 | AD32: 70 | AE32: =IF(Z47,Z40,-1000) -> -22.27585192 | AF32: =IF(AA47,AA40,-1000) -> 20.81380888 | AG32: =IF(AA47,ATAN(AF32/AE32),"") -> -0.7514809236 | AH32: =IF(Y47,SIN(RADIANS(AD32))/SIN(AG32),"") -> -1.376392131 | AI32: 1.376392131 | AJ32: =IF(Z37,ABS(DEGREES(AG32)),"") -> 43.0566853 | AK32: 38.78955642 | AL32: 67.5 | AM32: 36.28955642 | AN32: 0.9396926208 | AO32: 0.6827215875 | AY32: 70 | AZ32: 4900 | BA32: 343000 | BB32: 24010000 | BC32: 43.0566853 | BD32: 3013.967971 | BE32: 210977.758 | BF32: 43.31571331
L33: 0 | M33: 0 | N33: =IF(N$45,-200-XCT,N32+ABS(O34+a/4)/TAN(PI()/4+N$44)-XCT) -> -202 | O33: 0 | P33: 0 | Q33: 0 | R33: 0 | S33: 0 | T33: 0 | U33: 0 | V33: 0 | W33: 0 | X33: 0 | Y33: 0 | Z33: 0 | AA33: 0 | AB33: 0 | AC33: 0 | AD33: 80 | AE33: =IF(AB47,AB40,-1000) -> -21.24264009 | AF33: =IF(AC47,AC40,-1000) -> 21.76057309 | AG33: =IF(AC47,ATAN(AF33/AE33),"") -> -0.7974416348 | AH33: =IF(AC47,SIN(RADIANS(AD33))/SIN(AG33),"") -> -1.376253816 | AI33: 1.376253816 | AJ33: =IF(AB47,ABS(DEGREES(AG33)),"") -> 45.69004008 | AK33: 41.03641053 | AL33: 77.5 | AM33: 38.53641053 | AN33: 0.984807753 | AO33: 0.715571315 | AY33: 80 | AZ33: 6400 | BA33: 512000 | BB33: 40960000 | BC33: 45.69004008 | BD33: =AY33*BC33 -> 3655.203206 | BE33: =BC33*AZ33 -> 292416.2565 | BF33: 45.96818777
L34: =(miny+a)/(TAN(L$44)-1) -> -46.36988176 | M34: =L34+a+miny -> -1.369881762 | O34: =N32+a+miny -> 3.657666931 | P34: =(miny+a)/(TAN(P$44)-1) -> -37.27266315 | Q34: =P34+a+miny -> 7.727336847 | R34: =(miny+a)/(TAN(R$44)-1) -> -33.8912692 | S34: =R34+a+miny -> 11.1087308 | T34: =(miny+a)/(TAN(T$44)-1) -> -31.04093564 | U34: =T34+a+miny -> 13.95906436 | V34: =(miny+a)/(TAN(V$44)-1) -> -28.64185471 | W34: =V34+a+miny -> 16.35814529 | X34: =(miny+a)/(TAN(X$44)-1) -> -26.6739507 | Y34: =X34+a+miny -> 18.3260493 | Z34: =(miny+a)/(TAN(Z$44)-1) -> -25.16499422 | AA34: =Z34+a+miny -> 19.83500578 | AB34: =(miny+a)/(TAN(AB$44)-1) -> -24.17406305 | AC34: =AB34+a+miny -> 20.82593695 | AX34: SUMS | AY34: =SUM(AY25:AY33) -> 360 | AZ34: 20400 | BA34: 1296000 | BB34: 87720000 | BC34: 234.3366208 | BD34: 12867.38791 | BE34: 800463.2355
L35: =IF(L$47,-200-XCT,L34+ABS(M34+a/4)/TAN(PI()/4+L$46)-XCT) -> -47.74564546 | M35: =IF(M47,M34+(L35-L34)*TAN(M$49)-YCT,-a/2-YCT) -> -44.9 | N35: =L37-10 -> -13.99 | O35: =IF(O47,O34+(N33-N32)*TAN(O$49)-YCT,-a/2-YCT) -> -86.68678672 | P35: =IF(P$47,-200-XCT,P34+ABS(Q34+a/4)/TAN(PI()/4+P$46)-XCT) -> -202 | Q35: =IF(Q47,Q34+(P35-P34)*TAN(Q$49)-YCT,-a/2-YCT) -> -22.44250672 | R35: =IF(R$47,-200-XCT,R34+ABS(S34+a/4)/TAN(PI()/4+R$46)-XCT) -> -202 | S35: =IF(S47,S34+(R35-R34)*TAN(S$49)-YCT,-a/2-YCT) -> 18.10398741 | T35: =IF(T$47,-200-XCT,T34+ABS(U34+a/4)/TAN(PI()/4+T$46)-XCT) -> -202 | U35: =IF(U47,U34+(T35-T34)*TAN(U$49)-YCT,-a/2-YCT) -> 53.01544291 | V35: =IF(V$47,-200-XCT,V34+ABS(W34+a/4)/TAN(PI()/4+V$46)-XCT) -> -202 | W35: =IF(W47,W34+(V35-V34)*TAN(W$49)-YCT,-a/2-YCT) -> 85.56396345 | X35: =IF(X$47,-200-XCT,X34+ABS(Y34+a/4)/TAN(PI()/4+X$46)-XCT) -> -202 | Y35: =IF(Y47,Y34+(X35-X34)*TAN(Y$49)-YCT,-a/2-YCT) -> 116.0981371 | Z35: =IF(Z$47,-200-XCT,Z34+ABS(AA34+a/4)/TAN(PI()/4+Z$46)-XCT) -> -202 | AA35: =IF(AA47,AA34+(Z35-Z34)*TAN(AA$49)-YCT,-a/2-YCT) -> 143.0122731 | AB35: =IF(AB$47,-200-XCT,AB34+ABS(AC34+a/4)/TAN(PI()/4+AB$46)-XCT) -> -202 | AC35: =IF(AC47,AC34+(AB35-AB34)*TAN(AC$49)-YCT,-a/2-YCT) -> 162.933021 | AH35: 0.5 | AI35: 0.8 | AJ35: =O17 -> least square fit n = 1,37 | AY35: DDD | AZ35: AAA | BA35: bbb | BB35: ccc | BC35: EEE | BD35: GGG | BE35: III
N36: =IF(show_red_rays,N30*COS(RADIANSGT)+O32*SIN(RADIANSGT)+XCT,0) -> 147.721163 | AH36: 0.5 | AI36: 0.8 | AJ36: ="expected n = "& nn -> expected n = 1,5 | AM36: index= | AN36: =1/AN37 -> 1.369778538 | AY36: x | AZ36: x^2 | BA36: x^3 | BB36: x^4 | BC36: Y | BD36: XY | BE36: yx^2
K37: theta | L37: =ANGLE -> -3.99 | M37: =L37 -> -3.99 | N37: =IF(show_red_rays,N31*COS(RADIANSGT)+O33*SIN(RADIANSGT)+XCT,0) -> 2 | O37: =M37-10 -> -13.99 | P37: =N35-10 -> -23.99 | Q37: =O37-10 -> -23.99 | R37: -33.99 | S37: -33.99 | T37: -43.99 | U37: -43.99 | V37: -53.99 | W37: -53.99 | X37: -63.99 | Y37: -63.99 | Z37: -73.99 | AA37: -73.99 | AB37: -83.99 | AC37: -83.99 | AN37: =LINEST(AO25:AO33,AN25:AN33,FALSE,TRUE) -> 0.7300450199 | AO37: 0
K38: x0 | L38: =IF(show_red_rays,L32*COS(RADIANSGT)+M32*SIN(RADIANSGT)+XCT,0) -> 150 | M38: =IF(show_red_rays,-L32*SIN(RADIANSGT)+M32*COS(RADIANSGT)+YCT,0) -> -3.60822483e-16 | N38: =IF(show_red_rays,N32*COS(RADIANSGT)+O34*SIN(RADIANSGT)+XCT,0) -> -39.14343914 | O38: =IF(show_red_rays,-N30*SIN(RADIANSGT)+O32*COS(RADIANSGT)+YCT,0) -> -26.04722665 | P38: =IF(show_red_rays,P32*COS(RADIANSGT)+Q32*SIN(RADIANSGT)+XCT,0) -> 140.9538931 | Q38: =IF(show_red_rays,-P32*SIN(RADIANSGT)+Q32*COS(RADIANSGT)+YCT,0) -> -51.3030215 | R38: =IF(show_red_rays,R32*COS(RADIANSGT)+S32*SIN(RADIANSGT)+XCT,0) -> 129.9038106 | S38: =IF(show_red_rays,-R32*SIN(RADIANSGT)+S32*COS(RADIANSGT)+YCT,0) -> -75 | T38: =IF(show_red_rays,T32*COS(RADIANSGT)+U32*SIN(RADIANSGT)+XCT,0) -> 114.9066665 | U38: =IF(show_red_rays,-T32*SIN(RADIANSGT)+U32*COS(RADIANSGT)+YCT,0) -> -96.41814145 | V38: =IF(show_red_rays,V32*COS(RADIANSGT)+W32*SIN(RADIANSGT)+XCT,0) -> 96.41814145 | W38: =IF(show_red_rays,-V32*SIN(RADIANSGT)+W32*COS(RADIANSGT)+YCT,0) -> -114.9066665 | X38: =IF(show_red_rays,X32*COS(RADIANSGT)+Y32*SIN(RADIANSGT)+XCT,0) -> 75 | Y38: =IF(show_red_rays,-X32*SIN(RADIANSGT)+Y32*COS(RADIANSGT)+YCT,0) -> -129.9038106 | Z38: =IF(show_red_rays,Z32*COS(RADIANSGT)+AA32*SIN(RADIANSGT)+XCT,0) -> 51.3030215 | AA38: =IF(show_red_rays,-Z32*SIN(RADIANSGT)+AA32*COS(RADIANSGT)+YCT,0) -> -140.9538931 | AB38: =IF(show_red_rays,AB32*COS(RADIANSGT)+AC32*SIN(RADIANSGT)+XCT,0) -> 26.04722665 | AC38: =IF(show_red_rays,-AB32*SIN(RADIANSGT)+AC32*COS(RADIANSGT)+YCT,0) -> -147.721163 | AN38: 0.002313958371 | BA38: Y=A*X^2+B*X
K39: x1 | L39: =IF(show_red_rays,L33*COS(RADIANSGT)+M33*SIN(RADIANSGT)+XCT,0) -> 2 | M39: =IF(show_red_rays,-L33*SIN(RADIANSGT)+M33*COS(RADIANSGT)+YCT,0) -> -0.1 | N39: =IF(show_red_rays,N33*COS(RADIANSGT)+O35*SIN(RADIANSGT)+XCT,0) -> -203.5889653 | O39: =IF(show_red_rays,-N31*SIN(RADIANSGT)+O33*COS(RADIANSGT)+YCT,0) -> -0.1 | P39: =IF(show_red_rays,P33*COS(RADIANSGT)+Q33*SIN(RADIANSGT)+XCT,0) -> 2 | Q39: =IF(show_red_rays,-P33*SIN(RADIANSGT)+Q33*COS(RADIANSGT)+YCT,0) -> -0.1 | R39: =IF(show_red_rays,R33*COS(RADIANSGT)+S33*SIN(RADIANSGT)+XCT,0) -> 2 | S39: =IF(show_red_rays,-R33*SIN(RADIANSGT)+S33*COS(RADIANSGT)+YCT,0) -> -0.1 | T39: =IF(show_red_rays,T33*COS(RADIANSGT)+U33*SIN(RADIANSGT)+XCT,0) -> 2 | U39: =IF(show_red_rays,-T33*SIN(RADIANSGT)+U33*COS(RADIANSGT)+YCT,0) -> -0.1 | V39: =IF(show_red_rays,V33*COS(RADIANSGT)+W33*SIN(RADIANSGT)+XCT,0) -> 2 | W39: =IF(show_red_rays,-V33*SIN(RADIANSGT)+W33*COS(RADIANSGT)+YCT,0) -> -0.1 | X39: =IF(show_red_rays,X33*COS(RADIANSGT)+Y33*SIN(RADIANSGT)+XCT,0) -> 2 | Y39: =IF(show_red_rays,-X33*SIN(RADIANSGT)+Y33*COS(RADIANSGT)+YCT,0) -> -0.1 | Z39: =IF(show_red_rays,Z33*COS(RADIANSGT)+AA33*SIN(RADIANSGT)+XCT,0) -> 2 | AA39: =IF(show_red_rays,-Z33*SIN(RADIANSGT)+AA33*COS(RADIANSGT)+YCT,0) -> -0.1 | AB39: =IF(show_red_rays,AB33*COS(RADIANSGT)+AC33*SIN(RADIANSGT)+XCT,0) -> 2 | AC39: =IF(show_red_rays,-AB33*SIN(RADIANSGT)+AC33*COS(RADIANSGT)+YCT,0) -> -0.1 | AM39: R2 | AN39: 0.999919635 | AO39: 0.004627916742 | BA39: A= | BB39: =(aaa*iii-GGG*bbb)/(aaa*ccc-bbb^2)
K40: x2 | L40: =IF(show_red_rays,L34*COS(RADIANSGT)+M34*SIN(RADIANSGT)+XCT,0) -> -44.38550131 | M40: =IF(show_red_rays,-L34*SIN(RADIANSGT)+M34*COS(RADIANSGT)+YCT,0) -> 0.5540478969 | N40: =ABS(N35)+ABS(DEGREES(N45))-45 -> 43.36793696 | O40: =IF(show_red_rays,-N32*SIN(RADIANSGT)+O34*COS(RADIANSGT)+YCT,0) -> 5.357512883 | P40: =IF(show_red_rays,P34*COS(RADIANSGT)+Q34*SIN(RADIANSGT)+XCT,0) -> -34.90012614 | Q40: =IF(show_red_rays,-P34*SIN(RADIANSGT)+Q34*COS(RADIANSGT)+YCT,0) -> 9.245792867 | R40: =IF(show_red_rays,R34*COS(RADIANSGT)+S34*SIN(RADIANSGT)+XCT,0) -> -31.37445619 | S40: =IF(show_red_rays,-R34*SIN(RADIANSGT)+S34*COS(RADIANSGT)+YCT,0) -> 12.47647415 | T40: =IF(show_red_rays,T34*COS(RADIANSGT)+U34*SIN(RADIANSGT)+XCT,0) -> -28.40250571 | U40: =IF(show_red_rays,-T34*SIN(RADIANSGT)+U34*COS(RADIANSGT)+YCT,0) -> 15.19976502 | V40: =IF(show_red_rays,V34*COS(RADIANSGT)+W34*SIN(RADIANSGT)+XCT,0) -> -25.90106173 | W40: =IF(show_red_rays,-V34*SIN(RADIANSGT)+W34*COS(RADIANSGT)+YCT,0) -> 17.49191612 | X40: =IF(show_red_rays,X34*COS(RADIANSGT)+Y34*SIN(RADIANSGT)+XCT,0) -> -23.84919196 | Y40: =IF(show_red_rays,-X34*SIN(RADIANSGT)+Y34*COS(RADIANSGT)+YCT,0) -> 19.37210835 | Z40: =IF(show_red_rays,Z34*COS(RADIANSGT)+AA34*SIN(RADIANSGT)+XCT,0) -> -22.27585192 | AA40: =IF(show_red_rays,-Z34*SIN(RADIANSGT)+AA34*COS(RADIANSGT)+YCT,0) -> 20.81380888 | AB40: =IF(show_red_rays,AB34*COS(RADIANSGT)+AC34*SIN(RADIANSGT)+XCT,0) -> -21.24264009 | AC40: =IF(show_red_rays,-AB34*SIN(RADIANSGT)+AC34*COS(RADIANSGT)+YCT,0) -> 21.76057309 | AN40: 99537.83773 | AO40: 8 | BA40: b= | BB40: =(GGG*ccc-iii*bbb)/(ccc*aaa-bbb^2)
J41: =-PI()/4 -> -0.7853981634 | K41: x3 | L41: =IF(show_red_rays,L35*COS(RADIANSGT)+M35*SIN(RADIANSGT)+XCT,0) -> -47.65871268 | M41: =IF(show_red_rays,-L35*SIN(RADIANSGT)+M35*COS(RADIANSGT)+YCT,0) -> -42.87462934 | N41: refraction | O41: =IF(show_red_rays,-N33*SIN(RADIANSGT)+O35*COS(RADIANSGT)+YCT,0) -> -77.89316386 | P41: =IF(show_red_rays,P35*COS(RADIANSGT)+Q35*SIN(RADIANSGT)+XCT,0) -> -200.7866692 | Q41: =IF(show_red_rays,-P35*SIN(RADIANSGT)+Q35*COS(RADIANSGT)+YCT,0) -> -13.71003018 | R41: =IF(show_red_rays,R35*COS(RADIANSGT)+S35*SIN(RADIANSGT)+XCT,0) -> -199.0180559 | S41: =IF(show_red_rays,-R35*SIN(RADIANSGT)+S35*COS(RADIANSGT)+YCT,0) -> 26.79787267 | T41: =IF(show_red_rays,T35*COS(RADIANSGT)+U35*SIN(RADIANSGT)+XCT,0) -> -197.4952396 | U41: =IF(show_red_rays,-T35*SIN(RADIANSGT)+U35*COS(RADIANSGT)+YCT,0) -> 61.6761002 | V41: =IF(show_red_rays,V35*COS(RADIANSGT)+W35*SIN(RADIANSGT)+XCT,0) -> -196.0754931 | W41: =IF(show_red_rays,-V35*SIN(RADIANSGT)+W35*COS(RADIANSGT)+YCT,0) -> 94.19364177 | X41: =IF(show_red_rays,X35*COS(RADIANSGT)+Y35*SIN(RADIANSGT)+XCT,0) -> -194.7436111 | Y41: =IF(show_red_rays,-X35*SIN(RADIANSGT)+Y35*COS(RADIANSGT)+YCT,0) -> 124.6987536 | Z41: =IF(show_red_rays,Z35*COS(RADIANSGT)+AA35*SIN(RADIANSGT)+XCT,0) -> -193.569633 | AA41: =IF(show_red_rays,-Z35*SIN(RADIANSGT)+AA35*COS(RADIANSGT)+YCT,0) -> 151.5872734 | AB41: =IF(show_red_rays,AB35*COS(RADIANSGT)+AC35*SIN(RADIANSGT)+XCT,0) -> -192.7007022 | AC41: =IF(show_red_rays,-AB35*SIN(RADIANSGT)+AC35*COS(RADIANSGT)+YCT,0) -> 171.4890612 | AN41: 2.131862924 | AO41: 0.000171340907 | BA41: A= | BB41: =(AZ34*BE34-BD34*BA34)/(AZ34*BB34-BA34*BA34) -> -0.003155350977
J42: DEVIATION ANGLE | L42: =IF(L47,DEGREES(ABS(ASIN(((L38-L39)*(M40-M41)-(M38-M39)*(L40-L41))/(150*SQRT((L40-L41)^2+(M40-M41)^2))))),FALSE) -> FALSE | N42: =ASIN(SIN(ATAN(O32/N30))/nn) -> -0.08824291886 | P42: =ABS(P37)+ABS(DEGREES(P47))-45 -> 34.40235525 | R42: =ABS(R37)+ABS(DEGREES(R47))-45 -> 31.64123576 | T42: =ABS(T37)+ABS(DEGREES(T47))-45 -> 31.15321795 | V42: =ABS(V37)+ABS(DEGREES(V47))-45 -> 32.25627344 | X42: =ABS(X37)+ABS(DEGREES(X47))-45 -> 34.86833274 | Z42: =ABS(Z37)+ABS(DEGREES(Z47))-45 -> 39.15206065 | AB42: =ABS(AB37)+ABS(DEGREES(AB47))-45 -> 45.38006265 | BA42: B= | BB42: =(BD34*BB34-BE34*BA34)/(BB34*AZ34-BA34^2) -> 0.8312119006
J43: angle of | L43: refraction | M43: refraction | O43: refraction | P43: refraction | Q43: refraction | R43: refraction | S43: refraction | T43: refraction | U43: refraction | V43: refraction | W43: refraction | X43: refraction | Y43: refraction | Z43: refraction | AA43: refraction | AB43: refraction | AC43: refraction
J44: angle of refraction air | L44: =ASIN(SIN(ATAN(M32/L32))/nn) -> 0.02953389987 | M44: =ASIN(SIN(ATAN(M32/L32))/nn) -> 0.02953389987 | N44: =PI()/4-ABS(N42) -> 0.6971552445 | O44: =ASIN(SIN(ATAN(O32/N30))/nn) -> -0.08824291886 | P44: =ASIN(SIN(ATAN(Q32/P32))/nn) -> -0.2044231967 | Q44: =ASIN(SIN(ATAN(Q32/P32))/nn) -> -0.2044231967 | R44: =ASIN(SIN(ATAN(S32/R32))/nn) -> -0.3167402746 | S44: =ASIN(SIN(ATAN(S32/R32))/nn) -> -0.3167402746 | T44: =ASIN(SIN(ATAN(U32/T32))/nn) -> -0.4226032281 | U44: =ASIN(SIN(ATAN(U32/T32))/nn) -> -0.4226032281 | V44: =ASIN(SIN(ATAN(W32/V32))/nn) -> -0.5189189762 | W44: =ASIN(SIN(ATAN(W32/V32))/nn) -> -0.5189189762 | X44: =ASIN(SIN(ATAN(Y32/X32))/nn) -> -0.6019743634 | Y44: =ASIN(SIN(ATAN(Y32/X32))/nn) -> -0.6019743634 | Z44: =ASIN(SIN(ATAN(AA32/Z32))/nn) -> -0.6675032454 | AA44: =ASIN(SIN(ATAN(AA32/Z32))/nn) -> -0.6675032454 | AB44: =ASIN(SIN(ATAN(AC32/AB32))/nn) -> -0.7111321995 | AC44: =ASIN(SIN(ATAN(AC32/AB32))/nn) -> -0.7111321995
J45: sin of refracted | L45: second refraction from glass to air | N45: =IF(SIN(N44)*nn<1,ASIN(SIN(N44)*nn),FALSE) -> 1.298139891
J46: inclination of ray | K46: incidence | L46: =PI()/4-ABS(L44) -> 0.7558642635 | M46: =PI()/4-ABS(M44) -> 0.7558642635 | N46: =SIN(N44)*nn -> 0.9630589417 | O46: =PI()/4-ABS(O44) -> 0.6971552445 | P46: 0.5809749667 | Q46: 0.5809749667 | R46: 0.4686578888 | S46: 0.4686578888 | T46: 0.3627949353 | U46: 0.3627949353 | V46: 0.2664791872 | W46: 0.2664791872 | X46: 0.1834238 | Y46: 0.1834238 | Z46: 0.117894918 | AA46: 0.117894918 | AB46: 0.07426596394 | AC46: 0.07426596394
I47: refraction from glass to air | K47: =SIN(PI()/4-ABS(K49))*nn -> 0.1747926329 | L47: =IF(SIN(L46)*nn<1,ASIN(SIN(L46*nn)),FALSE) -> FALSE | M47: =IF(SIN(M46)*nn<1,ASIN(SIN(M46*nn)),FALSE) -> FALSE | N47: =-IF(N45,PI()/4-N45,PI()/4-N44) -> 0.5127417274 | O47: =IF(SIN(O46)*nn<1,ASIN(SIN(O46)*nn),FALSE) -> 1.298139891 | P47: 0.9671280454 | Q47: 0.9671280454 | R47: 0.744404494 | S47: 0.744404494 | T47: 0.5613540513 | U47: 0.5613540513 | V47: 0.4060730763 | W47: 0.4060730763 | X47: 0.2771291861 | Y47: 0.2771291861 | Z47: 0.1773614171 | AA47: 0.1773614171 | AB47: 0.1115276326 | AC47: 0.1115276326
E48: inter incidence | G48: omega= | H48: =PI()/4+ABS(K49) -> 1.454002559 | I48: refraction from air to glass | K48: =IF(K47<1,PI()/4-ASIN(K47),FALSE) -> 0.6097030085 | L48: =SIN(L46)*nn -> 1.028876747 | M48: =SIN(M46)*nn -> 1.028876747 | N48: =M50 -> -70.2 | O48: =SIN(O46)*nn -> 0.9630589417 | P48: 0.8232587991 | Q48: 0.8232587991 | R48: 0.677533941 | S48: 0.677533941 | T48: 0.5323329375 | U48: 0.5323329375 | V48: 0.3950048003 | W48: 0.3950048003 | X48: 0.2735955023 | Y48: 0.2735955023 | Z48: 0.1764330001 | AA48: 0.1764330001 | AB48: 0.1112965719 | AC48: 0.1112965719
G49: ray that changes | I49: refraction from air to glass | K49: =ASIN(SIN(ATAN(J51/I50))/nn) -> -0.6686043961 | L49: =-IF(L47,PI()/4-L47,PI()/4-L46) -> -0.02953389987 | M49: =-IF(M47,PI()/4-M47,PI()/4-M46) -> -0.02953389987 | N49: =150*SIN(RADIANS(N48)) -> -141.1321153 | O49: =-IF(O47,PI()/4-O47,PI()/4-O46) -> 0.5127417274 | P49: 0.181729882 | Q49: 0.181729882 | R49: -0.04099366936 | S49: -0.04099366936 | T49: -0.2240441121 | U49: -0.2240441121 | V49: -0.3793250871 | W49: -0.3793250871 | X49: -0.5082689773 | Y49: -0.5082689773 | Z49: -0.6080367463 | AA49: -0.6080367463 | AB49: -0.6738705308 | AC49: -0.6738705308
G50: frame | I50: =K51*COS(RADIANSGT)-L51*SIN(RADIANSGT) -> 54.91596555 | K50: new value | L50: 702 | M50: =-L50/10 -> -70.2 | N50: =0 -> 0 | O50: refraction | P50: =ASIN(SIN(RADIANS(M50))/nn) -> -0.6780221154 | Q50: =ASIN(SIN(RADIANS(N48))/nn) -> -0.6780221154
G51: =I50*COS(RADIANSGT)+J51*SIN(RADIANSGT)+XCT -> 50.81068804 | H51: =-I50*SIN(RADIANSGT)+J51*COS(RADIANSGT)+YCT -> -141.1321153 | I51: =0 -> 0 | J51: =K51*SIN(RADIANSGT)+L51*COS(RADIANSGT) -> -138.7687917 | K51: =M51-XCT -> 48.81068804 | L51: =N49-YCT -> -141.0321153 | M51: =150*COS(RADIANS(M50)) -> 50.81068804 | N51: =M53+a+miny -> 20.07471086
G52: =I51*COS(RADIANSGT)+J52*SIN(RADIANSGT)+XCT -> 2 | H52: =-I51*SIN(RADIANSGT)+J52*COS(RADIANSGT)+YCT -> -0.1 | I52: =(miny+a)/(TAN(K49)-1) -> -25.13987401 | J52: 0 | M52: =0 -> 0 | N52: =IF(Q53,N51+(M54-M53)*TAN(Q55),-a/2) -> 146.1071868 | P52: =PI()/4-ABS(P50) -> 0.107376048 | Q52: =PI()/4-ABS(Q50) -> 0.107376048
G53: =I52*COS(RADIANSGT)+J53*SIN(RADIANSGT)+XCT -> -22.24965989 | H53: =-I52*SIN(RADIANSGT)+J53*COS(RADIANSGT)+YCT -> 20.83780945 | I53: =IF(K$48,-200-XCT,I52+ABS(J53+a/2)/TAN(PI()/4+H48)) -> -202 | J53: =I52+a+miny -> 19.86012599 | M53: =(miny+a)/(TAN(P50)-1) -> -24.92528914 | O53: ref glass air | P53: =IF(SIN(P52)*nn<1,ASIN(SIN(P52)*nn),FALSE) -> 0.1614553 | Q53: =IF(SIN(Q52)*nn<1,ASIN(SIN(Q52)*nn),FALSE) -> 0.1614553
G54: =I53*COS(RADIANSGT)+J54*SIN(RADIANSGT)+XCT -> -193.5486712 | H54: =-I53*SIN(RADIANSGT)+J54*COS(RADIANSGT)+YCT -> 152.0673789 | I54: x= in glass | J54: =IF(K48,J53+(I53-I52)*TAN(J58)-YCT,-a/2-YCT) -> 143.492836 | M54: =IF(P53,-200,M53-(N51+a/4)/TAN(PI()/4+P52)) -> -200 | P54: =SIN(P52)*nn -> 0.1607547493 | Q54: =SIN(Q52)*nn -> 0.1607547493
F55: zeta =3*pi()/4-omega | H55: =3*PI()/4-H48 -> 0.9021919307 | I55: =(J54-J53)/TAN(H55)+I52 -> 72.5281253 | J55: =PI()/4-ABS(K49) -> 0.1167937673 | M55: =IF(M51,DEGREES(ABS(ASIN(((M51-M52)*(N51-N52)-(N49-N50)*(M53-M54))/(150*SQRT((M53-M54)^2+(N51-N52)^2))))),FALSE) -> 34.45070727 | N55: =ABS(ABS(RADIANS(N35))-ABS(N42)+ABS(N45)-ABS(N44)) -> 0.7569132897 | O55: =(ABS(M50))+DEGREES(ABS(P53))-45 -> 34.45070727 | P55: =-IF(P53,PI()/4-P53,PI()/4-P52) -> -0.6239428634 | Q55: =-IF(Q53,PI()/4-Q53,PI()/4-Q52) -> -0.6239428634
G56: for reflection in glass | J56: =IF(SIN(J55)*nn<1,ASIN(SIN(J55)*nn),FALSE) -> 0.1756951549 | L56: deviation= | M56: inc1-ref1+outgoing-a2 | N56: =DEGREES(N55) -> 43.36793696
J57: =SIN(J55)*nn -> 0.1747926329 | O57: =ABS(ABS(RADIANS(O37))-ABS(O44)+ABS(O47)-ABS(O46)) -> 0.7569132897 | P57: =ABS(ABS(RADIANS(P37))-ABS(P44)+ABS(P47)-ABS(P46)) -> 0.6004343695 | Q57: =ABS(ABS(RADIANS(Q37))-ABS(Q44)+ABS(Q47)-ABS(Q46)) -> 0.6004343695 | R57: 0.5522437434 | S57: 0.5522437434 | T57: 0.5437262258 | U57: 0.5437262258 | V57: 0.562978176 | W57: 0.562978176 | X57: 0.6085672111 | Y57: 0.6085672111 | Z57: 0.6833323672 | AA57: 0.6833323672 | AB57: 0.792031508 | AC57: 0.792031508
J58: =-IF(J56,PI()/4-J56,PI()/4-J55) -> -0.6097030085 | O58: =DEGREES(O57) -> 43.36793696 | P58: 34.40235525 | Q58: 34.40235525 | R58: 31.64123576 | S58: 31.64123576 | T58: 31.15321795 | U58: 31.15321795 | V58: 32.25627344 | W58: 32.25627344 | X58: 34.86833274 | Y58: 34.86833274 | Z58: 39.15206065 | AA58: 39.15206065 | AB58: 45.38006265 | AC58: 45.38006265
N60: =ABS(N35) -> 13.99 | P60: 22.5 | Q60: =DEGREES(Q61) -> 35.0313913 | R60: =2*(Q60-P60) -> 25.0627826
N61: =DEGREES(ABS(N42)) -> 5.055946823 | P61: =RADIANS(P60) -> 0.3926990817 | Q61: =ASIN(SIN(P61)*nn) -> 0.6114131198
L62: =ABS(L37) -> 3.99 | M62: =L62-L63 -> 2.297832185 | N62: =DEGREES(N45) -> 74.37793696 | O62: =N60-N61 -> 8.934053177 | P62: =ABS(P37) -> 23.99 | Q62: =P62-P63 -> 12.27741359 | R62: =ABS(R37) -> 33.99 | S62: =R62-R63 -> 15.84211906 | T62: =ABS(T37) -> 43.99 | U62: =T62-T63 -> 19.77661862 | V62: =ABS(V37) -> 53.99 | W62: =V62-V63 -> 24.25813275 | X62: =ABS(X37) -> 63.99 | Y62: =X62-X63 -> 29.4994096 | Z62: =ABS(Z37) -> 73.99 | AA62: =Z62-Z63 -> 35.74488123 | AB62: =ABS(AB37) -> 83.99 | AC62: =AB62-AB63 -> 43.2451263
L63: =DEGREES(ABS(L44)) -> 1.692167815 | N63: =DEGREES(N44) -> 39.94405318 | P63: =DEGREES(ABS(P44)) -> 11.71258641 | R63: =DEGREES(ABS(R44)) -> 18.14788094 | T63: =DEGREES(ABS(T44)) -> 24.21338138 | V63: =DEGREES(ABS(V44)) -> 29.73186725 | X63: =DEGREES(ABS(X44)) -> 34.4905904 | Z63: =DEGREES(ABS(Z44)) -> 38.24511877 | AB63: =DEGREES(ABS(AB44)) -> 40.7448737
L64: =DEGREES(L47) -> 0 | M64: =L64-L65 -> -43.30783219 | O64: =N62-N63 -> 34.43388378 | P64: =DEGREES(P47) -> 55.41235525 | Q64: =P64-P65 -> 22.12494166 | R64: =DEGREES(R47) -> 42.65123576 | S64: =R64-R65 -> 15.7991167 | T64: =DEGREES(T47) -> 32.16321795 | U64: =T64-T65 -> 11.37659933 | V64: =DEGREES(V47) -> 23.26627344 | W64: =V64-V65 -> 7.998140692 | X64: =DEGREES(X47) -> 15.87833274 | Y64: =X64-X65 -> 5.368923145 | Z64: =DEGREES(Z47) -> 10.16206065 | AA64: =Z64-Z65 -> 3.407179417 | AB64: =DEGREES(AB47) -> 6.390062648 | AC64: =AB64-AB65 -> 2.134936352
L65: =DEGREES(L46) -> 43.30783219 | P65: =DEGREES(P46) -> 33.28741359 | R65: =DEGREES(R46) -> 26.85211906 | T65: =DEGREES(T46) -> 20.78661862 | V65: =DEGREES(V46) -> 15.26813275 | X65: =DEGREES(X46) -> 10.5094096 | Z65: =DEGREES(Z46) -> 6.75488123 | AB65: =DEGREES(AB46) -> 4.255126295
M66: =SUM(M62:M65) -> -41.01 | O66: =SUM(O62:O65) -> 43.36793696 | Q66: =SUM(Q62:Q65) -> 34.40235525 | S66: =SUM(S62:S65) -> 31.64123576 | U66: =SUM(U62:U65) -> 31.15321795 | W66: =SUM(W62:W65) -> 32.25627344 | Y66: =SUM(Y62:Y65) -> 34.86833274 | AA66: =SUM(AA62:AA65) -> 39.15206065 | AC66: =SUM(AC62:AC65) -> 45.38006265
O67: =ABS(O37)+ABS(DEGREES(O47)-PI()/4) -> 87.5825388 | Q67: =ABS(Q37)+ABS(DEGREES(Q47)-PI()/4) -> 78.61695709 | S67: =ABS(S37)+ABS(DEGREES(S47)-PI()/4) -> 75.8558376 | U67: =ABS(U37)+ABS(DEGREES(U47)-PI()/4) -> 75.36781979 | W67: =ABS(W37)+ABS(DEGREES(W47)-PI()/4) -> 76.47087528 | Y67: =ABS(Y37)+ABS(DEGREES(Y47)-PI()/4) -> 79.08293458
E100: 150 | F100: 0
E101: 149.9086241 | F101: 5.234924505
E102: 149.6346075 | F102: 10.46347106
E103: 149.1782843 | F103: 15.67926949
E104: 148.5402103 | F104: 20.87596514
E105: 147.721163 | F105: 26.04722665
E106: 146.7221401 | F106: 31.18675362
E107: 145.5443589 | F107: 36.28828434
E108: 144.1892544 | F108: 41.34560337
E109: 142.6584774 | F109: 46.35254916
E110: 140.9538931 | F110: 51.3030215
E111: 139.0775782 | F111: 56.19098901
E112: 137.0318186 | F112: 61.01049646
E113: 134.8191069 | F113: 65.75567202
E114: 132.4421389 | F114: 70.42073442
E115: 129.9038106 | F115: 75
E116: 127.2072144 | F116: 79.48788963
E117: 124.3556359 | F117: 83.87893552
E118: 121.3525492 | F118: 88.16778784
E119: 118.201613 | F119: 92.3492213
E120: 114.9066665 | F120: 96.41814145
E121: 111.4717238 | F121: 100.369591
E122: 107.9009701 | F122: 104.1987556
E123: 104.1987556 | F123: 107.9009701
E124: 100.369591 | F124: 111.4717238
E125: 96.41814145 | F125: 114.9066665
E126: 92.3492213 | F126: 118.201613
E127: 88.16778784 | F127: 121.3525492
E128: 83.87893552 | F128: 124.3556359
E129: 79.48788963 | F129: 127.2072144
E130: 75 | F130: 129.9038106
E131: 70.42073442 | F131: 132.4421389
E132: 65.75567202 | F132: 134.8191069
E133: 61.01049646 | F133: 137.0318186
E134: 56.19098901 | F134: 139.0775782
E135: 51.3030215 | F135: 140.9538931
E136: 46.35254916 | F136: 142.6584774
E137: 41.34560337 | F137: 144.1892544
E138: 36.28828434 | F138: 145.5443589
E139: 31.18675362 | F139: 146.7221401
E140: 26.04722665 | F140: 147.721163
E141: 20.87596514 | F141: 148.5402103
E142: 15.67926949 | F142: 149.1782843
E143: 10.46347106 | F143: 149.6346075
E144: 5.234924505 | F144: 149.9086241
E145: 9.184547654e-15 | F145: 150
E146: -5.234924505 | F146: 149.9086241
E147: -10.46347106 | F147: 149.6346075
E148: -15.67926949 | F148: 149.1782843
E149: -20.87596514 | F149: 148.5402103
E150: -26.04722665 | F150: 147.721163
E151: -31.18675362 | F151: 146.7221401
E152: -36.28828434 | F152: 145.5443589
E153: -41.34560337 | F153: 144.1892544
E154: -46.35254916 | F154: 142.6584774
E155: -51.3030215 | F155: 140.9538931
E156: -56.19098901 | F156: 139.0775782
E157: -61.01049646 | F157: 137.0318186
E158: -65.75567202 | F158: 134.8191069
E159: -70.42073442 | F159: 132.4421389
E160: -75 | F160: 129.9038106
E161: -79.48788963 | F161: 127.2072144
E162: -83.87893552 | F162: 124.3556359
E163: -88.16778784 | F163: 121.3525492
E164: -92.3492213 | F164: 118.201613
E165: -96.41814145 | F165: 114.9066665
E166: -100.369591 | F166: 111.4717238
E167: -104.1987556 | F167: 107.9009701
E168: -107.9009701 | F168: 104.1987556
E169: -111.4717238 | F169: 100.369591
E170: -114.9066665 | F170: 96.41814145
E171: -118.201613 | F171: 92.3492213
E172: -121.3525492 | F172: 88.16778784
E173: -124.3556359 | F173: 83.87893552
E174: -127.2072144 | F174: 79.48788963
E175: -129.9038106 | F175: 75
E176: -132.4421389 | F176: 70.42073442
E177: -134.8191069 | F177: 65.75567202
E178: -137.0318186 | F178: 61.01049646
E179: -139.0775782 | F179: 56.19098901
E180: -140.9538931 | F180: 51.3030215
E181: -142.6584774 | F181: 46.35254916
E182: -144.1892544 | F182: 41.34560337
E183: -145.5443589 | F183: 36.28828434
E184: -146.7221401 | F184: 31.18675362
E185: -147.721163 | F185: 26.04722665
E186: -148.5402103 | F186: 20.87596514
E187: -149.1782843 | F187: 15.67926949
E188: -149.6346075 | F188: 10.46347106
E189: -149.9086241 | F189: 5.234924505
E190: -150 | F190: 1.836909531e-14
E191: -149.9086241 | F191: -5.234924505
E192: -149.6346075 | F192: -10.46347106
E193: -149.1782843 | F193: -15.67926949
E194: -148.5402103 | F194: -20.87596514
E195: -147.721163 | F195: -26.04722665
E196: -146.7221401 | F196: -31.18675362
E197: -145.5443589 | F197: -36.28828434
E198: -144.1892544 | F198: -41.34560337
E199: -142.6584774 | F199: -46.35254916
E200: -140.9538931 | F200: -51.3030215
E201: -139.0775782 | F201: -56.19098901
E202: -137.0318186 | F202: -61.01049646
E203: -134.8191069 | F203: -65.75567202
E204: -132.4421389 | F204: -70.42073442
E205: -129.9038106 | F205: -75
E206: -127.2072144 | F206: -79.48788963
E207: -124.3556359 | F207: -83.87893552
E208: -121.3525492 | F208: -88.16778784
E209: -118.201613 | F209: -92.3492213
E210: -114.9066665 | F210: -96.41814145
E211: -111.4717238 | F211: -100.369591
E212: -107.9009701 | F212: -104.1987556
E213: -104.1987556 | F213: -107.9009701
E214: -100.369591 | F214: -111.4717238
E215: -96.41814145 | F215: -114.9066665
E216: -92.3492213 | F216: -118.201613
E217: -88.16778784 | F217: -121.3525492
E218: -83.87893552 | F218: -124.3556359
E219: -79.48788963 | F219: -127.2072144
E220: -75 | F220: -129.9038106
E221: -70.42073442 | F221: -132.4421389
E222: -65.75567202 | F222: -134.8191069
E223: -61.01049646 | F223: -137.0318186
E224: -56.19098901 | F224: -139.0775782
E225: -51.3030215 | F225: -140.9538931
E226: -46.35254916 | F226: -142.6584774
E227: -41.34560337 | F227: -144.1892544
E228: -36.28828434 | F228: -145.5443589
E229: -31.18675362 | F229: -146.7221401
E230: -26.04722665 | F230: -147.721163
E231: -20.87596514 | F231: -148.5402103
E232: -15.67926949 | F232: -149.1782843
E233: -10.46347106 | F233: -149.6346075
... 195 more rows

Sheet CONVEX CONCave
A1: X Lf | B1: =-D_0_I/2+RADIUS_LF -> 131 | C1: =IF(A13<0,X_Lf,X_Lf-A13) -> 131 | D1: ANGLE LT | E1: =DEGREES(ASIN(MAX_HEIGHT/RADIUS_LF)) -> 47.05652286 | F1: =RADIANS(E1) -> 0.8212912584 | G1: =2*angle_lt_R/50 -> 0.03285165033 | H1: D LFT | J1: PARALLEL_CONVEX_CONCAVE | K1: =FALSE -> FALSE | Z1: R1 | AA1: =-RADIUS_RI -> -363 | AN1: X Lf | AO1: =-D_0_I/2+RADIUS_LF -> 131 | AS1: x1 y1 | AT1: 400 | AU1: =pigi_yc -> 46 | AY1: -400 | AZ1: 29 | BB1: =(nccf-1)*100/RADIUS_LF -> 0.431372549 | BD1: F2 | BE1: =-(1-nccf)/RADIUS_LF -> 0.00431372549 | BF1: e | BG1: =BE3*BE1/BE5 -> 42.29424849 | BH1: =X_Ri-RADIUS_RI -> 22 | BI1: =BH1-BG1 -> -20.29424849 | BJ1: h1 | BL1: h1 | BM1: =-focus_lens*(nccf-1)*D_0_I/(-RADIUS_LF*nccf) -> 42.29424849 | BN1: =X_Ri-RADIUS_RI-BM1 -> -20.29424849 | BO1: =BN2-BE6 -> -409.7264061
A2: X Ri | B2: =D_0_I/2+RADIUS_RI -> 385 | D2: ANGLE_RI | E2: =DEGREES(ANGLE_RI_R) -> 17.97126281 | F2: =ASIN(RADIUS_LF*SIN(angle_lt_R)/RADIUS_RI) -> 0.3136577067 | G2: =2*F2/50 -> 0.01254630827 | H2: D_RIT | I2: MAX HEIGHT | J2: 112 | P2: EDGES | Q2: POS H1,H2 | Z2: R2 | AA2: =-RADIUS_LF -> -153 | AN2: X Ri | AO2: =AN7/2+RADIUS_RI -> 363 | AS2: x2 y2 | AT2: =X_Ri-SQRT(RADIUS_RI^2-AU1^2) -> 24.92639641 | AU2: =AU1 -> 46 | AY2: =X_Lf-SQRT(RADIUS_LF^2-AZ1^2) -> -19.22649567 | AZ2: =AZ1 -> 29 | BB2: =(nccf-1)/10 -> 0.066 | BD2: F1 | BE2: =-(nccf-1)/(RADIUS_RI) -> -0.001818181818 | BF2: e' | BG2: =-BE3*BE2/BE5 -> 17.82650143 | BH2: =X_Lf-RADIUS_LF -> -22 | BI2: =BH2-BG2 -> -39.82650143 | BJ2: h2 | BL2: h2 | BM2: =-focus_lens*(nccf-1)*D_0_I/(-RADIUS_RI*nccf) -> 17.82650143 | BN2: =X_Lf-RADIUS_LF-BM2 -> -39.82650143 | BO2: =BN1-BE7 -> -390.1941532
A3: RADIUS LF | B3: 153 | C3: CHANGE | T3: pigi_xc | U3: pigi_yc | AN3: RADIUS LF | AO3: 80 | AS3: f1 | AT3: 0 | AY3: 0 | BA3: F1 | BB3: =BB2*100 -> 6.6 | BD3: t*n/nf | BE3: =D_0_I*1/nccf -> 26.5060241 | BF3: t | BG3: =D_0_I -> 44 | BH3: limits
A4: RADIUS RI | B4: 363 | C4: CHANGE | D4: UPPER | T4: 424 | U4: 46 | Y4: focus | AB4: =estia -> 732.2752906 | AN4: RADIUS RI | AO4: 200 | AS4: f2 | AT4: =ATAN(AU2/(AT2-X_Ri)) -> -0.1270633959 | AW4: x_lccf | AX4: =X_Lf -> 131 | AY4: =ATAN(AZ2/(AY2-X_Lf)) -> -0.1906961625 | BA4: F2 | BB4: =-(nccf-1)/5 -> -0.132 | BE4: =-BE3*BE1*BE2 -> 0.0002078903851 | BH4: =X_Lf -> 131 | BK4: example | BL4: back | BM4: f2 | BN4: =10 -> 10 | BO4: r2=` | BP4: =(1-nccf)/BN4 -> -0.066 | BQ4: =BP4*1000 -> -66
A5: D_0_I | B5: 44 | C5: =IF(X_Lf-RADIUS_LF-A7/2<X_Ri-RADIUS_RI,A7,A7+10) -> 37 | D5: =B16 -> 26.76468928 | E5: =C16 -> 112 | G5: =(nccf-1)*(-1/RADIUS_RI+1/RADIUS_LF+(nccf-1)*D_0_I/(nccf*(-RADIUS_RI)*(-RADIUS_LF))) -> 0.002703434057 | H5: =(nccf-1)*(-1/RADIUS_RI+1/RADIUS_LF+(nccf-1)*0/(nccf*(-RADIUS_RI)*(-RADIUS_LF))) -> 0.002495543672 | Y5: 1/f | Z5: =(nccf-1)*(1/AA1-1/AA2+(nccf-1)*D_0_I/(nccf*AA1*AA2)) -> 0.002703434057 | AN5: D_0_I | AO5: =AN7 -> 0 | AS5: inc = f1-f2 | AU5: =AT5-AT4 -> 0.1270633959 | AX5: =AY2-AX4 -> -150.2264957 | AY5: 0 | AZ5: =AY5-AY4 -> 0.1906961625 | BA5: INC | BB5: =BB4*100 -> -13.2 | BE5: =BE4+BE2+BE1 -> 0.002703434057 | BF5: right focus | BG5: =BG1+BE6 -> 412.1941532 | BH5: =RADIUS_LF -> 153 | BM5: f1 | BN5: -5 | BO5: r1 | BP5: =(1-nccf)/BN5 -> 0.132 | BQ5: =BP5*1000 -> 132
A6: nccf | B6: 1.66 | D6: =E16 -> 39.71026659 | E6: =F16 -> 112 | F6: estia | G6: =1/G5 -> 369.8999047 | H6: =1/H5 -> 400.7142857 | T6: =ATAN((pigi_yc-E6)/(pigi_xc-D6)) -> -0.1700860564 | U6: angle source upper limit | Y6: focus | Z6: =(1/Z5) -> 369.8999047 | AN6: nccf | AO6: =nccf -> 1.66 | AS6: d | AT6: =IF(ABS(SIN(AU5))/nccf<1,ASIN(SIN(AU5)/nccf),0) -> 0.07641275097 | AU6: =DEGREES(AT6) -> 4.378128131 | AX6: =AZ2/AX5 -> -0.1930418457 | AY6: =IF(ABS(SIN(AZ5))/nccf<1,ASIN(SIN(AZ5)/nccf),0) -> 0.1144317961 | BA6: REFRACT | BD6: F | BE6: =1/BE5 -> 369.8999047 | BF6: left | BG6: =BG2-BE6 -> -352.0734032 | BH6: =BH4-BH5 -> -22
A7: =C9 -> 37 | B7: =X_Lf-RADIUS_LF*COS(angle_lt_R) -> 26.76468928 | D7: LOWER | T7: =ATAN((pigi_yc-E9)/(pigi_xc-D9)) -> 0.3900797269 | U7: angle source lower limit | Y7: h1 | Z7: =-Z6*(nccf-1)*D_0_I/(AA2*nccf) -> 42.29424849 | AA7: =-AA1*D_0_I/((AA2-AA1)*nccf+(nccf-1)*D_0_I) -> 42.29424849 | AN7: =AP9 -> 0 | AO7: =X_Lf-RADIUS_LF*COS(angle_lt_R) -> 26.76468928 | AU7: nccf | AV7: =nccf -> 1.66 | AX7: =ATAN(AX6) -> -0.1906961625 | BE7: =focus_lens -> 369.8999047
A8: upper width | B8: =X_Ri-RADIUS_RI*COS(ANGLE_RI_R) -> 39.71026659 | D8: =B66 -> 26.76468928 | E8: =C66 -> -112 | T8: =T7-T6 -> 0.5601657834 | U8: d_angle | Y8: h2 | Z8: =-Z6*(nccf-1)*D_0_I/(AA1*nccf) -> 17.82650143 | AA8: =-AA2*D_0_I/((AA2-AA1)*nccf+(nccf-1)*D_0_I) -> 17.82650143 | AN8: upper width | AO8: =X_Ri-RADIUS_RI*COS(ANGLE_RI_R) -> 39.71026659 | AS8: f2+d | AT8: =IF(nccf>1,IF(ABS(SIN(AU5)/nccf)<1,-(AT4+AT6),-AT5),AT4+AT6) -> 0.05065064489 | AU8: =TAN(AT8) -> 0.05069400393 | AX8: f2+d | AY8: =IF(nccf>1,IF(ABS(SIN(AZ5)/nccf)<1,(AY4+AY6),-AY5),AY4+AY6) -> -0.07626436642 | AZ8: =TAN(AY8) -> -0.07641256885
C9: 37 | D9: =E66 -> 39.71026659 | E9: =F66 -> -112 | T9: =T8/15 -> 0.03734438556 | U9: d_d_angle | X9: right edge | Y9: =X_Ri-RADIUS_RI -> 22 | Z9: =Y9-Z7 -> -20.29424849 | AS9: cut with circle | AT9: =RADIUS_LF^2*(1+AU8^2)-AU9^2 -> 20829.53186 | AU9: =AU2+AU8*(X_Lf-AT2) -> 51.37729568 | AX9: cut with circle | AY9: =RADIUS_RI^2*(1+AZ8^2)-AZ9^2 -> 132534.819 | AZ9: =AZ2+AZ8*(X_Ri-AY2) -> -1.887984932
B10: =X_Ri-RADIUS_RI -> 22 | C10: =B10+RADIUS_LF -> 175 | X10: left edge | Y10: =X_Lf-RADIUS_LF -> -22 | Z10: =Y10-Z8 -> -39.82650143 | AO10: -(P39)+ATAN2(x_lf-O38;-P38 | AS10: x3,y3 | AT10: =IF(ABS(SIN(AU5)/nccf)<1,IF(AT9>0,AT2+(-AU8*AU8+X_Lf-AT2-SQRT(AT9))/(1+AU8^2),0),0) -> -13.22891324 | AU10: =AU2+AU8*(AT10-AT2) -> 44.06575458 | AV10: =ASIN(AT11) -> -0.3419965316 | AX10: x3,y3 | AY10: =IF(ABS(SIN(AY5)/nccf)<1,IF(AY9>0,AY2+(-AZ8*AZ8+X_Ri-AY2-SQRT(AY9))/(1+AZ8^2),0),0) -> 20.70767141 | AZ10: =AZ2+AZ8*(AY10-AY2) -> 25.94852771 | BA10: =ASIN(AY11) -> -0.00518596565
A11: =X_Lf-RADIUS_LF*COS(angle_lt_R) -> 26.76468928 | B11: =X_Lf-RADIUS_LF -> -22 | C11: =C10-RADIUS_LF*COS(angle_lt_R) -> 70.76468928 | D11: =X_Ri-RADIUS_RI*COS(ANGLE_RI_R) -> 39.71026659 | E11: =D11-C11 -> -31.0544227 | X11: draw h1 | Y11: =Z9 -> -20.29424849 | Z11: =100 -> 100 | AO11: =-REFRACTION | AS11: sin(inc);refraction | AT11: =((AT10-AT2)*(AU10-0)-(AU10-AU2)*(AT10-X_Lf))/SQRT((AT10-AT2)^2+(AU10-AU2)^2)/RADIUS_LF -> -0.3353686657 | AU11: =IF(ABS(AT11)*nccf<1,ASIN(AT11*nccf),0) -> -0.590422427 | AV11: f1 | AW11: f2 | AX11: sin(inc);refraction | AY11: =((AY10-AY2)*(AZ10-0)-(AZ10-AZ2)*(AY10-X_Ri))/SQRT((AY10-AY2)^2+(AZ10-AZ2)^2)/RADIUS_RI -> -0.005185942405 | AZ11: =IF(ABS(AY11)*nccf<1,ASIN(AY11*nccf),0) -> -0.008608770725 | BA11: =ASIN(AY11) -> -0.00518596565 | BF11: bbd | BG11: =focus*(1-(nccf-1)*D_0_I/(nccf*(-RADIUS_LF))) -> 412.1941532
A12: =X_Ri-RADIUS_RI*COS(ANGLE_RI_R) -> 39.71026659 | B12: =B10-B11 -> 44 | C12: =IF(B12>0,C9,C9-B12) -> 37 | Y12: =Y11 -> -20.29424849 | Z12: =-100 -> -100 | AS12: F2,F1 | AT12: =ATAN(AU10/(AT10-X_Lf)) -> -0.2965192314 | AU12: =ATAN((AU10-AU2)/(AT10-AT2)) -> 0.05065064489 | AV12: =DEGREES(AU12) -> 2.902068182 | AW12: =DEGREES(AT12) -> -16.9893005 | AX12: F2,F1 | AY12: =ATAN(AZ10/(AY10-X_Ri)) -> -0.07110985797 | AZ12: =ATAN((AZ10-AZ2)/(AY10-AY2)) -> -0.07626436642 | BA12: =-AY12-AZ12 -> 0.1473742244
A13: =A11-A12 -> -12.9455773 | X13: draw H2 | Y13: =Z10 -> -39.82650143 | Z13: 100 | AB13: DRAW IMAGE POINT | AF13: IMAGE | AP13: =-AU11+ATAN2(X_Lf-AT10,-AU10) -> 0.2939031956 | AS13: inc = f2-f1 | AT13: =AV10 -> -0.3419965316 | AU13: =ASIN(SIN(AT13)*nccf) -> -0.590422427 | AV13: =DEGREES(AU13) -> -33.8287132 | AX13: inc = f2-f1 | AY13: =BA11 -> -0.00518596565 | AZ13: =AZ11 -> -0.008608770725 | BA13: =DEGREES(AZ13) -> -0.4932462294 | BC13: estia
C14: RADIUS LEFT | U14: enallaktika | Y14: =Y13 -> -39.82650143 | Z14: -100 | AB14: =pigi_xc -> 424 | AC14: =pigi_yc -> 46 | AD14: =pigi_xc -> 424 | AE14: =pigi_yc -> 46 | AF14: =AF15 -> -1697.145492 | AG14: =S15 -> -171.590503 | AS14: THETA | AT14: =IF(nccf>1,AU13+AT12,AT12+AU13) -> -0.8869416584 | AU14: =TAN(AT14) -> -1.226908499 | AV14: =-AU10/AU14+AT10 -> 22.68717554 | AW14: =AV14+focus_lens -> 392.5870802 | AX14: THETA | AY14: =IF(nccf>1,AY12-AZ13,AZ13-AY12) -> -0.06250108725 | AZ14: =TAN(AY14) -> -0.06258259907 | BA14: =-AZ10/AZ14+AY10 -> 435.3361479 | BB14: =BA14-BC14 -> 65.43624325 | BC14: =focus_lens -> 369.8999047
R15: -1697.145492 | S15: -171.590503 | V15: left focus | W15: =AV14 -> 22.68717554 | X15: estia left | Y15: =Y11-focus_lens -> -390.1941532 | Z15: =0 -> 0 | AB15: =IF(nccf>1,MIN(Y13,Y12),Y13) -> -39.82650143 | AC15: =AC14 -> 46 | AD15: =IF(nccf>1,Y17,Y13) -> 330.0734032 | AE15: =IF(nccf>1,0,AE14) -> 0 | AF15: =R15 -> -1697.145492 | AG15: 0 | AH15: y=y1+t*(x-x1) x=(y-y1)/t+x1 | AT15: -500 | AU15: =AU10+AU14*(AT15-AT10) -> 641.2893382 | AV15: left focus | AY15: =500 -> 500 | AZ15: =AZ10+AZ14*(AY15-AY10) -> -4.046831929 | BA15: right focus | BC15: inclination of x2y2, x3y3
A16: =angle_lt_R -> 0.8212912584 | B16: =X_Lf-RADIUS_LF*COS(A16) -> 26.76468928 | C16: =RADIUS_LF*SIN(A16) -> 112 | D16: =ANGLE_RI_R -> 0.3136577067 | E16: =X_Ri-RADIUS_RI*COS(D16) -> 39.71026659 | F16: =RADIUS_RI*SIN(D16) -> 112 | Y16: =Y15 -> -390.1941532 | Z16: 0 | AB16: =Y15 -> -390.1941532 | AC16: =0 -> 0 | AD16: =IF(nccf>1,MAX(Y12,Y11),-500) -> -20.29424849 | AE16: =IF(nccf>1,AE20*(AD16-AD15),AE15+(AE15)/(Y13-Y17)*(AD16-AD15)) -> -171.590503 | AU16: =AU2/AU14+AV14 -> -14.80543293 | AV16: for y=y3 | AW16: x=y2/t+f | BA16: =(AZ2)/AZ14+BA14 -> -28.05144593 | BC16: =(AZ10-AZ2)/(AY10-AY2) -> -0.07641256885
A17: =A16-D_LT -> 0.788439608 | B17: 23.14220816 | C17: 108.5158824 | D17: =D16-D_RIT -> 0.3011113984 | E17: 38.33229257 | F17: 107.6591874 | V17: right | W17: =BA14 -> 435.3361479 | X17: estia right | Y17: =Y13+focus_lens -> 330.0734032 | Z17: 0 | AB17: =IF(nccf>1,-500,Y11) -> -500 | AC17: =(AC15/(AB15-AB16))*(AB17-AB16) -> -14.41648203 | AD17: =-500 -> -500 | AE17: =AE16 -> -171.590503 | AG17: INTERSECTION | AT17: =AU2/AU14+AV14 -> -14.80543293 | AV17: h2 | AW17: =AT17 -> -14.80543293 | AY17: =-AZ13+ATAN2(X_Ri-AY10,-AZ10) -> -0.06250108725 | BA17: h1 | BB17: =AZ2/AZ14+BA14 -> -28.05144593 | BC17: inclination of x3y3,x4y4
A18: =A17-D_LT -> 0.7555879577 | B18: 19.63612002 | C18: 104.9146617 | D18: 0.2885650902 | E18: 37.00888675 | F18: 103.3014284 | Y18: =Y17 -> 330.0734032 | Z18: 0 | AB18: =IF(nccf>1,IF(pigi_xc>MAX(Y17,Y16)-500,AF14),500) -> -1697.145492 | AC18: =IF(nccf>1,IF(pigi_xc>MAX(Y17,Y16),AC17,AG14),AC17+(AC17)/(AB17-AB16)*(AB18-AB17)) -> -14.41648203 | AD18: =IF(nccf>1,IF(pigi_xc>MAX(Y17,Y16),-500,500),500) -> -500 | AE18: =IF(nccf>1,IF(pigi_xc>MAX(Y17,Y16),AC17,AG14),AE17+AC21*(AD18-AD17)) -> -14.41648203 | AF18: INCLINATION | AG18: =(AC15-AC16)/(AB15-AB16) -> 0.1312906593 | AH18: =IF(nccf>1,(AG14-0)/AG18+Y15,1) -> -1697.145492 | AV18: LEFT EDGE | AW18: =X_Lf-RADIUS_LF -> -22 | AY18: =focus_lens -> 369.8999047 | BA18: RIGHT EDGE | BB18: =X_Ri-RADIUS_RI -> 22 | BC18: =(AZ15-AZ10)/(AY15-AY10) -> -0.06258259907
A19: 0.7227363074 | B19: 16.25020843 | C19: 101.200224 | D19: 0.2760187819 | E19: 35.74025745 | F19: 98.9274089 | X19: enallaktika | Y19: h1 | Z19: =BA16 -> -28.05144593 | AB19: first line | AD19: second line | AG19: t1 | AH19: t1x-t2x=t1f1-t2f2 | AV19: inclination of x2y2, x3y3 | BA19: h1 | BB19: =BA14-AY18 -> 65.43624325
A20: 0.689884657 | B20: 12.98812722 | C20: 97.37657769 | D20: 0.2634724736 | E20: 34.52660434 | F20: 94.53781749 | Y20: h2 | Z20: =AW17 -> -14.80543293 | AB20: t1 | AC20: =(AC17-AC16)/(AB17-AB16) -> 0.1312906593 | AD20: inclination | AE20: =(AE14-0)/(AD14-AD15) -> 0.4897441362 | AF20: y=t1*(x-f1) | AH20: X=(t1*f1-t2*f2)/(t1-t2) | AK20: yim=t1*(xim-f1) | AS20: x1,y1 | AT20: =AT1 -> 400 | AU20: =AU1 -> 46 | AV20: =(AU10-AU6)/(AT10-AT6) -> -2.982837586 | AX20: x1,y1 | AY20: =AY1 -> -400 | AZ20: =AZ1 -> 29 | BA20: h2 | BB20: =AV14--AY18 -> 392.5870802
A21: 0.6570330067 | B21: 9.853396616 | C21: 93.44784903 | D21: 0.2509261654 | E21: 33.36811848 | F21: 90.13334509 | AB21: t2 | AC21: =-(AE15)/(Y17-Y13) -> 0 | AF21: y=t2(x-f2) | AI21: =(AC20*AB16-AC21*Y17)/(AC20-AC21) -> -390.1941532 | AK21: =AC20*(AI21-AB16) -> 0 | AS21: x2,y2 | AT21: =AT2 -> 24.92639641 | AU21: =AU2 -> 46 | AV21: inclination of x3y3,x4y4 | AX21: x2,y2 | AY21: =AY2 -> -19.22649567 | AZ21: =AZ2 -> 29
A22: 0.6241813564 | B22: 6.849399418 | C22: 89.41827764 | D22: 0.2383798571 | E22: 32.26498221 | F22: =RADIUS_RI*SIN(D22) -> 85.714685 | J22: klisi | K22: 0 | L22: 0 | M22: =K22+1 -> 1 | N22: 1 | O22: 2 | P22: 2 | Q22: 3 | R22: 3 | S22: 4 | T22: 4 | U22: 5 | V22: 5 | W22: 6 | X22: 6 | Y22: 7 | Z22: 7 | AA22: 8 | AB22: 8 | AC22: 9 | AD22: 9 | AE22: 10 | AF22: 10 | AG22: 11 | AH22: 11 | AI22: 12 | AJ22: 12 | AK22: 13 | AL22: 13 | AM22: 14 | AN22: 14 | AO22: 15 | AP22: 15 | AS22: x3,y3 | AT22: =AT10 -> -13.22891324 | AU22: =AU10 -> 44.06575458 | AV22: =(AU15-AU10)/(AT15-AT10) -> -1.226908499 | AX22: x3,y3 | AY22: =AY10 -> 20.70767141 | AZ22: =AZ10 -> 25.94852771
A23: 0.591329706 | B23: 3.979377339 | C23: 85.29221195 | D23: 0.2258335488 | E23: 31.21736918 | F23: 81.28253276 | K23: =angl_upper+K22*d_d_angle -> -0.1700860564 | L23: -0.1700860564 | M23: -0.1327416709 | N23: -0.1327416709 | O23: -0.09539728532 | P23: -0.09539728532 | Q23: -0.05805289977 | R23: -0.05805289977 | S23: -0.02070851421 | T23: -0.02070851421 | U23: 0.01663587135 | V23: 0.01663587135 | W23: 0.05398025691 | X23: 0.05398025691 | Y23: 0.09132464246 | Z23: 0.09132464246 | AA23: 0.128669028 | AB23: 0.128669028 | AC23: 0.1660134136 | AD23: 0.1660134136 | AE23: 0.2033577991 | AF23: 0.2033577991 | AG23: 0.2407021847 | AH23: 0.2407021847 | AI23: 0.2780465703 | AJ23: 0.2780465703 | AK23: 0.3153909558 | AL23: 0.3153909558 | AM23: 0.3527353414 | AN23: 0.3527353414 | AO23: 0.3900797269 | AP23: 0.3900797269 | AS23: f | AT23: x463 | AU23: =AU15 -> 641.2893382 | AX23: x4,y4 | AY23: =AY15 -> 500 | AZ23: =AZ15 -> -4.046831929
A24: 0.5584780557 | B24: 1.246427516 | C24: 81.07410454 | D24: 0.2132872406 | E24: 30.22544429 | F24: 76.837586 | J24: tan(klisi) | K24: =TAN(K23) -> -0.1717454157 | L24: =TAN(L23) -> -0.1717454157 | M24: -0.1335268571 | N24: -0.1335268571 | O24: -0.09568773486 | P24: -0.09568773486 | Q24: -0.05811820325 | R24: -0.05811820325 | S24: -0.02071147495 | T24: -0.02071147495 | U24: 0.01663740619 | V24: 0.01663740619 | W24: 0.05403274854 | X24: 0.05403274854 | Y24: 0.09157938062 | Z24: 0.09157938062 | AA24: 0.1293838314 | AB24: 0.1293838314 | AC24: 0.1675555516 | AD24: 0.1675555516 | AE24: 0.2062082054 | AF24: 0.2062082054 | AG24: 0.2454610667 | AH24: 0.2454610667 | AI24: 0.2854405564 | AJ24: 0.2854405564 | AK24: 0.3262819656 | AL24: 0.3262819656 | AM24: 0.3681314149 | AN24: 0.3681314149 | AO24: 0.4111481163 | AP24: 0.4111481163 | AQ24: tan(klisi)
A25: 0.5256264054 | B25: -1.346500832 | C25: 76.76850733 | D25: 0.2007409323 | E25: 29.28936368 | F25: 72.38054442 | J25: x1,y1 | K25: =pigi_xc -> 424 | L25: =pigi_yc -> 46 | M25: =pigi_xc -> 424 | N25: =pigi_yc -> 46 | O25: =pigi_xc -> 424 | P25: =pigi_yc -> 46 | Q25: =pigi_xc -> 424 | R25: =pigi_yc -> 46 | S25: =pigi_xc -> 424 | T25: =pigi_yc -> 46 | U25: =pigi_xc -> 424 | V25: =pigi_yc -> 46 | W25: =pigi_xc -> 424 | X25: =pigi_yc -> 46 | Y25: =pigi_xc -> 424 | Z25: =pigi_yc -> 46 | AA25: =pigi_xc -> 424 | AB25: =pigi_yc -> 46 | AC25: =pigi_xc -> 424 | AD25: =pigi_yc -> 46 | AE25: =pigi_xc -> 424 | AF25: =pigi_yc -> 46 | AG25: =pigi_xc -> 424 | AH25: =pigi_yc -> 46 | AI25: =pigi_xc -> 424 | AJ25: =pigi_yc -> 46 | AK25: =pigi_xc -> 424 | AL25: =pigi_yc -> 46 | AM25: =pigi_xc -> 424 | AN25: =pigi_yc -> 46 | AO25: =pigi_xc -> 424 | AP25: =pigi_yc -> 46 | AQ25: x1,y1 | AT25: =100 -> 100 | AU25: 3
A26: 0.492774755 | B26: -3.796609589 | C26: 72.38006662 | D26: 0.188194624 | E26: 28.4092747 | F26: 67.91210957 | J26: cut right | K26: =RADIUS_RI^2*(1+K24^2)-L26^2 -> 132878.636 | L26: =pigi_yc+K24*(X_Ri-pigi_xc) -> 52.69807121 | M26: =RADIUS_RI^2*(1+M24^2)-N26^2 -> 131496.1521 | N26: =pigi_yc+M24*(X_Ri-pigi_xc) -> 51.20754743 | O26: =RADIUS_RI^2*(1+O24^2)-P26^2 -> 130502.2417 | P26: =pigi_yc+O24*(X_Ri-pigi_xc) -> 49.73182166 | Q26: =RADIUS_RI^2*(1+Q24^2)-R26^2 -> 129884.4139 | R26: =pigi_yc+Q24*(X_Ri-pigi_xc) -> 48.26660993 | S26: =RADIUS_RI^2*(1+S24^2)-T26^2 -> 129634.5591 | T26: =pigi_yc+S24*(X_Ri-pigi_xc) -> 46.80774752 | U26: =RADIUS_RI^2*(1+U24^2)-V26^2 -> 129748.7481 | V26: =pigi_yc+U24*(X_Ri-pigi_xc) -> 45.35114116 | W26: =RADIUS_RI^2*(1+W24^2)-X26^2 -> 130227.1335 | X26: =pigi_yc+W24*(X_Ri-pigi_xc) -> 43.89272281 | Y26: =RADIUS_RI^2*(1+Y24^2)-Z26^2 -> 131073.9485 | Z26: =pigi_yc+Y24*(X_Ri-pigi_xc) -> 42.42840416 | AA26: =RADIUS_RI^2*(1+AA24^2)-AB26^2 -> 132297.6036 | AB26: =pigi_yc+AA24*(X_Ri-pigi_xc) -> 40.95403057 | AC26: =RADIUS_RI^2*(1+AC24^2)-AD26^2 -> 133910.8841 | AD26: =pigi_yc+AC24*(X_Ri-pigi_xc) -> 39.46533349 | AE26: =RADIUS_RI^2*(1+AE24^2)-AF26^2 -> 135931.2576 | AF26: =pigi_yc+AE24*(X_Ri-pigi_xc) -> 37.95787999 | AG26: =RADIUS_RI^2*(1+AG24^2)-AH26^2 -> 138381.3042 | AH26: =pigi_yc+AG24*(X_Ri-pigi_xc) -> 36.4270184 | AI26: =RADIUS_RI^2*(1+AI24^2)-AJ26^2 -> 141289.2873 | AJ26: =pigi_yc+AI24*(X_Ri-pigi_xc) -> 34.8678183 | AK26: =RADIUS_RI^2*(1+AK24^2)-AL26^2 -> 144689.8915 | AL26: =pigi_yc+AK24*(X_Ri-pigi_xc) -> 33.27500334 | AM26: =RADIUS_RI^2*(1+AM24^2)-AN26^2 -> 148625.1607 | AN26: =pigi_yc+AM24*(X_Ri-pigi_xc) -> 31.64287482 | AO26: =RADIUS_RI^2*(1+AO24^2)-AP26^2 -> 153145.6826 | AP26: =pigi_yc+AO24*(X_Ri-pigi_xc) -> 29.96522346 | AQ26: cut right | AT26: =X_Lf-SQRT(RADIUS_LF^2-AU25^2) -> -21.97058541 | AU26: =AU25 -> 3
A27: 0.4599231047 | B27: -6.101254758 | C27: 67.91351812 | D27: 0.1756483158 | E27: 27.58531587 | F27: 63.43298483 | J27: x2,y2 | K27: =IF(K26>0,pigi_xc+(-pigi_yc*K24-pigi_xc+X_Ri-SQRT(K26))/(1+K24^2),0) -> 39.71026659 | L27: =pigi_yc+(K27-K25)*K24 -> 112 | M27: =IF(M26>0,pigi_xc+(-pigi_yc*M24-pigi_xc+X_Ri-SQRT(M26))/(1+M24^2),0) -> 35.44594768 | N27: =pigi_yc+(M27-M25)*M24 -> 97.88240141 | O27: =IF(O26>0,pigi_xc+(-pigi_yc*O24-pigi_xc+X_Ri-SQRT(O26))/(1+O24^2),0) -> 31.74226355 | P27: =pigi_yc+(O27-O25)*O24 -> 83.53425428 | Q27: =IF(Q26>0,pigi_xc+(-pigi_yc*Q24-pigi_xc+X_Ri-SQRT(Q26))/(1+Q24^2),0) -> 28.61413947 | R27: =pigi_yc+(Q27-Q25)*Q24 -> 68.9791158 | S27: =IF(S26>0,pigi_xc+(-pigi_yc*S24-pigi_xc+X_Ri-SQRT(S26))/(1+S24^2),0) -> 26.07542811 | T27: =pigi_yc+(S27-S25)*S24 -> 54.2416048 | U27: =IF(U26>0,pigi_xc+(-pigi_yc*U24-pigi_xc+X_Ri-SQRT(U26))/(1+U24^2),0) -> 24.13882688 | V27: =pigi_yc+(U27-U25)*U24 -> 39.34734724 | W27: =IF(W26>0,pigi_xc+(-pigi_yc*W24-pigi_xc+X_Ri-SQRT(W26))/(1+W24^2),0) -> 22.81579851 | X27: =pigi_yc+(W27-W25)*W24 -> 24.32291492 | Y27: =IF(Y26>0,pigi_xc+(-pigi_yc*Y24-pigi_xc+X_Ri-SQRT(Y26))/(1+Y24^2),0) -> 22.11649522 | Z27: =pigi_yc+(Y27-Y25)*Y24 -> 9.195757549 | AA27: =IF(AA26>0,pigi_xc+(-pigi_yc*AA24-pigi_xc+X_Ri-SQRT(AA26))/(1+AA24^2),0) -> 22.04968727 | AB27: =pigi_yc+(AA27-AA25)*AA24 -> -6.00587151 | AC27: =IF(AC26>0,pigi_xc+(-pigi_yc*AC24-pigi_xc+X_Ri-SQRT(AC26))/(1+AC24^2),0) -> 22.62269638 | AD27: =pigi_yc+(AC27-AC25)*AC24 -> -21.25299551 | AE27: =IF(AE26>0,pigi_xc+(-pigi_yc*AE24-pigi_xc+X_Ri-SQRT(AE26))/(1+AE24^2),0) -> 23.84133442 | AF27: =pigi_yc+(AE27-AE25)*AE24 -> -36.5160003 | AG27: =IF(AG26>0,pigi_xc+(-pigi_yc*AG24-pigi_xc+X_Ri-SQRT(AG26))/(1+AG24^2),0) -> 25.70984818 | AH27: =pigi_yc+(AG27-AG25)*AG24 -> -51.76472551 | AI27: =IF(AI26>0,pigi_xc+(-pigi_yc*AI24-pigi_xc+X_Ri-SQRT(AI26))/(1+AI24^2),0) -> 28.23087032 | AJ27: =pigi_yc+(AI27-AI25)*AI24 -> -66.9685606 | AK27: =IF(AK26>0,pigi_xc+(-pigi_yc*AK24-pigi_xc+X_Ri-SQRT(AK26))/(1+AK24^2),0) -> 31.40537721 | AL27: =pigi_yc+(AK27-AK25)*AK24 -> -82.0965452 | AM27: =IF(AM26>0,pigi_xc+(-pigi_yc*AM24-pigi_xc+X_Ri-SQRT(AM26))/(1+AM24^2),0) -> 35.23265389 | AN27: =pigi_yc+(AM27-AM25)*AM24 -> -97.11747318 | AO27: =IF(AO26>0,pigi_xc+(-pigi_yc*AO24-pigi_xc+X_Ri-SQRT(AO26))/(1+AO24^2),0) -> 39.71026659 | AP27: =pigi_yc+(AO27-AO25)*AO24 -> -112 | AQ27: x2,y2 | AS27: f1 | AT27: 0
A28: 0.4270714544 | B28: -8.257949319 | C28: 63.37368185 | D28: 0.1631020075 | E28: 26.81761689 | F28: 58.94387525 | J28: f2 | K28: =ATAN((L27-0)/(K27-X_Ri)) -> -0.3136577067 | L28: =DEGREES(K28) -> -17.97126281 | M28: =ATAN((N27-0)/(M27-X_Ri)) -> -0.2730279803 | N28: =DEGREES(M28) -> -15.64335096 | O28: =ATAN((P27-0)/(O27-X_Ri)) -> -0.2322029558 | P28: =DEGREES(O28) -> -13.30424936 | Q28: =ATAN((R27-0)/(Q27-X_Ri)) -> -0.1911877249 | R28: =DEGREES(Q28) -> -10.95424973 | S28: =ATAN((T27-0)/(S27-X_Ri)) -> -0.1499876373 | T28: =DEGREES(S28) -> -8.593658594 | U28: =ATAN((V27-0)/(U27-X_Ri)) -> -0.1086082897 | V28: =DEGREES(U28) -> -6.222796617 | W28: =ATAN((X27-0)/(W27-X_Ri)) -> -0.06705551585 | X28: =DEGREES(W28) -> -3.841998051 | Y28: =ATAN((Z27-0)/(Y27-X_Ri)) -> -0.02533537572 | Z28: =DEGREES(Y28) -> -1.451610101 | AA28: =ATAN((AB27-0)/(AA27-X_Ri)) -> 0.01654585552 | AB28: =DEGREES(AA28) -> 0.9480076895 | AC28: =ATAN((AD27-0)/(AC27-X_Ri)) -> 0.05858169818 | AD28: =DEGREES(AC28) -> 3.356484063 | AE28: =ATAN((AF27-0)/(AE27-X_Ri)) -> 0.100765479 | AF28: =DEGREES(AE28) -> 5.773436669 | AG28: =ATAN((AH27-0)/(AG27-X_Ri)) -> 0.1430903421 | AH28: =DEGREES(AG28) -> 8.19847269 | AI28: =ATAN((AJ27-0)/(AI27-X_Ri)) -> 0.1855492595 | AJ28: =DEGREES(AI28) -> 10.63118946 | AK28: =ATAN((AL27-0)/(AK27-X_Ri)) -> 0.2281350424 | AL28: =DEGREES(AK28) -> 13.07117509 | AM28: =ATAN((AN27-0)/(AM27-X_Ri)) -> 0.2708403512 | AN28: =DEGREES(AM28) -> 15.51800905 | AO28: =ATAN((AP27-0)/(AO27-X_Ri)) -> 0.3136577067 | AP28: =DEGREES(AO28) -> 17.97126281 | AQ28: f2 | AS28: f2 | AT28: =ATAN(AU26/(AT26-X_Lf)) -> -0.01960909978
A29: 0.394219804 | B29: -10.26436591 | C29: 58.76545689 | D29: 0.1505556992 | E29: 26.10629861 | F29: 54.44548743 | I29: f1 | J29: inc = f1-f2 | K29: =ATAN((pigi_yc-L27)/(pigi_xc-K27)) -> -0.1700860564 | L29: =K29-K28 -> 0.1435716503 | M29: =ATAN((pigi_yc-N27)/(pigi_xc-M27)) -> -0.1327416709 | N29: =M29-M28 -> 0.1402863094 | O29: =ATAN((pigi_yc-P27)/(pigi_xc-O27)) -> -0.09539728532 | P29: =O29-O28 -> 0.1368056705 | Q29: =ATAN((pigi_yc-R27)/(pigi_xc-Q27)) -> -0.05805289977 | R29: =Q29-Q28 -> 0.1331348252 | S29: =ATAN((pigi_yc-T27)/(pigi_xc-S27)) -> -0.02070851421 | T29: =S29-S28 -> 0.1292791231 | U29: =ATAN((pigi_yc-V27)/(pigi_xc-U27)) -> 0.01663587135 | V29: =U29-U28 -> 0.125244161 | W29: =ATAN((pigi_yc-X27)/(pigi_xc-W27)) -> 0.05398025691 | X29: =W29-W28 -> 0.1210357728 | Y29: =ATAN((pigi_yc-Z27)/(pigi_xc-Y27)) -> 0.09132464246 | Z29: =Y29-Y28 -> 0.1166600182 | AA29: =ATAN((pigi_yc-AB27)/(pigi_xc-AA27)) -> 0.128669028 | AB29: =AA29-AA28 -> 0.1121231725 | AC29: =ATAN((pigi_yc-AD27)/(pigi_xc-AC27)) -> 0.1660134136 | AD29: =AC29-AC28 -> 0.1074317154 | AE29: =ATAN((pigi_yc-AF27)/(pigi_xc-AE27)) -> 0.2033577991 | AF29: =AE29-AE28 -> 0.1025923201 | AG29: =ATAN((pigi_yc-AH27)/(pigi_xc-AG27)) -> 0.2407021847 | AH29: =AG29-AG28 -> 0.09761184262 | AI29: =ATAN((pigi_yc-AJ27)/(pigi_xc-AI27)) -> 0.2780465703 | AJ29: =AI29-AI28 -> 0.09249731075 | AK29: =ATAN((pigi_yc-AL27)/(pigi_xc-AK27)) -> 0.3153909558 | AL29: =AK29-AK28 -> 0.08725591346 | AM29: =ATAN((pigi_yc-AN27)/(pigi_xc-AM27)) -> 0.3527353414 | AN29: =AM29-AM28 -> 0.08189499017 | AO29: =ATAN((pigi_yc-AP27)/(pigi_xc-AO27)) -> 0.3900797269 | AP29: =AO29-AO28 -> 0.07642202022 | AQ29: inc = f1-f2 | AS29: inc | AT29: =AT27-AT28 -> 0.01960909978
A30: 0.3613681537 | B30: -12.11833934 | C30: 54.09381614 | D30: 0.138009391 | E30: 25.45147299 | F30: 49.93852948 | I30: refraction | K30: =IF(ABS(SIN(L29))/nccf<1,ASIN(SIN(L29)/nccf),0) -> 0.08629920162 | L30: =DEGREES(K30) -> 4.944580028 | M30: =IF(ABS(SIN(N29))/nccf<1,ASIN(SIN(N29)/nccf),0) -> 0.08433282919 | N30: =DEGREES(M30) -> 4.831915187 | O30: =IF(ABS(SIN(P29))/nccf<1,ASIN(SIN(P29)/nccf),0) -> 0.08224892677 | P30: =DEGREES(O30) -> 4.712516373 | Q30: =IF(ABS(SIN(R29))/nccf<1,ASIN(SIN(R29)/nccf),0) -> 0.08005045168 | R30: =DEGREES(Q30) -> 4.586553029 | S30: =IF(ABS(SIN(T29))/nccf<1,ASIN(SIN(T29)/nccf),0) -> 0.07774051951 | T30: =DEGREES(S30) -> 4.454203665 | U30: =IF(ABS(SIN(V29))/nccf<1,ASIN(SIN(V29)/nccf),0) -> 0.07532239912 | V30: =DEGREES(U30) -> 4.315655572 | W30: =IF(ABS(SIN(X29))/nccf<1,ASIN(SIN(X29)/nccf),0) -> 0.07279950748 | X30: =DEGREES(W30) -> 4.171104529 | Y30: =IF(ABS(SIN(Z29))/nccf<1,ASIN(SIN(Z29)/nccf),0) -> 0.07017540435 | Z30: =DEGREES(Y30) -> 4.020754495 | AA30: =IF(ABS(SIN(AB29))/nccf<1,ASIN(SIN(AB29)/nccf),0) -> 0.0674537868 | AB30: =DEGREES(AA30) -> 3.864817296 | AC30: =IF(ABS(SIN(AD29))/nccf<1,ASIN(SIN(AD29)/nccf),0) -> 0.06463848356 | AD30: =DEGREES(AC30) -> 3.703512302 | AE30: =IF(ABS(SIN(AF29))/nccf<1,ASIN(SIN(AF29)/nccf),0) -> 0.06173344931 | AF30: =DEGREES(AE30) -> 3.5370661 | AG30: =IF(ABS(SIN(AH29))/nccf<1,ASIN(SIN(AH29)/nccf),0) -> 0.05874275875 | AH30: =DEGREES(AG30) -> 3.365712153 | AI30: =IF(ABS(SIN(AJ29))/nccf<1,ASIN(SIN(AJ29)/nccf),0) -> 0.05567060069 | AJ30: =DEGREES(AI30) -> 3.189690463 | AK30: =IF(ABS(SIN(AL29))/nccf<1,ASIN(SIN(AL29)/nccf),0) -> 0.05252127195 | AL30: =DEGREES(AK30) -> 3.009247217 | AM30: =IF(ABS(SIN(AN29))/nccf<1,ASIN(SIN(AN29)/nccf),0) -> 0.04929917118 | AN30: =DEGREES(AM30) -> 2.824634442 | AO30: =IF(ABS(SIN(AP29))/nccf<1,ASIN(SIN(AP29)/nccf),0) -> 0.04600879272 | AP30: =DEGREES(AO30) -> 2.636109643 | AS30: d | AT30: =ASIN(SIN(AT29)*nccf) -> 0.03255476963
A31: 0.3285165033 | B31: -13.81786892 | C31: 49.36380092 | D31: 0.1254630827 | E31: 24.85324311 | F31: 45.42371081 | I31: inside inc | J31: f2+d | K31: =K28+K30 -> -0.2273585051 | L31: =TAN(K31) -> -0.2313587682 | M31: =M28+M30 -> -0.1886951511 | N31: =TAN(M31) -> -0.190967065 | O31: =O28+O30 -> -0.149954029 | P31: =TAN(O31) -> -0.1510881973 | Q31: =Q28+Q30 -> -0.1111372733 | R31: =TAN(Q31) -> -0.1115971157 | S31: =S28+S30 -> -0.07224711775 | T31: =TAN(S31) -> -0.07237308222 | U31: =U28+U30 -> -0.03328589053 | V31: =TAN(U31) -> -0.03329818902 | W31: =W28+W30 -> 0.005743991634 | X31: =TAN(W31) -> 0.005744054807 | Y31: =Y28+Y30 -> 0.04484002863 | Z31: =TAN(Y31) -> 0.04487010503 | AA31: =AA28+AA30 -> 0.08399964232 | AB31: =TAN(AA31) -> 0.08419776699 | AC31: =AC28+AC30 -> 0.1232201817 | AD31: =TAN(AC31) -> 0.1238476187 | AE31: =AE28+AE30 -> 0.1624989283 | AF31: =TAN(AE31) -> 0.1639445092 | AG31: =AG28+AG30 -> 0.2018331008 | AH31: =TAN(AG31) -> 0.2046191725 | AI31: =AI28+AI30 -> 0.2412198602 | AJ31: =TAN(AI31) -> 0.2460100025 | AK31: =AK28+AK30 -> 0.2806563143 | AL31: =TAN(AK31) -> 0.2882650433 | AM31: =AM28+AM30 -> 0.3201395224 | AN31: =TAN(AM31) -> 0.331544257 | AO31: =AO28+AO30 -> 0.3596664994 | AP31: =TAN(AO31) -> 0.3760221488 | AQ31: f2+d | AT31: =((AT26-AT25)*(AU26-0)-(AU26-AU25)*(AT26-X_Lf))/SQRT((AT26-AT25)^2+(AU26-AU25)^2)/RADIUS_LF -> -0.01960784314 | AU31: =ASIN(AT31) -> -0.01960909978
A32: 0.295664853 | B32: -15.36112064 | C32: 44.58051555 | D32: 0.1129167744 | E32: 24.31170314 | F32: 40.9017421 | J32: cut with circle | K32: =RADIUS_LF^2*(1+L31^2)-L32^2 -> 16402.95997 | L32: =L27+L31*(X_Lf-K27) -> 90.87931973 | M32: =RADIUS_LF^2*(1+N31^2)-N32^2 -> 17920.9999 | N32: =N27+N31*(X_Lf-M27) -> 79.63472449 | O32: =RADIUS_LF^2*(1+P31^2)-P32^2 -> 19245.97218 | P32: =P27+P31*(X_Lf-O27) -> 68.53758181 | Q32: =RADIUS_LF^2*(1+R31^2)-R32^2 -> 20388.16876 | R32: =R27+R31*(X_Lf-Q27) -> 57.55314908 | S32: =RADIUS_LF^2*(1+T31^2)-T32^2 -> 21355.58748 | T32: =T27+T31*(X_Lf-S27) -> 46.64789013 | U32: =RADIUS_LF^2*(1+V31^2)-V32^2 -> 22154.0981 | V32: =V27+V31*(X_Lf-U27) -> 35.7890637 | W32: =RADIUS_LF^2*(1+X31^2)-X32^2 -> 22787.55272 | X32: =X27+X31*(X_Lf-W27) -> 24.94433091 | Y32: =RADIUS_LF^2*(1+Z31^2)-Z32^2 -> 23257.84492 | Z32: =Z27+Z31*(X_Lf-Y27) -> 14.08137184 | AA32: =RADIUS_LF^2*(1+AB31^2)-AB32^2 -> 23564.91951 | AB32: =AB27+AB31*(X_Lf-AA27) -> 3.167501534 | AC32: =RADIUS_LF^2*(1+AD31^2)-AD32^2 -> 23706.73244 | AD32: =AD27+AD31*(X_Lf-AC27) -> -7.830724536 | AE32: =RADIUS_LF^2*(1+AF31^2)-AF32^2 -> 23679.15859 | AF32: =AF27+AF31*(X_Lf-AE27) -> -18.94792546 | AG32: =RADIUS_LF^2*(1+AH31^2)-AH32^2 -> 23475.8425 | AH32: =AH27+AH31*(X_Lf-AG27) -> -30.22034177 | AI32: =RADIUS_LF^2*(1+AJ31^2)-AJ32^2 -> 23087.98441 | AJ32: =AJ27+AJ31*(X_Lf-AI27) -> -41.68632675 | AK32: =RADIUS_LF^2*(1+AL31^2)-AL32^2 -> 22504.05071 | AL32: =AL27+AL31*(X_Lf-AK27) -> -53.38689695 | AM32: =RADIUS_LF^2*(1+AN31^2)-AN32^2 -> 21709.39364 | AN32: =AN27+AN31*(X_Lf-AM27) -> -65.36635958 | AO32: =RADIUS_LF^2*(1+AP31^2)-AP32^2 -> 20685.75982 | AP32: =AP27+AP31*(X_Lf-AO27) -> -77.67303828 | AQ32: cut with circle | AU32: =ASIN(SIN(AT31)*nccf) -> -0.03255268289
A33: 0.2628132027 | B33: -16.74642911 | C33: 39.74912183 | D33: 0.1003704661 | E33: 23.82693831 | F33: 36.37333513 | I33: cut | J33: up line | K33: =K27+(L33-L27)/L31 -> 39.71026659 | L33: =$E6 -> 112 | M33: =M27+(N33-N27)/N31 -> -38.48092862 | N33: =$E6 -> 112 | O33: =O27+(P33-P27)/P31 -> -156.6625637 | P33: =$E6 -> 112 | Q33: =Q27+(R33-R27)/R31 -> -356.8876176 | R33: =$E6 -> 112 | S33: =S27+(T33-T27)/T31 -> -771.9891759 | T33: =$E6 -> 112 | U33: =U27+(V33-V27)/V31 -> -2157.741176 | V33: =$E6 -> 112 | W33: =W27+(X33-X27)/X31 -> 15286.78664 | X33: =$E6 -> 112 | Y33: =Y27+(Z33-Z27)/Z31 -> 2313.268753 | Z33: =$E6 -> 112 | AA33: =AA27+(AB33-AB27)/AB31 -> 1423.581767 | AB33: =$E6 -> 112 | AC33: =AC27+(AD33-AD27)/AD31 -> 1098.565834 | AD33: =$E6 -> 112 | AE33: =AE27+(AF33-AF27)/AF31 -> 929.7332181 | AF33: =$E6 -> 112 | AG33: =AG27+(AH33-AH27)/AH31 -> 826.0489538 | AH33: =$E6 -> 112 | AI33: =AI27+(AJ33-AJ27)/AJ31 -> 755.7157643 | AJ33: =$E6 -> 112 | AK33: =AK27+(AL33-AL27)/AL31 -> 704.7320595 | AL33: =$E6 -> 112 | AM33: =AM27+(AN33-AN27)/AN31 -> 665.9703874 | AN33: =$E6 -> 112 | AO33: =AO27+(AP33-AP27)/AP31 -> 635.4198564 | AP33: =$E6 -> 112 | AQ33: up line | AT33: =AT28-AU32 -> 0.01294358311 | AU33: =TAN(AT33) -> 0.012944306 | AV33: =-AU26/AU33+AT26 -> -253.7327209
A34: 0.2299615523 | B34: -17.9722994 | C34: 34.87483349 | D34: 0.08782415788 | E34: 23.39902493 | F34: 31.83920271 | H34: h=y1+(x-x1)t | I34: cut | J34: down line | K34: =K27+(L34-L27)/L31 -> 1007.903526 | L34: =$E9 -> -112 | M34: =M27+(N34-N27)/N31 -> 1134.496202 | N34: =$E9 -> -112 | O34: =O27+(P34-P27)/P31 -> 1325.915189 | P34: =$E9 -> -112 | Q34: =Q27+(R34-R27)/R31 -> 1650.332717 | R34: =$E9 -> -112 | S34: =S27+(T34-T27)/T31 -> 2323.084201 | T34: =$E9 -> -112 | U34: =U27+(V34-V27)/V31 -> 4569.351395 | V34: =$E9 -> -112 | W34: =W27+(X34-X27)/X31 -> -23710.05576 | X34: =$E9 -> -112 | Y34: =Y27+(Z34-Z27)/Z31 -> -2678.919249 | Z34: =$E9 -> -112 | AA34: =AA27+(AB34-AB27)/AB31 -> -1236.821329 | AB34: =$E9 -> -112 | AC34: =AC27+(AD34-AD27)/AD31 -> -710.1084245 | AD34: =$E9 -> -112 | AE34: =AE27+(AF34-AF27)/AF31 -> -436.5827447 | AF34: =$E9 -> -112 | AG34: =AG27+(AH34-AH27)/AH31 -> -268.6676227 | AH34: =$E9 -> -112 | AI34: =AI27+(AJ34-AJ27)/AJ31 -> -154.8163186 | AJ34: =$E9 -> -112 | AK34: =AK27+(AL34-AL27)/AL31 -> -72.33059599 | AL34: =$E9 -> -112 | AM34: =AM27+(AN34-AN27)/AN31 -> -9.655853456 | AN34: =$E9 -> -112 | AO34: =AO27+(AP34-AP27)/AP31 -> 39.71026659 | AP34: =$E9 -> -112 | AQ34: down line | AT34: =estia -> 732.2752906 | AV34: =AV33+estia -> 478.5425697
A35: 0.197109902 | B35: -19.03740864 | C35: 29.96291054 | D35: 0.07527784961 | E35: 23.02803036 | F35: 27.30005856 | H35: x=x1+(h-y1)/t | K35: =SQRT((K34-K27)^2+(L34-L27)^2) -> 993.7676733 | L35: =SQRT((K37-K27)^2+(L37-L27)^2) -> 10.42555891 | M35: =SQRT((M34-M27)^2+(N34-N27)^2) -> 1118.911115 | N35: =SQRT((M37-M27)^2+(N37-N27)^2) -> 19.27466061 | O35: =SQRT((O34-O27)^2+(P34-P27)^2) -> 1308.861033 | P35: =SQRT((O37-O27)^2+(P37-P27)^2) -> 26.54975269 | Q35: =SQRT((Q34-Q27)^2+(R34-R27)^2) -> 1631.785705 | R35: =SQRT((Q37-Q27)^2+(R37-R27)^2) -> 32.50165383 | S35: =SQRT((S34-S27)^2+(T34-T27)^2) -> 2303.016625 | T35: =SQRT((S37-S27)^2+(T37-T27)^2) -> 37.18804093 | U35: =SQRT((U34-U27)^2+(V34-V27)^2) -> 4547.731666 | V35: =SQRT((U37-U27)^2+(V37-V27)^2) -> 40.64863061 | W35: =SQRT((W34-W27)^2+(X34-X27)^2) -> 23733.26307 | X35: =SQRT((W37-W27)^2+(X37-X27)^2) -> 42.91026878 | Y35: =SQRT((Y34-Y27)^2+(Z34-Z27)^2) -> 2703.753411 | Z35: =SQRT((Y37-Y27)^2+(Z37-Z27)^2) -> 43.99007807 | AA35: =SQRT((AA34-AA27)^2+(AB34-AB27)^2) -> 1263.32537 | AB35: =SQRT((AA37-AA27)^2+(AB37-AB27)^2) -> 43.8973763 | AC35: =SQRT((AC34-AC27)^2+(AD34-AD27)^2) -> 738.3291369 | AD35: =SQRT((AC37-AC27)^2+(AD37-AD27)^2) -> 42.63474452 | AE35: =SQRT((AE34-AE27)^2+(AF34-AF27)^2) -> 466.5706451 | AF35: =SQRT((AE37-AE27)^2+(AF37-AF27)^2) -> 40.19843446 | AG35: =SQRT((AG34-AG27)^2+(AH34-AH27)^2) -> 300.476927 | AH35: =SQRT((AG37-AG27)^2+(AH37-AH27)^2) -> 36.57818238 | AI35: =SQRT((AI34-AI27)^2+(AJ34-AJ27)^2) -> 188.5049174 | AJ35: =SQRT((AI37-AI27)^2+(AJ37-AJ27)^2) -> 31.75639501 | AK35: =SQRT((AK34-AK27)^2+(AL34-AL27)^2) -> 107.9600331 | AL35: =SQRT((AK37-AK27)^2+(AL37-AL27)^2) -> 25.70656074 | AM35: =SQRT((AM34-AM27)^2+(AN34-AN27)^2) -> 47.29130677 | AN35: =SQRT((AM37-AM27)^2+(AN37-AN27)^2) -> 18.39057874 | AO35: =SQRT((AO34-AO27)^2+(AP34-AP27)^2) -> 3.826389735e-14 | AP35: =SQRT((AO37-AO27)^2+(AP37-AP27)^2) -> 9.754424568 | AV35: =estia -> 732.2752906
A36: 0.1642582517 | B36: -19.94060743 | C36: 25.01865359 | D36: 0.06273154134 | E36: 22.714013 | F36: 22.75661717 | K36: =SQRT((K33-K27)^2+(L33-L27)^2) -> 0 | M36: =SQRT((M33-M27)^2+(N33-N27)^2) -> 75.26280375 | O36: =SQRT((O33-O27)^2+(P33-P27)^2) -> 190.5431122 | Q36: =SQRT((Q33-Q27)^2+(R33-R27)^2) -> 387.8948326 | S36: =SQRT((S33-S27)^2+(T33-T27)^2) -> 800.1519508 | U36: =SQRT((U33-U27)^2+(V33-V27)^2) -> 2183.089268 | W36: =SQRT((W33-W27)^2+(X33-X27)^2) -> 15264.22265 | Y36: =SQRT((Y33-Y27)^2+(Z33-Z27)^2) -> 2293.457517 | AA36: =SQRT((AA33-AA27)^2+(AB33-AB27)^2) -> 1406.491222 | AC36: =SQRT((AC33-AC27)^2+(AD33-AD27)^2) -> 1084.16327 | AE36: =SQRT((AE33-AE27)^2+(AF33-AF27)^2) -> 917.9853524 | AG36: =SQRT((AG33-AG27)^2+(AH33-AH27)^2) -> 816.9220093 | AI36: =SQRT((AI33-AI27)^2+(AJ33-AJ27)^2) -> 749.175558 | AK36: =SQRT((AK33-AK27)^2+(AL33-AL27)^2) -> 700.7440973 | AM36: 664.4999669 | AO36: =SQRT((AO33-AO27)^2+(AP33-AP27)^2) -> 636.4321766
A37: 0.1314066013 | B37: -20.6809211 | C37: 20.04739817 | D37: 0.05018523307 | E37: 22.45702228 | F37: 18.20959371 | J37: x3,y3 | K37: =IF(K32>0,K27+(-L27*L31+X_Lf-K27-SQRT(K32))/(1+L31^2),K27) -> 29.39052465 | L37: =L27+L29*(K37-K27) -> 110.5183776 | M37: =IF(M32>0,M27+(-N27*N31+X_Lf-M27-SQRT(M32))/(1+N31^2),M27) -> 16.51341554 | N37: =N27+TAN(M31)*(M37-M27) -> 101.4978915 | O37: =IF(O32>0,O27+(-P27*P31+X_Lf-O27-SQRT(O32))/(1+P31^2),O27) -> 5.490453599 | P37: =P27+TAN(O31)*(O37-O27) -> 87.50059293 | Q37: =IF(Q32>0,Q27+(-R27*R31+X_Lf-Q27-SQRT(Q32))/(1+R31^2),Q27) -> -3.686998886 | R37: =R27+TAN(Q31)*(Q37-Q27) -> 72.58382968 | S37: =IF(S32>0,S27+(-T27*T31+X_Lf-S27-SQRT(S32))/(1+T31^2),S27) -> -11.01560083 | T37: =T27+TAN(S31)*(S37-S27) -> 56.92599689 | U37: =IF(U32>0,U27+(-V27*V31+X_Lf-U27-SQRT(U32))/(1+V31^2),U27) -> -16.48728747 | V37: =V27+TAN(U31)*(U37-U27) -> 40.70012328 | W37: =IF(W32>0,W27+(-X27*X31+X_Lf-W27-SQRT(W32))/(1+X31^2),W27) -> -20.09376239 | X37: =X27+TAN(W31)*(W37-W27) -> 24.07644005 | Y37: =IF(Y32>0,Y27+(-Z27*Z31+X_Lf-Y27-SQRT(Y32))/(1+Z31^2),Y27) -> -21.82936641 | Z37: =Z27+TAN(Y31)*(Y37-Y27) -> 7.223902122 | AA37: =IF(AA32>0,AA27+(-AB27*AB31+X_Lf-AA27-SQRT(AA32))/(1+AB31^2),AA27) -> -21.69291144 | AB37: =AB27+TAN(AA31)*(AA37-AA27) -> -9.688900645 | AC37: =IF(AC32>0,AC27+(-AD27*AD31+X_Lf-AC27-SQRT(AC32))/(1+AD31^2),AC27) -> -19.68879126 | AD37: =AD27+TAN(AC31)*(AC37-AC27) -> -26.4931725 | AE37: =IF(AE32>0,AE27+(-AF27*AF31+X_Lf-AE27-SQRT(AE32))/(1+AF31^2),AE27) -> -15.82752894 | AF37: =AF27+TAN(AE31)*(AE37-AE27) -> -43.01949263 | AG37: =IF(AG32>0,AG27+(-AH27*AH31+X_Lf-AG27-SQRT(AG32))/(1+AH31^2),AG27) -> -10.12582454 | AH37: =AH27+TAN(AG31)*(AG37-AG27) -> -59.0973912 | AI37: =IF(AI32>0,AI27+(-AJ27*AJ31+X_Lf-AI27-SQRT(AI32))/(1+AJ31^2),AI27) -> -2.606090937 | AJ37: =AJ27+TAN(AI31)*(AI37-AI27) -> -74.55476152 | AK37: =IF(AK32>0,AK27+(-AL27*AL31+X_Lf-AK27-SQRT(AK32))/(1+AL31^2),AK27) -> 6.704615091 | AL37: =AL27+TAN(AK31)*(AK37-AK27) -> -89.21691146 | AM37: =IF(AM30<>0,IF(AM32>0,AM27+(-AN27*AN31+X_Lf-AM27-SQRT(AM32))/(1+AN31^2),AM27),AM27) -> 17.77647251 | AN37: =AN27+TAN(AM31)*(AM37-AM27) -> -102.9049699 | AO37: =IF(AO32>0,AO27+(-AP27*AP31+X_Lf-AO27-SQRT(AO32))/(1+AP31^2),AO27) -> 30.57998614 | AP37: =AP27+TAN(AO31)*(AO37-AO27) -> -115.4331877 | AQ37: x3,y3
A38: 0.098554951 | B38: -21.25755075 | C38: 15.05450892 | D38: 0.0376389248 | E38: 22.25709864 | F38: 13.65970391 | J38: x3,y3 2 | K38: =IF(L35<K35,IF(K36<L35,K33,K37),K34) -> 39.71026659 | L38: =IF(L35<K35,IF(K36<L35,L33,L37),L34) -> 112 | M38: =IF(N35<M35,IF(M36<N35,M33,M37),M34) -> 16.51341554 | N38: =IF(N35<M35,IF(M36<N35,N33,N37),N34) -> 101.4978915 | O38: =IF(P35<O35,IF(O36<P35,O33,O37),O34) -> 5.490453599 | P38: =IF(P35<O35,IF(O36<P35,P33,P37),P34) -> 87.50059293 | Q38: =IF(R35<Q35,IF(Q36<R35,Q33,Q37),Q34) -> -3.686998886 | R38: =IF(R35<Q35,IF(Q36<R35,R33,R37),R34) -> 72.58382968 | S38: =IF(T35<S35,IF(S36<T35,S33,S37),S34) -> -11.01560083 | T38: =IF(T35<S35,IF(S36<T35,T33,T37),T34) -> 56.92599689 | U38: =IF(V35<U35,IF(U36<V35,U33,U37),U34) -> -16.48728747 | V38: =IF(V35<U35,IF(U36<V35,V33,V37),V34) -> 40.70012328 | W38: =IF(X35<W35,IF(W36<X35,W33,W37),W34) -> -20.09376239 | X38: =IF(X35<W35,IF(W36<X35,X33,X37),X34) -> 24.07644005 | Y38: =IF(Z35<Y35,IF(Y36<Z35,Y33,Y37),Y34) -> -21.82936641 | Z38: =IF(Z35<Y35,IF(Y36<Z35,Z33,Z37),Z34) -> 7.223902122 | AA38: =IF(AB35<AA35,IF(AA36<AB35,AA33,AA37),AA34) -> -21.69291144 | AB38: =IF(AB35<AA35,IF(AA36<AB35,AB33,AB37),AB34) -> -9.688900645 | AC38: =IF(AD35<AC35,IF(AC36<AD35,AC33,AC37),AC34) -> -19.68879126 | AD38: =IF(AD35<AC35,IF(AC36<AD35,AD33,AD37),AD34) -> -26.4931725 | AE38: =IF(AF35<AE35,IF(AE36<AF35,AE33,AE37),AE34) -> -15.82752894 | AF38: =IF(AF35<AE35,IF(AE36<AF35,AF33,AF37),AF34) -> -43.01949263 | AG38: =IF(AH35<AG35,IF(AG36<AH35,AG33,AG37),AG34) -> -10.12582454 | AH38: =IF(AH35<AG35,IF(AG36<AH35,AH33,AH37),AH34) -> -59.0973912 | AI38: =IF(AJ35<AI35,IF(AI36<AJ35,AI33,AI37),AI34) -> -2.606090937 | AJ38: =IF(AJ35<AI35,IF(AI36<AJ35,AJ33,AJ37),AJ34) -> -74.55476152 | AK38: =IF(AL35<AK35,IF(AK36<AL35,AK33,AK37),AK34) -> 6.704615091 | AL38: =IF(AL35<AK35,IF(AK36<AL35,AL33,AL37),AL34) -> -89.21691146 | AM38: =IF(AN35<AM35,IF(AM36<AN35,AM33,AM37),AM34) -> 17.77647251 | AN38: =IF(AN35<AM35,IF(AM36<AN35,AN33,AN37),AN34) -> -102.9049699 | AO38: =IF(AP35<AO35,IF(AO36<AP35,AO33,AO37),AO34) -> 39.71026659 | AP38: =IF(AP35<AO35,IF(AO36<AP35,AP33,AP37),AP34) -> -112 | AQ38: x3,y3 2
A39: 0.06570330067 | B39: -21.66987412 | C39: 10.04537384 | D39: 0.02509261654 | E39: 22.11427356 | F39: 9.107663975 | K39: =((K38-K27)*(L38-0)-(L38-L27)*(K38-X_Lf))/SQRT((K38-K27)^2+(L38-L27)^2)/RADIUS_LF ->  | L39: =IF(ABS(K39)*nccf<1,ASIN(K39*nccf),0) ->  | M39: =((M38-M27)*(N38-0)-(N38-N27)*(M38-X_Lf))/SQRT((M38-M27)^2+(N38-N27)^2)/RADIUS_LF -> -0.5112496385 | N39: =IF(ABS(M39)*nccf<1,ASIN(M39*nccf),0) -> -1.013473972 | O39: =((O38-O27)*(P38-0)-(P38-P27)*(O38-X_Lf))/SQRT((O38-O27)^2+(P38-P27)^2)/RADIUS_LF -> -0.4429310419 | P39: =IF(ABS(O39)*nccf<1,ASIN(O39*nccf),0) -> -0.826058362 | Q39: =((Q38-Q27)*(R38-0)-(R38-R27)*(Q38-X_Lf))/SQRT((Q38-Q27)^2+(R38-R27)^2)/RADIUS_LF -> -0.3738436673 | R39: =IF(ABS(Q39)*nccf<1,ASIN(Q39*nccf),0) -> -0.6694827698 | S39: =((S38-S27)*(T38-0)-(T38-T27)*(S38-X_Lf))/SQRT((S38-S27)^2+(T38-T27)^2)/RADIUS_LF -> -0.3040928127 | T39: =IF(ABS(S39)*nccf<1,ASIN(S39*nccf),0) -> -0.5291433928 | U39: =((U38-U27)*(V38-0)-(V38-V27)*(U38-X_Lf))/SQRT((U38-U27)^2+(V38-V27)^2)/RADIUS_LF -> -0.2337858776 | V39: =IF(ABS(U39)*nccf<1,ASIN(U39*nccf),0) -> -0.3985523457 | W39: =((W38-W27)*(X38-0)-(X38-X27)*(W38-X_Lf))/SQRT((W38-W27)^2+(X38-X27)^2)/RADIUS_LF -> -0.163032153 | X39: =IF(ABS(W39)*nccf<1,ASIN(W39*nccf),0) -> -0.2740508968 | Y39: =((Y38-Y27)*(Z38-0)-(Z38-Z27)*(Y38-X_Lf))/SQRT((Y38-Y27)^2+(Z38-Z27)^2)/RADIUS_LF -> -0.09194260141 | Z39: =IF(ABS(Y39)*nccf<1,ASIN(Y39*nccf),0) -> -0.153223565 | AA39: =((AA38-AA27)*(AB38-0)-(AB38-AB27)*(AA38-X_Lf))/SQRT((AA38-AA27)^2+(AB38-AB27)^2)/RADIUS_LF -> -0.02062962911 | AB39: =IF(ABS(AA39)*nccf<1,ASIN(AA39*nccf),0) -> -0.03425188126 | AC39: =((AC38-AC27)*(AD38-0)-(AD38-AD27)*(AC38-X_Lf))/SQRT((AC38-AC27)^2+(AD38-AD27)^2)/RADIUS_LF -> 0.0507931499 | AD39: =IF(ABS(AC39)*nccf<1,ASIN(AC39*nccf),0) -> 0.08441685509 | AE39: =((AE38-AE27)*(AF38-0)-(AF38-AF27)*(AE38-X_Lf))/SQRT((AE38-AE27)^2+(AF38-AF27)^2)/RADIUS_LF -> 0.1222111565 | AF39: =IF(ABS(AE39)*nccf<1,ASIN(AE39*nccf),0) -> 0.2042885135 | AG39: =((AG38-AG27)*(AH38-0)-(AH38-AH27)*(AG38-X_Lf))/SQRT((AG38-AG27)^2+(AH38-AH27)^2)/RADIUS_LF -> 0.1935090948 | AH39: =IF(ABS(AG39)*nccf<1,ASIN(AG39*nccf),0) -> 0.3270228615 | AI39: =((AI38-AI27)*(AJ38-0)-(AJ38-AJ27)*(AI38-X_Lf))/SQRT((AI38-AI27)^2+(AJ38-AJ27)^2)/RADIUS_LF -> 0.2645712062 | AJ39: =IF(ABS(AI39)*nccf<1,ASIN(AI39*nccf),0) -> 0.4546948648 | AK39: =((AK38-AK27)*(AL38-0)-(AL38-AL27)*(AK38-X_Lf))/SQRT((AK38-AK27)^2+(AL38-AL27)^2)/RADIUS_LF -> 0.3352815261 | AL39: =IF(ABS(AK39)*nccf<1,ASIN(AK39*nccf),0) -> 0.590248306 | AM39: =((AM38-AM27)*(AN38-0)-(AN38-AN27)*(AM38-X_Lf))/SQRT((AM38-AM27)^2+(AN38-AN27)^2)/RADIUS_LF -> 0.405524145 | AN39: =IF(ABS(AM39)*nccf<1,ASIN(AM39*nccf),0) -> 0.7384873292 | AO39: =((AO38-AO27)*(AP38-0)-(AP38-AP27)*(AO38-X_Lf))/SQRT((AO38-AO27)^2+(AP38-AP27)^2)/RADIUS_LF -> -0.4580734218 | AP39: =IF(ABS(AO39)*nccf<1,ASIN(AO39*nccf),0) -> -0.8639316893
A40: 0.03285165033 | B40: -21.91744626 | C40: 5.02539846 | D40: 0.01254630827 | E40: 22.02856951 | F40: 4.55419042 | I40: OUTSIDE INCL TAN | K40: =IF(ABS(L38)<>$E5,-ASIN(L39)+ATAN2(X_Lf-K38,-L38),0) -> 0 | L40: =TAN(K40) -> 0 | M40: =IF(ABS(N38)<>$E5,-ASIN(N39)+ATAN2(X_Lf-M38,-N38),0) ->  | O40: =IF(ABS(P38)<>$E5,-(P39)+ATAN2(X_Lf-O38,-P38),0) -> 0.2172390649 | P40: =TAN(O40) -> 0.2207222055 | Q40: =IF(ABS(R38)<>$E5,-(R39)+ATAN2(X_Lf-Q38,-R38),0) -> 0.1751957668 | R40: =TAN(Q40) -> 0.1770105108 | S40: =IF(ABS(T38)<>$E5,-ASIN(T39)+ATAN2(X_Lf-S38,-T38),0) -> 0.1763576142 | T40: 0.1782090091 | U40: =IF(ABS(V38)<>$E5,-ASIN(V39)+ATAN2(X_Lf-U38,-V38),0) -> 0.1406823254 | V40: =TAN(U40) -> 0.1416178377 | W40: =IF(ABS(X38)<>$E5,-ASIN(X39)+ATAN2(X_Lf-W38,-X38),0) -> 0.1195835203 | X40: =TAN(W40) -> 0.1201568233 | Y40: =IF(ABS(Z38)<>$E5,-ASIN(Z39)+ATAN2(X_Lf-Y38,-Z38),0) -> 0.1065969325 | Z40: =TAN(Y40) -> 0.1070025264 | AA40: =IF(ABS(AB38)<>$E5,-ASIN(AB39)+ATAN2(X_Lf-AA38,-AB38),0) -> 0.0976271318 | AB40: =TAN(AA40) -> 0.0979384821 | AC40: =IF(ABS(AD38)<>$E5,-ASIN(AD39)+ATAN2(X_Lf-AC38,-AD38),0) -> 0.08951775767 | AD40: =TAN(AC40) -> 0.08975764134 | AE40: =IF(ABS(AF38)<>$E5,-ASIN(AF39)+ATAN2(X_Lf-AE38,-AF38),0) -> 0.07927952574 | AF40: =TAN(AE40) -> 0.07944604142 | AG40: =IF(ABS(AH38)<>$E5,-ASIN(AH39)+ATAN2(X_Lf-AG38,-AH38),0) -> 0.06341919966 | AH40: =TAN(AG40) -> 0.06350436057 | AI40: =IF(ABS(AJ38)<>$E5,-ASIN(AJ39)+ATAN2(X_Lf-AI38,-AJ38),0) -> 0.03694953265 | AJ40: =TAN(AI40) -> 0.03696635718 | AK40: =IF(ABS(AL38)<>$E5,-ASIN(AL39)+ATAN2(X_Lf-AK38,-AL38),0) -> -0.0088060608 | AL40: =TAN(AK40) -> -0.008806288434 | AM40: =IF(ABS(AN38)<>$E5,-ASIN(AN39)+ATAN2(X_Lf-AM38,-AN38),0) -> -0.09313247458 | AN40: =TAN(AM40) -> -0.09340267849 | AO40: =IF(ABS(AP38)<>$E5,-ASIN(AP39)+ATAN2(X_Lf-AO38,-AP38),0) -> 0 | AP40: =TAN(AO40) -> 0
A41: 2.775557562e-16 | B41: -22 | C41: 4.246603069e-14 | D41: 3.122502257e-17 | E41: 22 | F41: 1.133468319e-14 | J41: X4,Y4 | K41: =IF(L39<>0,IF(ABS(L38)<>$E5,-500,K38),K38) ->  | L41: =L38+L40*(K41-K38) ->  | M41: =IF(N39<>0,IF(ABS(N38)<>$E5,-500,M38),M38) -> -500 | N41: =N38+N40*(M41-M38) ->  | O41: =IF(P39<>0,IF(ABS(P38)<>$E5,-500,O38),O38) -> -500 | P41: =P38+P40*(O41-O38) -> -24.07237485 | Q41: =IF(R39<>0,IF(ABS(R38)<>$E5,-500,Q38),Q38) -> -500 | R41: =R38+R40*(Q41-Q38) -> -15.26878816 | S41: =IF(T39<>0,IF(ABS(T38)<>$E5,-500,S38),S38) -> -500 | T41: =T38+T40*(S41-S38) -> -30.21542834 | U41: =IF(V39<>0,IF(ABS(V38)<>$E5,-500,U38),U38) -> -500 | V41: =V38+V40*(U41-U38) -> -27.77390156 | W41: =IF(X39<>0,IF(ABS(X38)<>$E5,-500,W38),W38) -> -500 | X41: =X38+X40*(W41-W38) -> -33.58756895 | Y41: =IF(Z39<>0,IF(ABS(Z38)<>$E5,-500,Y38),Y38) -> -500 | Z41: =Z38+Z40*(Y41-Y38) -> -43.94156373 | AA41: =IF(AB39<>0,IF(ABS(AB38)<>$E5,-500,AA38),AA38) -> -500 | AB41: =AB38+AB40*(AA41-AA38) -> -56.53357087 | AC41: =IF(AD39<>0,IF(ABS(AD38)<>$E5,-500,AC38),AC38) -> -500 | AD41: =AD38+AD40*(AC41-AC38) -> -69.60477371 | AE41: =IF(AF39<>0,IF(ABS(AF38)<>$E5,-500,AE38),AE38) -> -500 | AF41: =AF38+AF40*(AE41-AE38) -> -81.48507882 | AG41: =IF(AH39<>0,IF(ABS(AH38)<>$E5,-500,AG38),AG38) -> -500 | AH41: =AH38+AH40*(AG41-AG38) -> -90.20653747 | AI41: =IF(AJ39<>0,IF(ABS(AJ38)<>$E5,-500,AI38),AI38) -> -500 | AJ41: =AJ38+AJ40*(AI41-AI38) -> -92.94160242 | AK41: =IF(AL39<>0,IF(ABS(AL38)<>$E5,-500,AK38),AK38) -> -500 | AL41: =AL38+AL40*(AK41-AK38) -> -84.75472447 | AM41: =IF(AM30<>0,IF(ABS(AN38)<>$E5,-500,AM38),AM27) -> -500 | AN41: =IF(AN30<>0,AN38+AN40*(AM41-AM38),AN27) -> -54.54326048 | AO41: =IF(AP39<>0,IF(ABS(AP38)<>$E5,-500,AO38),AO38) -> 39.71026659 | AP41: =AP38+AP40*(AO41-AO38) -> -112 | AQ41: X4,Y4
A42: -0.03285165033 | B42: -21.91744626 | C42: -5.02539846 | D42: -0.01254630827 | E42: 22.02856951 | F42: -4.55419042
A43: -0.06570330067 | B43: -21.66987412 | C43: -10.04537384 | D43: -0.02509261654 | E43: 22.11427356 | F43: -9.107663975 | J43: klisi | K43: 0 | L43: 0 | M43: =K43+1 -> 1 | N43: =L43+1 -> 1 | O43: =M43+1 -> 2 | P43: =N43+1 -> 2 | Q43: =O43+1 -> 3 | R43: =P43+1 -> 3 | S43: =Q43+1 -> 4 | T43: =R43+1 -> 4 | U43: =S43+1 -> 5 | V43: =T43+1 -> 5 | W43: =U43+1 -> 6 | X43: =V43+1 -> 6 | Y43: =W43+1 -> 7 | Z43: =X43+1 -> 7 | AA43: =Y43+1 -> 8 | AB43: =Z43+1 -> 8 | AC43: =AA43+1 -> 9 | AD43: =AB43+1 -> 9 | AE43: =AC43+1 -> 10 | AF43: =AD43+1 -> 10 | AG43: =AE43+1 -> 11 | AH43: =AF43+1 -> 11 | AI43: =AG43+1 -> 12 | AJ43: =AH43+1 -> 12 | AK43: =AI43+1 -> 13 | AL43: =AJ43+1 -> 13 | AM43: =AK43+1 -> 14 | AN43: =AL43+1 -> 14 | AO43: =AM43+1 -> 15 | AP43: =AN43+1 -> 15
A44: -0.098554951 | B44: -21.25755075 | C44: -15.05450892 | D44: -0.0376389248 | E44: 22.25709864 | F44: -13.65970391
A45: -0.1314066013 | B45: -20.6809211 | C45: -20.04739817 | D45: -0.05018523307 | E45: 22.45702228 | F45: -18.20959371 | K45: =pigi_xc -> 424
A46: -0.1642582517 | B46: -19.94060743 | C46: -25.01865359 | D46: -0.06273154134 | E46: 22.714013 | F46: -22.75661717 | J46: x1,y1 | K46: =K25 -> 424 | L46: 46 | M46: 424 | N46: 46 | O46: 424 | P46: 46 | Q46: 424 | R46: 46 | S46: 424 | T46: 46 | U46: 424 | V46: 46 | W46: 424 | X46: 46 | Y46: 424 | Z46: 46 | AA46: 424 | AB46: 46 | AC46: 424 | AD46: 46 | AE46: 424 | AF46: 46 | AG46: 424 | AH46: 46 | AI46: 424 | AJ46: 46 | AK46: 424 | AL46: 46 | AM46: 424 | AN46: 46 | AO46: 424 | AP46: 46
A47: -0.197109902 | B47: -19.03740864 | C47: -29.96291054 | D47: -0.07527784961 | E47: 23.02803036 | F47: -27.30005856 | J47: x2,y2 | K47: =K27 -> 39.71026659 | L47: 112 | M47: 35.44594768 | N47: 97.88240141 | O47: 31.74226355 | P47: 83.53425428 | Q47: 28.61413947 | R47: 68.9791158 | S47: 26.07542811 | T47: 54.2416048 | U47: 24.13882688 | V47: 39.34734724 | W47: 22.81579851 | X47: 24.32291492 | Y47: 22.11649522 | Z47: 9.195757549 | AA47: 22.04968727 | AB47: -6.00587151 | AC47: 22.62269638 | AD47: -21.25299551 | AE47: 23.84133442 | AF47: -36.5160003 | AG47: 25.70984818 | AH47: -51.76472551 | AI47: 28.23087032 | AJ47: -66.9685606 | AK47: 31.40537721 | AL47: -82.0965452 | AM47: 35.23265389 | AN47: -97.11747318 | AO47: 39.71026659 | AP47: -112
A48: -0.2299615523 | B48: =X_Lf-RADIUS_LF*COS(A48) -> -17.9722994 | C48: =RADIUS_LF*SIN(A48) -> -34.87483349 | D48: -0.08782415788 | E48: =X_Ri-RADIUS_RI*COS(D48) -> 23.39902493 | F48: =RADIUS_RI*SIN(D48) -> -31.83920271 | J48: x3,y3 | K48: =K38 -> 39.71026659 | L48: 112 | M48: 16.51341554 | N48: 101.4978915 | O48: 5.490453599 | P48: 87.50059293 | Q48: -3.686998886 | R48: 72.58382968 | S48: -11.01560083 | T48: 56.92599689 | U48: -16.48728747 | V48: 40.70012328 | W48: -20.09376239 | X48: 24.07644005 | Y48: -21.82936641 | Z48: 7.223902122 | AA48: -21.69291144 | AB48: -9.688900645 | AC48: -19.68879126 | AD48: -26.4931725 | AE48: -15.82752894 | AF48: -43.01949263 | AG48: -10.12582454 | AH48: -59.0973912 | AI48: -2.606090937 | AJ48: -74.55476152 | AK48: 6.704615091 | AL48: -89.21691146 | AM48: 17.77647251 | AN48: -102.9049699 | AO48: 39.71026659 | AP48: -112
A49: -0.2628132027 | B49: -16.74642911 | C49: -39.74912183 | D49: =D48-D_RIT -> -0.1003704661 | E49: 23.82693831 | F49: -36.37333513 | J49: x4,y4 | K49: =K41 ->  | M49: -500 | O49: -500 | P49: -24.07237485 | Q49: -500 | R49: -15.26878816 | S49: -500 | T49: -30.21542834 | U49: -500 | V49: -27.77390156 | W49: -500 | X49: -33.58756895 | Y49: -500 | Z49: -43.94156373 | AA49: -500 | AB49: -56.53357087 | AC49: -500 | AD49: -69.60477371 | AE49: -500 | AF49: -81.48507882 | AG49: -500 | AH49: -90.20653747 | AI49: -500 | AJ49: -92.94160242 | AK49: -500 | AL49: -84.75472447 | AM49: =IF(ABS(ABS(AN48)-60)>0.000000000001,AM41,AM48) -> -500 | AN49: =IF(ABS(ABS(AN48)-60)>0.000000000001,AN41,AN48) -> -54.54326048 | AO49: =IF(ABS(ABS(AP48)-60)>0.000000000001,AO41,AO48) -> 39.71026659 | AP49: =IF(ABS(ABS(AP48)-60)>0.000000000001,AP41,AP48) -> -112
A50: -0.295664853 | B50: -15.36112064 | C50: -44.58051555 | D50: -0.1129167744 | E50: 24.31170314 | F50: -40.9017421 | P50: =ATAN2(P49-P48,Q49-Q48) -> -1.79192386 | Q50: =ATAN2(P48-P47,Q48-Q47) -> -1.448615424
A51: -0.3285165033 | B51: -13.81786892 | C51: -49.36380092 | D51: -0.1254630827 | E51: 24.85324311 | F51: -45.42371081
A52: -0.3613681537 | B52: -12.11833934 | C52: -54.09381614 | D52: -0.138009391 | E52: 25.45147299 | F52: -49.93852948 | J52: klisi | K52: 0 | L52: 0 | M52: =K52+1 -> 1 | N52: 1 | O52: 2 | P52: 2 | Q52: 3 | R52: 3 | S52: 4 | T52: 4 | U52: 5 | V52: 5 | W52: 6 | X52: 6 | Y52: 7 | Z52: 7 | AA52: 8 | AB52: 8 | AC52: 9 | AD52: 9 | AE52: 10 | AF52: 10 | AG52: 11 | AH52: 11 | AI52: 12 | AJ52: 12 | AK52: 13 | AL52: 13 | AM52: 14 | AN52: 14 | AO52: 15 | AP52: 15
A53: -0.394219804 | B53: -10.26436591 | C53: -58.76545689 | D53: -0.1505556992 | E53: 26.10629861 | F53: -54.44548743 | L53: =ATAN2(K47-K46,L47-L46) -> 2.971506597 | N53: =ATAN2(M47-M46,N47-N46) -> 3.008850983 | P53: =ATAN2(O47-O46,P47-P46) -> 3.046195368 | R53: =ATAN2(Q47-Q46,R47-R46) -> 3.083539754 | T53: =ATAN2(S47-S46,T47-T46) -> 3.120884139 | V53: =ATAN2(U47-U46,V47-V46) -> -3.124956782 | X53: =ATAN2(W47-W46,X47-X46) -> -3.087612397 | Z53: =ATAN2(Y47-Y46,Z47-Z46) -> -3.050268011 | AB53: =ATAN2(AA47-AA46,AB47-AB46) -> -3.012923626 | AD53: =ATAN2(AC47-AC46,AD47-AD46) -> -2.97557924 | AF53: =ATAN2(AE47-AE46,AF47-AF46) -> -2.938234854 | AH53: =ATAN2(AG47-AG46,AH47-AH46) -> -2.900890469 | AJ53: =ATAN2(AI47-AI46,AJ47-AJ46) -> -2.863546083 | AL53: =ATAN2(AK47-AK46,AL47-AL46) -> -2.826201698 | AN53: =ATAN2(AM47-AM46,AN47-AN46) -> -2.788857312 | AP53: =ATAN2(AO47-AO46,AP47-AP46) -> -2.751512927
A54: -0.4270714544 | B54: -8.257949319 | C54: -63.37368185 | D54: -0.1631020075 | E54: 26.81761689 | F54: -58.94387525 | L54: =ATAN2(K48-K47,L48-L47) ->  | N54: =ATAN2(M48-M47,N48-N47) -> 2.952897502 | P54: =ATAN2(O48-O47,P48-P47) -> 2.991638625 | R54: =ATAN2(Q48-Q47,R48-R47) -> 3.03045538 | T54: =ATAN2(S48-S47,T48-T47) -> 3.069345536 | V54: =ATAN2(U48-U47,V48-V47) -> 3.108306763 | X54: =ATAN2(W48-W47,X48-X47) -> -3.135848662 | Z54: =ATAN2(Y48-Y47,Z48-Z47) -> -3.096752625 | AB54: =ATAN2(AA48-AA47,AB48-AB47) -> -3.057593011 | AD54: =ATAN2(AC48-AC47,AD48-AD47) -> -3.018372472 | AF54: =ATAN2(AE48-AE47,AF48-AF47) -> -2.979093725 | AH54: =ATAN2(AG48-AG47,AH48-AH47) -> -2.939759553 | AJ54: =ATAN2(AI48-AI47,AJ48-AJ47) -> -2.900372793 | AL54: =ATAN2(AK48-AK47,AL48-AL47) -> -2.860936339 | AN54: =IF(AM48<>AM47,ATAN2(AM48-AM47,AN48-AN47),0) -> -2.821453131 | AP54: =ATAN2(AO48-AO47,AP48-AP47) -> 0.3805063771
A55: -0.4599231047 | B55: -6.101254758 | C55: -67.91351812 | D55: -0.1756483158 | E55: 27.58531587 | F55: -63.43298483 | J55: proekatsi | AK55: =nccf -> 1.66
A56: -0.492774755 | B56: -3.796609589 | C56: -72.38006662 | D56: -0.188194624 | E56: 28.4092747 | F56: -67.91210957 | K56: =IF(K49<>K48,(L49-L48)/(K49-K48),0) ->  | M56: =IF(M49<>M48,(N49-N48)/(M49-M48),0) ->  | O56: =IF(O49<>O48,(P49-P48)/(O49-O48),0) -> 0.2207222055 | Q56: =IF(Q49<>Q48,(R49-R48)/(Q49-Q48),0) -> 0.1770105108 | S56: =IF(S49<>S48,(T49-T48)/(S49-S48),0) -> 0.1782090091 | U56: =IF(U49<>U48,(V49-V48)/(U49-U48),0) -> 0.1416178377 | W56: =IF(W49<>W48,(X49-X48)/(W49-W48),0) -> 0.1201568233 | Y56: =IF(Y49<>Y48,(Z49-Z48)/(Y49-Y48),0) -> 0.1070025264 | AA56: =IF(AA49<>AA48,(AB49-AB48)/(AA49-AA48),0) -> 0.0979384821 | AC56: =IF(AC49<>AC48,(AD49-AD48)/(AC49-AC48),0) -> 0.08975764134 | AE56: =IF(AE49<>AE48,(AF49-AF48)/(AE49-AE48),0) -> 0.07944604142 | AG56: =IF(AG49<>AG48,(AH49-AH48)/(AG49-AG48),0) -> 0.06350436057 | AI56: =IF(AI49<>AI48,(AJ49-AJ48)/(AI49-AI48),0) -> 0.03696635718 | AK56: =IF(AK49<>AK48,(AL49-AL48)/(AK49-AK48),0) -> -0.008806288434 | AM56: =IF(AM49<>AM48,(AN49-AN48)/(AM49-AM48),0) -> -0.09340267849
A57: -0.5256264054 | B57: -1.346500832 | C57: -76.76850733 | D57: -0.2007409323 | E57: 29.28936368 | F57: -72.38054442 | K57: =K48 -> 39.71026659 | L57: =L48 -> 112 | M57: =M48 -> 16.51341554 | N57: 101.4978915 | O57: 5.490453599 | P57: 87.50059293 | Q57: =Q48 -> -3.686998886 | R57: 72.58382968 | S57: -11.01560083 | T57: 56.92599689 | U57: -16.48728747 | V57: 40.70012328 | W57: -20.09376239 | X57: 24.07644005 | Y57: -21.82936641 | Z57: 7.223902122 | AA57: -21.69291144 | AB57: -9.688900645 | AC57: -19.68879126 | AD57: -26.4931725 | AE57: -15.82752894 | AF57: -43.01949263 | AG57: -10.12582454 | AH57: -59.0973912 | AI57: -2.606090937 | AJ57: -74.55476152 | AK57: 6.704615091 | AL57: -89.21691146 | AM57: 17.77647251 | AN57: -102.9049699
A58: -0.5584780557 | B58: 1.246427516 | C58: -81.07410454 | D58: -0.2132872406 | E58: 30.22544429 | F58: -76.837586 | K58: =IF(K56<>0,IF(focus>0,IF(nccf>1,IF(ABS(L48)<>$E5,IF(pigi_xc<MAX($Y17,$Y16),500,K57),K57),IF(ABS(L57)<>$E5,500,K57)),500),K57) ->  | L58: =IF(K56<>0,IF(focus>0,IF(nccf>1,IF(ABS(L48)<>$E5,IF(pigi_xc<MAX($Y17,$Y16),L57+K56*(K58-K57),L57),L57),L57+K56*(K58-K57)),L59),L57) ->  | M58: =IF(M56<>0,IF(focus>0,IF(nccf>1,IF(ABS(N48)<>$E5,IF(pigi_xc<MAX($Y17,$Y16),500,M57),M57),IF(ABS(N57)<>$E5,500,M57)),500),M57) ->  | N58: =IF(M56<>0,IF(focus>0,IF(nccf>1,IF(ABS(N48)<>$E5,IF(pigi_xc<MAX($Y17,$Y16),N57+M56*(M58-M57),N57),N57),N57+M56*(M58-M57)),N59),N57) ->  | O58: =IF(O56<>0,IF(focus>0,IF(nccf>1,IF(ABS(P48)<>$E5,IF(pigi_xc<MAX($Y17,$Y16),500,O57),O57),IF(ABS(P57)<>$E5,500,O57)),500),O57) -> 5.490453599 | P58: =IF(O56<>0,IF(focus>0,IF(nccf>1,IF(ABS(P48)<>$E5,IF(pigi_xc<MAX($Y17,$Y16),P57+O56*(O58-O57),P57),P57),P57+O56*(O58-O57)),P59),P57) -> 87.50059293 | Q58: =IF(Q56<>0,IF(focus>0,IF(nccf>1,IF(ABS(R48)<>$E5,IF(pigi_xc<MAX($Y17,$Y16),500,Q57),Q57),IF(ABS(R57)<>$E5,500,Q57)),500),Q57) -> -3.686998886 | R58: =IF(Q56<>0,IF(focus>0,IF(nccf>1,IF(ABS(R48)<>$E5,IF(pigi_xc<MAX($Y17,$Y16),R57+Q56*(Q58-Q57),R57),R57),R57+Q56*(Q58-Q57)),R59),R57) -> 72.58382968 | S58: =IF(S56<>0,IF(focus>0,IF(nccf>1,IF(ABS(T48)<>$E5,IF(pigi_xc<MAX($Y17,$Y16),500,S57),S57),IF(ABS(T57)<>$E5,500,S57)),500),S57) -> -11.01560083 | T58: =IF(S56<>0,IF(focus>0,IF(nccf>1,IF(ABS(T48)<>$E5,IF(pigi_xc<MAX($Y17,$Y16),T57+S56*(S58-S57),T57),T57),T57+S56*(S58-S57)),T59),T57) -> 56.92599689 | U58: =IF(U56<>0,IF(focus>0,IF(nccf>1,IF(ABS(V48)<>$E5,IF(pigi_xc<MAX($Y17,$Y16),500,U57),U57),IF(ABS(V57)<>$E5,500,U57)),500),U57) -> -16.48728747 | V58: =IF(U56<>0,IF(focus>0,IF(nccf>1,IF(ABS(V48)<>$E5,IF(pigi_xc<MAX($Y17,$Y16),V57+U56*(U58-U57),V57),V57),V57+U56*(U58-U57)),V59),V57) -> 40.70012328 | W58: =IF(W56<>0,IF(focus>0,IF(nccf>1,IF(ABS(X48)<>$E5,IF(pigi_xc<MAX($Y17,$Y16),500,W57),W57),IF(ABS(X57)<>$E5,500,W57)),500),W57) -> -20.09376239 | X58: =IF(W56<>0,IF(focus>0,IF(nccf>1,IF(ABS(X48)<>$E5,IF(pigi_xc<MAX($Y17,$Y16),X57+W56*(W58-W57),X57),X57),X57+W56*(W58-W57)),X59),X57) -> 24.07644005 | Y58: =IF(Y56<>0,IF(focus>0,IF(nccf>1,IF(ABS(Z48)<>$E5,IF(pigi_xc<MAX($Y17,$Y16),500,Y57),Y57),IF(ABS(Z57)<>$E5,500,Y57)),500),Y57) -> -21.82936641 | Z58: =IF(Y56<>0,IF(focus>0,IF(nccf>1,IF(ABS(Z48)<>$E5,IF(pigi_xc<MAX($Y17,$Y16),Z57+Y56*(Y58-Y57),Z57),Z57),Z57+Y56*(Y58-Y57)),Z59),Z57) -> 7.223902122 | AA58: =IF(AA56<>0,IF(focus>0,IF(nccf>1,IF(ABS(AB48)<>$E5,IF(pigi_xc<MAX($Y17,$Y16),500,AA57),AA57),IF(ABS(AB57)<>$E5,500,AA57)),500),AA57) -> -21.69291144 | AB58: =IF(AA56<>0,IF(focus>0,IF(nccf>1,IF(ABS(AB48)<>$E5,IF(pigi_xc<MAX($Y17,$Y16),AB57+AA56*(AA58-AA57),AB57),AB57),AB57+AA56*(AA58-AA57)),AB59),AB57) -> -9.688900645 | AC58: =IF(AC56<>0,IF(focus>0,IF(nccf>1,IF(ABS(AD48)<>$E5,IF(pigi_xc<MAX($Y17,$Y16),500,AC57),AC57),IF(ABS(AD57)<>$E5,500,AC57)),500),AC57) -> -19.68879126 | AD58: =IF(AC56<>0,IF(focus>0,IF(nccf>1,IF(ABS(AD48)<>$E5,IF(pigi_xc<MAX($Y17,$Y16),AD57+AC56*(AC58-AC57),AD57),AD57),AD57+AC56*(AC58-AC57)),AD59),AD57) -> -26.4931725 | AE58: =IF(AE56<>0,IF(focus>0,IF(nccf>1,IF(ABS(AF48)<>$E5,IF(pigi_xc<MAX($Y17,$Y16),500,AE57),AE57),IF(ABS(AF57)<>$E5,500,AE57)),500),AE57) -> -15.82752894 | AF58: =IF(AE56<>0,IF(focus>0,IF(nccf>1,IF(ABS(AF48)<>$E5,IF(pigi_xc<MAX($Y17,$Y16),AF57+AE56*(AE58-AE57),AF57),AF57),AF57+AE56*(AE58-AE57)),AF59),AF57) -> -43.01949263 | AG58: =IF(AG56<>0,IF(focus>0,IF(nccf>1,IF(ABS(AH48)<>$E5,IF(pigi_xc<MAX($Y17,$Y16),500,AG57),AG57),IF(ABS(AH57)<>$E5,500,AG57)),500),AG57) -> -10.12582454 | AH58: =IF(AG56<>0,IF(focus>0,IF(nccf>1,IF(ABS(AH48)<>$E5,IF(pigi_xc<MAX($Y17,$Y16),AH57+AG56*(AG58-AG57),AH57),AH57),AH57+AG56*(AG58-AG57)),AH59),AH57) -> -59.0973912 | AI58: =IF(AI56<>0,IF(focus>0,IF(nccf>1,IF(ABS(AJ48)<>$E5,IF(pigi_xc<MAX($Y17,$Y16),500,AI57),AI57),IF(ABS(AJ57)<>$E5,500,AI57)),500),AI57) -> -2.606090937 | AJ58: =IF(AI56<>0,IF(focus>0,IF(nccf>1,IF(ABS(AJ48)<>$E5,IF(pigi_xc<MAX($Y17,$Y16),AJ57+AI56*(AI58-AI57),AJ57),AJ57),AJ57+AI56*(AI58-AI57)),AJ59),AJ57) -> -74.55476152 | AK58: =IF(AK56<>0,IF(focus>0,IF(nccf>1,IF(ABS(AL48)<>$E5,IF(pigi_xc<MAX($Y17,$Y16),500,AK57),AK57),IF(ABS(AL57)<>$E5,500,AK57)),500),AK57) -> 6.704615091 | AL58: =IF(AK56<>0,IF(focus>0,IF(nccf>1,IF(ABS(AL48)<>$E5,IF(pigi_xc<MAX($Y17,$Y16),AL57+AK56*(AK58-AK57),AL57),AL57),AL57+AK56*(AK58-AK57)),AL59),AL57) -> -89.21691146 | AM58: =IF(AM56<>0,IF(focus>0,IF(nccf>1,IF(ABS(AN48)<>$E5,IF(pigi_xc<MAX($Y17,$Y16),500,AM57),AM57),IF(ABS(AN57)<>$E5,500,AM57)),500),AM57) -> 17.77647251 | AN58: =IF(AM56<>0,IF(focus>0,IF(nccf>1,IF(ABS(AN48)<>$E5,IF(pigi_xc<MAX($Y17,$Y16),AN57+AM56*(AM58-AM57),AN57),AN57),AN57+AM56*(AM58-AM57)),AN59),AN57) -> -102.9049699
A59: -0.591329706 | B59: 3.979377339 | C59: -85.29221195 | D59: -0.2258335488 | E59: 31.21736918 | F59: -81.28253276 | L59: =L57+K56*(K58-K57) ->  | N59: =N57+M56*(M58-M57) ->  | P59: =P57+O56*(O58-O57) -> 87.50059293 | R59: =R57+Q56*(Q58-Q57) -> 72.58382968 | T59: =T57+S56*(S58-S57) -> 56.92599689 | V59: =V57+U56*(U58-U57) -> 40.70012328 | X59: =X57+W56*(W58-W57) -> 24.07644005 | Z59: =Z57+Y56*(Y58-Y57) -> 7.223902122 | AB59: =AB57+AA56*(AA58-AA57) -> -9.688900645 | AD59: =AD57+AC56*(AC58-AC57) -> -26.4931725 | AF59: =AF57+AE56*(AE58-AE57) -> -43.01949263 | AH59: =AH57+AG56*(AG58-AG57) -> -59.0973912 | AJ59: =AJ57+AI56*(AI58-AI57) -> -74.55476152 | AL59: =AL57+AK56*(AK58-AK57) -> -89.21691146 | AN59: =AN57+AM56*(AM58-AM57) -> -102.9049699
A60: -0.6241813564 | B60: 6.849399418 | C60: -89.41827764 | D60: -0.2383798571 | E60: 32.26498221 | F60: -85.714685 | J60: TAN1 | K60: =(L47-L46)/(K47-K46) -> -0.1717454157 | L60: =K60 -> -0.1717454157 | M60: =(N47-N46)/(M47-M46) -> -0.1335268571 | N60: =M60 -> -0.1335268571 | O60: =(P47-P46)/(O47-O46) -> -0.09568773486 | P60: =O60 -> -0.09568773486 | Q60: =(R47-R46)/(Q47-Q46) -> -0.05811820325 | R60: =Q60 -> -0.05811820325 | S60: =(T47-T46)/(S47-S46) -> -0.02071147495 | T60: =S60 -> -0.02071147495 | U60: =(V47-V46)/(U47-U46) -> 0.01663740619 | V60: =U60 -> 0.01663740619 | W60: =(X47-X46)/(W47-W46) -> 0.05403274854 | X60: =W60 -> 0.05403274854 | Y60: =(Z47-Z46)/(Y47-Y46) -> 0.09157938062 | Z60: =Y60 -> 0.09157938062 | AA60: =(AB47-AB46)/(AA47-AA46) -> 0.1293838314 | AB60: =AA60 -> 0.1293838314 | AC60: =(AD47-AD46)/(AC47-AC46) -> 0.1675555516 | AD60: =AC60 -> 0.1675555516 | AE60: =(AF47-AF46)/(AE47-AE46) -> 0.2062082054 | AF60: =AE60 -> 0.2062082054 | AG60: =(AH47-AH46)/(AG47-AG46) -> 0.2454610667 | AH60: =AG60 -> 0.2454610667 | AI60: =(AJ47-AJ46)/(AI47-AI46) -> 0.2854405564 | AJ60: =AI60 -> 0.2854405564 | AK60: =(AL47-AL46)/(AK47-AK46) -> 0.3262819656 | AL60: =AK60 -> 0.3262819656 | AM60: =(AN47-AN46)/(AM47-AM46) -> 0.3681314149 | AN60: =AM60 -> 0.3681314149 | AO60: =(AP47-AP46)/(AO47-AO46) -> 0.4111481163 | AP60: =AO60 -> 0.4111481163 | AQ60: =(AR47-AR46)/(AQ47-AQ46) ->  | AR60: =AQ60 ->  | AT60: TAN1
A61: -0.6570330067 | B61: 9.853396616 | C61: -93.44784903 | D61: -0.2509261654 | E61: 33.36811848 | F61: -90.13334509 | J61: TAN2 | K61: =(L47-L48)/(K47-48) -> 0 | L61: =K61 -> 0 | M61: =(N47-N48)/(M47-48) -> 0.2879938686 | N61: =M61 -> 0.2879938686 | O61: =(P47-P48)/(O47-48) -> 0.2439662283 | P61: =O61 -> 0.2439662283 | Q61: =(R47-R48)/(Q47-48) -> 0.1859455179 | R61: =Q61 -> 0.1859455179 | S61: =(T47-T48)/(S47-48) -> 0.1224376056 | T61: =S61 -> 0.1224376056 | U61: =(V47-V48)/(U47-48) -> 0.05669360966 | V61: =U61 -> 0.05669360966 | W61: =(X47-X48)/(W47-48) -> -0.009786884434 | X61: =W61 -> -0.009786884434 | Y61: =(Z47-Z48)/(Y47-48) -> -0.076181933 | Z61: =Y61 -> -0.076181933 | AA61: =(AB47-AB48)/(AA47-48) -> -0.1419261946 | AB61: =AA61 -> -0.1419261946 | AC61: =(AD47-AD48)/(AC47-48) -> -0.2064906921 | AD61: =AC61 -> -0.2064906921 | AE61: =(AF47-AF48)/(AE47-48) -> -0.269199154 | AF61: =AE61 -> -0.269199154 | AG61: =(AH47-AH48)/(AG47-48) -> -0.3289643677 | AH61: =AG61 -> -0.3289643677 | AI61: =(AJ47-AJ48)/(AI47-48) -> -0.3837397518 | AJ61: =AI61 -> -0.3837397518 | AK61: =(AL47-AL48)/(AK47-48) -> -0.4290767166 | AL61: =AK61 -> -0.4290767166 | AM61: =(AN47-AN48)/(AM47-48) -> -0.4533045973 | AN61: =AM61 -> -0.4533045973 | AO61: =(AP47-AP48)/(AO47-48) -> 1.714271619e-15 | AP61: =AO61 -> 1.714271619e-15 | AQ61: =(AR47-AR48)/(AQ47-48) -> 0 | AR61: 0 | AT61: TAN2
A62: -0.689884657 | B62: 12.98812722 | C62: -97.37657769 | D62: -0.2634724736 | E62: 34.52660434 | F62: -94.53781749 | J62: TAN3 | K62: =(L48-L49)/(K48-K49) ->  | L62: =K62 ->  | M62: =(N48-N49)/(M48-M49) ->  | N62: =M62 ->  | O62: =(P48-P49)/(O48-O49) -> 0.2207222055 | P62: =O62 -> 0.2207222055 | Q62: =(R48-R49)/(Q48-Q49) -> 0.1770105108 | R62: =Q62 -> 0.1770105108 | S62: =(T48-T49)/(S48-S49) -> 0.1782090091 | T62: =S62 -> 0.1782090091 | U62: =(V48-V49)/(U48-U49) -> 0.1416178377 | V62: =U62 -> 0.1416178377 | W62: =(X48-X49)/(W48-W49) -> 0.1201568233 | X62: =W62 -> 0.1201568233 | Y62: =(Z48-Z49)/(Y48-Y49) -> 0.1070025264 | Z62: =Y62 -> 0.1070025264 | AA62: =(AB48-AB49)/(AA48-AA49) -> 0.0979384821 | AB62: =AA62 -> 0.0979384821 | AC62: =(AD48-AD49)/(AC48-AC49) -> 0.08975764134 | AD62: =AC62 -> 0.08975764134 | AE62: =(AF48-AF49)/(AE48-AE49) -> 0.07944604142 | AF62: =AE62 -> 0.07944604142 | AG62: =(AH48-AH49)/(AG48-AG49) -> 0.06350436057 | AH62: =AG62 -> 0.06350436057 | AI62: =(AJ48-AJ49)/(AI48-AI49) -> 0.03696635718 | AJ62: =AI62 -> 0.03696635718 | AK62: =(AL48-AL49)/(AK48-AK49) -> -0.008806288434 | AL62: =AK62 -> -0.008806288434 | AM62: =(AN48-AN49)/(AM48-AM49) -> -0.09340267849 | AN62: =AM62 -> -0.09340267849 | AO62: =(AP48-AP49)/(AO48-AO49) ->  | AP62: =AO62 ->  | AQ62: =(AR48-AR49)/(AQ48-AQ49) ->  | AT62: TAN3
A63: -0.7227363074 | B63: 16.25020843 | C63: -101.200224 | D63: -0.2760187819 | E63: 35.74025745 | F63: -98.9274089 | I63: CX1 | J63: CY1 | K63: =(K47-K46)/SQRT((K47-K46)^2+(L47-L46)^2) -> -0.985570204 | L63: =(L47-L46)/SQRT((K46-K47)^2+(L46-L47)^2) -> 0.1692671644 | M63: =(M47-M46)/SQRT((M47-M46)^2+(N47-N46)^2) -> -0.9912027533 | N63: =(N47-N46)/SQRT((M46-M47)^2+(N46-N47)^2) -> 0.1323521884 | O63: =(O47-O46)/SQRT((O47-O46)^2+(P47-P46)^2) -> -0.9954531288 | P63: =(P47-P46)/SQRT((O46-O47)^2+(P46-P47)^2) -> 0.09525265506 | Q63: =(Q47-Q46)/SQRT((Q47-Q46)^2+(R47-R46)^2) -> -0.9983154036 | R63: =(R47-R46)/SQRT((Q46-Q47)^2+(R46-R47)^2) -> 0.05802029754 | S63: =(S47-S46)/SQRT((S47-S46)^2+(T47-T46)^2) -> -0.9997855864 | T63: =(T47-T46)/SQRT((S46-S47)^2+(T46-T47)^2) -> 0.02070703412 | U63: =(U47-U46)/SQRT((U47-U46)^2+(V47-V46)^2) -> -0.9998616271 | V63: =(V47-V46)/SQRT((U46-U47)^2+(V46-V47)^2) -> -0.01663510402 | W63: =(W47-W46)/SQRT((W47-W46)^2+(X47-X46)^2) -> -0.9985434197 | X63: =(X47-X46)/SQRT((W46-W47)^2+(X46-X47)^2) -> -0.0539540455 | Y63: =(Y47-Y46)/SQRT((Y47-Y46)^2+(Z47-Z46)^2) -> -0.9958328023 | Z63: =(Z47-Z46)/SQRT((Y46-Y47)^2+(Z46-Z47)^2) -> -0.09119775124 | AA63: =(AA47-AA46)/SQRT((AA47-AA46)^2+(AB47-AB46)^2) -> -0.9917335548 | AB63: =(AB47-AB46)/SQRT((AA46-AA47)^2+(AB46-AB47)^2) -> -0.1283142871 | AC63: =(AC47-AC46)/SQRT((AC47-AC46)^2+(AD47-AD46)^2) -> -0.9862513933 | AD63: =(AD47-AD46)/SQRT((AC46-AC47)^2+(AD46-AD47)^2) -> -0.1652518962 | AE63: =(AE47-AE46)/SQRT((AE47-AE46)^2+(AF47-AF46)^2) -> -0.9793939624 | AF63: =(AF47-AF46)/SQRT((AE46-AE47)^2+(AF46-AF47)^2) -> -0.2019590713 | AG63: =(AG47-AG46)/SQRT((AG47-AG46)^2+(AH47-AH46)^2) -> -0.9711708243 | AH63: =(AH47-AH46)/SQRT((AG46-AG47)^2+(AH46-AH47)^2) -> -0.2383846264 | AI63: =(AI47-AI46)/SQRT((AI47-AI46)^2+(AJ47-AJ46)^2) -> -0.9615934457 | AJ63: =(AJ47-AJ46)/SQRT((AI46-AI47)^2+(AJ46-AJ47)^2) -> -0.2744777682 | AK63: =(AK47-AK46)/SQRT((AK47-AK46)^2+(AL47-AL46)^2) -> -0.9506751817 | AL63: =(AL47-AL46)/SQRT((AK46-AK47)^2+(AL46-AL47)^2) -> -0.3101881669 | AM63: =(AM47-AM46)/SQRT((AM47-AM46)^2+(AN47-AN46)^2) -> -0.9384312572 | AN63: =(AN47-AN46)/SQRT((AM46-AM47)^2+(AN46-AN47)^2) -> -0.3454660265 | AO63: =(AO47-AO46)/SQRT((AO47-AO46)^2+(AP47-AP46)^2) -> -0.9248787457 | AP63: =(AP47-AP46)/SQRT((AO46-AO47)^2+(AP46-AP47)^2) -> -0.3802621541 | AQ63: =(AQ47-AQ46)/SQRT((AQ47-AQ46)^2+(AR47-AR46)^2) ->  | AR63: =(AR47-AR46)/SQRT((AQ46-AQ47)^2+(AR46-AR47)^2) ->  | AS63: CX1 | AT63: CY1
A64: -0.7555879577 | B64: 19.63612002 | C64: -104.9146617 | D64: -0.2885650902 | E64: 37.00888675 | F64: -103.3014284 | I64: CX2 | J64: CY2 | K64: =IF(K47<>K48,(K48-K47)/SQRT((K47-K48)^2+(L47-L48)^2)/nccf,0) -> 0 | L64: =IF(L47<>L48,(L48-L47)/SQRT((L47-L48)^2+(K47-K48)^2)/nccf,0) -> 0 | M64: =IF(M47<>M48,(M48-M47)/SQRT((M47-M48)^2+(N47-N48)^2)/nccf,0) -> -0.5917167659 | N64: =IF(N47<>N48,(N48-N47)/SQRT((N47-N48)^2+(M47-M48)^2)/nccf,0) -> 0.1129984141 | O64: =IF(O47<>O48,(O48-O47)/SQRT((O47-O48)^2+(P47-P48)^2)/nccf,0) -> -0.5956493655 | P64: =IF(P47<>P48,(P48-P47)/SQRT((P47-P48)^2+(O47-O48)^2)/nccf,0) -> 0.08999558888 | Q64: =IF(Q47<>Q48,(Q48-Q47)/SQRT((Q47-Q48)^2+(R47-R48)^2)/nccf,0) -> -0.5986931369 | R64: =IF(R47<>R48,(R48-R47)/SQRT((R47-R48)^2+(Q47-Q48)^2)/nccf,0) -> 0.06681242728 | S64: =IF(S47<>S48,(S48-S47)/SQRT((S47-S48)^2+(T47-T48)^2)/nccf,0) -> -0.6008381398 | T64: =IF(T47<>T48,(T48-T47)/SQRT((T47-T48)^2+(S47-S48)^2)/nccf,0) -> 0.04348450809 | U64: =IF(U47<>U48,(U48-U47)/SQRT((U47-U48)^2+(V47-V48)^2)/nccf,0) -> -0.6020759493 | V64: =IF(V47<>V48,(V48-V47)/SQRT((V47-V48)^2+(U47-U48)^2)/nccf,0) -> 0.02004803877 | W64: =IF(W47<>W48,(W48-W47)/SQRT((W47-W48)^2+(X47-X48)^2)/nccf,0) -> -0.6023997008 | X64: =IF(X47<>X48,(X48-X47)/SQRT((X47-X48)^2+(W47-W48)^2)/nccf,0) -> -0.003460216897 | Y64: =IF(Y47<>Y48,(Y48-Y47)/SQRT((Y47-Y48)^2+(Z47-Z48)^2)/nccf,0) -> -0.6018041291 | Z64: =IF(Z47<>Z48,(Z48-Z47)/SQRT((Z47-Z48)^2+(Y47-Y48)^2)/nccf,0) -> -0.02700301448 | AA64: =IF(AA47<>AA48,(AA48-AA47)/SQRT((AA47-AA48)^2+(AB47-AB48)^2)/nccf,0) -> -0.6002856048 | AB64: =IF(AB47<>AB48,(AB48-AB47)/SQRT((AB47-AB48)^2+(AA47-AA48)^2)/nccf,0) -> -0.05054270748 | AC64: =IF(AC47<>AC48,(AC48-AC47)/SQRT((AC47-AC48)^2+(AD47-AD48)^2)/nccf,0) -> -0.597842165 | AD64: =IF(AD47<>AD48,(AD48-AD47)/SQRT((AD47-AD48)^2+(AC47-AC48)^2)/nccf,0) -> -0.07404132851 | AE64: =IF(AE47<>AE48,(AE48-AE47)/SQRT((AE47-AE48)^2+(AF47-AF48)^2)/nccf,0) -> -0.5944735401 | AF64: =IF(AF47<>AF48,(AF48-AF47)/SQRT((AF47-AF48)^2+(AE47-AE48)^2)/nccf,0) -> -0.09746067279 | AG64: =IF(AG47<>AG48,(AG48-AG47)/SQRT((AG47-AG48)^2+(AH47-AH48)^2)/nccf,0) -> -0.590181175 | AH64: =IF(AH47<>AH48,(AH48-AH47)/SQRT((AH47-AH48)^2+(AG47-AG48)^2)/nccf,0) -> -0.1207623836 | AI64: =IF(AI47<>AI48,(AI48-AI47)/SQRT((AI47-AI48)^2+(AJ47-AJ48)^2)/nccf,0) -> -0.5849682459 | AJ64: =IF(AJ47<>AJ48,(AJ48-AJ47)/SQRT((AJ47-AJ48)^2+(AI47-AI48)^2)/nccf,0) -> -0.1439080396 | AK64: =IF(AK47<>AK48,(AK48-AK47)/SQRT((AK47-AK48)^2+(AL47-AL48)^2)/nccf,0) -> -0.5788396718 | AL64: =IF(AL47<>AL48,(AL48-AL47)/SQRT((AL47-AL48)^2+(AK47-AK48)^2)/nccf,0) -> -0.166859243 | AM64: =IF(AM47<>AM48,(AM48-AM47)/SQRT((AM47-AM48)^2+(AN47-AN48)^2)/nccf,0) -> -0.5718021203 | AN64: =IF(AN47<>AN48,(AN48-AN47)/SQRT((AN47-AN48)^2+(AM47-AM48)^2)/nccf,0) -> -0.1895777091 | AO64: =IF(AO47<>AO48,(AO48-AO47)/SQRT((AO47-AO48)^2+(AP47-AP48)^2)/nccf,0) -> 0 | AP64: =IF(AP47<>AP48,(AP48-AP47)/SQRT((AP47-AP48)^2+(AO47-AO48)^2)/nccf,0) -> 0 | AQ64: =IF(AQ47<>AQ48,(AQ48-AQ47)/SQRT((AQ47-AQ48)^2+(AR47-AR48)^2)/nccf,0) -> 0 | AR64: =IF(AR47<>AR48,(AR48-AR47)/SQRT((AR47-AR48)^2+(AQ47-AQ48)^2)/nccf,0) -> 0 | AS64: CX2 | AT64: CY2
A65: -0.788439608 | B65: 23.14220816 | C65: -108.5158824 | D65: -0.3011113984 | E65: 38.33229257 | F65: -107.6591874 | I65: CX3 | J65: CY3 | K65: =IF(K48<>K49,(K49-K48)/SQRT((K49-K48)^2+(L49-L48)^2),0) ->  | L65: =IF(L48<>L49,(L49-L48)/SQRT((L49-L48)^2+(K49-K48)^2),0) ->  | M65: =IF(M48<>M49,(M49-M48)/SQRT((M49-M48)^2+(N49-N48)^2),0) ->  | N65: =IF(N48<>N49,(N49-N48)/SQRT((N49-N48)^2+(M49-M48)^2),0) ->  | O65: =IF(O48<>O49,(O49-O48)/SQRT((O49-O48)^2+(P49-P48)^2),0) -> -0.9764962469 | P65: =IF(P48<>P49,(P49-P48)/SQRT((P49-P48)^2+(O49-O48)^2),0) -> -0.2155344053 | Q65: =IF(Q48<>Q49,(Q49-Q48)/SQRT((Q49-Q48)^2+(R49-R48)^2),0) -> -0.9846924355 | R65: =IF(R48<>R49,(R49-R48)/SQRT((R49-R48)^2+(Q49-Q48)^2),0) -> -0.174300911 | S65: =IF(S48<>S49,(S49-S48)/SQRT((S49-S48)^2+(T49-T48)^2),0) -> -0.9844892598 | T65: =IF(T48<>T49,(T49-T48)/SQRT((T49-T48)^2+(S49-S48)^2),0) -> -0.1754448554 | U65: =IF(U48<>U49,(U49-U48)/SQRT((U49-U48)^2+(V49-V48)^2),0) -> -0.9901205519 | V65: =IF(V48<>V49,(V49-V48)/SQRT((V49-V48)^2+(U49-U48)^2),0) -> -0.1402187316 | W65: =IF(W48<>W49,(W49-W48)/SQRT((W49-W48)^2+(X49-X48)^2),0) -> -0.9928584075 | X65: =IF(X48<>X49,(X49-X48)/SQRT((X49-X48)^2+(W49-W48)^2),0) -> -0.1192987122 | Y65: =IF(Y48<>Y49,(Y49-Y48)/SQRT((Y49-Y48)^2+(Z49-Z48)^2),0) -> -0.9943239248 | Z65: =IF(Z48<>Z49,(Z49-Z48)/SQRT((Z49-Z48)^2+(Y49-Y48)^2),0) -> -0.106395172 | AA65: =IF(AA48<>AA49,(AA49-AA48)/SQRT((AA49-AA48)^2+(AB49-AB48)^2),0) -> -0.9952382554 | AB65: =IF(AB48<>AB49,(AB49-AB48)/SQRT((AB49-AB48)^2+(AA49-AA48)^2),0) -> -0.09747212406 | AC65: =IF(AC48<>AC49,(AC49-AC48)/SQRT((AC49-AC48)^2+(AD49-AD48)^2),0) -> -0.9959959604 | AD65: =IF(AD48<>AD49,(AD49-AD48)/SQRT((AD49-AD48)^2+(AC49-AC48)^2),0) -> -0.0893982482 | AE65: =IF(AE48<>AE49,(AE49-AE48)/SQRT((AE49-AE48)^2+(AF49-AF48)^2),0) -> -0.9968590241 | AF65: =IF(AF48<>AF49,(AF49-AF48)/SQRT((AF49-AF48)^2+(AE49-AE48)^2),0) -> -0.07919650331 | AG65: =IF(AG48<>AG49,(AG49-AG48)/SQRT((AG49-AG48)^2+(AH49-AH48)^2),0) -> -0.9979896765 | AH65: =IF(AH48<>AH49,(AH49-AH48)/SQRT((AH49-AH48)^2+(AG49-AG48)^2),0) -> -0.06337669626 | AI65: =IF(AI48<>AI49,(AI49-AI48)/SQRT((AI49-AI48)^2+(AJ49-AJ48)^2),0) -> -0.9993174437 | AJ65: =IF(AJ48<>AJ49,(AJ49-AJ48)/SQRT((AJ49-AJ48)^2+(AI49-AI48)^2),0) -> -0.03694112556 | AK65: =IF(AK48<>AK49,(AK49-AK48)/SQRT((AK49-AK48)^2+(AL49-AL48)^2),0) -> -0.9999612269 | AL65: =IF(AL48<>AL49,(AL49-AL48)/SQRT((AL49-AL48)^2+(AK49-AK48)^2),0) -> 0.008805946987 | AM65: =IF(AM48<>AM49,(AM49-AM48)/SQRT((AM49-AM48)^2+(AN49-AN48)^2),0) -> -0.9956663049 | AN65: =IF(AN48<>AN49,(AN49-AN48)/SQRT((AN49-AN48)^2+(AM49-AM48)^2),0) -> 0.09299789975 | AO65: =IF(AO48<>AO49,(AO49-AO48)/SQRT((AO49-AO48)^2+(AP49-AP48)^2),0) -> 0 | AP65: =IF(AP48<>AP49,(AP49-AP48)/SQRT((AP49-AP48)^2+(AO49-AO48)^2),0) -> 0 | AQ65: =IF(AQ48<>AQ49,(AQ49-AQ48)/SQRT((AQ49-AQ48)^2+(AR49-AR48)^2),0) -> 0 | AR65: =IF(AR48<>AR49,(AR49-AR48)/SQRT((AR49-AR48)^2+(AQ49-AQ48)^2),0) -> 0 | AS65: CX3 | AT65: CY3
A66: -0.8212912584 | B66: 26.76468928 | C66: -112 | D66: -0.3136577067 | E66: 39.71026659 | F66: -112 | J66: inside lens | AT66: inside lens
J67: BEFOFRE LENS | K67: =INT(SQRT((pigi_xc-K47)^2+(pigi_yc-L47)^2)) -> 389 | L67: =K67 -> 389 | M67: =INT(SQRT((pigi_xc-M47)^2+(pigi_yc-N47)^2)) -> 392 | N67: 392 | O67: =INT(SQRT((pigi_xc-O47)^2+(pigi_yc-P47)^2)) -> 394 | P67: 394 | Q67: =INT(SQRT((pigi_xc-Q47)^2+(pigi_yc-R47)^2)) -> 396 | R67: 396 | S67: =INT(SQRT((pigi_xc-S47)^2+(pigi_yc-T47)^2)) -> 398 | T67: 398 | U67: =INT(SQRT((pigi_xc-U47)^2+(pigi_yc-V47)^2)) -> 399 | V67: 399 | W67: =INT(SQRT((pigi_xc-W47)^2+(pigi_yc-X47)^2)) -> 401 | X67: 401 | Y67: =INT(SQRT((pigi_xc-Y47)^2+(pigi_yc-Z47)^2)) -> 403 | Z67: 403 | AA67: =INT(SQRT((pigi_xc-AA47)^2+(pigi_yc-AB47)^2)) -> 405 | AB67: 405 | AC67: =INT(SQRT((pigi_xc-AC47)^2+(pigi_yc-AD47)^2)) -> 406 | AD67: 406 | AE67: =INT(SQRT((pigi_xc-AE47)^2+(pigi_yc-AF47)^2)) -> 408 | AF67: 408 | AG67: =INT(SQRT((pigi_xc-AG47)^2+(pigi_yc-AH47)^2)) -> 410 | AH67: 410 | AI67: =INT(SQRT((pigi_xc-AI47)^2+(pigi_yc-AJ47)^2)) -> 411 | AJ67: 411 | AK67: =INT(SQRT((pigi_xc-AK47)^2+(pigi_yc-AL47)^2)) -> 412 | AL67: 412 | AM67: =INT(SQRT((pigi_xc-AM47)^2+(pigi_yc-AN47)^2)) -> 414 | AN67: 414 | AO67: =INT(SQRT((pigi_xc-AO47)^2+(pigi_yc-AP47)^2)) -> 415 | AP67: 415 | AQ67: =INT(SQRT((pigi_xc-AQ47)^2+(pigi_yc-AR47)^2)) -> 426 | AR67: 426
J68: YPOLOIP | K68: =SQRT((K46-K47)^2+(L47-L46)^2)-K67 -> 0.9161438132 | L68: =K68 -> 0.9161438132 | M68: =SQRT((M46-M47)^2+(N47-N46)^2)-M67 -> 0.002595848031 | N68: =M68 -> 0.002595848031 | O68: =SQRT((O46-O47)^2+(P47-P46)^2)-O67 -> 0.04942843379 | P68: =O68 -> 0.04942843379 | Q68: =SQRT((Q46-Q47)^2+(R47-R46)^2)-Q67 -> 0.05305006653 | R68: =Q68 -> 0.05305006653 | S68: =SQRT((S46-S47)^2+(T47-T46)^2)-S67 -> 0.009910637788 | T68: =S68 -> 0.009910637788 | U68: =SQRT((U46-U47)^2+(V47-V46)^2)-U67 -> 0.9165107331 | V68: =U68 -> 0.9165107331 | W68: =SQRT((W46-W47)^2+(X47-X46)^2)-W67 -> 0.7694109105 | X68: =W68 -> 0.7694109105 | Y68: =SQRT((Y46-Y47)^2+(Z47-Z46)^2)-Y67 -> 0.5652409196 | Z68: =Y68 -> 0.5652409196 | AA68: =SQRT((AA46-AA47)^2+(AB47-AB46)^2)-AA67 -> 0.3007088219 | AB68: =AA68 -> 0.3007088219 | AC68: =SQRT((AC46-AC47)^2+(AD47-AD46)^2)-AC67 -> 0.972609975 | AD68: =AC68 -> 0.972609975 | AE68: =SQRT((AE46-AE47)^2+(AF47-AF46)^2)-AE67 -> 0.5778358434 | AF68: =AE68 -> 0.5778358434 | AG68: =SQRT((AG46-AG47)^2+(AH47-AH46)^2)-AG67 -> 0.1133826008 | AH68: =AG68 -> 0.1133826008 | AI68: =SQRT((AI46-AI47)^2+(AJ47-AJ46)^2)-AI67 -> 0.5763594887 | AJ68: =AI68 -> 0.5763594887 | AK68: =SQRT((AK46-AK47)^2+(AL47-AL46)^2)-AK67 -> 0.9639969004 | AL68: =AK68 -> 0.9639969004 | AM68: =SQRT((AM46-AM47)^2+(AN47-AN46)^2)-AM67 -> 0.2736541578 | AN68: =AM68 -> 0.2736541578 | AO68: =SQRT((AO46-AO47)^2+(AP47-AP46)^2)-AO67 -> 0.5028269533 | AP68: =AO68 -> 0.5028269533 | AQ68: =SQRT((AQ46-AQ47)^2+(AR47-AR46)^2)-AQ67 -> -426 | AR68: =AQ68 -> -426
I69: YPOLOIP STO 2 | J69: STO 2 | K69: =(1-K68)*K64 -> 0 | L69: =(1-L68)*L64 -> 0 | M69: =(1-M68)*M64 -> -0.5901807591 | N69: 0.1127050874 | O69: -0.5662073503 | P69: 0.08554724787 | Q69: -0.5669324262 | R69: 0.06326802357 | S69: -0.5948834506 | T69: 0.04305354888 | U69: -0.05026687963 | V69: 0.001673796059 | W69: -0.1389067985 | X69: -0.0007978882636 | Y69: -0.2616398097 | Z69: -0.01173980574 | AA69: -0.4197744278 | AB69: -0.03534406946 | AC69: -0.01637491185 | AD69: -0.00202799384 | AE69: -0.2509654207 | AF69: -0.04114440273 | AG69: -0.5232648984 | AH69: -0.1070700305 | AI69: -0.2478162468 | AJ69: -0.06096527549 | AK69: -0.02084002237 | AL69: -0.00600744995 | AM69: -0.4153260927 | AN69: -0.1376989808 | AO69: 0 | AP69: 0 | AQ69: 0 | AR69: 0
J70: ENARXI 2 | K70: =K47+K69 -> 39.71026659 | L70: =L47+L69 -> 112 | M70: =M47+M69 -> 34.85576692 | N70: 97.9951065 | O70: 31.1760562 | P70: 83.61980153 | Q70: 28.04720705 | R70: 69.04238383 | S70: 25.48054466 | T70: =T47+T69 -> 54.28465835 | U70: 24.08856 | V70: 39.34902104 | W70: 22.67689171 | X70: 24.32211703 | Y70: 21.85485541 | Z70: 9.184017743 | AA70: 21.62991285 | AB70: -6.04121558 | AC70: 22.60632146 | AD70: -21.25502351 | AE70: 23.590369 | AF70: -36.5571447 | AG70: 25.18658328 | AH70: -51.87179554 | AI70: 27.98305408 | AJ70: -67.02952587 | AK70: 31.38453719 | AL70: -82.10255265 | AM70: 34.8173278 | AN70: -97.25517217 | AO70: 39.71026659 | AP70: -112 | AQ70: 0 | AR70: 0 | AS70: ENARXI 2
H71: =nccf -> 1.66 | J71: inside lens | K71: =INT(SQRT((K48-K47)^2+(L48-L47)^2)*nccf) -> 0 | L71: =INT(SQRT((L48-L47)^2+(K48-K47)^2)*nccf) -> 0 | M71: =INT(SQRT((M48-M47)^2+(N48-N47)^2)*nccf) -> 31 | N71: =INT(SQRT((N48-N47)^2+(M48-M47)^2)*nccf) -> 31 | O71: =INT(SQRT((O48-O70)^2+(P48-P70)^2)*nccf) -> 43 | P71: =INT(SQRT((P48-P70)^2+(O48-O70)^2)*nccf) -> 43 | Q71: =INT(SQRT((Q48-Q70)^2+(R48-R70)^2)*nccf) -> 53 | R71: =INT(SQRT((R48-R47)^2+(Q48-Q47)^2)*nccf) -> 53 | S71: =INT(SQRT((S48-S70)^2+(T48-T70)^2)*nccf) -> 60 | T71: =INT(SQRT((T48-T47)^2+(S48-S47)^2)*nccf) -> 61 | U71: =INT(SQRT((U48-U70)^2+(V48-V70)^2)*nccf) -> 67 | V71: =INT(SQRT((V48-V47)^2+(U48-U47)^2)*nccf) -> 67 | W71: =INT(SQRT((W48-W70)^2+(X48-X70)^2)*nccf) -> 71 | X71: =INT(SQRT((X48-X47)^2+(W48-W47)^2)*nccf) -> 71 | Y71: =INT(SQRT((Y48-Y70)^2+(Z48-Z70)^2)*nccf) -> 72 | Z71: =INT(SQRT((Z48-Z47)^2+(Y48-Y47)^2)*nccf) -> 73 | AA71: =INT(SQRT((AA48-AA70)^2+(AB48-AB70)^2)*nccf) -> 72 | AB71: =INT(SQRT((AB48-AB47)^2+(AA48-AA47)^2)*nccf) -> 72 | AC71: =INT(SQRT((AC48-AC70)^2+(AD48-AD70)^2)*nccf) -> 70 | AD71: =INT(SQRT((AD48-AD47)^2+(AC48-AC47)^2)*nccf) -> 70 | AE71: =INT(SQRT((AE48-AE70)^2+(AF48-AF70)^2)*nccf) -> 66 | AF71: =INT(SQRT((AF48-AF47)^2+(AE48-AE47)^2)*nccf) -> 66 | AG71: =INT(SQRT((AG48-AG70)^2+(AH48-AH70)^2)*nccf) -> 59 | AH71: =INT(SQRT((AH48-AH47)^2+(AG48-AG47)^2)*nccf) -> 60 | AI71: =INT(SQRT((AI48-AI70)^2+(AJ48-AJ70)^2)*nccf) -> 52 | AJ71: =INT(SQRT((AJ48-AJ47)^2+(AI48-AI47)^2)*nccf) -> 52 | AK71: =INT(SQRT((AK48-AK70)^2+(AL48-AL70)^2)*nccf) -> 42 | AL71: =INT(SQRT((AL48-AL47)^2+(AK48-AK47)^2)*nccf) -> 42 | AM71: =INT(SQRT((AM48-AM70)^2+(AN48-AN70)^2)*nccf) -> 29 | AN71: =INT(SQRT((AN48-AN47)^2+(AM48-AM47)^2)*nccf) -> 30 | AO71: =INT(SQRT((AO48-AO70)^2+(AP48-AP70)^2)*nccf) -> 0 | AP71: =INT(SQRT((AP48-AP47)^2+(AO48-AO47)^2)*nccf) -> 0 | AQ71: =INT(SQRT((AQ48-AQ70)^2+(AR48-AR70)^2)*nccf) -> 0 | AR71: =INT(SQRT((AR48-AR47)^2+(AQ48-AQ47)^2)*nccf) -> 0 | AS71: inside lens | AT71: BEFOFRE LENS
J72: DT TO LEFT | K72: =IF(K64<>0,(K48-(K70+K71*K64))/K64,0) -> 0 | L72: =IF(L64<>0,(L48-(L70+L71*L64))/L64,0) -> 0 | M72: =IF(M64<>0,(M48-(M70+M71*M64))/M64,0) -> -0.001467538582 | N72: -0.001467538583 | O72: 0.1220179003 | P72: 0.1220179003 | Q72: 0.005795419276 | R72: 0.005795419276 | S72: 0.7420585829 | T72: -0.2579414171 | U72: 0.3932375407 | V72: 0.3932375407 | W72: 0.0004570848584 | X72: 0.0004570848583 | Y72: 0.5887705095 | Z72: -0.4112294905 | AA72: 0.1703534794 | AB72: 0.1703534794 | AC72: 0.746285886 | AD72: 0.746285886 | AE72: 0.3072370398 | AF72: 0.3072370398 | AG72: 0.8331653441 | AH72: -0.1668346559 | AI72: 0.2919752048 | AJ72: 0.2919752048 | AK72: 0.6368877235 | AL72: 0.6368877235 | AM72: 0.802014858 | AN72: -0.197985142 | AO72: 0 | AP72: 0 | AQ72: 0 | AR72: 0 | AS72: DT TO LEFT
J73: ENARXI 3 | K73: =K64*(K71+K72)+(1-K72)*K65+K70 ->  | O73: 4.633107374 | P73: 87.31135758 | Q73: -4.665984616 | R73: 72.41053892 | S73: -11.26954138 | T73: 56.70529754 | U73: -17.08805545 | V73: 40.61504382 | W73: -21.08616698 | X73: 23.95719587 | Y73: -22.23826173 | Z73: 7.073754118 | AA73: -22.5186074 | AB73: -9.769768053 | AC73: -19.94148949 | AD73: -26.5158541 | AE73: -16.51811594 | AF73: -43.07435704 | AG73: -10.29232381 | AH73: -59.17134133 | AI73: -3.313632465 | AJ73: -74.58091675 | AK73: 6.341516893 | AL73: -89.21371391 | AM73: 17.57934538 | AN73: -102.7935598 | AO73: 39.71026659 | AP73: -112 | AQ73: 0 | AR73: 0 | AS73: ENARXI 3
J74: c1 | M74: =SQRT(M63^2+N63^2) -> 1 | N74: =O70+O71*O64+O72*O64+(1-O72)*O65 -> 4.633107374 | O74: =SQRT(O63^2+P63^2) -> 1 | Q74: =SQRT(Q63^2+R63^2) -> 1 | S74: =SQRT(S63^2+T63^2) -> 1 | U74: =SQRT(U63^2+V63^2) -> 1 | W74: =SQRT(W63^2+X63^2) -> 1 | Y74: =SQRT(Y63^2+Z63^2) -> 1 | AA74: =SQRT(AA63^2+AB63^2) -> 1 | AC74: =SQRT(AC63^2+AD63^2) -> 1 | AE74: =SQRT(AE63^2+AF63^2) -> 1 | AG74: =SQRT(AG63^2+AH63^2) -> 1 | AI74: =SQRT(AI63^2+AJ63^2) -> 1 | AK74: =SQRT(AK63^2+AL63^2) -> 1 | AM74: =SQRT(AM63^2+AN63^2) -> 1
J75: c2 | M75: =SQRT(M64^2+N64^2) -> 0.6024096386 | O75: =SQRT(O64^2+P64^2) -> 0.6024096386 | Q75: =SQRT(Q64^2+R64^2) -> 0.6024096386 | S75: =SQRT(S64^2+T64^2) -> 0.6024096386 | U75: =SQRT(U64^2+V64^2) -> 0.6024096386 | W75: =SQRT(W64^2+X64^2) -> 0.6024096386 | Y75: =SQRT(Y64^2+Z64^2) -> 0.6024096386 | AA75: =SQRT(AA64^2+AB64^2) -> 0.6024096386 | AC75: =SQRT(AC64^2+AD64^2) -> 0.6024096386 | AE75: =SQRT(AE64^2+AF64^2) -> 0.6024096386 | AG75: =SQRT(AG64^2+AH64^2) -> 0.6024096386 | AI75: =SQRT(AI64^2+AJ64^2) -> 0.6024096386 | AK75: =SQRT(AK64^2+AL64^2) -> 0.6024096386 | AM75: =SQRT(AM64^2+AN64^2) -> 0.6024096386 | AT75: inside lens
J76: after lens | K76: 100 | L76: =K76 -> 100 | M76: 100 | N76: =M76 -> 100 | O76: 100 | P76: =O76 -> 100 | Q76: 100 | R76: =Q76 -> 100 | S76: 100 | T76: =S76 -> 100 | U76: 100 | V76: =U76 -> 100 | W76: 100 | X76: =W76 -> 100 | Y76: 100 | Z76: =Y76 -> 100 | AA76: 100 | AB76: =AA76 -> 100 | AC76: 100 | AD76: =AC76 -> 100 | AE76: 100 | AF76: =AE76 -> 100 | AG76: 100 | AH76: =AG76 -> 100 | AI76: 100 | AJ76: =AI76 -> 100 | AK76: 100 | AL76: =AK76 -> 100 | AM76: 100 | AN76: =AM76 -> 100 | AO76: 100 | AP76: =AO76 -> 100 | AQ76: 100 | AR76: =AQ76 -> 100 | AT76: after lens
J77: total | K77: =K76+K71 -> 100 | L77: 100 | M77: 131 | N77: 131 | O77: 143 | P77: 143 | Q77: 153 | R77: 153 | S77: 160 | T77: 161 | U77: 167 | V77: 167 | W77: 171 | X77: 171 | Y77: 172 | Z77: 173 | AA77: 172 | AB77: 172 | AC77: 170 | AD77: 170 | AE77: 166 | AF77: 166 | AG77: 159 | AH77: 160 | AI77: 152 | AJ77: 152 | AK77: 142 | AL77: 142 | AM77: 129 | AN77: 130 | AO77: 100 | AP77: 100 | AQ77: 100 | AR77: 100 | AT77: total
I78: =J78 -> 526 | J78: 526 | M78: =IF($I78>0,IF($I78<=M$67,M$46+M$63*$I78,IF(AND($I78>M$67,$I78<=M$67+M$71+2),IF($I78=M$67+1,M$70,M$70+($I78-M$67)*M$64),IF($I78=M$67+M$71+2,M$73,M$73+M$65*($I78-M$67-M$71)))),pigi_xc) ->  | N78: =IF($I78>0,IF($I78<=N$67,N$46+N$63*$I78,IF(AND($I78>N$67,$I78<=N$67+N$71+2),IF($I78=N$67+1,N$70,N$70+($I78-N$67)*N$64),IF($I78=N$67+N$71+2,N$73,N$73+N$65*($I78-N$67-N$71)))),pigi_yc) ->  | O78: =IF($I78>0,IF($I78<=O$67,O$46+O$63*$I78,IF(AND($I78>O$67,$I78<=O$67+O$71+2),IF($I78=O$67+1,O$70,O$70+($I78-O$67)*O$64),IF($I78=O$67+O$71+2,O$73,O$73+O$65*($I78-O$67-O$71)))),pigi_xc) -> -82.2750586 | P78: =IF($I78>0,IF($I78<=P$67,P$46+P$63*$I78,IF(AND($I78>P$67,$I78<=P$67+P$71+2),IF($I78=P$67+1,P$70,P$70+($I78-P$67)*P$64),IF($I78=P$67+P$71+2,P$73,P$73+P$65*($I78-P$67-P$71)))),pigi_yc) -> 68.12879551 | Q78: =IF($I78>0,IF($I78<=Q$67,Q$46+Q$63*$I78,IF(AND($I78>Q$67,$I78<=Q$67+Q$71+2),IF($I78=Q$67+1,Q$70,Q$70+($I78-Q$67)*Q$64),IF($I78=Q$67+Q$71+2,Q$73,Q$73+Q$65*($I78-Q$67-Q$71)))),pigi_xc) -> -80.48730215 | R78: =IF($I78>0,IF($I78<=R$67,R$46+R$63*$I78,IF(AND($I78>R$67,$I78<=R$67+R$71+2),IF($I78=R$67+1,R$70,R$70+($I78-R$67)*R$64),IF($I78=R$67+R$71+2,R$73,R$73+R$65*($I78-R$67-R$71)))),pigi_yc) -> 58.98936877 | S78: =IF($I78>0,IF($I78<=S$67,S$46+S$63*$I78,IF(AND($I78>S$67,$I78<=S$67+S$71+2),IF($I78=S$67+1,S$70,S$70+($I78-S$67)*S$64),IF($I78=S$67+S$71+2,S$73,S$73+S$65*($I78-S$67-S$71)))),pigi_xc) -> -78.21481105 | T78: =IF($I78>0,IF($I78<=T$67,T$46+T$63*$I78,IF(AND($I78>T$67,$I78<=T$67+T$71+2),IF($I78=T$67+1,T$70,T$70+($I78-T$67)*T$64),IF($I78=T$67+T$71+2,T$73,T$73+T$65*($I78-T$67-T$71)))),pigi_yc) -> 44.95049222 | U78: =IF($I78>0,IF($I78<=U$67,U$46+U$63*$I78,IF(AND($I78>U$67,$I78<=U$67+U$71+2),IF($I78=U$67+1,U$70,U$70+($I78-U$67)*U$64),IF($I78=U$67+U$71+2,U$73,U$73+U$65*($I78-U$67-U$71)))),pigi_xc) -> -76.49528857 | V78: =IF($I78>0,IF($I78<=V$67,V$46+V$63*$I78,IF(AND($I78>V$67,$I78<=V$67+V$71+2),IF($I78=V$67+1,V$70,V$70+($I78-V$67)*V$64),IF($I78=V$67+V$71+2,V$73,V$73+V$65*($I78-V$67-V$71)))),pigi_yc) -> 32.20191992 | W78: =IF($I78>0,IF($I78<=W$67,W$46+W$63*$I78,IF(AND($I78>W$67,$I78<=W$67+W$71+2),IF($I78=W$67+1,W$70,W$70+($I78-W$67)*W$64),IF($I78=W$67+W$71+2,W$73,W$73+W$65*($I78-W$67-W$71)))),pigi_xc) -> -74.70052098 | X78: =IF($I78>0,IF($I78<=X$67,X$46+X$63*$I78,IF(AND($I78>X$67,$I78<=X$67+X$71+2),IF($I78=X$67+1,X$70,X$70+($I78-X$67)*X$64),IF($I78=X$67+X$71+2,X$73,X$73+X$65*($I78-X$67-X$71)))),pigi_yc) -> 17.51506541 | Y78: =IF($I78>0,IF($I78<=Y$67,Y$46+Y$63*$I78,IF(AND($I78>Y$67,$I78<=Y$67+Y$71+2),IF($I78=Y$67+1,Y$70,Y$70+($I78-Y$67)*Y$64),IF($I78=Y$67+Y$71+2,Y$73,Y$73+Y$65*($I78-Y$67-Y$71)))),pigi_xc) -> -72.9487819 | Z78: =IF($I78>0,IF($I78<=Z$67,Z$46+Z$63*$I78,IF(AND($I78>Z$67,$I78<=Z$67+Z$71+2),IF($I78=Z$67+1,Z$70,Z$70+($I78-Z$67)*Z$64),IF($I78=Z$67+Z$71+2,Z$73,Z$73+Z$65*($I78-Z$67-Z$71)))),pigi_yc) -> 1.753995516 | AA78: =IF($I78>0,IF($I78<=AA$67,AA$46+AA$63*$I78,IF(AND($I78>AA$67,$I78<=AA$67+AA$71+2),IF($I78=AA$67+1,AA$70,AA$70+($I78-AA$67)*AA$64),IF($I78=AA$67+AA$71+2,AA$73,AA$73+AA$65*($I78-AA$67-AA$71)))),pigi_xc) -> -71.28528191 | AB78: =IF($I78>0,IF($I78<=AB$67,AB$46+AB$63*$I78,IF(AND($I78>AB$67,$I78<=AB$67+AB$71+2),IF($I78=AB$67+1,AB$70,AB$70+($I78-AB$67)*AB$64),IF($I78=AB$67+AB$71+2,AB$73,AB$73+AB$65*($I78-AB$67-AB$71)))),pigi_yc) -> -14.54590213 | AC78: =IF($I78>0,IF($I78<=AC$67,AC$46+AC$63*$I78,IF(AND($I78>AC$67,$I78<=AC$67+AC$71+2),IF($I78=AC$67+1,AC$70,AC$70+($I78-AC$67)*AC$64),IF($I78=AC$67+AC$71+2,AC$73,AC$73+AC$65*($I78-AC$67-AC$71)))),pigi_xc) -> -69.74128751 | AD78: =IF($I78>0,IF($I78<=AD$67,AD$46+AD$63*$I78,IF(AND($I78>AD$67,$I78<=AD$67+AD$71+2),IF($I78=AD$67+1,AD$70,AD$70+($I78-AD$67)*AD$64),IF($I78=AD$67+AD$71+2,AD$73,AD$73+AD$65*($I78-AD$67-AD$71)))),pigi_yc) -> -30.98576651 | AE78: =IF($I78>0,IF($I78<=AE$67,AE$46+AE$63*$I78,IF(AND($I78>AE$67,$I78<=AE$67+AE$71+2),IF($I78=AE$67+1,AE$70,AE$70+($I78-AE$67)*AE$64),IF($I78=AE$67+AE$71+2,AE$73,AE$73+AE$65*($I78-AE$67-AE$71)))),pigi_xc) -> -68.3547852 | AF78: =IF($I78>0,IF($I78<=AF$67,AF$46+AF$63*$I78,IF(AND($I78>AF$67,$I78<=AF$67+AF$71+2),IF($I78=AF$67+1,AF$70,AF$70+($I78-AF$67)*AF$64),IF($I78=AF$67+AF$71+2,AF$73,AF$73+AF$65*($I78-AF$67-AF$71)))),pigi_yc) -> -47.19257521 | AG78: =IF($I78>0,IF($I78<=AG$67,AG$46+AG$63*$I78,IF(AND($I78>AG$67,$I78<=AG$67+AG$71+2),IF($I78=AG$67+1,AG$70,AG$70+($I78-AG$67)*AG$64),IF($I78=AG$67+AG$71+2,AG$73,AG$73+AG$65*($I78-AG$67-AG$71)))),pigi_xc) -> -67.17773537 | AH78: =IF($I78>0,IF($I78<=AH$67,AH$46+AH$63*$I78,IF(AND($I78>AH$67,$I78<=AH$67+AH$71+2),IF($I78=AH$67+1,AH$70,AH$70+($I78-AH$67)*AH$64),IF($I78=AH$67+AH$71+2,AH$73,AH$73+AH$65*($I78-AH$67-AH$71)))),pigi_yc) -> -62.72043632 | AI78: =IF($I78>0,IF($I78<=AI$67,AI$46+AI$63*$I78,IF(AND($I78>AI$67,$I78<=AI$67+AI$71+2),IF($I78=AI$67+1,AI$70,AI$70+($I78-AI$67)*AI$64),IF($I78=AI$67+AI$71+2,AI$73,AI$73+AI$65*($I78-AI$67-AI$71)))),pigi_xc) -> -66.27063142 | AJ78: =IF($I78>0,IF($I78<=AJ$67,AJ$46+AJ$63*$I78,IF(AND($I78>AJ$67,$I78<=AJ$67+AJ$71+2),IF($I78=AJ$67+1,AJ$70,AJ$70+($I78-AJ$67)*AJ$64),IF($I78=AJ$67+AJ$71+2,AJ$73,AJ$73+AJ$65*($I78-AJ$67-AJ$71)))),pigi_yc) -> -76.90820766 | AK78: =IF($I78>0,IF($I78<=AK$67,AK$46+AK$63*$I78,IF(AND($I78>AK$67,$I78<=AK$67+AK$71+2),IF($I78=AK$67+1,AK$70,AK$70+($I78-AK$67)*AK$64),IF($I78=AK$67+AK$71+2,AK$73,AK$73+AK$65*($I78-AK$67-AK$71)))),pigi_xc) -> -65.65569144 | AL78: =IF($I78>0,IF($I78<=AL$67,AL$46+AL$63*$I78,IF(AND($I78>AL$67,$I78<=AL$67+AL$71+2),IF($I78=AL$67+1,AL$70,AL$70+($I78-AL$67)*AL$64),IF($I78=AL$67+AL$71+2,AL$73,AL$73+AL$65*($I78-AL$67-AL$71)))),pigi_yc) -> -88.57968573 | AM78: =IF($I78>0,IF($I78<=AM$67,AM$46+AM$63*$I78,IF(AND($I78>AM$67,$I78<=AM$67+AM$71+2),IF($I78=AM$67+1,AM$70,AM$70+($I78-AM$67)*AM$64),IF($I78=AM$67+AM$71+2,AM$73,AM$73+AM$65*($I78-AM$67-AM$71)))),pigi_xc) -> -65.06095792 | AN78: =IF($I78>0,IF($I78<=AN$67,AN$46+AN$63*$I78,IF(AND($I78>AN$67,$I78<=AN$67+AN$71+2),IF($I78=AN$67+1,AN$70,AN$70+($I78-AN$67)*AN$64),IF($I78=AN$67+AN$71+2,AN$73,AN$73+AN$65*($I78-AN$67-AN$71)))),pigi_yc) -> -95.16773199 | AO78: =IF($I78>0,IF($I78<=AO$67,AO$46+AO$63*$I78,IF(AND($I78>AO$67,$I78<=AO$67+AO$71+2),IF($I78=AO$67+1,AO$70,AO$70+($I78-AO$67)*AO$64),IF($I78=AO$67+AO$71+2,AO$73,AO$73+AO$65*($I78-AO$67-AO$71)))),pigi_xc) -> 39.71026659 | AP78: =IF($I78>0,IF($I78<=AP$67,AP$46+AP$63*$I78,IF(AND($I78>AP$67,$I78<=AP$67+AP$71+2),IF($I78=AP$67+1,AP$70,AP$70+($I78-AP$67)*AP$64),IF($I78=AP$67+AP$71+2,AP$73,AP$73+AP$65*($I78-AP$67-AP$71)))),pigi_yc) -> -112 | AQ78: =IF($I78<=AQ$67,AQ$46+AQ$63*$I78,IF(AND($I78>AQ$67,$I78<=AQ$67+AQ$71+2),IF($I78=AQ$67+1,AQ$70,AQ$70+($I78-AQ$67)*AQ$64),IF($I78=AQ$67+AQ$71+2,AQ$73,AQ$73+AQ$65*($I78-AQ$67-AQ$71)))) -> 0 | AR78: 0
I79: =J79 -> 506 | J79: =J78-20 -> 506 | M79: =IF($I79>0,IF($I79<=M$67,M$46+M$63*$I79,IF(AND($I79>M$67,$I79<=M$67+M$71+2),IF($I79=M$67+1,M$70,M$70+($I79-M$67)*M$64),IF($I79=M$67+M$71+2,M$73,M$73+M$65*($I79-M$67-M$71)))),pigi_xc) ->  | N79: =IF($I79>0,IF($I79<=N$67,N$46+N$63*$I79,IF(AND($I79>N$67,$I79<=N$67+N$71+2),IF($I79=N$67+1,N$70,N$70+($I79-N$67)*N$64),IF($I79=N$67+N$71+2,N$73,N$73+N$65*($I79-N$67-N$71)))),pigi_yc) ->  | O79: =IF($I79>0,IF($I79<=O$67,O$46+O$63*$I79,IF(AND($I79>O$67,$I79<=O$67+O$71+2),IF($I79=O$67+1,O$70,O$70+($I79-O$67)*O$64),IF($I79=O$67+O$71+2,O$73,O$73+O$65*($I79-O$67-O$71)))),pigi_xc) -> -62.74513366 | P79: =IF($I79>0,IF($I79<=P$67,P$46+P$63*$I79,IF(AND($I79>P$67,$I79<=P$67+P$71+2),IF($I79=P$67+1,P$70,P$70+($I79-P$67)*P$64),IF($I79=P$67+P$71+2,P$73,P$73+P$65*($I79-P$67-P$71)))),pigi_yc) -> 72.43948361 | Q79: =IF($I79>0,IF($I79<=Q$67,Q$46+Q$63*$I79,IF(AND($I79>Q$67,$I79<=Q$67+Q$71+2),IF($I79=Q$67+1,Q$70,Q$70+($I79-Q$67)*Q$64),IF($I79=Q$67+Q$71+2,Q$73,Q$73+Q$65*($I79-Q$67-Q$71)))),pigi_xc) -> -60.79345344 | R79: =IF($I79>0,IF($I79<=R$67,R$46+R$63*$I79,IF(AND($I79>R$67,$I79<=R$67+R$71+2),IF($I79=R$67+1,R$70,R$70+($I79-R$67)*R$64),IF($I79=R$67+R$71+2,R$73,R$73+R$65*($I79-R$67-R$71)))),pigi_yc) -> 62.47538699 | S79: =IF($I79>0,IF($I79<=S$67,S$46+S$63*$I79,IF(AND($I79>S$67,$I79<=S$67+S$71+2),IF($I79=S$67+1,S$70,S$70+($I79-S$67)*S$64),IF($I79=S$67+S$71+2,S$73,S$73+S$65*($I79-S$67-S$71)))),pigi_xc) -> -58.52502585 | T79: =IF($I79>0,IF($I79<=T$67,T$46+T$63*$I79,IF(AND($I79>T$67,$I79<=T$67+T$71+2),IF($I79=T$67+1,T$70,T$70+($I79-T$67)*T$64),IF($I79=T$67+T$71+2,T$73,T$73+T$65*($I79-T$67-T$71)))),pigi_yc) -> 48.45938933 | U79: =IF($I79>0,IF($I79<=U$67,U$46+U$63*$I79,IF(AND($I79>U$67,$I79<=U$67+U$71+2),IF($I79=U$67+1,U$70,U$70+($I79-U$67)*U$64),IF($I79=U$67+U$71+2,U$73,U$73+U$65*($I79-U$67-U$71)))),pigi_xc) -> -56.69287753 | V79: =IF($I79>0,IF($I79<=V$67,V$46+V$63*$I79,IF(AND($I79>V$67,$I79<=V$67+V$71+2),IF($I79=V$67+1,V$70,V$70+($I79-V$67)*V$64),IF($I79=V$67+V$71+2,V$73,V$73+V$65*($I79-V$67-V$71)))),pigi_yc) -> 35.00629455 | W79: =IF($I79>0,IF($I79<=W$67,W$46+W$63*$I79,IF(AND($I79>W$67,$I79<=W$67+W$71+2),IF($I79=W$67+1,W$70,W$70+($I79-W$67)*W$64),IF($I79=W$67+W$71+2,W$73,W$73+W$65*($I79-W$67-W$71)))),pigi_xc) -> -54.84335283 | X79: =IF($I79>0,IF($I79<=X$67,X$46+X$63*$I79,IF(AND($I79>X$67,$I79<=X$67+X$71+2),IF($I79=X$67+1,X$70,X$70+($I79-X$67)*X$64),IF($I79=X$67+X$71+2,X$73,X$73+X$65*($I79-X$67-X$71)))),pigi_yc) -> 19.90103965 | Y79: =IF($I79>0,IF($I79<=Y$67,Y$46+Y$63*$I79,IF(AND($I79>Y$67,$I79<=Y$67+Y$71+2),IF($I79=Y$67+1,Y$70,Y$70+($I79-Y$67)*Y$64),IF($I79=Y$67+Y$71+2,Y$73,Y$73+Y$65*($I79-Y$67-Y$71)))),pigi_xc) -> -53.0623034 | Z79: =IF($I79>0,IF($I79<=Z$67,Z$46+Z$63*$I79,IF(AND($I79>Z$67,$I79<=Z$67+Z$71+2),IF($I79=Z$67+1,Z$70,Z$70+($I79-Z$67)*Z$64),IF($I79=Z$67+Z$71+2,Z$73,Z$73+Z$65*($I79-Z$67-Z$71)))),pigi_yc) -> 3.881898957 | AA79: =IF($I79>0,IF($I79<=AA$67,AA$46+AA$63*$I79,IF(AND($I79>AA$67,$I79<=AA$67+AA$71+2),IF($I79=AA$67+1,AA$70,AA$70+($I79-AA$67)*AA$64),IF($I79=AA$67+AA$71+2,AA$73,AA$73+AA$65*($I79-AA$67-AA$71)))),pigi_xc) -> -51.3805168 | AB79: =IF($I79>0,IF($I79<=AB$67,AB$46+AB$63*$I79,IF(AND($I79>AB$67,$I79<=AB$67+AB$71+2),IF($I79=AB$67+1,AB$70,AB$70+($I79-AB$67)*AB$64),IF($I79=AB$67+AB$71+2,AB$73,AB$73+AB$65*($I79-AB$67-AB$71)))),pigi_yc) -> -12.59645965 | AC79: =IF($I79>0,IF($I79<=AC$67,AC$46+AC$63*$I79,IF(AND($I79>AC$67,$I79<=AC$67+AC$71+2),IF($I79=AC$67+1,AC$70,AC$70+($I79-AC$67)*AC$64),IF($I79=AC$67+AC$71+2,AC$73,AC$73+AC$65*($I79-AC$67-AC$71)))),pigi_xc) -> -49.8213683 | AD79: =IF($I79>0,IF($I79<=AD$67,AD$46+AD$63*$I79,IF(AND($I79>AD$67,$I79<=AD$67+AD$71+2),IF($I79=AD$67+1,AD$70,AD$70+($I79-AD$67)*AD$64),IF($I79=AD$67+AD$71+2,AD$73,AD$73+AD$65*($I79-AD$67-AD$71)))),pigi_yc) -> -29.19780154 | AE79: =IF($I79>0,IF($I79<=AE$67,AE$46+AE$63*$I79,IF(AND($I79>AE$67,$I79<=AE$67+AE$71+2),IF($I79=AE$67+1,AE$70,AE$70+($I79-AE$67)*AE$64),IF($I79=AE$67+AE$71+2,AE$73,AE$73+AE$65*($I79-AE$67-AE$71)))),pigi_xc) -> -48.41760471 | AF79: =IF($I79>0,IF($I79<=AF$67,AF$46+AF$63*$I79,IF(AND($I79>AF$67,$I79<=AF$67+AF$71+2),IF($I79=AF$67+1,AF$70,AF$70+($I79-AF$67)*AF$64),IF($I79=AF$67+AF$71+2,AF$73,AF$73+AF$65*($I79-AF$67-AF$71)))),pigi_yc) -> -45.60864514 | AG79: =IF($I79>0,IF($I79<=AG$67,AG$46+AG$63*$I79,IF(AND($I79>AG$67,$I79<=AG$67+AG$71+2),IF($I79=AG$67+1,AG$70,AG$70+($I79-AG$67)*AG$64),IF($I79=AG$67+AG$71+2,AG$73,AG$73+AG$65*($I79-AG$67-AG$71)))),pigi_xc) -> -47.21794184 | AH79: =IF($I79>0,IF($I79<=AH$67,AH$46+AH$63*$I79,IF(AND($I79>AH$67,$I79<=AH$67+AH$71+2),IF($I79=AH$67+1,AH$70,AH$70+($I79-AH$67)*AH$64),IF($I79=AH$67+AH$71+2,AH$73,AH$73+AH$65*($I79-AH$67-AH$71)))),pigi_yc) -> -61.45290239 | AI79: =IF($I79>0,IF($I79<=AI$67,AI$46+AI$63*$I79,IF(AND($I79>AI$67,$I79<=AI$67+AI$71+2),IF($I79=AI$67+1,AI$70,AI$70+($I79-AI$67)*AI$64),IF($I79=AI$67+AI$71+2,AI$73,AI$73+AI$65*($I79-AI$67-AI$71)))),pigi_xc) -> -46.28428254 | AJ79: =IF($I79>0,IF($I79<=AJ$67,AJ$46+AJ$63*$I79,IF(AND($I79>AJ$67,$I79<=AJ$67+AJ$71+2),IF($I79=AJ$67+1,AJ$70,AJ$70+($I79-AJ$67)*AJ$64),IF($I79=AJ$67+AJ$71+2,AJ$73,AJ$73+AJ$65*($I79-AJ$67-AJ$71)))),pigi_yc) -> -76.16938515 | AK79: =IF($I79>0,IF($I79<=AK$67,AK$46+AK$63*$I79,IF(AND($I79>AK$67,$I79<=AK$67+AK$71+2),IF($I79=AK$67+1,AK$70,AK$70+($I79-AK$67)*AK$64),IF($I79=AK$67+AK$71+2,AK$73,AK$73+AK$65*($I79-AK$67-AK$71)))),pigi_xc) -> -45.65646691 | AL79: =IF($I79>0,IF($I79<=AL$67,AL$46+AL$63*$I79,IF(AND($I79>AL$67,$I79<=AL$67+AL$71+2),IF($I79=AL$67+1,AL$70,AL$70+($I79-AL$67)*AL$64),IF($I79=AL$67+AL$71+2,AL$73,AL$73+AL$65*($I79-AL$67-AL$71)))),pigi_yc) -> -88.75580467 | AM79: =IF($I79>0,IF($I79<=AM$67,AM$46+AM$63*$I79,IF(AND($I79>AM$67,$I79<=AM$67+AM$71+2),IF($I79=AM$67+1,AM$70,AM$70+($I79-AM$67)*AM$64),IF($I79=AM$67+AM$71+2,AM$73,AM$73+AM$65*($I79-AM$67-AM$71)))),pigi_xc) -> -45.14763183 | AN79: =IF($I79>0,IF($I79<=AN$67,AN$46+AN$63*$I79,IF(AND($I79>AN$67,$I79<=AN$67+AN$71+2),IF($I79=AN$67+1,AN$70,AN$70+($I79-AN$67)*AN$64),IF($I79=AN$67+AN$71+2,AN$73,AN$73+AN$65*($I79-AN$67-AN$71)))),pigi_yc) -> -97.02768998 | AO79: =IF($I79>0,IF($I79<=AO$67,AO$46+AO$63*$I79,IF(AND($I79>AO$67,$I79<=AO$67+AO$71+2),IF($I79=AO$67+1,AO$70,AO$70+($I79-AO$67)*AO$64),IF($I79=AO$67+AO$71+2,AO$73,AO$73+AO$65*($I79-AO$67-AO$71)))),pigi_xc) -> 39.71026659 | AP79: =IF($I79>0,IF($I79<=AP$67,AP$46+AP$63*$I79,IF(AND($I79>AP$67,$I79<=AP$67+AP$71+2),IF($I79=AP$67+1,AP$70,AP$70+($I79-AP$67)*AP$64),IF($I79=AP$67+AP$71+2,AP$73,AP$73+AP$65*($I79-AP$67-AP$71)))),pigi_yc) -> -112 | AQ79: 0 | AR79: 0 | AS79: =IF($I79<=AS$67,AS$46+AS$63*$I79,IF(AND($I79>AS$67,$I79<=AS$67+AS$71+2),IF($I79=AS$67+1,AS$70,AS$70+($I79-AS$67)*AS$64),IF($I79=AS$67+AS$71+2,AS$73,AS$73+AS$65*($I79-AS$67-AS$71)))) -> 
I80: =J80 -> 486 | J80: 486 | M80: =IF($I80>0,IF($I80<=M$67,M$46+M$63*$I80,IF(AND($I80>M$67,$I80<=M$67+M$71+2),IF($I80=M$67+1,M$70,M$70+($I80-M$67)*M$64),IF($I80=M$67+M$71+2,M$73,M$73+M$65*($I80-M$67-M$71)))),pigi_xc) ->  | N80: =IF($I80>0,IF($I80<=N$67,N$46+N$63*$I80,IF(AND($I80>N$67,$I80<=N$67+N$71+2),IF($I80=N$67+1,N$70,N$70+($I80-N$67)*N$64),IF($I80=N$67+N$71+2,N$73,N$73+N$65*($I80-N$67-N$71)))),pigi_yc) ->  | O80: =IF($I80>0,IF($I80<=O$67,O$46+O$63*$I80,IF(AND($I80>O$67,$I80<=O$67+O$71+2),IF($I80=O$67+1,O$70,O$70+($I80-O$67)*O$64),IF($I80=O$67+O$71+2,O$73,O$73+O$65*($I80-O$67-O$71)))),pigi_xc) -> -43.21520872 | P80: =IF($I80>0,IF($I80<=P$67,P$46+P$63*$I80,IF(AND($I80>P$67,$I80<=P$67+P$71+2),IF($I80=P$67+1,P$70,P$70+($I80-P$67)*P$64),IF($I80=P$67+P$71+2,P$73,P$73+P$65*($I80-P$67-P$71)))),pigi_yc) -> 76.75017172 | Q80: =IF($I80>0,IF($I80<=Q$67,Q$46+Q$63*$I80,IF(AND($I80>Q$67,$I80<=Q$67+Q$71+2),IF($I80=Q$67+1,Q$70,Q$70+($I80-Q$67)*Q$64),IF($I80=Q$67+Q$71+2,Q$73,Q$73+Q$65*($I80-Q$67-Q$71)))),pigi_xc) -> -41.09960473 | R80: =IF($I80>0,IF($I80<=R$67,R$46+R$63*$I80,IF(AND($I80>R$67,$I80<=R$67+R$71+2),IF($I80=R$67+1,R$70,R$70+($I80-R$67)*R$64),IF($I80=R$67+R$71+2,R$73,R$73+R$65*($I80-R$67-R$71)))),pigi_yc) -> 65.96140521 | S80: =IF($I80>0,IF($I80<=S$67,S$46+S$63*$I80,IF(AND($I80>S$67,$I80<=S$67+S$71+2),IF($I80=S$67+1,S$70,S$70+($I80-S$67)*S$64),IF($I80=S$67+S$71+2,S$73,S$73+S$65*($I80-S$67-S$71)))),pigi_xc) -> -38.83524066 | T80: =IF($I80>0,IF($I80<=T$67,T$46+T$63*$I80,IF(AND($I80>T$67,$I80<=T$67+T$71+2),IF($I80=T$67+1,T$70,T$70+($I80-T$67)*T$64),IF($I80=T$67+T$71+2,T$73,T$73+T$65*($I80-T$67-T$71)))),pigi_yc) -> 51.96828644 | U80: =IF($I80>0,IF($I80<=U$67,U$46+U$63*$I80,IF(AND($I80>U$67,$I80<=U$67+U$71+2),IF($I80=U$67+1,U$70,U$70+($I80-U$67)*U$64),IF($I80=U$67+U$71+2,U$73,U$73+U$65*($I80-U$67-U$71)))),pigi_xc) -> -36.89046649 | V80: =IF($I80>0,IF($I80<=V$67,V$46+V$63*$I80,IF(AND($I80>V$67,$I80<=V$67+V$71+2),IF($I80=V$67+1,V$70,V$70+($I80-V$67)*V$64),IF($I80=V$67+V$71+2,V$73,V$73+V$65*($I80-V$67-V$71)))),pigi_yc) -> 37.81066918 | W80: =IF($I80>0,IF($I80<=W$67,W$46+W$63*$I80,IF(AND($I80>W$67,$I80<=W$67+W$71+2),IF($I80=W$67+1,W$70,W$70+($I80-W$67)*W$64),IF($I80=W$67+W$71+2,W$73,W$73+W$65*($I80-W$67-W$71)))),pigi_xc) -> -34.98618469 | X80: =IF($I80>0,IF($I80<=X$67,X$46+X$63*$I80,IF(AND($I80>X$67,$I80<=X$67+X$71+2),IF($I80=X$67+1,X$70,X$70+($I80-X$67)*X$64),IF($I80=X$67+X$71+2,X$73,X$73+X$65*($I80-X$67-X$71)))),pigi_yc) -> 22.2870139 | Y80: =IF($I80>0,IF($I80<=Y$67,Y$46+Y$63*$I80,IF(AND($I80>Y$67,$I80<=Y$67+Y$71+2),IF($I80=Y$67+1,Y$70,Y$70+($I80-Y$67)*Y$64),IF($I80=Y$67+Y$71+2,Y$73,Y$73+Y$65*($I80-Y$67-Y$71)))),pigi_xc) -> -33.17582491 | Z80: =IF($I80>0,IF($I80<=Z$67,Z$46+Z$63*$I80,IF(AND($I80>Z$67,$I80<=Z$67+Z$71+2),IF($I80=Z$67+1,Z$70,Z$70+($I80-Z$67)*Z$64),IF($I80=Z$67+Z$71+2,Z$73,Z$73+Z$65*($I80-Z$67-Z$71)))),pigi_yc) -> 6.009802397 | AA80: =IF($I80>0,IF($I80<=AA$67,AA$46+AA$63*$I80,IF(AND($I80>AA$67,$I80<=AA$67+AA$71+2),IF($I80=AA$67+1,AA$70,AA$70+($I80-AA$67)*AA$64),IF($I80=AA$67+AA$71+2,AA$73,AA$73+AA$65*($I80-AA$67-AA$71)))),pigi_xc) -> -31.4757517 | AB80: =IF($I80>0,IF($I80<=AB$67,AB$46+AB$63*$I80,IF(AND($I80>AB$67,$I80<=AB$67+AB$71+2),IF($I80=AB$67+1,AB$70,AB$70+($I80-AB$67)*AB$64),IF($I80=AB$67+AB$71+2,AB$73,AB$73+AB$65*($I80-AB$67-AB$71)))),pigi_yc) -> -10.64701717 | AC80: =IF($I80>0,IF($I80<=AC$67,AC$46+AC$63*$I80,IF(AND($I80>AC$67,$I80<=AC$67+AC$71+2),IF($I80=AC$67+1,AC$70,AC$70+($I80-AC$67)*AC$64),IF($I80=AC$67+AC$71+2,AC$73,AC$73+AC$65*($I80-AC$67-AC$71)))),pigi_xc) -> -29.9014491 | AD80: =IF($I80>0,IF($I80<=AD$67,AD$46+AD$63*$I80,IF(AND($I80>AD$67,$I80<=AD$67+AD$71+2),IF($I80=AD$67+1,AD$70,AD$70+($I80-AD$67)*AD$64),IF($I80=AD$67+AD$71+2,AD$73,AD$73+AD$65*($I80-AD$67-AD$71)))),pigi_yc) -> -27.40983658 | AE80: =IF($I80>0,IF($I80<=AE$67,AE$46+AE$63*$I80,IF(AND($I80>AE$67,$I80<=AE$67+AE$71+2),IF($I80=AE$67+1,AE$70,AE$70+($I80-AE$67)*AE$64),IF($I80=AE$67+AE$71+2,AE$73,AE$73+AE$65*($I80-AE$67-AE$71)))),pigi_xc) -> -28.48042423 | AF80: =IF($I80>0,IF($I80<=AF$67,AF$46+AF$63*$I80,IF(AND($I80>AF$67,$I80<=AF$67+AF$71+2),IF($I80=AF$67+1,AF$70,AF$70+($I80-AF$67)*AF$64),IF($I80=AF$67+AF$71+2,AF$73,AF$73+AF$65*($I80-AF$67-AF$71)))),pigi_yc) -> -44.02471508 | AG80: =IF($I80>0,IF($I80<=AG$67,AG$46+AG$63*$I80,IF(AND($I80>AG$67,$I80<=AG$67+AG$71+2),IF($I80=AG$67+1,AG$70,AG$70+($I80-AG$67)*AG$64),IF($I80=AG$67+AG$71+2,AG$73,AG$73+AG$65*($I80-AG$67-AG$71)))),pigi_xc) -> -27.25814831 | AH80: =IF($I80>0,IF($I80<=AH$67,AH$46+AH$63*$I80,IF(AND($I80>AH$67,$I80<=AH$67+AH$71+2),IF($I80=AH$67+1,AH$70,AH$70+($I80-AH$67)*AH$64),IF($I80=AH$67+AH$71+2,AH$73,AH$73+AH$65*($I80-AH$67-AH$71)))),pigi_yc) -> -60.18536847 | AI80: =IF($I80>0,IF($I80<=AI$67,AI$46+AI$63*$I80,IF(AND($I80>AI$67,$I80<=AI$67+AI$71+2),IF($I80=AI$67+1,AI$70,AI$70+($I80-AI$67)*AI$64),IF($I80=AI$67+AI$71+2,AI$73,AI$73+AI$65*($I80-AI$67-AI$71)))),pigi_xc) -> -26.29793367 | AJ80: =IF($I80>0,IF($I80<=AJ$67,AJ$46+AJ$63*$I80,IF(AND($I80>AJ$67,$I80<=AJ$67+AJ$71+2),IF($I80=AJ$67+1,AJ$70,AJ$70+($I80-AJ$67)*AJ$64),IF($I80=AJ$67+AJ$71+2,AJ$73,AJ$73+AJ$65*($I80-AJ$67-AJ$71)))),pigi_yc) -> -75.43056264 | AK80: =IF($I80>0,IF($I80<=AK$67,AK$46+AK$63*$I80,IF(AND($I80>AK$67,$I80<=AK$67+AK$71+2),IF($I80=AK$67+1,AK$70,AK$70+($I80-AK$67)*AK$64),IF($I80=AK$67+AK$71+2,AK$73,AK$73+AK$65*($I80-AK$67-AK$71)))),pigi_xc) -> -25.65724237 | AL80: =IF($I80>0,IF($I80<=AL$67,AL$46+AL$63*$I80,IF(AND($I80>AL$67,$I80<=AL$67+AL$71+2),IF($I80=AL$67+1,AL$70,AL$70+($I80-AL$67)*AL$64),IF($I80=AL$67+AL$71+2,AL$73,AL$73+AL$65*($I80-AL$67-AL$71)))),pigi_yc) -> -88.93192361 | AM80: =IF($I80>0,IF($I80<=AM$67,AM$46+AM$63*$I80,IF(AND($I80>AM$67,$I80<=AM$67+AM$71+2),IF($I80=AM$67+1,AM$70,AM$70+($I80-AM$67)*AM$64),IF($I80=AM$67+AM$71+2,AM$73,AM$73+AM$65*($I80-AM$67-AM$71)))),pigi_xc) -> -25.23430573 | AN80: =IF($I80>0,IF($I80<=AN$67,AN$46+AN$63*$I80,IF(AND($I80>AN$67,$I80<=AN$67+AN$71+2),IF($I80=AN$67+1,AN$70,AN$70+($I80-AN$67)*AN$64),IF($I80=AN$67+AN$71+2,AN$73,AN$73+AN$65*($I80-AN$67-AN$71)))),pigi_yc) -> -98.88764798 | AO80: =IF($I80>0,IF($I80<=AO$67,AO$46+AO$63*$I80,IF(AND($I80>AO$67,$I80<=AO$67+AO$71+2),IF($I80=AO$67+1,AO$70,AO$70+($I80-AO$67)*AO$64),IF($I80=AO$67+AO$71+2,AO$73,AO$73+AO$65*($I80-AO$67-AO$71)))),pigi_xc) -> 39.71026659 | AP80: =IF($I80>0,IF($I80<=AP$67,AP$46+AP$63*$I80,IF(AND($I80>AP$67,$I80<=AP$67+AP$71+2),IF($I80=AP$67+1,AP$70,AP$70+($I80-AP$67)*AP$64),IF($I80=AP$67+AP$71+2,AP$73,AP$73+AP$65*($I80-AP$67-AP$71)))),pigi_yc) -> -112 | AQ80: 0 | AR80: 0
I81: 466 | J81: 466 | M81: =IF($I81>0,IF($I81<=M$67,M$46+M$63*$I81,IF(AND($I81>M$67,$I81<=M$67+M$71+2),IF($I81=M$67+1,M$70,M$70+($I81-M$67)*M$64),IF($I81=M$67+M$71+2,M$73,M$73+M$65*($I81-M$67-M$71)))),pigi_xc) ->  | N81: =IF($I81>0,IF($I81<=N$67,N$46+N$63*$I81,IF(AND($I81>N$67,$I81<=N$67+N$71+2),IF($I81=N$67+1,N$70,N$70+($I81-N$67)*N$64),IF($I81=N$67+N$71+2,N$73,N$73+N$65*($I81-N$67-N$71)))),pigi_yc) ->  | O81: =IF($I81>0,IF($I81<=O$67,O$46+O$63*$I81,IF(AND($I81>O$67,$I81<=O$67+O$71+2),IF($I81=O$67+1,O$70,O$70+($I81-O$67)*O$64),IF($I81=O$67+O$71+2,O$73,O$73+O$65*($I81-O$67-O$71)))),pigi_xc) -> -23.68528378 | P81: =IF($I81>0,IF($I81<=P$67,P$46+P$63*$I81,IF(AND($I81>P$67,$I81<=P$67+P$71+2),IF($I81=P$67+1,P$70,P$70+($I81-P$67)*P$64),IF($I81=P$67+P$71+2,P$73,P$73+P$65*($I81-P$67-P$71)))),pigi_yc) -> 81.06085982 | Q81: =IF($I81>0,IF($I81<=Q$67,Q$46+Q$63*$I81,IF(AND($I81>Q$67,$I81<=Q$67+Q$71+2),IF($I81=Q$67+1,Q$70,Q$70+($I81-Q$67)*Q$64),IF($I81=Q$67+Q$71+2,Q$73,Q$73+Q$65*($I81-Q$67-Q$71)))),pigi_xc) -> -21.40575602 | R81: =IF($I81>0,IF($I81<=R$67,R$46+R$63*$I81,IF(AND($I81>R$67,$I81<=R$67+R$71+2),IF($I81=R$67+1,R$70,R$70+($I81-R$67)*R$64),IF($I81=R$67+R$71+2,R$73,R$73+R$65*($I81-R$67-R$71)))),pigi_yc) -> 69.44742343 | S81: =IF($I81>0,IF($I81<=S$67,S$46+S$63*$I81,IF(AND($I81>S$67,$I81<=S$67+S$71+2),IF($I81=S$67+1,S$70,S$70+($I81-S$67)*S$64),IF($I81=S$67+S$71+2,S$73,S$73+S$65*($I81-S$67-S$71)))),pigi_xc) -> -19.14545546 | T81: =IF($I81>0,IF($I81<=T$67,T$46+T$63*$I81,IF(AND($I81>T$67,$I81<=T$67+T$71+2),IF($I81=T$67+1,T$70,T$70+($I81-T$67)*T$64),IF($I81=T$67+T$71+2,T$73,T$73+T$65*($I81-T$67-T$71)))),pigi_yc) -> 55.47718355 | U81: =IF($I81>0,IF($I81<=U$67,U$46+U$63*$I81,IF(AND($I81>U$67,$I81<=U$67+U$71+2),IF($I81=U$67+1,U$70,U$70+($I81-U$67)*U$64),IF($I81=U$67+U$71+2,U$73,U$73+U$65*($I81-U$67-U$71)))),pigi_xc) -> -16.2505286 | V81: =IF($I81>0,IF($I81<=V$67,V$46+V$63*$I81,IF(AND($I81>V$67,$I81<=V$67+V$71+2),IF($I81=V$67+1,V$70,V$70+($I81-V$67)*V$64),IF($I81=V$67+V$71+2,V$73,V$73+V$65*($I81-V$67-V$71)))),pigi_yc) -> 40.69223964 | W81: =IF($I81>0,IF($I81<=W$67,W$46+W$63*$I81,IF(AND($I81>W$67,$I81<=W$67+W$71+2),IF($I81=W$67+1,W$70,W$70+($I81-W$67)*W$64),IF($I81=W$67+W$71+2,W$73,W$73+W$65*($I81-W$67-W$71)))),pigi_xc) -> -16.47908884 | X81: =IF($I81>0,IF($I81<=X$67,X$46+X$63*$I81,IF(AND($I81>X$67,$I81<=X$67+X$71+2),IF($I81=X$67+1,X$70,X$70+($I81-X$67)*X$64),IF($I81=X$67+X$71+2,X$73,X$73+X$65*($I81-X$67-X$71)))),pigi_yc) -> 24.09720294 | Y81: =IF($I81>0,IF($I81<=Y$67,Y$46+Y$63*$I81,IF(AND($I81>Y$67,$I81<=Y$67+Y$71+2),IF($I81=Y$67+1,Y$70,Y$70+($I81-Y$67)*Y$64),IF($I81=Y$67+Y$71+2,Y$73,Y$73+Y$65*($I81-Y$67-Y$71)))),pigi_xc) -> -16.05880473 | Z81: =IF($I81>0,IF($I81<=Z$67,Z$46+Z$63*$I81,IF(AND($I81>Z$67,$I81<=Z$67+Z$71+2),IF($I81=Z$67+1,Z$70,Z$70+($I81-Z$67)*Z$64),IF($I81=Z$67+Z$71+2,Z$73,Z$73+Z$65*($I81-Z$67-Z$71)))),pigi_yc) -> 7.482827831 | AA81: =IF($I81>0,IF($I81<=AA$67,AA$46+AA$63*$I81,IF(AND($I81>AA$67,$I81<=AA$67+AA$71+2),IF($I81=AA$67+1,AA$70,AA$70+($I81-AA$67)*AA$64),IF($I81=AA$67+AA$71+2,AA$73,AA$73+AA$65*($I81-AA$67-AA$71)))),pigi_xc) -> -14.98750905 | AB81: =IF($I81>0,IF($I81<=AB$67,AB$46+AB$63*$I81,IF(AND($I81>AB$67,$I81<=AB$67+AB$71+2),IF($I81=AB$67+1,AB$70,AB$70+($I81-AB$67)*AB$64),IF($I81=AB$67+AB$71+2,AB$73,AB$73+AB$65*($I81-AB$67-AB$71)))),pigi_yc) -> -9.124320736 | AC81: =IF($I81>0,IF($I81<=AC$67,AC$46+AC$63*$I81,IF(AND($I81>AC$67,$I81<=AC$67+AC$71+2),IF($I81=AC$67+1,AC$70,AC$70+($I81-AC$67)*AC$64),IF($I81=AC$67+AC$71+2,AC$73,AC$73+AC$65*($I81-AC$67-AC$71)))),pigi_xc) -> -13.26420844 | AD81: =IF($I81>0,IF($I81<=AD$67,AD$46+AD$63*$I81,IF(AND($I81>AD$67,$I81<=AD$67+AD$71+2),IF($I81=AD$67+1,AD$70,AD$70+($I81-AD$67)*AD$64),IF($I81=AD$67+AD$71+2,AD$73,AD$73+AD$65*($I81-AD$67-AD$71)))),pigi_yc) -> -25.69750322 | AE81: =IF($I81>0,IF($I81<=AE$67,AE$46+AE$63*$I81,IF(AND($I81>AE$67,$I81<=AE$67+AE$71+2),IF($I81=AE$67+1,AE$70,AE$70+($I81-AE$67)*AE$64),IF($I81=AE$67+AE$71+2,AE$73,AE$73+AE$65*($I81-AE$67-AE$71)))),pigi_xc) -> -10.88909632 | AF81: =IF($I81>0,IF($I81<=AF$67,AF$46+AF$63*$I81,IF(AND($I81>AF$67,$I81<=AF$67+AF$71+2),IF($I81=AF$67+1,AF$70,AF$70+($I81-AF$67)*AF$64),IF($I81=AF$67+AF$71+2,AF$73,AF$73+AF$65*($I81-AF$67-AF$71)))),pigi_yc) -> -42.20986372 | AG81: =IF($I81>0,IF($I81<=AG$67,AG$46+AG$63*$I81,IF(AND($I81>AG$67,$I81<=AG$67+AG$71+2),IF($I81=AG$67+1,AG$70,AG$70+($I81-AG$67)*AG$64),IF($I81=AG$67+AG$71+2,AG$73,AG$73+AG$65*($I81-AG$67-AG$71)))),pigi_xc) -> -7.863562516 | AH81: =IF($I81>0,IF($I81<=AH$67,AH$46+AH$63*$I81,IF(AND($I81>AH$67,$I81<=AH$67+AH$71+2),IF($I81=AH$67+1,AH$70,AH$70+($I81-AH$67)*AH$64),IF($I81=AH$67+AH$71+2,AH$73,AH$73+AH$65*($I81-AH$67-AH$71)))),pigi_yc) -> -58.63448902 | AI81: =IF($I81>0,IF($I81<=AI$67,AI$46+AI$63*$I81,IF(AND($I81>AI$67,$I81<=AI$67+AI$71+2),IF($I81=AI$67+1,AI$70,AI$70+($I81-AI$67)*AI$64),IF($I81=AI$67+AI$71+2,AI$73,AI$73+AI$65*($I81-AI$67-AI$71)))),pigi_xc) -> -6.311584796 | AJ81: =IF($I81>0,IF($I81<=AJ$67,AJ$46+AJ$63*$I81,IF(AND($I81>AJ$67,$I81<=AJ$67+AJ$71+2),IF($I81=AJ$67+1,AJ$70,AJ$70+($I81-AJ$67)*AJ$64),IF($I81=AJ$67+AJ$71+2,AJ$73,AJ$73+AJ$65*($I81-AJ$67-AJ$71)))),pigi_yc) -> -74.69174012 | AK81: =IF($I81>0,IF($I81<=AK$67,AK$46+AK$63*$I81,IF(AND($I81>AK$67,$I81<=AK$67+AK$71+2),IF($I81=AK$67+1,AK$70,AK$70+($I81-AK$67)*AK$64),IF($I81=AK$67+AK$71+2,AK$73,AK$73+AK$65*($I81-AK$67-AK$71)))),pigi_xc) -> -5.658017829 | AL81: =IF($I81>0,IF($I81<=AL$67,AL$46+AL$63*$I81,IF(AND($I81>AL$67,$I81<=AL$67+AL$71+2),IF($I81=AL$67+1,AL$70,AL$70+($I81-AL$67)*AL$64),IF($I81=AL$67+AL$71+2,AL$73,AL$73+AL$65*($I81-AL$67-AL$71)))),pigi_yc) -> -89.10804255 | AM81: =IF($I81>0,IF($I81<=AM$67,AM$46+AM$63*$I81,IF(AND($I81>AM$67,$I81<=AM$67+AM$71+2),IF($I81=AM$67+1,AM$70,AM$70+($I81-AM$67)*AM$64),IF($I81=AM$67+AM$71+2,AM$73,AM$73+AM$65*($I81-AM$67-AM$71)))),pigi_xc) -> -5.320979632 | AN81: =IF($I81>0,IF($I81<=AN$67,AN$46+AN$63*$I81,IF(AND($I81>AN$67,$I81<=AN$67+AN$71+2),IF($I81=AN$67+1,AN$70,AN$70+($I81-AN$67)*AN$64),IF($I81=AN$67+AN$71+2,AN$73,AN$73+AN$65*($I81-AN$67-AN$71)))),pigi_yc) -> -100.747606 | AO81: =IF($I81>0,IF($I81<=AO$67,AO$46+AO$63*$I81,IF(AND($I81>AO$67,$I81<=AO$67+AO$71+2),IF($I81=AO$67+1,AO$70,AO$70+($I81-AO$67)*AO$64),IF($I81=AO$67+AO$71+2,AO$73,AO$73+AO$65*($I81-AO$67-AO$71)))),pigi_xc) -> 39.71026659 | AP81: =IF($I81>0,IF($I81<=AP$67,AP$46+AP$63*$I81,IF(AND($I81>AP$67,$I81<=AP$67+AP$71+2),IF($I81=AP$67+1,AP$70,AP$70+($I81-AP$67)*AP$64),IF($I81=AP$67+AP$71+2,AP$73,AP$73+AP$65*($I81-AP$67-AP$71)))),pigi_yc) -> -112 | AQ81: 0 | AR81: 0
I82: 446 | J82: 446 | M82: =IF($I82>0,IF($I82<=M$67,M$46+M$63*$I82,IF(AND($I82>M$67,$I82<=M$67+M$71+2),IF($I82=M$67+1,M$70,M$70+($I82-M$67)*M$64),IF($I82=M$67+M$71+2,M$73,M$73+M$65*($I82-M$67-M$71)))),pigi_xc) ->  | N82: =IF($I82>0,IF($I82<=N$67,N$46+N$63*$I82,IF(AND($I82>N$67,$I82<=N$67+N$71+2),IF($I82=N$67+1,N$70,N$70+($I82-N$67)*N$64),IF($I82=N$67+N$71+2,N$73,N$73+N$65*($I82-N$67-N$71)))),pigi_yc) ->  | O82: =IF($I82>0,IF($I82<=O$67,O$46+O$63*$I82,IF(AND($I82>O$67,$I82<=O$67+O$71+2),IF($I82=O$67+1,O$70,O$70+($I82-O$67)*O$64),IF($I82=O$67+O$71+2,O$73,O$73+O$65*($I82-O$67-O$71)))),pigi_xc) -> -4.155358847 | P82: =IF($I82>0,IF($I82<=P$67,P$46+P$63*$I82,IF(AND($I82>P$67,$I82<=P$67+P$71+2),IF($I82=P$67+1,P$70,P$70+($I82-P$67)*P$64),IF($I82=P$67+P$71+2,P$73,P$73+P$65*($I82-P$67-P$71)))),pigi_yc) -> 85.37154793 | Q82: =IF($I82>0,IF($I82<=Q$67,Q$46+Q$63*$I82,IF(AND($I82>Q$67,$I82<=Q$67+Q$71+2),IF($I82=Q$67+1,Q$70,Q$70+($I82-Q$67)*Q$64),IF($I82=Q$67+Q$71+2,Q$73,Q$73+Q$65*($I82-Q$67-Q$71)))),pigi_xc) -> -1.887449798 | R82: =IF($I82>0,IF($I82<=R$67,R$46+R$63*$I82,IF(AND($I82>R$67,$I82<=R$67+R$71+2),IF($I82=R$67+1,R$70,R$70+($I82-R$67)*R$64),IF($I82=R$67+R$71+2,R$73,R$73+R$65*($I82-R$67-R$71)))),pigi_yc) -> 72.38300519 | S82: =IF($I82>0,IF($I82<=S$67,S$46+S$63*$I82,IF(AND($I82>S$67,$I82<=S$67+S$71+2),IF($I82=S$67+1,S$70,S$70+($I82-S$67)*S$64),IF($I82=S$67+S$71+2,S$73,S$73+S$65*($I82-S$67-S$71)))),pigi_xc) -> -3.359686052 | T82: =IF($I82>0,IF($I82<=T$67,T$46+T$63*$I82,IF(AND($I82>T$67,$I82<=T$67+T$71+2),IF($I82=T$67+1,T$70,T$70+($I82-T$67)*T$64),IF($I82=T$67+T$71+2,T$73,T$73+T$65*($I82-T$67-T$71)))),pigi_yc) -> 56.37191474 | U82: =IF($I82>0,IF($I82<=U$67,U$46+U$63*$I82,IF(AND($I82>U$67,$I82<=U$67+U$71+2),IF($I82=U$67+1,U$70,U$70+($I82-U$67)*U$64),IF($I82=U$67+U$71+2,U$73,U$73+U$65*($I82-U$67-U$71)))),pigi_xc) -> -4.209009617 | V82: =IF($I82>0,IF($I82<=V$67,V$46+V$63*$I82,IF(AND($I82>V$67,$I82<=V$67+V$71+2),IF($I82=V$67+1,V$70,V$70+($I82-V$67)*V$64),IF($I82=V$67+V$71+2,V$73,V$73+V$65*($I82-V$67-V$71)))),pigi_yc) -> 40.29127886 | W82: =IF($I82>0,IF($I82<=W$67,W$46+W$63*$I82,IF(AND($I82>W$67,$I82<=W$67+W$71+2),IF($I82=W$67+1,W$70,W$70+($I82-W$67)*W$64),IF($I82=W$67+W$71+2,W$73,W$73+W$65*($I82-W$67-W$71)))),pigi_xc) -> -4.431094825 | X82: =IF($I82>0,IF($I82<=X$67,X$46+X$63*$I82,IF(AND($I82>X$67,$I82<=X$67+X$71+2),IF($I82=X$67+1,X$70,X$70+($I82-X$67)*X$64),IF($I82=X$67+X$71+2,X$73,X$73+X$65*($I82-X$67-X$71)))),pigi_yc) -> 24.16640727 | Y82: =IF($I82>0,IF($I82<=Y$67,Y$46+Y$63*$I82,IF(AND($I82>Y$67,$I82<=Y$67+Y$71+2),IF($I82=Y$67+1,Y$70,Y$70+($I82-Y$67)*Y$64),IF($I82=Y$67+Y$71+2,Y$73,Y$73+Y$65*($I82-Y$67-Y$71)))),pigi_xc) -> -4.022722144 | Z82: =IF($I82>0,IF($I82<=Z$67,Z$46+Z$63*$I82,IF(AND($I82>Z$67,$I82<=Z$67+Z$71+2),IF($I82=Z$67+1,Z$70,Z$70+($I82-Z$67)*Z$64),IF($I82=Z$67+Z$71+2,Z$73,Z$73+Z$65*($I82-Z$67-Z$71)))),pigi_yc) -> 8.022888121 | AA82: =IF($I82>0,IF($I82<=AA$67,AA$46+AA$63*$I82,IF(AND($I82>AA$67,$I82<=AA$67+AA$71+2),IF($I82=AA$67+1,AA$70,AA$70+($I82-AA$67)*AA$64),IF($I82=AA$67+AA$71+2,AA$73,AA$73+AA$65*($I82-AA$67-AA$71)))),pigi_xc) -> -2.98179695 | AB82: =IF($I82>0,IF($I82<=AB$67,AB$46+AB$63*$I82,IF(AND($I82>AB$67,$I82<=AB$67+AB$71+2),IF($I82=AB$67+1,AB$70,AB$70+($I82-AB$67)*AB$64),IF($I82=AB$67+AB$71+2,AB$73,AB$73+AB$65*($I82-AB$67-AB$71)))),pigi_yc) -> -8.113466587 | AC82: =IF($I82>0,IF($I82<=AC$67,AC$46+AC$63*$I82,IF(AND($I82>AC$67,$I82<=AC$67+AC$71+2),IF($I82=AC$67+1,AC$70,AC$70+($I82-AC$67)*AC$64),IF($I82=AC$67+AC$71+2,AC$73,AC$73+AC$65*($I82-AC$67-AC$71)))),pigi_xc) -> -1.307365137 | AD82: =IF($I82>0,IF($I82<=AD$67,AD$46+AD$63*$I82,IF(AND($I82>AD$67,$I82<=AD$67+AD$71+2),IF($I82=AD$67+1,AD$70,AD$70+($I82-AD$67)*AD$64),IF($I82=AD$67+AD$71+2,AD$73,AD$73+AD$65*($I82-AD$67-AD$71)))),pigi_yc) -> -24.21667665 | AE82: =IF($I82>0,IF($I82<=AE$67,AE$46+AE$63*$I82,IF(AND($I82>AE$67,$I82<=AE$67+AE$71+2),IF($I82=AE$67+1,AE$70,AE$70+($I82-AE$67)*AE$64),IF($I82=AE$67+AE$71+2,AE$73,AE$73+AE$65*($I82-AE$67-AE$71)))),pigi_xc) -> 1.000374477 | AF82: =IF($I82>0,IF($I82<=AF$67,AF$46+AF$63*$I82,IF(AND($I82>AF$67,$I82<=AF$67+AF$71+2),IF($I82=AF$67+1,AF$70,AF$70+($I82-AF$67)*AF$64),IF($I82=AF$67+AF$71+2,AF$73,AF$73+AF$65*($I82-AF$67-AF$71)))),pigi_yc) -> -40.26065027 | AG82: =IF($I82>0,IF($I82<=AG$67,AG$46+AG$63*$I82,IF(AND($I82>AG$67,$I82<=AG$67+AG$71+2),IF($I82=AG$67+1,AG$70,AG$70+($I82-AG$67)*AG$64),IF($I82=AG$67+AG$71+2,AG$73,AG$73+AG$65*($I82-AG$67-AG$71)))),pigi_xc) -> 3.940060984 | AH82: =IF($I82>0,IF($I82<=AH$67,AH$46+AH$63*$I82,IF(AND($I82>AH$67,$I82<=AH$67+AH$71+2),IF($I82=AH$67+1,AH$70,AH$70+($I82-AH$67)*AH$64),IF($I82=AH$67+AH$71+2,AH$73,AH$73+AH$65*($I82-AH$67-AH$71)))),pigi_yc) -> -56.21924135 | AI82: =IF($I82>0,IF($I82<=AI$67,AI$46+AI$63*$I82,IF(AND($I82>AI$67,$I82<=AI$67+AI$71+2),IF($I82=AI$67+1,AI$70,AI$70+($I82-AI$67)*AI$64),IF($I82=AI$67+AI$71+2,AI$73,AI$73+AI$65*($I82-AI$67-AI$71)))),pigi_xc) -> 7.509165467 | AJ82: =IF($I82>0,IF($I82<=AJ$67,AJ$46+AJ$63*$I82,IF(AND($I82>AJ$67,$I82<=AJ$67+AJ$71+2),IF($I82=AJ$67+1,AJ$70,AJ$70+($I82-AJ$67)*AJ$64),IF($I82=AJ$67+AJ$71+2,AJ$73,AJ$73+AJ$65*($I82-AJ$67-AJ$71)))),pigi_yc) -> -72.06630726 | AK82: =IF($I82>0,IF($I82<=AK$67,AK$46+AK$63*$I82,IF(AND($I82>AK$67,$I82<=AK$67+AK$71+2),IF($I82=AK$67+1,AK$70,AK$70+($I82-AK$67)*AK$64),IF($I82=AK$67+AK$71+2,AK$73,AK$73+AK$65*($I82-AK$67-AK$71)))),pigi_xc) -> 11.70398835 | AL82: =IF($I82>0,IF($I82<=AL$67,AL$46+AL$63*$I82,IF(AND($I82>AL$67,$I82<=AL$67+AL$71+2),IF($I82=AL$67+1,AL$70,AL$70+($I82-AL$67)*AL$64),IF($I82=AL$67+AL$71+2,AL$73,AL$73+AL$65*($I82-AL$67-AL$71)))),pigi_yc) -> -87.77576691 | AM82: =IF($I82>0,IF($I82<=AM$67,AM$46+AM$63*$I82,IF(AND($I82>AM$67,$I82<=AM$67+AM$71+2),IF($I82=AM$67+1,AM$70,AM$70+($I82-AM$67)*AM$64),IF($I82=AM$67+AM$71+2,AM$73,AM$73+AM$65*($I82-AM$67-AM$71)))),pigi_xc) -> 14.59234647 | AN82: =IF($I82>0,IF($I82<=AN$67,AN$46+AN$63*$I82,IF(AND($I82>AN$67,$I82<=AN$67+AN$71+2),IF($I82=AN$67+1,AN$70,AN$70+($I82-AN$67)*AN$64),IF($I82=AN$67+AN$71+2,AN$73,AN$73+AN$65*($I82-AN$67-AN$71)))),pigi_yc) -> -103.3216589 | AO82: =IF($I82>0,IF($I82<=AO$67,AO$46+AO$63*$I82,IF(AND($I82>AO$67,$I82<=AO$67+AO$71+2),IF($I82=AO$67+1,AO$70,AO$70+($I82-AO$67)*AO$64),IF($I82=AO$67+AO$71+2,AO$73,AO$73+AO$65*($I82-AO$67-AO$71)))),pigi_xc) -> 39.71026659 | AP82: =IF($I82>0,IF($I82<=AP$67,AP$46+AP$63*$I82,IF(AND($I82>AP$67,$I82<=AP$67+AP$71+2),IF($I82=AP$67+1,AP$70,AP$70+($I82-AP$67)*AP$64),IF($I82=AP$67+AP$71+2,AP$73,AP$73+AP$65*($I82-AP$67-AP$71)))),pigi_yc) -> -112 | AQ82: 0 | AR82: 0

Sheet deviation angle
A1: To change index of refraction | G1: CALCULATIONS
A2: goto CALC_POINT | G2: Angle of prisme | I2: ="Deviation Angle for A = "&gon_prisma&" n = "&nn -> Deviation Angle for A = 45 n = 1,5 | L2: ε= θ4+θ1-Α | M2: θ4=asin(n·sin(A-θ2) | N2: dθ4/dθ1– cos(A-θ2)· cos(θ1)/ ( cosθ2· cosθ4)
A3: Deviation angle for prism | D3: =nn -> 1.5 | E3: index of refraction | G3: 45 | L3: I find the derivative | N3: 1 όπου δεν έχω
B4: θ1 in radians | C4: sin(θ)/n | D4: θ2 in radiansrad | E4: θ2 σε ° | F4: Α-θ2 | G4: n*sin(Α-θ2) | H4: θ4=asin(n·sin(A-θ2) | I4: =cos(A-θ2)cos(θ1) | J4: 1/(cosθ2 cosθ4) | K4: παράγωγος | N4: derivatie | P4: θ1+θ4-A
A5: 0 | B5: =RADIANS(A5) -> 0 | C5: =SIN(B5)/nn -> 0 | D5: =ASIN(C5) -> 0 | E5: =DEGREES(D5) -> 0 | F5: =RADIANS(gon_prisma)-D5 -> 0.7853981634 | G5: =nn*SIN(F5) -> 1.060660172 | H5: =IF(G5<1,ASIN(G5),FALSE) -> FALSE | I5: =COS(F5)*COS(B5) -> 0.7071067812 | J5: =IF(G5<=1,1/(COS(D5)*COS(H5)),FALSE) -> FALSE | K5: =IF(G5<1,-J5*I5+1,"") ->  | L5: =IF(G5<1,1/SQRT(1-G5^2),"") ->  | M5: =1/SQRT(1-C5^2) -> 1 | N5: =IF(H5,-COS(B6)*COS(F6)*L6*M6+1,N6) -> -9.039541858 | O5: =IF(H5,A5,O6) -> 5 | P5: =IF(H5,O5+DEGREES(H5)-gon_prisma,P6) -> 45.74199229 | Q5: =IF(N5*N6>0,TRUE,FALSE) -> TRUE | R5: =IF(Q5,-1000,P5) -> -1000 | U5: =ASIN(SIN(O5)*nn) -> 
A6: =A5+1 -> 1 | B6: =RADIANS(A6) -> 0.01745329252 | C6: 0.01163493762 | D6: =ASIN(C6) -> 0.01163520015 | E6: =DEGREES(D6) -> 0.6666478623 | F6: 0.7737629632 | G6: 1.048247663 | H6: =IF(G6<1,ASIN(G6),FALSE) -> FALSE | I6: =COS(F6)*COS(B6) -> 0.7151771202 | J6: =IF(G6<=1,1/(COS(D6)*COS(H6)),FALSE) -> FALSE | K6: =IF(G6<1,-J6*I6+1,"") ->  | L6: =IF(G6<1,1/SQRT(1-G6^2),"") ->  | M6: =1/SQRT(1-C6^2) -> 1.000067693 | N6: =IF(H6,-COS(B7)*COS(F7)*L7*M7+1,N7) -> -9.039541858 | O6: =IF(H6,A6,O7) -> 5 | P6: 45.74199229 | Q6: =IF(N6*N7>0,TRUE,FALSE) -> TRUE | R6: =IF(Q6,-1000,P6) -> -1000 | U6: =1/nn -> 0.6666666667
A7: =A6+1 -> 2 | B7: =RADIANS(A7) -> 0.03490658504 | C7: 0.02326633114 | D7: =ASIN(C7) -> 0.02326843074 | E7: =DEGREES(D7) -> 1.333182877 | F7: 0.7621297327 | G7: 1.035695383 | H7: FALSE | I7: 0.7229264938 | J7: FALSE | M7: 1.000270771 | N7: =IF(H7,-COS(B8)*COS(F8)*L8*M8+1,N8) -> -9.039541858 | O7: 5 | P7: 45.74199229 | Q7: TRUE | R7: -1000 | U7: =ASIN(U6) -> 0.7297276562 | V7: =DEGREES(U7) -> 41.8103149
A8: 3 | B8: 0.05235987756 | C8: 0.0348906375 | D8: 0.03489772043 | E8: 1.999492095 | F8: 0.750500443 | G8: 1.023007265 | H8: FALSE | I8: 0.7303453694 | J8: FALSE | M8: 1.000609235 | N8: =IF(H8,-COS(B9)*COS(F9)*L9*M9+1,N9) -> -9.039541858 | O8: 5 | P8: 45.74199229 | Q8: TRUE | R8: -1000 | T8: 1/ρίζα(1-sin²(θ1)/n²)
A9: 4 | B9: 0.06981317008 | C9: 0.04650431583 | D9: 0.04652109427 | E9: 2.66546236 | F9: 0.7388770691 | G9: 1.010187356 | H9: FALSE | I9: 0.7374245561 | J9: FALSE | M9: 1.001083083 | N9: =IF(H9,-COS(B10)*COS(F10)*L10*M10+1,N10) -> -9.039541858 | O9: 5 | P9: 45.74199229 | Q9: TRUE | R9: -1000
A10: 5 | B10: 0.0872664626 | C10: 0.0581038285 | D10: 0.05813657189 | E10: 3.330980204 | F10: 0.7272615915 | G10: 0.9972398179 | H10: 1.496480073 | I10: 0.7441552155 | J10: 13.4911933 | K10: -9.039541858 | L10: 13.46840054 | M10: 1.001692314 | N10: =-COS(B10)*COS(F10)*L10*M10+1 -> -9.039541858 | O10: 5 | P10: 45.74199229 | Q10: TRUE | R10: -1000 | U10: 1/ρίζα(1-n²sin²(π/6-θ2))
A11: 6 | B11: 0.1047197551 | C11: 0.06968564218 | D11: 0.06974216573 | E11: 3.99593175 | F11: 0.7156559977 | G11: 0.9841689225 | H11: 1.392622113 | I11: 0.7505288724 | J11: 5.656040309 | K11: -3.245021556 | L11: 5.64229048 | M11: 1.002436923 | N11: =-COS(B11)*COS(F11)*L11*M11+1 -> -3.245021556 | O11: 6 | P11: 40.79136953 | Q11: TRUE | R11: -1000
A12: 7 | B12: 0.1221730476 | C12: 0.08124622894 | D12: 0.0813358792 | E12: 4.660202601 | F12: 0.7040622842 | G12: 0.9709790543 | H12: 1.329291 | I12: 0.7565374244 | J12: 4.195090604 | K12: -2.173743041 | L12: 4.181221888 | M12: 1.003316905 | N12: -2.173743041 | O12: 7 | P12: 38.16276404 | Q12: TRUE | R12: -1000
A13: 8 | B13: 0.1396263402 | C13: 0.09278206731 | D13: 0.0929157049 | E13: 5.323677741 | F13: 0.6924824585 | G13: 0.9576747077 | H13: 1.27881249 | I13: 0.7621731511 | J13: 3.489049725 | K13: -1.659260024 | L13: 3.473999502 | M13: 1.004332247 | N13: -1.659260024 | O13: 8 | P13: 36.27055846 | Q13: TRUE | R13: -1000
A14: 9 | B14: 0.1570796327 | C14: 0.1042896434 | D14: 0.1044796228 | E14: 5.986241429 | F14: 0.6809185406 | G14: 0.9442604862 | H14: 1.235340915 | I14: 0.7674287233 | J14: 3.054329519 | K14: -1.343980203 | L14: 3.037674161 | M14: 1.005482931 | N14: -1.343980203 | O14: 9 | P14: 34.77982066 | Q14: TRUE | R14: -1000
A15: 10 | B15: 0.1745329252 | C15: 0.1157654518 | D15: 0.1160255982 | E15: 6.647777093 | F15: 0.6693725652 | G15: 0.9307411018 | H15: 1.196434292 | I15: 0.7722972105 | J15: 2.753150769 | K15: -1.126250659 | L15: 2.734640174 | M15: 1.006768933 | N15: -1.126250659 | O15: 10 | P15: 33.55063541 | Q15: TRUE | R15: -1000
A16: 11 | B16: 0.1919862177 | C16: 0.1272059969 | D16: 0.1275515804 | E16: 7.308167228 | F16: 0.657846583 | G16: 0.9171213735 | H16: 1.160797708 | I16: 0.7767720888 | J16: 2.529277035 | K16: -0.9646718058 | L16: 2.508729998 | M16: 1.008190215 | N16: -0.9646718058 | O16: 11 | P16: 32.50880956 | Q16: TRUE | R16: -1000
A17: 12 | B17: 0.2094395102 | C17: 0.1386077939 | D17: 0.1390555003 | E17: 7.967293288 | F17: 0.646342663 | G17: 0.903406227 | H17: 1.127648098 | I17: 0.780847248 | J17: 2.35489825 | K17: -0.8388158178 | L17: 2.332167248 | M17: 1.009746729 | N17: -0.8388158178 | O17: 12 | P17: 31.60947681 | Q17: TRUE | R17: -1000
A18: 13 | B18: 0.2268928028 | C18: 0.1499673696 | D18: 0.150535269 | E18: 8.625035583 | F18: 0.6348628944 | G18: 0.8896006934 | H18: 1.096470168 | I18: 0.7845169972 | J18: 2.214477387 | K18: -0.7372951503 | L18: 2.189433744 | M18: 1.011438411 | N18: -0.7372951503 | O18: 13 | P18: 30.82311301 | Q18: TRUE | R18: -1000
A19: 14 | B19: 0.2443460953 | C19: 0.1612812637 | D19: 0.1619887755 | E19: 9.281273167 | F19: 0.6234093878 | G19: 0.8757099083 | H19: 1.066904146 | I19: 0.7877760714 | J19: 2.098563077 | K19: -0.6531977766 | L19: 2.071089703 | M19: 1.013265178 | N19: -0.6531977766 | O19: 14 | P19: 30.12910469 | Q19: TRUE | R19: -1000
A20: 15 | B20: 0.2617993878 | C20: 0.1725460301 | D20: 0.1734138854 | E20: 9.93588374 | F20: 0.611984278 | G20: 0.8617391112 | H20: 1.03868758 | I20: 0.7906196357 | J20: 2.001032048 | K20: -0.5820552291 | L20: 1.97101948 | M20: 1.015226926 | N20: -0.5820552291 | O20: 15 | P20: 29.51241457 | Q20: TRUE | R20: -1000
A21: 16 | B21: 0.2792526803 | C21: 0.1837582372 | D21: 0.1848084383 | E21: 10.58874353 | F21: 0.6005897251 | G21: 0.8476936445 | H21: 1.011622445 | I21: 0.7930432904 | J21: 1.917719532 | K21: -0.5208346077 | L21: 1.885063587 | M21: 1.017323524 | N21: -0.5208346077 | O21: 16 | P21: 28.96169656 | Q21: TRUE | R21: -1000
A22: 17 | B22: 0.2967059728 | C22: 0.1949144698 | D22: 0.1961702467 | E22: 11.2397272 | F22: 0.5892279167 | G22: 0.8335789526 | H22: 0.9855552742 | I22: 0.7950430739 | J22: 1.84568102 | K22: -0.4673959118 | L22: 1.810281307 | M22: 1.019554813 | N22: -0.4673959118 | O22: 17 | P22: 28.46815769 | Q22: TRUE | R22: -1000
A23: 18 | B23: 0.3141592654 | C23: 0.2060113296 | D23: 0.2074970936 | E23: 11.88870772 | F23: 0.5779010698 | G23: 0.8194005813 | H23: 0.9603645339 | I23: 0.7966154667 | J23: 1.782767938 | K23: -0.4201805127 | L23: 1.744526864 | M23: 1.021920599 | N23: -0.4201805127 | O23: 18 | P23: 28.02483459 | Q23: TRUE | R23: -1000
A24: 19 | B24: 0.3316125579 | C24: 0.2170454363 | D24: 0.2187867307 | E24: 12.53555628 | F24: 0.5666114327 | G24: 0.805164177 | H24: 0.9359522502 | I24: 0.7977573932 | J24: 1.727370767 | K24: -0.3780228 | L24: 1.686192843 | M24: 1.024420649 | N24: -0.3780228 | O24: 19 | P24: 27.62611376 | Q24: TRUE | R24: -1000
A25: 20 | B25: 0.3490658504 | C25: 0.2280134289 | D25: 0.2300368766 | E25: 13.18014216 | F25: 0.5553612868 | G25: 0.7908754854 | H25: 0.9122382632 | I25: 0.7984662235 | J25: 1.678256741 | K25: -0.3400313223 | L25: 1.634048081 | M25: 1.027054688 | N25: -0.3400313223 | O25: 20 | P25: 27.26740239 | Q25: TRUE | R25: -1000
A26: 21 | B26: 0.3665191429 | C26: 0.2389119664 | D26: 0.2412452149 | E26: 13.82233264 | F26: 0.5441529485 | G26: 0.7765403516 | H26: 0.8891561659 | I26: 0.7987397746 | J26: 1.634463534 | K26: -0.3055110346 | L26: 1.587131482 | M26: 1.029822389 | N26: -0.3055110346 | O26: 21 | P26: 26.94489563 | Q26: TRUE | R26: -1000
A27: 22 | B27: 0.3839724354 | C27: 0.2497377289 | D27: 0.2524093922 | E27: 14.46199288 | F27: 0.5329887712 | G27: 0.7621647185 | H27: 0.8666503634 | I27: 0.7985763106 | J27: 1.595227452 | K27: -0.2739108536 | L27: 1.544680305 | M27: 1.032723372 | N27: -0.2739108536 | O27: 22 | P27: 26.65540814 | Q27: TRUE | R27: -1000
A28: 23 | B28: 0.401425728 | C28: 0.260487419 | D28: 0.2635270163 | E28: 15.09898582 | F28: 0.5218711471 | G28: 0.7477546266 | H28: 0.8446738955 | I28: 0.7979745425 | J28: 1.559933641 | K28: -0.2447873337 | L28: 1.506080429 | M28: 1.035757195 | N28: -0.2447873337 | O28: 23 | P28: 26.39624927 | Q28: TRUE | R28: -1000
A29: 24 | B29: 0.4188790205 | C29: 0.2711577621 | D29: 0.2745956541 | E29: 15.73317205 | F29: 0.5108025093 | G29: 0.7333162128 | H29: 0.8231867954 | I29: 0.7969336272 | J29: 1.528080734 | K29: -0.2177789216 | L29: 1.470831063 | M29: 1.038923349 | N29: -0.2177789216 | O29: 24 | P29: 26.16512913 | Q29: TRUE | R29: -1000
A30: 25 | B30: 0.436332313 | C30: 0.2817455078 | D30: 0.2856128299 | E30: 16.36440973 | F30: 0.4997853335 | G30: 0.71885571 | H30: 0.8021548316 | I30: 0.7954531654 | J30: 1.49925525 | K30: -0.192587334 | L30: 1.438519176 | M30: 1.042221247 | N30: -0.192587334 | O30: 25 | P30: 25.96008637 | Q30: TRUE | R30: -1000
A31: 26 | B31: 0.4537856055 | C31: 0.2922474312 | D31: 0.2965760236 | E31: 16.99255446 | F31: 0.4888221398 | G31: 0.7043794458 | H31: 0.781548529 | I31: 0.7935331998 | J31: 1.47311271 | K31: -0.1689638423 | L31: 1.408800647 | M31: 1.045650222 | N31: -0.1689638423 | O31: 26 | P31: 25.7794322 | Q31: TRUE | R31: -1000
A32: 27 | B32: 0.471238898 | C32: 0.3026603332 | D32: 0.3074826686 | E32: 17.61745918 | F32: 0.4779154948 | G32: 0.6898938422 | H32: 0.7613423976 | I32: 0.7911742115 | J32: 1.449363479 | K32: -0.1466990078 | L32: 1.381386137 | M32: 1.049209515 | N32: -0.1466990078 | O32: 27 | P32: 25.62170615 | Q32: TRUE | R32: -1000
A33: 28 | B33: 0.4886921906 | C33: 0.3129810419 | D33: 0.3183301498 | E33: 18.23897408 | F33: 0.4670680136 | G33: 0.6754054146 | H33: 0.7415143183 | I33: 0.7883771163 | J33: 1.427761999 | K33: -0.1256148875 | L33: 1.356030342 | M33: =1/SQRT(1-C33^2) -> 1.052898269 | N33: -0.1256148875 | O33: 28 | P33: 25.48564089 | Q33: TRUE | R33: -1000
A34: 29 | B34: 0.5061454831 | C34: 0.3232064135 | D34: 0.3291158024 | E34: 18.85694645 | F34: 0.456282361 | G34: 0.6609207705 | H34: 0.7220450476 | I34: 0.7851432602 | J34: 1.408098488 | K34: -0.1055590378 | L34: 1.332523719 | M34: 1.056715516 | N34: -0.1055590378 | O34: 29 | P34: 25.37013384 | Q34: TRUE | R34: -1000
A35: 30 | B35: 0.5235987756 | C35: 0.3333333333 | D35: 0.3398369095 | E35: 19.47122063 | F35: 0.4455612539 | G35: 0.6464466094 | H35: 0.7029178145 | I35: 0.7814744144 | J35: 1.39019247 | K35: -0.08639984672 | L35: 1.310686031 | M35: 1.060660172 | N35: -0.08639984672 | O35: 30 | P35: 25.27422412 | Q35: TRUE | R35: -1000
A36: 31 | B36: 0.5410520681 | C36: 0.3433587166 | D36: 0.3504907003 | E36: 20.08163788 | F36: 0.4349074631 | G36: 0.631989721 | H36: 0.684117991 | I36: 0.777372769 | J36: 1.373887668 | K36: -0.06802286051 | L36: 1.29036126 | M36: 1.064731026 | N36: -0.06802286051 | O36: 31 | P36: 25.19707357 | Q36: TRUE | R36: -1000
A37: 32 | B37: 0.5585053606 | C37: =SIN(B37)/nn -> 0.3532795095 | D37: 0.3610743489 | E37: 20.68803628 | F37: =RADIANS(gon_prisma)-D37 -> 0.4243238145 | G37: =nn*SIN(F37) -> 0.6175569845 | H37: 0.6656328184 | I37: 0.7728409267 | J37: 1.359047934 | K37: -0.05032786501 | L37: 1.271413558 | M37: 1.068926728 | N37: -0.05032786501 | O37: 32 | P37: =IF(H37,O37+DEGREES(H37)-gon_prisma,P38) -> 25.1379512 | Q37: TRUE | R37: -1000
A38: 33 | B38: 0.5759586532 | C38: 0.36309269 | D38: 0.3715849721 | E38: 21.29025063 | F38: 0.4138131912 | G38: 0.6031553679 | H38: 0.6474511801 | I38: 0.7678818953 | J38: 1.345553986 | K38: -0.03322654488 | L38: 1.253723996 | M38: 1.073245778 | N38: -0.03322654488 | O38: 33 | P38: 25.09622006 | Q38: TRUE | R38: -1000
A39: 34 | B39: 0.5934119457 | C39: 0.372795269 | D39: 0.3820196282 | E39: 21.88811239 | F39: 0.4033785352 | G39: 0.5887919263 | H39: 0.6295634115 | I39: 0.7624990802 | J39: 1.333300745 | K39: -0.01664059136 | L39: 1.237187921 | M39: 1.077686519 | N39: -0.01664059136 | O39: 34 | P39: 25.07132641 | Q39: TRUE | R39: -1000
A40: 35 | B40: 0.6108652382 | C40: 0.3823842909 | D40: 0.392375315 | E40: 22.48144954 | F40: 0.3930228484 | G40: 0.5744738006 | H40: 0.6119611383 | I40: 0.756696275 | J40: 1.322195171 | K40: -0.0005001608334 | L40: 1.221712813 | M40: 1.082247118 | N40: -0.0005001608334 | O40: 35 | P40: 25.06279045 | Q40: FALSE | R40: 25.06279045
A41: 36 | B41: 0.6283185307 | C41: 0.3918568349 | D41: 0.4026489686 | E41: 23.07008653 | F41: 0.3827491948 | G41: 0.5602082166 | H41: 0.5946371412 | I41: 0.7504776531 | J41: 1.312154475 | K41: 0.01525738941 | L41: 1.207216504 | M41: 1.08692556 | N41: 0.01525738941 | O41: 36 | P41: 25.07019853 | Q41: TRUE | R41: -1000
A42: 37 | B42: 0.6457718232 | C42: 0.4012100154 | D42: 0.4128374621 | E42: 23.6538442 | F42: 0.3725607013 | G42: 0.5460024834 | H42: 0.5775852388 | I42: 0.743847757 | J42: 1.303104629 | K42: 0.0306885446 | L42: 1.193625719 | M42: 1.091719631 | N42: 0.0306885446 | O42: 37 | P42: 25.09319649 | Q42: TRUE | R42: -1000
A43: 38 | B43: 0.6632251158 | C43: 0.4104409836 | D43: 0.422937604 | E43: 24.23253971 | F43: 0.3624605594 | G43: 0.5318639914 | H43: 0.5608001883 | I43: 0.7368114883 | J43: 1.294979132 | K43: 0.04584449852 | L43: 1.180874847 | M43: 1.096626907 | N43: 0.04584449852 | O43: 38 | P43: 25.13148394 | Q43: TRUE | R43: -1000
A44: 39 | B44: 0.6806784083 | C44: 0.4195469274 | D44: 0.4329461374 | E44: 24.80598643 | F44: 0.352452026 | G44: 0.517800211 | H44: 0.5442775996 | I44: 0.7293740962 | J44: 1.287717961 | K44: 0.06077187588 | L44: 1.168904923 | M44: 1.101644741 | N44: 0.06077187588 | O44: 39 | P44: 25.18480934 | Q44: TRUE | R44: -1000
A45: 40 | B45: 0.6981317008 | C45: 0.4285250731 | D45: 0.4428597386 | E45: 25.37399394 | F45: 0.3425384248 | G45: 0.5038186904 | H45: 0.528013861 | I45: 0.7215411656 | J45: 1.281266692 | K45: 0.07551333756 | L45: 1.157662753 | M45: 1.106770248 | N45: 0.07551333756 | O45: 40 | P45: 25.25296576 | Q45: TRUE | R45: -1000
A46: 41 | B46: 0.7155849933 | C46: 0.437372686 | D46: 0.4526750167 | E46: 25.93636795 | F46: 0.3327231467 | G46: 0.4899270538 | H46: 0.5120060744 | I46: 0.7133186051 | J46: 1.275575744 | K46: 0.09010808958 | L46: 1.147100191 | M46: 1.112000289 | N46: 0.09010808958 | O46: 41 | P46: 25.33578715 | Q46: TRUE | R46: -1000
A47: 42 | B47: 0.7330382858 | C47: 0.4460870709 | D47: 0.4623885122 | E47: 26.49291025 | F47: 0.3230096512 | G47: 0.4761329987 | H47: 0.4962519991 | I47: 0.7047126336 | J47: 1.270599738 | K47: 0.1045923125 | L47: 1.137173509 | M47: 1.11733146 | N47: 0.1045923125 | O47: 42 | P47: 25.43314512 | Q47: TRUE | R47: -1000
A48: 43 | B48: 0.7504915784 | C48: 0.4546655734 | D48: 0.4719966973 | E48: 27.0434187 | F48: 0.3134014661 | G48: 0.4624442937 | H48: 0.4807500022 | I48: 0.6957297671 | J48: 1.266296941 | K48: 0.1189995244 | L48: 1.127842863 | M48: 1.122760078 | N48: 0.1189995244 | O48: 43 | P48: 25.54494613 | Q48: TRUE | R48: -1000
A49: 44 | B49: 0.7679448709 | C49: 0.4631055803 | D49: 0.4814959747 | E49: 27.5876872 | F49: 0.3039021887 | G49: 0.4488687757 | H49: 0.4654990147 | I49: 0.6863768042 | J49: 1.262628787 | K49: 0.1333608882 | L49: 1.119071834 | M49: 1.128282161 | N49: 0.1333608882 | O49: 44 | P49: 25.67112891 | Q49: TRUE | R49: -1000
A50: 45 | B50: 0.7853981634 | C50: 0.4714045208 | D50: 0.4908826783 | E50: 28.1255057 | F50: 0.2945154851 | G50: 0.4354143467 | H50: 0.4504984931 | I50: 0.6766608122 | J50: 1.259559461 | K50: 0.1477054721 | L50: 1.110827032 | M50: 1.133893419 | N50: 0.1477054721 | O50: 45 | P50: 25.81166233 | Q50: TRUE | R50: -1000
A51: 46 | B51: 0.8028514559 | C51: 0.4795598669 | D51: 0.5001530727 | E51: 28.65666017 | F51: 0.2852450907 | G51: 0.4220889705 | H51: 0.4357483842 | I51: 0.6665891115 | J51: 1.257055532 | K51: 0.16206047 | L51: 1.103077749 | M51: 1.139589238 | N51: 0.16206047 | O51: 46 | P51: 25.96654335 | Q51: TRUE | R51: -1000
A52: 47 | B52: 0.8203047484 | C52: 0.4875691344 | D52: 0.5093033539 | E52: 29.18093267 | F52: 0.2760948095 | G52: 0.4089006694 | H52: 0.4212490949 | I52: 0.6561692604 | J52: 1.255085634 | K52: 0.1764513876 | L52: 1.095795666 | M52: 1.145364663 | N52: 0.1764513876 | O52: 47 | P52: 26.13579526 | Q52: TRUE | R52: -1000
A53: 48 | B53: 0.837758041 | C53: 0.4954298837 | D53: 0.5183296501 | E53: 29.69810135 | F53: 0.2670685133 | G53: 0.3958575196 | H53: 0.4070014633 | I53: 0.6454090389 | J53: 1.253620188 | K53: 0.1909021991 | L53: 1.088954584 | M53: 1.15121439 | N53: 0.1909021991 | O53: 48 | P53: 26.3194661 | Q53: TRUE | R53: -1000
A54: 49 | B54: 0.8552113335 | C54: 0.5031397201 | D54: 0.5272280224 | E54: 30.20794052 | F54: 0.258170141 | G54: 0.3829676477 | H54: 0.3930067337 | I54: 0.6343164331 | J54: 1.252631148 | K54: 0.2054354785 | L54: 1.082530202 | M54: 1.157132748 | N54: 0.2054354785 | O54: 49 | P54: 26.51762716 | Q54: TRUE | R54: -1000
A55: 50 | B55: 0.872664626 | C55: 0.5106962954 | D55: 0.5359944664 | E55: 30.71022077 | F55: 0.249403697 | G55: 0.3702392249 | H55: 0.3792665331 | I55: 0.6228996178 | J55: 1.252091781 | K55: 0.2200725083 | L55: 1.076499912 | M55: 1.163113686 | N55: 0.2200725083 | O55: 50 | P55: 26.73037166 | Q55: TRUE | R55: -1000
A56: 51 | B56: 0.8901179185 | C56: 0.5180973076 | D56: 0.5446249138 | E56: 31.20470898 | F56: 0.2407732496 | G56: 0.3576804629 | H56: 0.365782849 | I56: 0.6111669402 | J56: 1.251976475 | K56: 0.2348333686 | L56: 1.070842624 | M56: 1.169150766 | N56: 0.2348333686 | O56: 51 | P56: 26.95781347 | Q56: TRUE | R56: -1000
A57: 52 | B57: 0.907571211 | C57: 0.5253405024 | D57: 0.5531152348 | E57: 31.69116854 | F57: 0.2322829286 | G57: 0.3452996076 | H57: 0.3525580099 | I57: 0.5991269024 | J57: 1.252260561 | K57: 0.2497370092 | L57: 1.065538611 | M57: 1.17523715 | N57: 0.2497370092 | O57: 52 | P57: 27.200086 | Q57: TRUE | R57: -1000
A58: 53 | B58: 0.9250245036 | C58: 0.5324236734 | D58: 0.5614612399 | E58: 32.16935941 | F58: 0.2239369235 | G58: 0.3331049333 | H58: 0.339594665 | I58: 0.5867881446 | J58: 1.252920157 | K58: 0.2648013058 | L58: 1.060569369 | M58: 1.181365589 | N58: 0.2648013058 | O58: 53 | P58: 27.45734105 | Q58: TRUE | R58: -1000
A59: 54 | B59: 0.9424777961 | C59: 0.5393446629 | D59: 0.5696586839 | E59: 32.63903835 | F59: 0.2157394795 | G59: 0.3211047359 | H59: 0.326895767 | I59: 0.5741594268 | J59: 1.253932033 | K59: 0.2800431027 | L59: 1.055917495 | M59: 1.187528418 | N59: 0.2800431027 | O59: 54 | P59: 27.72974779 | Q59: TRUE | R59: -1000
A60: 55 | B60: 0.9599310886 | C60: 0.5461013629 | D60: 0.5777032684 | E60: 33.09995909 | F60: 0.207694895 | G60: 0.3093073261 | H60: 0.3144645534 | I60: 0.5612496122 | J60: 1.255273485 | K60: 0.2954782433 | L60: 1.051566582 | M60: 1.193717551 | N60: 0.2954782433 | O60: 55 | P60: 28.01749171 | Q60: TRUE | R60: -1000
A61: 56 | B61: 0.9773843811 | C61: 0.552691715 | D61: 0.5855906464 | E61: 33.55187256 | F61: 0.199807517 | G61: 0.2977210214 | H61: 0.3023045298 | I61: 0.5480676489 | J61: 1.256922229 | K61: 0.3111215892 | L61: 1.047501119 | M61: 1.199924473 | N61: 0.3111215892 | O61: 56 | P61: 28.32077369 | Q61: TRUE | R61: -1000
A62: 57 | B62: 0.9948376736 | C62: 0.559113712 | D62: 0.5933164265 | E62: 33.99452716 | F62: 0.1920817369 | G62: 0.286354138 | H62: 0.2904194528 | I62: 0.534622553 | J62: 1.258856302 | K62: 0.3269870298 | L62: 1.043706408 | M62: 1.206140244 | N62: 0.3269870298 | O62: 57 | P62: 28.63980894 | Q62: TRUE | R62: -1000
A63: 58 | B63: 1.012290966 | C63: 0.5653653974 | D63: 0.600876178 | E63: 34.42766901 | F63: 0.1845219854 | G63: 0.275214982 | H63: 0.2788133128 | I63: 0.5209233905 | J63: 1.261053985 | K63: 0.3430874824 | L63: 1.040168489 | M63: 1.212355497 | N63: 0.3430874824 | O63: 58 | P63: 28.97482609 | Q63: TRUE | R63: -1000
A64: 59 | B64: 1.029744259 | C64: 0.5714448671 | D64: 0.6082654361 | E64: 34.85104231 | F64: 0.1771327273 | G64: 0.2643118398 | H64: 0.2674903171 | I64: 0.506979261 | J64: 1.263493725 | K64: 0.3594348853 | L64: 1.036874071 | M64: 1.218560441 | N64: 0.3594348853 | O64: 59 | P64: 29.32606623 | Q64: TRUE | R64: -1000
A65: 60 | B65: 1.047197551 | C65: 0.5773502692 | D65: 0.6154797087 | E65: 35.26438968 | F65: 0.1699184547 | G65: 0.2536529681 | H65: 0.2564548727 | I65: 0.4927992798 | J65: 1.266154077 | K65: 0.3760401825 | L65: 1.033810475 | M65: 1.224744871 | N65: 0.3760401825 | O65: 60 | P65: 29.69378184 | Q65: TRUE | R65: -1000
A66: 61 | B66: 1.064650844 | C66: 0.5830798048 | D66: 0.6225144826 | E66: 35.66745254 | F66: 0.1628836808 | G66: 0.2432465829 | H66: 0.245711569 | I66: 0.478392562 | J66: 1.26901366 | K66: 0.3929133039 | L66: 1.030965583 | M66: 1.23089818 | N66: 0.3929133039 | O66: 61 | P66: 30.07823588 | Q66: TRUE | R66: -1000
A67: 62 | B67: 1.082104136 | C67: 0.5886317286 | D67: 0.6293652311 | E67: 36.05997152 | F67: 0.1560329323 | G67: 0.2331008486 | H67: 0.2352651594 | I67: 0.4637682061 | J67: 1.27205111 | K67: 0.4100631389 | L67: 1.028327791 | M67: 1.237009366 | N67: 0.4100631389 | O67: 62 | P67: 30.4797007 | Q67: TRUE | R67: -1000
A68: 63 | B68: 1.099557429 | C68: 0.5940043495 | D68: 0.6360274219 | E68: 36.44168693 | F68: 0.1493707415 | G68: 0.2232238654 | H68: 0.2251205433 | I68: 0.448935278 | J68: 1.275245056 | K68: 0.4274975061 | L68: 1.025885969 | M68: 1.243067061 | N68: 0.4274975061 | O68: 63 | P68: 30.89845701 | Q68: TRUE | R68: -1000
A69: 64 | B69: 1.117010721 | C69: =SIN(B69)/nn -> 0.5991960309 | D69: 0.6424965257 | E69: 36.81233927 | F69: =RADIANS(gon_prisma)-D69 -> 0.1429016377 | G69: =nn*SIN(F69) -> 0.2136236569 | H69: 0.215282747 | I69: 0.4339027967 | J69: 1.278574106 | K69: 0.4452231195 | L69: 1.023629429 | M69: 1.249059542 | N69: 0.4452231195 | O69: 64 | P69: =IF(H69,O69+DEGREES(H69)-gon_prisma,P70) -> 31.33479281 | Q69: TRUE | R69: -1000
A70: 65 | B70: 1.134464014 | C70: 0.6042051914 | D70: 0.648768025 | E70: 37.17166971 | F70: 0.1366301384 | G70: 0.2043081567 | H70: =IF(G70<1,ASIN(G70),FALSE) -> 0.205756904 | I70: =COS(F70)*COS(B70) -> 0.418679719 | J70: =IF(G70<=1,1/(COS(D70)*COS(H70)),FALSE) -> 1.282016833 | K70: =IF(G70<1,-J70*I70+1,"") -> 0.4632455526 | L70: =IF(G70<1,1/SQRT(1-G70^2),"") -> 1.021547895 | M70: =1/SQRT(1-C70^2) -> 1.254974769 | N70: 0.4632455526 | O70: =IF(H70,A70,O71) -> 65 | P70: 31.78900221 | Q70: =IF(N70*N71>0,TRUE,FALSE) -> TRUE | R70: =IF(Q70,-1000,P70) -> -1000
A71: =A70+1 -> 66 | B71: =RADIANS(A71) -> 1.151917306 | C71: 0.6090303051 | D71: =ASIN(C71) -> 0.6548374245 | E71: =DEGREES(D71) -> 37.51942069 | F71: 0.1305607389 | G71: 0.1952851943 | H71: 0.1965482349 | I71: 0.4032749266 | J71: 1.285551781 | K71: 0.4815691998 | L71: 1.019631477 | M71: 1.260800407 | N71: 0.4815691998 | O71: 66 | P71: 32.26138433 | Q71: TRUE | R71: -1000
A72: 67 | B72: 1.169370599 | C72: 0.6136699023 | D72: 0.6607002609 | E72: 37.85533647 | F72: 0.1246979025 | G72: 0.1865624808 | H72: 0.1876620263 | I72: 0.387697213 | J72: 1.28915748 | K72: 0.500197238 | L72: 1.017870655 | M72: 1.266523868 | N72: 0.500197238 | O72: 67 | P72: 32.75224208 | Q72: TRUE | R72: -1000
A73: 68 | B73: 1.186823891 | C73: 0.6181225697 | D73: 0.6663521142 | E73: 38.17916381 | F73: 0.1190460492 | G73: 0.1781475935 | H73: 0.1791036096 | I73: 0.3719552717 | J73: 1.292812465 | K73: 0.5191315885 | L73: 1.016256261 | M73: 1.272132349 | N73: 0.5191315885 | O73: 68 | P73: 33.26188092 | Q73: TRUE | R73: -1000
A74: 69 | B74: 1.204277184 | C74: 0.622386951 | D74: 0.6717886186 | E74: 38.49065257 | F74: 0.1136095448 | G74: 0.1700479604 | H74: 0.1708783382 | I74: 0.3560576854 | J74: 1.296495312 | K74: 0.5383728801 | L74: 1.014779464 | M74: 1.277612879 | N74: 0.5383728801 | O74: 69 | P74: 33.79060759 | Q74: TRUE | R74: -1000
A75: 70 | B75: 1.221730476 | C75: 0.6264617472 | D75: 0.6770054749 | E75: 38.78955642 | F75: 0.1083926885 | G75: 0.162270844 | H75: 0.1629915652 | I75: 0.3400129167 | J75: 1.30018468 | K75: 0.5579204146 | L75: 1.013431765 | M75: 1.282952365 | N75: =-COS(B75)*COS(F75)*L75*M75+1 -> 0.5579204146 | O75: 70 | P75: 34.33872878 | Q75: TRUE | R75: -1000
A76: 71 | B76: 1.239183769 | C76: 0.6303457171 | D76: 0.6819984623 | E76: 39.07563352 | F76: 0.1033997011 | G76: 0.154823325 | H76: 0.1554486195 | I76: 0.3238292989 | J76: 1.303859364 | K76: 0.5777721364 | L76: 1.012204992 | M76: 1.288137654 | N76: 0.5777721364 | O76: 71 | P76: 34.90654983 | Q76: TRUE | R76: -1000
A77: 72 | B77: 1.256637061 | C77: 0.6340376775 | D77: 0.6867634515 | E77: 39.3486473 | F77: 0.09863471187 | G77: 0.147712285 | H77: 0.1482547823 | I77: 0.3075150294 | J77: 1.307498351 | K77: 0.597924606 | L77: 1.011091293 | M77: 1.293155584 | N77: 0.597924606 | O77: 72 | P77: 35.49437332 | Q77: TRUE | R77: -1000
A78: 73 | B78: 1.274090354 | C78: 0.637536504 | D78: 0.6912964177 | E78: 39.60836712 | F78: 0.09410174575 | G78: 0.1409443898 | H78: 0.1414152623 | I78: 0.2910781637 | J78: 1.311080897 | K78: 0.6183729799 | L78: 1.01008314 | M78: 1.297993051 | N78: 0.6183729799 | O78: 73 | P78: 36.10249769 | Q78: TRUE | R78: -1000
A79: 74 | B79: 1.291543646 | C79: 0.6408411306 | D79: 0.6955934532 | E79: 39.85456912 | F79: 0.08980471025 | G79: 0.1345260722 | H79: 0.1349351716 | I79: 0.2745266107 | J79: 1.314586597 | K79: 0.639110997 | L79: 1.009173331 | M79: 1.302637077 | N79: 0.639110997 | O79: 74 | P79: 36.73121584 | Q79: TRUE | R79: -1000
A80: 75 | B80: 1.308996939 | C80: 0.6439505509 | D80: 0.6996507814 | E80: 40.08703691 | F80: 0.08574738198 | G80: 0.1284635141 | H80: 0.1288195003 | I80: 0.2578681298 | J80: 1.317995473 | K80: 0.6601309725 | L80: 1.008354992 | M80: 1.307074873 | N80: 0.6601309725 | O80: 75 | P80: 37.38081369 | Q80: TRUE | R80: -1000
A81: 76 | B81: 1.326450232 | C81: 0.6468638175 | D81: 0.7034647701 | E81: 40.30556237 | F81: 0.08193339325 | G81: 0.1227626297 | H81: 0.1230730922 | I81: 0.2411103291 | J81: 1.32128806 | K81: 0.681423801 | L81: 1.007621587 | M81: 1.311293919 | N81: 0.681423801 | O81: 76 | P81: 38.05156875 | Q81: TRUE | R81: -1000
A82: 77 | B82: 1.343903524 | C82: 0.6495800432 | D82: 0.7070319447 | E82: 40.50994641 | F82: 0.07836621875 | G82: 0.1174290481 | H82: 0.1177006196 | I82: 0.2242606658 | J82: 1.324445506 | K82: 0.7029789689 | L82: 1.006966927 | M82: 1.315282032 | N82: 0.7029789689 | O82: 77 | P82: 38.74374875 | Q82: TRUE | R82: -1000
A83: 78 | B83: 1.361356817 | C83: 0.6520984005 | D83: 0.7103490012 | E83: 40.69999975 | F83: 0.07504916224 | G83: 0.1124680968 | H83: 0.1127065595 | I83: 0.2073264471 | J83: 1.327449667 | K83: 0.7247845769 | L83: 1.006385176 | M83: 1.319027445 | N83: 0.7247845769 | O83: 78 | P83: 39.45761019 | Q83: TRUE | R83: -1000
A84: 79 | B84: 1.378810109 | C84: 0.6544181223 | D84: 0.7134128197 | E84: 40.87554362 | F84: 0.07198534368 | G84: 0.1078847847 | H84: 0.1080951692 | I84: 0.1903148332 | J84: 1.330283206 | K84: 0.7468273735 | L84: 1.005870862 | M84: 1.32251888 | N84: 0.7468273735 | O84: 79 | P84: 40.19339698 | Q84: TRUE | R84: -1000
A85: 80 | B85: 1.396263402 | C85: 0.656538502 | D85: 0.7162204769 | E85: 41.03641053 | F85: 0.06917768653 | G85: 0.1036837862 | H85: 0.1038704632 | I85: 0.1732328421 | J85: 1.332929701 | K85: 0.7690927995 | L85: 1.005418894 | M85: 1.325745626 | N85: 0.7690927995 | O85: 80 | P85: 40.95133916 | Q85: TRUE | R85: -1000
A86: 81 | B86: 1.413716694 | C86: 0.6584588937 | D86: 0.7187692577 | E86: 41.18244491 | F86: 0.06662890566 | G86: 0.09986942662 | H86: 0.1000361908 | I86: 0.156087355 | J86: 1.335373742 | K86: 0.7915650446 | L86: 1.005024569 | M86: 1.32869761 | N86: 0.7915650446 | O86: 81 | P86: 41.73165153 | Q86: TRUE | R86: -1000
A87: 82 | B87: 1.431169987 | C87: 0.6601787125 | D87: 0.7210566676 | E87: 41.31350385 | F87: 0.06434149575 | G87: 0.09644566673 | H87: 0.09659581526 | I87: 0.138885124 | J87: 1.337601031 | K87: 0.814227115 | L87: 1.004683583 | M87: 1.33136547 | N87: 0.814227115 | O87: 82 | P87: 42.53453253 | Q87: TRUE | R87: -1000
A88: 83 | B88: 1.448623279 | C88: 0.6616974344 | D88: 0.7230804429 | E88: 41.42945763 | F88: 0.06231772051 | G88: 0.09341608983 | H88: 0.0935524931 | I88: 0.1216327803 | J88: 1.33959848 | K88: 0.8370609125 | L88: 1.00439205 | M88: 1.333740625 | N88: 0.8370609125 | O88: 83 | P88: 43.36016302 | Q88: TRUE | R88: -1000
A89: 84 | B89: 1.466076572 | C89: 0.6630145969 | D89: 0.7248385609 | E89: 41.53019037 | F89: 0.06055960255 | G89: 0.09078388894 | H89: 0.0909090562 | I89: 0.1043368446 | J89: 1.341354301 | K89: 0.8600473248 | L89: 1.004146506 | M89: 1.335815335 | N89: 0.8600473248 | O89: 84 | P89: 44.20870524 | Q89: TRUE | R89: -1000
A90: 85 | B90: 1.483529864 | C90: 0.6641297987 | D90: 0.7263292491 | E90: 41.61560051 | F90: 0.05906891427 | G90: 0.08855185551 | H90: 0.08866799467 | I90: 0.08700373781 | J90: 1.342858091 | K90: 0.8831663267 | L90: 1.003943925 | M90: 1.337582765 | N90: 0.8831663267 | O90: 85 | P90: 45.08030187 | Q90: TRUE | R90: -1000
A91: 86 | B91: 1.500983157 | C91: 0.6650427002 | D91: 0.7275509937 | E91: 41.68560132 | F91: 0.05784716974 | G91: 0.08672236928 | H91: 0.08683144198 | I91: 0.06963979342 | J91: 1.34410091 | K91: 0.9063970903 | L91: 1.003781729 | M91: 1.339037035 | N91: 0.9063970903 | O91: 86 | P91: 45.97507515 | Q91: TRUE | R91: -1000
A92: 87 | B92: 1.518436449 | C92: 0.6657530232 | D92: 0.7285025458 | E92: 41.74012124 | F92: 0.05689561764 | G92: 0.08529738954 | H92: 0.08540116191 | I92: 0.05225127043 | J92: 1.345075346 | K92: 0.9297181043 | L92: 1.003657794 | M92: 1.340173268 | N92: 0.9297181043 | O92: 87 | P92: 46.89312614 | Q92: TRUE | R92: -1000
A93: 88 | B93: 1.535889742 | C93: 0.6662605513 | D93: 0.729182928 | E93: 41.77910427 | F93: 0.05621523537 | G93: 0.0842784479 | H93: 0.08437853777 | I93: 0.03484436735 | J93: 1.345775573 | K93: 0.9531073016 | L93: 1.00357046 | M93: 1.34098763 | N93: 0.9531073016 | O93: 88 | P93: 47.8345341 | Q93: TRUE | R93: -1000
A94: 89 | B94: 1.553343034 | C94: 0.6665651301 | D94: 0.7295914389 | E94: 41.80251022 | F94: 0.05580672447 | G94: 0.08366664248 | H94: 0.08376456383 | I94: 0.01742523669 | J94: 1.346197396 | K94: 0.9765421918 | L94: 1.003518537 | M94: 1.341477358 | N94: 0.9765421918 | O94: 89 | P94: 48.79935598 | Q94: TRUE | R94: -1000
A95: 90 | B95: 1.570796327 | C95: 0.6666666667 | D95: 0.7297276562 | E95: 41.8103149 | F95: 0.05567050717 | G95: 0.08346263386 | H95: 0.08355983915 | I95: 6.116252259e-17 | J95: 1.346338285 | K95: 1 | L95: 1.003501309 | M95: 1.341640786 | N95: 1 | O95: 90 | P95: 49.78762612
O96: =MAX(O5:O94) -> 89 | P96: =MAX(P5:P94) -> 48.79935598

Sheet lenses
C1: NF | D1: =C3/100 -> 2.09 | E1: xal | F1: =K1 -> -90 | G1: change | H1: RIGHT EDGE | I1: =xal+radiusleft -> 30 | J1: =-L1 -> -90 | K1: =IF(J1+radiusleft>0,J1,-radiusleft+1) -> -90 | L1: 90 | V1: Source_x | W1: Source_y | X1: ANGLE WITH TANGENT | Z1: UPPER ANGLE | AB1: LOWER ANGLE | AD1: DISTANCE OF SOURCE FROM CIRCLE WITH LEFT CENTER | AM1: 72 | AN1: PERCENTAGE OF MAXIMUM | AT1: UPPER LIMIT ANGLE | BF1: PARALLEL BUNDLE | BH1: PARALLEL BUNDLE | BK1: f_number_of_rays | BM1: =15 -> 15 | BN1: ANGLE_p | BO1: 1 | BP1: =RADIANS(BO1) -> 0.01745329252 | BQ1: gon_par_r | BS1: Klisi | BT1: =0 -> 0 | BU1: 180 | BW1: upper tangent= | BY1: =xal-radiusleft*SIN(BP1) -> -92.09428877 | BZ1: =radiusleft*SIN(gon_par_r) -> 2.094288772 | CA1: ="ANGLE OF BUNDLE = "&ANGLE_p -> ANGLE OF BUNDLE = 10
C2: =" n ="&NF -> n =2,09 | E2: radiusleft | F2: 120 | G2: change | H2: =-xal/radiusleft -> 0.75 | I2: =ACOS(H2) -> 0.7227342478 | J2: fleft | K2: dfleft | L2: =2*I2/50 -> 0.02890936991 | V2: 200000 | W2: 4600 | X2: =ASIN(radiusleft/DIS_XAL) -> 0.0005995717342 | Y2: =DEGREES(X2) -> 0.03435292989 | Z2: =-ASIN(((Source_x-0)*(0)-(Source_y-H201)*Source_x)/SQRT((Source_x-0)^2+(Source_y-H201)^2)/ABS(Source_x)) -> 0.02259928915 | AA2: =DEGREES(Z2) -> 1.294843889 | AB2: =-ASIN(((Source_x-0)*(0)-(Source_y+H201)*Source_x)/SQRT((Source_x-0)^2+(Source_y+H201)^2)/ABS(Source_x)) -> 0.02339259485 | AC2: =DEGREES(AB2) -> 1.340296957 | AD2: =SQRT((Source_x-xal)^2+(Source_y-0)^2) -> 200142.8692 | AE2: DIS_XAL | AJ2: UPPER LIMIT | AL2: LOWER LIMIT | AN2: =AM1/100*ANG_LIMITIS -> 0.000571180099 | AP2: INITIAL INCLINATION | AT2: =ATAN2((AL4-AL3),(AM4-AM3)) -> 0.02339259485 | AU2: =DEGREES(AT2) -> 1.340296957 | BF2: ANGLE OF BUNDLE | BH2: WIDTH_OF_BUNDLE | BJ2: =2*H201*BL2 -> 152.3952755 | BK2: PERCENTAGE | BL2: =BM2/100 -> 0.96 | BM2: 96 | BN2: 0 | BO2: 190 | BP2: ="PERCENTAGE OF MAX WIDTH "&BL2 -> PERCENTAGE OF MAX WIDTH 0,96 | BX2: =DEGREES(BW2) -> 0
A3: dstance of two centers | C3: 209 | D3: 80 | E3: dxa_xb | F3: 180 | G3: change | H3: =xbr/radiusright -> 0.75 | I3: =ACOS(H3) -> 0.7227342478 | J3: fright | K3: dfright | L3: =2*I3/50 -> 0.02890936991 | S3: 1 | W3: =IF(O10=0,RADIANS(V8),ATAN(Source_y/Source_x)) -> 0.02299594562 | X3: =ATAN(Source_y/(Source_x-xal)) -> 0.02298560574 | Y3: AN SOUR_XAL | Z3: =PI()/2-X2+X3 -> 1.593182361 | AA3: =xal+radiusleft*COS(Z3) -> -92.68609972 | AB3: =radiusleft*SIN(Z3) -> 119.9699332 | AC3: UP TANG | AD3: =Source_x -> 200000 | AE3: =Source_y -> 4600 | AF3: =Source_x -> 200000 | AG3: =Source_y -> 4600 | AH3: =Source_x -> 200000 | AI3: =Source_y -> 4600 | AJ3: =IF(Z2<Z3,AF4,AA3) -> 0 | AK3: =IF(Z2<Z3,AG4,AB3) -> 79.37253933 | AL3: =IF(AF5<AE5,AD4,AH4) -> 0 | AM3: =IF(AF5<AE5,AE4,AI4) -> -79.37253933 | AN3: d_DON | AO3: =AN2/15 -> 3.807867327e-05 | AP3: =AO5 -> 0.02328153205 | AQ3: =ATAN((AK4-AK3)/(AJ4-AJ3)) -> 0.02259928915 | AR3: =DEGREES(AQ3) -> 1.294843889 | AT3: LOWER LIMIT ANGLE | AX3: =(AY15--AY11)/(AX15-AX11) -> -1.573053237 | AY3: =(AY9-AY11)/(AX9-AX11) -> 0.02279045389 | BH3: CENTRAL | BI3: CENTR_x | BJ3: =200*COS(gon_par_r) -> 199.969539 | BK3: CENTR_Y | BL3: =200*SIN(gon_par_r) -> 3.490481287 | BM3: UPPER RAY | BN3: f_up_ray_x | BO3: =-WIDTH_PAR_BAND/2*SIN(gon_par_r)+200*COS(gon_par_r) -> 198.6397069 | BP3: UP_RAY_Y | BQ3: =(200)*SIN(gon_par_r)+WIDTH_PAR_BAND/2*COS(gon_par_r) -> 79.67651378 | BR3: Left_x | BS3: =-WIDTH_PAR_BAND/2*SIN(gon_par_r) -> -1.329832144 | BT3: left_y | BU3: =WIDTH_PAR_BAND/2*COS(gon_par_r) -> 76.18603249 | BV3: =WIDTH_PAR_BAND/2/COS(gon_par_r)-BU3 -> 0.02321230641 | BW3: =ATAN((WIDTH_PAR_BAND/2-BU3)/(0-BS3)) -> 0.00872664626 | BX3: =DEGREES(BW3) -> 0.5
C4: 150 | D4: 80 | E4: xbr | F4: =xal+dxa_xb -> 90 | I4: =radiusleft*SIN(fleft) -> 79.37253933 | L4: ="Left Center "&xal -> Left Center -90 | M4: 100 | O4: 170 | P4: VALUE OF SLIDER X | S4: =Q8+S3 -> 0 | T4: 131 | X4: =PI()/2-X2 -> 1.570196755 | Y4: =X4-X3 -> 1.547211149 | Z4: ANGL TANG X | AA4: =Source_x -> 200000 | AB4: =Source_y -> 4600 | AC4: LOW TABG | AD4: =xal+radiusleft*COS(Y5) -> -87.17004109 | AE4: =-radiusleft*SIN(Y5) -> -119.9666259 | AF4: =0 -> 0 | AG4: =H201 -> 79.37253933 | AH4: =0 -> 0 | AI4: =-H201 -> -79.37253933 | AJ4: =Source_x -> 200000 | AK4: =Source_y -> 4600 | AL4: =Source_x -> 200000 | AM4: =Source_y -> 4600 | AN4: DIFFERECNE | AO4: =(ANG_LIMITIS-AN2)/2 -> 0.000111062797 | AQ4: MAX ANGLE | AR4: DAGON | AS4: =ANG_LIMITIS/50 -> 1.586611386e-05 | AT4: =ATAN((AK4-AK3)/(AJ4-AJ3)) -> 0.02259928915 | BI4: CENTR_Y | BJ4: =WIDTH_PAR_BAND/2 -> 76.19763776 | BN4: LOW_RA_X | BO4: =WIDTH_PAR_BAND/2*SIN(gon_par_r)+200*COS(gon_par_r) -> 201.2993712 | BP4: LOW_R_y | BQ4: =-WIDTH_PAR_BAND/2*COS(gon_par_r)+200*SIN(gon_par_r) -> -72.6955512 | BU4: =0 -> 0 | BV4: =WIDTH_PAR_BAND/2/COS(gon_par_r) -> 76.2092448 | BW4: lower tangent | BY4: =-xal+radiusleft*SIN(BP1) -> 92.09428877 | BZ4: =-radiusleft*COS(BP1) -> -119.9817234
E5: radiusright | F5: =SQRT(F6) -> 120 | H5: =radiusleft+radiusright -> 240 | L5: -100 | M5: 100 | O5: 46 | P5: VALUE OF SLIDER Y | S5: =IF(S4<Q7,IF(S4>Q8,S4,Q8),Q7) -> 0 | T5: =T4-100 -> 31 | Y5: =PI()/2-X2-AN_SOU_XAL -> 1.547211149 | Z5: ANGL -TANX | AA5: INC TAN | AB5: =AN_SOU_XAL+X2 -> 0.02358517748 | AC5: AT X - 0 | AD5: 0 | AE5: =AE3+TAN(AB5)*(AD5-AD3) -> -117.9103237 | AF5: =AE3+TAN(AB2)*(AD5-AD3) -> -79.37253933 | AJ5: =ASIN(((Source_x-AJ3)*(Source_y-AM3)-(Source_y-AK3)*(Source_x-AL3))/SQRT((Source_x-AJ3)^2+(Source_y-AK3)^2)/SQRT((Source_x-AL3)^2+(Source_y-AM3)^2)) -> 0.000793305693 | AK5: ANGLE_OF_LIMIETS | AM5: =DEGREES(ANG_LIMITIS) -> 0.04545306808 | AN5: TAN_MIN | AO5: =ATAN((AM4-AM3)/(AL4-AL3))-AO4 -> 0.02328153205 | AP5: =DEGREES(AO5) -> 1.333933527 | AQ5: =ATAN((AM4-AM3)/(AL4-AL3))-AQ3 -> 0.000793305693 | AR5: =DEGREES(AQ5) -> 0.04545306808 | AS5: angleupDOWN | AT5: =AT2-AT4 -> 0.000793305693 | AU5: DGON_EX | AV5: =angleupDOWN/50 -> 1.586611386e-05 | BI5: central 0 | BJ5: 0 | BL5: =BL3+TAN(gon_par_r)*(BJ5-BJ3) -> 0 | BN5: lOW_RA 0 | BO5: =0 -> 0 | BQ5: =BQ4+TAN(gon_par_r)*(BO5-BO4) -> -76.2092448 | BZ5: =-H201 -> -79.37253933
B6: =dxa_xb^2+2*xal*dxa_xb+radiusleft^2 | F6: =dxa_xb^2+2*xal*dxa_xb+radiusleft^2 -> 14400 | L6: ="Left Radius = "&radiusleft -> Left Radius = 120 | M6: 120 | O6: 50 | S6: =LOWER_LIMIT_ANGLE+DGON_EX*S3 -> 0.02261515527 | X6: 0 | Y6: =X6 -> 0 | Z6: =X6+1 -> 1 | AA6: =Z6 -> 1 | AB6: =Z6+1 -> 2 | AC6: =AB6 -> 2 | AD6: =AB6+1 -> 3 | AE6: =AD6 -> 3 | AF6: =AD6+1 -> 4 | AG6: =AF6 -> 4 | AH6: =AF6+1 -> 5 | AI6: =AH6 -> 5 | AJ6: =AH6+1 -> 6 | AK6: =AJ6 -> 6 | AL6: =AJ6+1 -> 7 | AM6: =AL6 -> 7 | AN6: =AL6+1 -> 8 | AO6: =AN6 -> 8 | AP6: =AN6+1 -> 9 | AQ6: =AP6 -> 9 | AR6: =AP6+1 -> 10 | AS6: =AR6 -> 10 | AT6: =AR6+1 -> 11 | AU6: =AT6 -> 11 | AV6: =AT6+1 -> 12 | AW6: =AV6 -> 12 | AX6: =AV6+1 -> 13 | AY6: =AX6 -> 13 | AZ6: =AX6+1 -> 14 | BA6: =AZ6 -> 14 | BB6: =AZ6+1 -> 15 | BC6: =BB6 -> 15 | BN6: UP_ray 0_x | BO6: 0 | BQ6: =BQ3+TAN(gon_par_r)*(BO6-BO3) -> 76.2092448
E7: FOCAL LENGTH | F7: =1/((NF-1)*(1/radiusleft+1/radiusright-(NF-1)*ddd_2/(NF*radiusleft*radiusright))) -> 63.29896647 | L7: -100 | M7: 100 | Q7: =FLOOR(R7,1) -> 0 | R7: =Y2 -> 0.03435292989 | T7: inclination initial | V7: =W3 -> 0.02299594562 | W7: =V7 -> 0.02299594562 | X7: =INITIAL_INCLINATION-d_DON*X6 -> 0.02328153205 | Y7: =X7 -> 0.02328153205 | Z7: =INITIAL_INCLINATION-d_DON*Z6 -> 0.02324345338 | AA7: =Z7 -> 0.02324345338 | AB7: =INITIAL_INCLINATION-d_DON*AB6 -> 0.0232053747 | AC7: =AB7 -> 0.0232053747 | AD7: =INITIAL_INCLINATION-d_DON*AD6 -> 0.02316729603 | AE7: =AD7 -> 0.02316729603 | AF7: =INITIAL_INCLINATION-d_DON*AF6 -> 0.02312921736 | AG7: =AF7 -> 0.02312921736 | AH7: =INITIAL_INCLINATION-d_DON*AH6 -> 0.02309113868 | AI7: =AH7 -> 0.02309113868 | AJ7: =INITIAL_INCLINATION-d_DON*AJ6 -> 0.02305306001 | AK7: =AJ7 -> 0.02305306001 | AL7: =INITIAL_INCLINATION-d_DON*AL6 -> 0.02301498134 | AM7: =AL7 -> 0.02301498134 | AN7: =INITIAL_INCLINATION-d_DON*AN6 -> 0.02297690266 | AO7: =AN7 -> 0.02297690266 | AP7: =INITIAL_INCLINATION-d_DON*AP6 -> 0.02293882399 | AQ7: =AP7 -> 0.02293882399 | AR7: =INITIAL_INCLINATION-d_DON*AR6 -> 0.02290074532 | AS7: =AR7 -> 0.02290074532 | AT7: =INITIAL_INCLINATION-d_DON*AT6 -> 0.02286266665 | AU7: =AT7 -> 0.02286266665 | AV7: =INITIAL_INCLINATION-d_DON*AV6 -> 0.02282458797 | AW7: =AV7 -> 0.02282458797 | AX7: =INITIAL_INCLINATION-d_DON*AX6 -> 0.0227865093 | AY7: =AX7 -> 0.0227865093 | AZ7: =INITIAL_INCLINATION-d_DON*AZ6 -> 0.02274843063 | BA7: =AZ7 -> 0.02274843063 | BB7: =INITIAL_INCLINATION-d_DON*BB6 -> 0.02271035195 | BC7: =BB7 -> 0.02271035195 | BH7: =radiusleft^2*(1+TAN(gon_par_r)^2) -> 14404.38738 | BI7: =(BI9-BH9*TAN(gon_par_r)+xal*TAN(gon_par_r))^2 -> 5570.874178
E8: ddd_2 | F8: =xal+radiusleft-(xbr-radiusright) -> 60 | H8: =1/radiusleft-1/radiusright -> 0 | L8: ="Distance of centers "&dxa_xb -> Distance of centers 180 | M8: 165 | Q8: =CEILING(R8,1) -> -1 | R8: =-AC2 -> -1.340296957 | U8: KLISI | V8: =DEGREES(S6) -> 1.29575295 | AX8: =AX19*NF -> 1.219326085 | BH8: 0 | BI8: =0 -> 0 | BJ8: =BH8+1 -> 1 | BK8: =BJ8 -> 1 | BL8: =BJ8+1 -> 2 | BM8: =BL8 -> 2 | BN8: =BL8+1 -> 3 | BO8: =BN8 -> 3 | BP8: =BN8+1 -> 4 | BQ8: =BP8 -> 4 | BR8: =BP8+1 -> 5 | BS8: =BR8 -> 5 | BT8: =BR8+1 -> 6 | BU8: =BT8 -> 6 | BV8: =BT8+1 -> 7 | BW8: =BV8 -> 7 | BX8: =BV8+1 -> 8 | BY8: =BX8 -> 8 | BZ8: =BX8+1 -> 9 | CA8: =BZ8 -> 9 | CB8: =BZ8+1 -> 10 | CC8: =CB8 -> 10 | CD8: =CB8+1 -> 11 | CE8: =CD8 -> 11 | CF8: =CD8+1 -> 12 | CG8: =CF8 -> 12 | CH8: =CF8+1 -> 13 | CI8: =CH8 -> 13 | CJ8: =CH8+1 -> 14 | CK8: =CJ8 -> 14 | CL8: =CJ8+1 -> 15 | CM8: =CL8 -> 15
A9: xal | B9: =xal -> -90 | C9: 0 | F9: =1/radiusleft+1/radiusright-(NF-1)*ddd_2/(NF*radiusleft*radiusright) -> 0.01449362041 | G9: =1/(NF-1)/F9 -> 63.29896647 | L9: ="Right Radius = "&FIXED(radiusright,2) -> Right Radius = 120,00 | Q9: =Q7-Q8 -> 1 | T9: INCIDENCE RIGHT | U9: X1,Y1 | V9: =Source_x -> 200000 | W9: =Source_y -> 4600 | X9: =Source_x -> 200000 | Y9: =Source_y -> 4600 | Z9: =Source_x -> 200000 | AA9: =Source_y -> 4600 | AB9: =Source_x -> 200000 | AC9: =Source_y -> 4600 | AD9: =Source_x -> 200000 | AE9: =Source_y -> 4600 | AF9: =Source_x -> 200000 | AG9: =Source_y -> 4600 | AH9: =Source_x -> 200000 | AI9: =Source_y -> 4600 | AJ9: =Source_x -> 200000 | AK9: =Source_y -> 4600 | AL9: =Source_x -> 200000 | AM9: =Source_y -> 4600 | AN9: =Source_x -> 200000 | AO9: =Source_y -> 4600 | AP9: =Source_x -> 200000 | AQ9: =Source_y -> 4600 | AR9: =Source_x -> 200000 | AS9: =Source_y -> 4600 | AT9: =Source_x -> 200000 | AU9: =Source_y -> 4600 | AV9: =Source_x -> 200000 | AW9: =Source_y -> 4600 | AX9: =Source_x -> 200000 | AY9: =Source_y -> 4600 | AZ9: =Source_x -> 200000 | BA9: =Source_y -> 4600 | BB9: =Source_x -> 200000 | BC9: =Source_y -> 4600 | BD9: INCIDENCE RIGHT | BE9: X1,Y1 | BH9: =f_up_ray_x+WIDTH_PAR_BAND/f_number_of_rays*BH8*SIN(gon_par_r) -> 198.6397069 | BI9: =f_up_ray_y-WIDTH_PAR_BAND/f_number_of_rays*COS(gon_par_r)*BI8 -> 79.67651378 | BJ9: =f_up_ray_x+WIDTH_PAR_BAND/f_number_of_rays*BJ8*SIN(gon_par_r) -> 198.8170178 | BK9: =f_up_ray_y-WIDTH_PAR_BAND/f_number_of_rays*COS(gon_par_r)*BK8 -> 69.51837611 | BL9: =f_up_ray_x+WIDTH_PAR_BAND/f_number_of_rays*BL8*SIN(gon_par_r) -> 198.9943288 | BM9: =f_up_ray_y-WIDTH_PAR_BAND/f_number_of_rays*COS(gon_par_r)*BM8 -> 59.36023845 | BN9: =f_up_ray_x+WIDTH_PAR_BAND/f_number_of_rays*BN8*SIN(gon_par_r) -> 199.1716397 | BO9: =f_up_ray_y-WIDTH_PAR_BAND/f_number_of_rays*COS(gon_par_r)*BO8 -> 49.20210078 | BP9: =f_up_ray_x+WIDTH_PAR_BAND/f_number_of_rays*BP8*SIN(gon_par_r) -> 199.3489507 | BQ9: =f_up_ray_y-WIDTH_PAR_BAND/f_number_of_rays*COS(gon_par_r)*BQ8 -> 39.04396312 | BR9: =f_up_ray_x+WIDTH_PAR_BAND/f_number_of_rays*BR8*SIN(gon_par_r) -> 199.5262617 | BS9: =f_up_ray_y-WIDTH_PAR_BAND/f_number_of_rays*COS(gon_par_r)*BS8 -> 28.88582545 | BT9: =f_up_ray_x+WIDTH_PAR_BAND/f_number_of_rays*BT8*SIN(gon_par_r) -> 199.7035726 | BU9: =f_up_ray_y-WIDTH_PAR_BAND/f_number_of_rays*COS(gon_par_r)*BU8 -> 18.72768779 | BV9: =f_up_ray_x+WIDTH_PAR_BAND/f_number_of_rays*BV8*SIN(gon_par_r) -> 199.8808836 | BW9: =f_up_ray_y-WIDTH_PAR_BAND/f_number_of_rays*COS(gon_par_r)*BW8 -> 8.56955012 | BX9: =f_up_ray_x+WIDTH_PAR_BAND/f_number_of_rays*BX8*SIN(gon_par_r) -> 200.0581945 | BY9: =f_up_ray_y-WIDTH_PAR_BAND/f_number_of_rays*COS(gon_par_r)*BY8 -> -1.588587545 | BZ9: =f_up_ray_x+WIDTH_PAR_BAND/f_number_of_rays*BZ8*SIN(gon_par_r) -> 200.2355055 | CA9: =f_up_ray_y-WIDTH_PAR_BAND/f_number_of_rays*COS(gon_par_r)*CA8 -> -11.74672521 | CB9: =f_up_ray_x+WIDTH_PAR_BAND/f_number_of_rays*CB8*SIN(gon_par_r) -> 200.4128164 | CC9: =f_up_ray_y-WIDTH_PAR_BAND/f_number_of_rays*COS(gon_par_r)*CC8 -> -21.90486288 | CD9: =f_up_ray_x+WIDTH_PAR_BAND/f_number_of_rays*CD8*SIN(gon_par_r) -> 200.5901274 | CE9: =f_up_ray_y-WIDTH_PAR_BAND/f_number_of_rays*COS(gon_par_r)*CE8 -> -32.06300054 | CF9: =f_up_ray_x+WIDTH_PAR_BAND/f_number_of_rays*CF8*SIN(gon_par_r) -> 200.7674383 | CG9: =f_up_ray_y-WIDTH_PAR_BAND/f_number_of_rays*COS(gon_par_r)*CG8 -> -42.22113821 | CH9: =f_up_ray_x+WIDTH_PAR_BAND/f_number_of_rays*CH8*SIN(gon_par_r) -> 200.9447493 | CI9: =f_up_ray_y-WIDTH_PAR_BAND/f_number_of_rays*COS(gon_par_r)*CI8 -> -52.37927587 | CJ9: =f_up_ray_x+WIDTH_PAR_BAND/f_number_of_rays*CJ8*SIN(gon_par_r) -> 201.1220602 | CK9: =f_up_ray_y-WIDTH_PAR_BAND/f_number_of_rays*COS(gon_par_r)*CK8 -> -62.53741354 | CL9: =f_up_ray_x+WIDTH_PAR_BAND/f_number_of_rays*CL8*SIN(gon_par_r) -> 201.2993712 | CM9: =f_up_ray_y-WIDTH_PAR_BAND/f_number_of_rays*COS(gon_par_r)*CM8 -> -72.6955512 | CR9: f1'=R1*n/(n-1) | CS9: =NF/(NF-1)*(-RADIUS_RIGHT) -> -245.4311927 | CT9: s2=d-f1' | CU9: =D_0-CS9 -> 286.4311927 | CV9: s2'= | CW9: =1/((1-NF)/(RADIUS_LEFT)-NF/CU9) -> -42.43518908 | CX9: f=f'(-s2'/s2) | CY9: =CS9*(-CW9/CU9) -> -36.36098069 | CZ9: =CY9-CW9 -> 6.074208385 | DA9: h1 | DB9: =X_RIGHT-RADIUS_RIGHT -> 20.5 | DC9: =DB9+CZ9 -> 26.57420838 | DD9: LEFT F | DE9: =X_RIGHT-RADIUS_RIGHT+CW9 -> -21.93518908 | DF9: pigi_xc | DG9: pigi_yc | DH9: right estia | DJ9: =DJ8 -> 0 | DK9: =-100 -> -100
A10: xbr | B10: =xbr -> 90 | C10: 0 | E10: focal_left | F10: =-F7*(1-(NF-1)*ddd_2/(NF*radiusright)) -> -46.79277665 | G10: 0 | L10: ="width of lens = "&FIXED(ddd_2,2) -> width of lens = 60,00 | O10: 1 | P10: PARALLEL BUNDLE | T10: INSIDE RADIUS AT X2 | V10: =radiusleft^2*(1+TAN(V7)^2)-(W9-V9*TAN(W7)+xal*TAN(W7))^2 -> 14403.3327 | W10: =-TAN(V7)*(W9-V9*TAN(V7))+xal -> -90 | X10: =radiusleft^2*(1+TAN(X7)^2)-(Y9-X9*TAN(Y7)+xal*TAN(Y7))^2 -> 10898.00454 | Y10: =-TAN(X7)*(Y9-X9*TAN(X7))+xal -> -88.6692694 | Z10: =radiusleft^2*(1+TAN(Z7)^2)-(AA9-Z9*TAN(AA7)+xal*TAN(AA7))^2 -> 11743.12628 | AA10: =-TAN(Z7)*(AA9-Z9*TAN(Z7))+xal -> -88.8485904 | AB10: =radiusleft^2*(1+TAN(AB7)^2)-(AC9-AB9*TAN(AC7)+xal*TAN(AC7))^2 -> 12472.01789 | AC10: =-TAN(AB7)*(AC9-AB9*TAN(AB7))+xal -> -89.02733045 | AD10: =radiusleft^2*(1+TAN(AD7)^2)-(AE9-AD9*TAN(AE7)+xal*TAN(AE7))^2 -> 13084.67998 | AE10: =-TAN(AD7)*(AE9-AD9*TAN(AD7))+xal -> -89.20548958 | AF10: =radiusleft^2*(1+TAN(AF7)^2)-(AG9-AF9*TAN(AG7)+xal*TAN(AG7))^2 -> 13581.11318 | AG10: =-TAN(AF7)*(AG9-AF9*TAN(AF7))+xal -> -89.38306777 | AH10: =radiusleft^2*(1+TAN(AH7)^2)-(AI9-AH9*TAN(AI7)+xal*TAN(AI7))^2 -> 13961.3181 | AI10: =-TAN(AH7)*(AI9-AH9*TAN(AH7))+xal -> -89.56006503 | AJ10: =radiusleft^2*(1+TAN(AJ7)^2)-(AK9-AJ9*TAN(AK7)+xal*TAN(AK7))^2 -> 14225.29535 | AK10: =-TAN(AJ7)*(AK9-AJ9*TAN(AJ7))+xal -> -89.73648137 | AL10: =radiusleft^2*(1+TAN(AL7)^2)-(AM9-AL9*TAN(AM7)+xal*TAN(AM7))^2 -> 14373.04555 | AM10: =-TAN(AL7)*(AM9-AL9*TAN(AL7))+xal -> -89.91231679 | AN10: =radiusleft^2*(1+TAN(AN7)^2)-(AO9-AN9*TAN(AO7)+xal*TAN(AO7))^2 -> 14404.56931 | AO10: =-TAN(AN7)*(AO9-AN9*TAN(AN7))+xal -> -90.08757129 | AP10: =radiusleft^2*(1+TAN(AP7)^2)-(AQ9-AP9*TAN(AQ7)+xal*TAN(AQ7))^2 -> 14319.86724 | AQ10: =-TAN(AP7)*(AQ9-AP9*TAN(AP7))+xal -> -90.26224488 | AR10: =radiusleft^2*(1+TAN(AR7)^2)-(AS9-AR9*TAN(AS7)+xal*TAN(AS7))^2 -> 14118.93995 | AS10: =-TAN(AR7)*(AS9-AR9*TAN(AR7))+xal -> -90.43633756 | AT10: =radiusleft^2*(1+TAN(AT7)^2)-(AU9-AT9*TAN(AU7)+xal*TAN(AU7))^2 -> 13801.78805 | AU10: =-TAN(AT7)*(AU9-AT9*TAN(AT7))+xal -> -90.60984933 | AV10: =radiusleft^2*(1+TAN(AV7)^2)-(AW9-AV9*TAN(AW7)+xal*TAN(AW7))^2 -> 13368.41215 | AW10: =-TAN(AV7)*(AW9-AV9*TAN(AV7))+xal -> -90.78278021 | AX10: =radiusleft^2*(1+TAN(AX7)^2)-(AY9-AX9*TAN(AY7)+xal*TAN(AY7))^2 -> 12818.81284 | AY10: =-TAN(AX7)*(AY9-AX9*TAN(AX7))+xal -> -90.95513018 | AZ10: =radiusleft^2*(1+TAN(AZ7)^2)-(BA9-AZ9*TAN(BA7)+xal*TAN(BA7))^2 -> 12152.99074 | BA10: =-TAN(AZ7)*(BA9-AZ9*TAN(AZ7))+xal -> -91.12689926 | BB10: =radiusleft^2*(1+TAN(BB7)^2)-(BC9-BB9*TAN(BC7)+xal*TAN(BC7))^2 -> 11370.94645 | BC10: =-TAN(BB7)*(BC9-BB9*TAN(BB7))+xal -> -91.29808744 | BD10: INSIDE RADIUS AT X2 | BG10: at zero | BH10: 0 | BI10: =BI9+TAN(gon_par_r)*(BH10-BH9) -> 76.2092448 | BJ10: 0 | BK10: =BK9+TAN(gon_par_r)*(BJ10-BJ9) -> 66.04801216 | BL10: 0 | BM10: =BM9+TAN(gon_par_r)*(BL10-BL9) -> 55.88677952 | BN10: 0 | BO10: =BO9+TAN(gon_par_r)*(BN10-BN9) -> 45.72554688 | BP10: 0 | BQ10: =BQ9+TAN(gon_par_r)*(BP10-BP9) -> 35.56431424 | BR10: 0 | BS10: =BS9+TAN(gon_par_r)*(BR10-BR9) -> 25.4030816 | BT10: 0 | BU10: =BU9+TAN(gon_par_r)*(BT10-BT9) -> 15.24184896 | BV10: 0 | BW10: =BW9+TAN(gon_par_r)*(BV10-BV9) -> 5.08061632 | BX10: 0 | BY10: =BY9+TAN(gon_par_r)*(BX10-BX9) -> -5.08061632 | BZ10: 0 | CA10: =CA9+TAN(gon_par_r)*(BZ10-BZ9) -> -15.24184896 | CB10: 0 | CC10: =CC9+TAN(gon_par_r)*(CB10-CB9) -> -25.4030816 | CD10: 0 | CE10: =CE9+TAN(gon_par_r)*(CD10-CD9) -> -35.56431424 | CF10: 0 | CG10: =CG9+TAN(gon_par_r)*(CF10-CF9) -> -45.72554688 | CH10: 0 | CI10: =CI9+TAN(gon_par_r)*(CH10-CH9) -> -55.88677952 | CJ10: 0 | CK10: =CK9+TAN(gon_par_r)*(CJ10-CJ9) -> -66.04801216 | CL10: 0 | CM10: =CM9+TAN(gon_par_r)*(CL10-CL9) -> -76.2092448 | CR10: f1'=R1*n/(n-1) | CS10: =NF/(NF-1)*(RADIUS_LEFT) -> 128.4678899 | CT10: s2=d-f1' | CU10: =D_0-CS10 -> -87.46788991 | CV10: s2'= | CW10: =1/((1-NF)/(-RADIUS_RIGHT)-NF/CU10) -> 30.85457176 | CX10: f=f'(-s2'/s2) | CY10: =CS10*(-CW10/CU10) -> 45.31745 | CZ10: =CY10-CW10 -> 14.46287825 | DA10: h2 | DB10: =X_LEFT+RADIUS_LEFT -> -20.5 | DC10: =DB10-CZ10 -> -34.96287825 | DD10: RIGHT F | DE10: =X_LEFT+RADIUS_LEFT-CW9 -> 21.93518908 | DF10: 100 | DG10: 36 | DH10: =DE10 -> 21.93518908 | DI10: 0 | DJ10: h2
E11: focal backward | F11: =F7*(1-(NF-1)*ddd_2/(NF*radiusleft)) -> 46.79277665 | G11: 0 | T11: CUT WITH CIRCLE | U11: X2,Y2 | V11: =IF(V10>0,(-TAN(W3)*(W9-V9*TAN(W3))+xal+SQRT(V10))/(1+TAN(W3)^2),0) -> 29.9980165 | W11: =W9+TAN(W3)*(V11-V9) -> 0.6899543794 | X11: =IF(X10>0,(-TAN(X7)*(Y9-X9*TAN(X7))+xal+SQRT(X10))/(1+TAN(X7)^2),0) -> 15.71571726 | Y11: =Y9+TAN(X7)*(X11-X9) -> -56.78192604 | Z11: =IF(Z10>0,(-TAN(Z7)*(AA9-Z9*TAN(Z7))+xal+SQRT(Z10))/(1+TAN(Z7)^2),0) -> 19.50657342 | AA11: =AA9+TAN(Z7)*(Z11-Z9) -> -49.07453899 | AB11: =IF(AB10>0,(-TAN(AB7)*(AC9-AB9*TAN(AB7))+xal+SQRT(AB10))/(1+TAN(AB7)^2),0) -> 22.63866345 | AC11: =AC9+TAN(AB7)*(AB11-AB9) -> -41.38274395 | AD11: =IF(AD10>0,(-TAN(AD7)*(AE9-AD9*TAN(AD7))+xal+SQRT(AD10))/(1+TAN(AD7)^2),0) -> 25.16928268 | AE11: =AE9+TAN(AD7)*(AD11-AD9) -> -33.70513798 | AF11: =IF(AF10>0,(-TAN(AF7)*(AG9-AF9*TAN(AF7))+xal+SQRT(AF10))/(1+TAN(AF7)^2),0) -> 27.14044118 | AG11: =AG9+TAN(AF7)*(AF11-AF9) -> -26.04068048 | AH11: =IF(AH10>0,(-TAN(AH7)*(AI9-AH9*TAN(AH7))+xal+SQRT(AH10))/(1+TAN(AH7)^2),0) -> 28.58271096 | AI11: =AI9+TAN(AH7)*(AH11-AH9) -> -18.38860142 | AJ11: =IF(AJ10>0,(-TAN(AJ7)*(AK9-AJ9*TAN(AJ7))+xal+SQRT(AJ10))/(1+TAN(AJ7)^2),0) -> 29.51766868 | AK11: =AK9+TAN(AJ7)*(AJ11-AJ9) -> -10.74834282 | AL11: =IF(AL10>0,(-TAN(AL7)*(AM9-AL9*TAN(AL7))+xal+SQRT(AL10))/(1+TAN(AL7)^2),0) -> 29.95944559 | AM11: =AM9+TAN(AL7)*(AL11-AL9) -> -3.11952139 | AN11: =IF(AN10>0,(-TAN(AN7)*(AO9-AN9*TAN(AN7))+xal+SQRT(AN10))/(1+TAN(AN7)^2),0) -> 29.91566681 | AO11: =AO9+TAN(AN7)*(AN11-AN9) -> 4.498094489 | AP11: =IF(AP10>0,(-TAN(AP7)*(AQ9-AP9*TAN(AP7))+xal+SQRT(AP10))/(1+TAN(AP7)^2),0) -> 29.38793377 | AQ11: =AQ9+TAN(AP7)*(AP11-AP9) -> 12.10459708 | AR11: =IF(AR10>0,(-TAN(AR7)*(AS9-AR9*TAN(AR7))+xal+SQRT(AR10))/(1+TAN(AR7)^2),0) -> 28.37192343 | AS11: =AS9+TAN(AR7)*(AR11-AR9) -> 19.6999427 | AT11: =IF(AT10>0,(-TAN(AT7)*(AU9-AT9*TAN(AT7))+xal+SQRT(AT10))/(1+TAN(AT7)^2),0) -> 26.85711896 | AU11: =AU9+TAN(AT7)*(AT11-AT9) -> 27.2839467 | AV11: =IF(AV10>0,(-TAN(AV7)*(AW9-AV9*TAN(AV7))+xal+SQRT(AV10))/(1+TAN(AV7)^2),0) -> 24.82613161 | AW11: =AW9+TAN(AV7)*(AV11-AV9) -> 34.85626915 | AX11: =IF(AX10>0,(-TAN(AX7)*(AY9-AX9*TAN(AX7))+xal+SQRT(AX10))/(1+TAN(AX7)^2),0) -> 22.25350751 | AY11: =AY9+TAN(AX7)*(AX11-AX9) -> 42.41638896 | AZ11: =IF(AZ10>0,(-TAN(AZ7)*(BA9-AZ9*TAN(AZ7))+xal+SQRT(AZ10))/(1+TAN(AZ7)^2),0) -> 19.10381515 | BA11: =BA9+TAN(AZ7)*(AZ11-AZ9) -> 49.96356191 | BB11: =IF(BB10>0,(-TAN(BB7)*(BC9-BB9*TAN(BB7))+xal+SQRT(BB10))/(1+TAN(BB7)^2),0) -> 15.32864395 | BC11: =BC9+TAN(BB7)*(BB11-BB9) -> 57.49675437 | BD11: CUT WITH CIRCLE | BE11: X2,Y2 | BG11: x1,y1 | BH11: =BH9 -> 198.6397069 | BI11: =BI9 -> 79.67651378 | BJ11: 198.8170178 | BK11: 69.51837611 | BL11: 198.9943288 | BM11: 59.36023845 | BN11: 199.1716397 | BO11: 49.20210078 | BP11: 199.3489507 | BQ11: 39.04396312 | BR11: 199.5262617 | BS11: 28.88582545 | BT11: 199.7035726 | BU11: 18.72768779 | BV11: 199.8808836 | BW11: 8.56955012 | BX11: 200.0581945 | BY11: -1.588587545 | BZ11: 200.2355055 | CA11: -11.74672521 | CB11: 200.4128164 | CC11: -21.90486288 | CD11: 200.5901274 | CE11: -32.06300054 | CF11: 200.7674383 | CG11: -42.22113821 | CH11: 200.9447493 | CI11: -52.37927587 | CJ11: 201.1220602 | CK11: -62.53741354 | CL11: 201.2993712 | CM11: -72.6955512 | DH11: =DH10 -> 21.93518908 | DI11: 0 | DJ11: =DC10 -> -34.96287825 | DK11: -100
A12: estia | B12: =1/(1/(NF-1)*(1/radiusleft+1/radiusright)) -> 65.4 | E12: H1 | F12: =-F7*(NF-1)*ddd_2/(-radiusright) -> 34.49793673 | T12: SIN(INCID) | U12: REFRACT | V12: =((V11-V9)*(W11-0)-(V11-xal)*(W11-W9))/SQRT((V11-V9)^2+(W11-W9)^2)/radiusleft -> 0.01724543918 | W12: =ASIN(V12/NF) -> 0.008251499945 | X12: =((X11-X9)*(Y11-0)-(X11-xal)*(Y11-Y9))/SQRT((X11-X9)^2+(Y11-Y9)^2)/radiusleft -> 0.4935628293 | Y12: =ASIN(X12/NF) -> 0.2384064645 | Z12: =((Z11-Z9)*(AA11-0)-(Z11-xal)*(AA11-AA9))/SQRT((Z11-Z9)^2+(AA11-AA9)^2)/radiusleft -> 0.4300530407 | AA12: =ASIN(Z12/NF) -> 0.2072474199 | AB12: =((AB11-AB9)*(AC11-0)-(AB11-xal)*(AC11-AC9))/SQRT((AB11-AB9)^2+(AC11-AC9)^2)/radiusleft -> 0.3665432515 | AC12: =ASIN(AB12/NF) -> 0.1762912763 | AD12: =((AD11-AD9)*(AE11-0)-(AD11-xal)*(AE11-AE9))/SQRT((AD11-AD9)^2+(AE11-AE9)^2)/radiusleft -> 0.3030334617 | AE12: =ASIN(AD12/NF) -> 0.1455049749 | AF12: =((AF11-AF9)*(AG11-0)-(AF11-xal)*(AG11-AG9))/SQRT((AF11-AF9)^2+(AG11-AG9)^2)/radiusleft -> 0.2395236715 | AG12: =ASIN(AF12/NF) -> 0.1148569957 | AH12: =((AH11-AH9)*(AI11-0)-(AH11-xal)*(AI11-AI9))/SQRT((AH11-AH9)^2+(AI11-AI9)^2)/radiusleft -> 0.176013881 | AI12: =ASIN(AH12/NF) -> 0.08431703918 | AJ12: =((AJ11-AJ9)*(AK11-0)-(AJ11-xal)*(AK11-AK9))/SQRT((AJ11-AJ9)^2+(AK11-AK9)^2)/radiusleft -> 0.1125040902 | AK12: =ASIN(AJ12/NF) -> 0.05385573869 | AL12: =((AL11-AL9)*(AM11-0)-(AL11-xal)*(AM11-AM9))/SQRT((AL11-AL9)^2+(AM11-AM9)^2)/radiusleft -> 0.04899429927 | AM12: =ASIN(AL12/NF) -> 0.02344439606 | AN12: =((AN11-AN9)*(AO11-0)-(AN11-xal)*(AO11-AO9))/SQRT((AN11-AN9)^2+(AO11-AO9)^2)/radiusleft -> -0.01451549176 | AO12: =ASIN(AN12/NF) -> -0.006945267202 | AP12: =((AP11-AP9)*(AQ11-0)-(AP11-xal)*(AQ11-AQ9))/SQRT((AP11-AP9)^2+(AQ11-AQ9)^2)/radiusleft -> -0.07802528276 | AQ12: =ASIN(AP12/NF) -> -0.03734134855 | AR12: =((AR11-AR9)*(AS11-0)-(AR11-xal)*(AS11-AS9))/SQRT((AR11-AR9)^2+(AS11-AS9)^2)/radiusleft -> -0.1415350736 | AS12: =ASIN(AR12/NF) -> -0.06777199898 | AT12: =((AT11-AT9)*(AU11-0)-(AT11-xal)*(AU11-AU9))/SQRT((AT11-AT9)^2+(AU11-AU9)^2)/radiusleft -> -0.2050448643 | AU12: =ASIN(AT12/NF) -> -0.09826565874 | AV12: =((AV11-AV9)*(AW11-0)-(AV11-xal)*(AW11-AW9))/SQRT((AV11-AV9)^2+(AW11-AW9)^2)/radiusleft -> -0.2685546547 | AW12: =ASIN(AV12/NF) -> -0.1288512999 | AX12: =((AX11-AX9)*(AY11-0)-(AX11-xal)*(AY11-AY9))/SQRT((AX11-AX9)^2+(AY11-AY9)^2)/radiusleft -> -0.3320644447 | AY12: =ASIN(AX12/NF) -> -0.1595586815 | AZ12: =((AZ11-AZ9)*(BA11-0)-(AZ11-xal)*(BA11-BA9))/SQRT((AZ11-AZ9)^2+(BA11-BA9)^2)/radiusleft -> -0.3955742342 | BA12: =ASIN(AZ12/NF) -> -0.1904186236 | BB12: =((BB11-BB9)*(BC11-0)-(BB11-xal)*(BC11-BC9))/SQRT((BB11-BB9)^2+(BC11-BC9)^2)/radiusleft -> -0.4590840232 | BC12: =ASIN(BB12/NF) -> -0.2214633079 | BF12: INSIDE RADIUS AT X2 | BH12: =radiusleft^2*(1+TAN(gon_par_r)^2)-(BI11-BH11*TAN(gon_par_r)+xal*TAN(gon_par_r))^2 -> 8833.513204 | BI12: =-TAN(gon_par_r)*(BI11-BH11*TAN(gon_par_r))+xal -> -91.33023732 | BJ12: =radiusleft^2*(1+TAN(gon_par_r)^2)-(BK11-BJ11*TAN(gon_par_r)+xal*TAN(gon_par_r))^2 -> 10247.09659 | BK12: =-TAN(gon_par_r)*(BK11-BJ11*TAN(gon_par_r))+xal -> -91.15287234 | BL12: =radiusleft^2*(1+TAN(gon_par_r)^2)-(BM11-BL11*TAN(gon_par_r)+xal*TAN(gon_par_r))^2 -> 11454.17868 | BM12: =-TAN(gon_par_r)*(BM11-BL11*TAN(gon_par_r))+xal -> -90.97550737 | BN12: =radiusleft^2*(1+TAN(gon_par_r)^2)-(BO11-BN11*TAN(gon_par_r)+xal*TAN(gon_par_r))^2 -> 12454.75947 | BO12: =-TAN(gon_par_r)*(BO11-BN11*TAN(gon_par_r))+xal -> -90.79814239 | BP12: =radiusleft^2*(1+TAN(gon_par_r)^2)-(BQ11-BP11*TAN(gon_par_r)+xal*TAN(gon_par_r))^2 -> 13248.83897 | BQ12: =-TAN(gon_par_r)*(BQ11-BP11*TAN(gon_par_r))+xal -> -90.62077741 | BR12: =radiusleft^2*(1+TAN(gon_par_r)^2)-(BS11-BR11*TAN(gon_par_r)+xal*TAN(gon_par_r))^2 -> 13836.41716 | BS12: =-TAN(gon_par_r)*(BS11-BR11*TAN(gon_par_r))+xal -> -90.44341244 | BT12: =radiusleft^2*(1+TAN(gon_par_r)^2)-(BU11-BT11*TAN(gon_par_r)+xal*TAN(gon_par_r))^2 -> 14217.49406 | BU12: =-TAN(gon_par_r)*(BU11-BT11*TAN(gon_par_r))+xal -> -90.26604746 | BV12: =radiusleft^2*(1+TAN(gon_par_r)^2)-(BW11-BV11*TAN(gon_par_r)+xal*TAN(gon_par_r))^2 -> 14392.06967 | BW12: =-TAN(gon_par_r)*(BW11-BV11*TAN(gon_par_r))+xal -> -90.08868249 | BX12: =radiusleft^2*(1+TAN(gon_par_r)^2)-(BY11-BX11*TAN(gon_par_r)+xal*TAN(gon_par_r))^2 -> 14360.14397 | BY12: =-TAN(gon_par_r)*(BY11-BX11*TAN(gon_par_r))+xal -> -89.91131751 | BZ12: =radiusleft^2*(1+TAN(gon_par_r)^2)-(CA11-BZ11*TAN(gon_par_r)+xal*TAN(gon_par_r))^2 -> 14121.71698 | CA12: =-TAN(gon_par_r)*(CA11-BZ11*TAN(gon_par_r))+xal -> -89.73395254 | CB12: =radiusleft^2*(1+TAN(gon_par_r)^2)-(CC11-CB11*TAN(gon_par_r)+xal*TAN(gon_par_r))^2 -> 13676.78869 | CC12: =-TAN(gon_par_r)*(CC11-CB11*TAN(gon_par_r))+xal -> -89.55658756 | CD12: =radiusleft^2*(1+TAN(gon_par_r)^2)-(CE11-CD11*TAN(gon_par_r)+xal*TAN(gon_par_r))^2 -> 13025.3591 | CE12: =-TAN(gon_par_r)*(CE11-CD11*TAN(gon_par_r))+xal -> -89.37922259 | CF12: =radiusleft^2*(1+TAN(gon_par_r)^2)-(CG11-CF11*TAN(gon_par_r)+xal*TAN(gon_par_r))^2 -> 12167.42821 | CG12: =-TAN(gon_par_r)*(CG11-CF11*TAN(gon_par_r))+xal -> -89.20185761 | CH12: =radiusleft^2*(1+TAN(gon_par_r)^2)-(CI11-CH11*TAN(gon_par_r)+xal*TAN(gon_par_r))^2 -> 11102.99603 | CI12: =-TAN(gon_par_r)*(CI11-CH11*TAN(gon_par_r))+xal -> -89.02449263 | CJ12: =radiusleft^2*(1+TAN(gon_par_r)^2)-(CK11-CJ11*TAN(gon_par_r)+xal*TAN(gon_par_r))^2 -> 9832.062548 | CK12: =-TAN(gon_par_r)*(CK11-CJ11*TAN(gon_par_r))+xal -> -88.84712766 | CL12: =radiusleft^2*(1+TAN(gon_par_r)^2)-(CM11-CL11*TAN(gon_par_r)+xal*TAN(gon_par_r))^2 -> 8354.62777 | CM12: =-TAN(gon_par_r)*(CM11-CL11*TAN(gon_par_r))+xal -> -88.66976268 | CN12: =radiusleft^2*(1+TAN(gon_par_r)^2)-(CO11-CN11*TAN(gon_par_r)+xal*TAN(gon_par_r))^2 -> 14401.91948 | CO12: =-TAN(gon_par_r)*(CO11-CN11*TAN(gon_par_r))+xal -> -90 | DJ12: =DJ11 -> -34.96287825 | DK12: =100 -> 100
E13: H2 | F13: =-F7*(NF-1)*ddd_2/(NF*radiusleft) -> -16.50618982 | T13: INSIDE INSIDENCE | V13: =ASIN((radiusleft)*W11/radiusleft^2) -> 0.005749651507 | W13: =W12+V13 -> 0.01400115145 | X13: =ASIN((radiusleft)*Y11/radiusleft^2) -> -0.4929000524 | Y13: =Y12+X13 -> -0.2544935878 | Z13: =ASIN((radiusleft)*AA11/radiusleft^2) -> -0.4213080738 | AA13: =AA12+Z13 -> -0.2140606539 | AB13: =ASIN((radiusleft)*AC11/radiusleft^2) -> -0.3520855825 | AC13: =AC12+AB13 -> -0.1757943062 | AD13: =ASIN((radiusleft)*AE11/radiusleft^2) -> -0.2847068869 | AE13: =AE12+AD13 -> -0.139201912 | AF13: =ASIN((radiusleft)*AG11/radiusleft^2) -> -0.2187459941 | AG13: =AG12+AF13 -> -0.1038889984 | AH13: =ASIN((radiusleft)*AI11/radiusleft^2) -> -0.1538444959 | AI13: =AI12+AH13 -> -0.06952745674 | AJ13: =ASIN((radiusleft)*AK11/radiusleft^2) -> -0.08968972282 | AK13: =AK12+AJ13 -> -0.03583398413 | AL13: =ASIN((radiusleft)*AM11/radiusleft^2) -> -0.02599894046 | AM13: =AM12+AL13 -> -0.002554544401 | AN13: =ASIN((radiusleft)*AO11/radiusleft^2) -> 0.0374929042 | AO13: =AO12+AN13 -> 0.030547637 | AP13: =ASIN((radiusleft)*AQ11/radiusleft^2) -> 0.1010434934 | AQ13: =AQ12+AP13 -> 0.06370214481 | AR13: =ASIN((radiusleft)*AS11/radiusleft^2) -> 0.1649126728 | AS13: =AS12+AR13 -> 0.09714067382 | AT13: =ASIN((radiusleft)*AU11/radiusleft^2) -> 0.229372212 | AU13: =AU12+AT13 -> 0.1311065532 | AV13: =ASIN((radiusleft)*AW11/radiusleft^2) -> 0.2947168392 | AW13: =AW12+AV13 -> 0.1658655393 | AX13: =ASIN((radiusleft)*AY11/radiusleft^2) -> 0.3612778788 | AY13: =AY12+AX13 -> 0.2017191973 | AZ13: =ASIN((radiusleft)*BA11/radiusleft^2) -> 0.4294414294 | BA13: =BA12+AZ13 -> 0.2390228059 | BB13: =ASIN((radiusleft)*BC11/radiusleft^2) -> 0.4996742262 | BC13: =BC12+BB13 -> 0.2782109183 | BF13: CUT WITH CIRCLE | BG13: X2,Y2 | BH13: =IF(BH12>0,(-TAN(gon_par_r)*(BI11-BH11*TAN(gon_par_r))+xal+SQRT(BH12))/(1+TAN(gon_par_r)^2),0) -> 2.655724971 | BI13: =BI11+TAN(gon_par_r)*(BH13-BH11) -> 76.25560065 | BJ13: =IF(BJ12>0,(-TAN(gon_par_r)*(BK11-BJ11*TAN(gon_par_r))+xal+SQRT(BJ12))/(1+TAN(gon_par_r)^2),0) -> 10.07200266 | BK13: =BK11+TAN(gon_par_r)*(BJ13-BJ11) -> 66.22381962 | BL13: =IF(BL12>0,(-TAN(gon_par_r)*(BM11-BL11*TAN(gon_par_r))+xal+SQRT(BL12))/(1+TAN(gon_par_r)^2),0) -> 16.04380113 | BM13: =BM11+TAN(gon_par_r)*(BL13-BL11) -> 56.16682511 | BN13: =IF(BN12>0,(-TAN(gon_par_r)*(BO11-BN11*TAN(gon_par_r))+xal+SQRT(BN12))/(1+TAN(gon_par_r)^2),0) -> 20.79641506 | BO13: =BO11+TAN(gon_par_r)*(BN13-BN11) -> 46.08854965 | BP13: =IF(BP12>0,(-TAN(gon_par_r)*(BQ11-BP11*TAN(gon_par_r))+xal+SQRT(BP12))/(1+TAN(gon_par_r)^2),0) -> 24.47536646 | BQ13: =BQ11+TAN(gon_par_r)*(BP13-BP11) -> 35.99153335 | BR13: =IF(BR12>0,(-TAN(gon_par_r)*(BS11-BR11*TAN(gon_par_r))+xal+SQRT(BR12))/(1+TAN(gon_par_r)^2),0) -> 27.17660827 | BS13: =BS11+TAN(gon_par_r)*(BR13-BR11) -> 25.87745106 | BT13: =IF(BT12>0,(-TAN(gon_par_r)*(BU11-BT11*TAN(gon_par_r))+xal+SQRT(BT12))/(1+TAN(gon_par_r)^2),0) -> 28.96226208 | BU13: =BU11+TAN(gon_par_r)*(BT13-BT11) -> 15.74738712 | BV13: =IF(BV12>0,(-TAN(gon_par_r)*(BW11-BV11*TAN(gon_par_r))+xal+SQRT(BV12))/(1+TAN(gon_par_r)^2),0) -> 29.86916938 | BW13: =BW11+TAN(gon_par_r)*(BV13-BV11) -> 5.601984611 | BX13: =IF(BX12>0,(-TAN(gon_par_r)*(BY11-BX11*TAN(gon_par_r))+xal+SQRT(BX12))/(1+TAN(gon_par_r)^2),0) -> 29.91338664 | BY13: =BY11+TAN(gon_par_r)*(BX13-BX11) -> -4.558476214 | BZ13: =IF(BZ12>0,(-TAN(gon_par_r)*(CA11-BZ11*TAN(gon_par_r))+xal+SQRT(BZ12))/(1+TAN(gon_par_r)^2),0) -> 29.09201438 | CA13: =CA11+TAN(gon_par_r)*(BZ13-BZ11) -> -14.73404596 | CB13: =IF(CB12>0,(-TAN(gon_par_r)*(CC11-CB11*TAN(gon_par_r))+xal+SQRT(CB12))/(1+TAN(gon_par_r)^2),0) -> 27.3828727 | CC13: =CC11+TAN(gon_par_r)*(CB13-CB11) -> -24.92511178 | CD13: =IF(CD12>0,(-TAN(gon_par_r)*(CE11-CD11*TAN(gon_par_r))+xal+SQRT(CD12))/(1+TAN(gon_par_r)^2),0) -> 24.74193439 | CE13: =CE11+TAN(gon_par_r)*(CD13-CD11) -> -35.13244217 | CF13: =IF(CF12>0,(-TAN(gon_par_r)*(CG11-CF11*TAN(gon_par_r))+xal+SQRT(CF12))/(1+TAN(gon_par_r)^2),0) -> 21.0977804 | CG13: =CG11+TAN(gon_par_r)*(CF13-CF11) -> -45.35728375 | CH13: =IF(CH12>0,(-TAN(gon_par_r)*(CI11-CH11*TAN(gon_par_r))+xal+SQRT(CH12))/(1+TAN(gon_par_r)^2),0) -> 16.34128361 | CI13: =CI11+TAN(gon_par_r)*(CH13-CH11) -> -55.60154135 | CJ13: =IF(CJ12>0,(-TAN(gon_par_r)*(CK11-CJ11*TAN(gon_par_r))+xal+SQRT(CJ12))/(1+TAN(gon_par_r)^2),0) -> 10.30648962 | CK13: =CK11+TAN(gon_par_r)*(CJ13-CJ11) -> -65.86811171 | CL13: =IF(CL12>0,(-TAN(gon_par_r)*(CM11-CL11*TAN(gon_par_r))+xal+SQRT(CL12))/(1+TAN(gon_par_r)^2),0) -> 2.733057547 | CM13: =CM11+TAN(gon_par_r)*(CL13-CL11) -> -76.1615391 | CN13: =IF(CN12>0,(-TAN(gon_par_r)*(CO11-CN11*TAN(gon_par_r))+xal+SQRT(CN12))/(1+TAN(gon_par_r)^2),0) -> 29.99885753 | CO13: =CO11+TAN(gon_par_r)*(CN13-CN11) -> 0.523632006
E14: THESI H1 | F14: =xal+radiusleft+F12 -> 64.49793673 | S14: CUT WITH CIRCLE | T14: INSIDE INCLINATION | V14: =radiusright^2*(1+W14^2)-(W11-V11*W14+xbr*W14)^2 -> 14400.48201 | W14: =TAN(W13) -> 0.01400206642 | X14: =radiusright^2*(1+Y14^2)-(Y11-X11*Y14+xbr*Y14)^2 -> 9582.351749 | Y14: =TAN(Y13) -> -0.2601340194 | Z14: =radiusright^2*(1+AA14^2)-(AA11-Z11*AA14+xbr*AA14)^2 -> 10933.27282 | AA14: =TAN(AA13) -> -0.2173912733 | AB14: =radiusright^2*(1+AC14^2)-(AC11-AB11*AC14+xbr*AC14)^2 -> 12008.33537 | AC14: =TAN(AC13) -> -0.1776278696 | AD14: =radiusright^2*(1+AE14^2)-(AE11-AD11*AE14+xbr*AE14)^2 -> 12851.82494 | AE14: =TAN(AE13) -> -0.1401080491 | AF14: =radiusright^2*(1+AG14^2)-(AG11-AF11*AG14+xbr*AG14)^2 -> 13494.12925 | AG14: =TAN(AG13) -> -0.1042643744 | AH14: =radiusright^2*(1+AI14^2)-(AI11-AH11*AI14+xbr*AI14)^2 -> 13956.10231 | AI14: =TAN(AI13) -> -0.06963970727 | AJ14: =radiusright^2*(1+AK14^2)-(AK11-AJ11*AK14+xbr*AK14)^2 -> 14251.66812 | AK14: =TAN(AK13) -> -0.03584932985 | AL14: =radiusright^2*(1+AM14^2)-(AM11-AL11*AM14+xbr*AM14)^2 -> 14389.38211 | AM14: =TAN(AM13) -> -0.002554549958 | AN14: =radiusright^2*(1+AO14^2)-(AO11-AN11*AO14+xbr*AO14)^2 -> 14373.32502 | AO14: =TAN(AO13) -> 0.03055714247 | AP14: =radiusright^2*(1+AQ14^2)-(AQ11-AP11*AQ14+xbr*AQ14)^2 -> 14203.52197 | AQ14: =TAN(AQ13) -> 0.06378845189 | AR14: =radiusright^2*(1+AS14^2)-(AS11-AR11*AS14+xbr*AS14)^2 -> 13875.97278 | AS14: =TAN(AS13) -> 0.0974473814 | AT14: =radiusright^2*(1+AU14^2)-(AU11-AT11*AU14+xbr*AU14)^2 -> 13382.30185 | AU14: =TAN(AU13) -> 0.131862948 | AV14: =radiusright^2*(1+AW14^2)-(AW11-AV11*AW14+xbr*AW14)^2 -> 12708.96265 | AW14: =TAN(AW13) -> 0.1674035295 | AX14: =radiusright^2*(1+AY14^2)-(AY11-AX11*AY14+xbr*AY14)^2 -> 11835.8363 | AY14: =TAN(AY13) -> 0.2045005027 | AZ14: =radiusright^2*(1+BA14^2)-(BA11-AZ11*BA14+xbr*BA14)^2 -> 10733.91175 | BA14: =TAN(BA13) -> 0.2436812354 | BB14: =radiusright^2*(1+BC14^2)-(BC11-BB11*BC14+xbr*BC14)^2 -> 9361.456513 | BC14: =TAN(BC13) -> 0.2856183033 | BF14: SIN(INCID) | BG14: REFRACT | BH14: =((BH13-BH11)*(BI13-0)-(BH13-xal)*(BI13-BI11))/SQRT((BH13-BH11)^2+(BI13-BI11)^2)/radiusleft -> -0.6218910098 | BI14: =ASIN(BH14/NF) -> -0.3021311581 | BJ14: =((BJ13-BJ11)*(BK13-0)-(BJ13-xal)*(BK13-BK11))/SQRT((BJ13-BJ11)^2+(BK13-BK11)^2)/radiusleft -> -0.5372269679 | BK14: =ASIN(BJ14/NF) -> -0.2599646565 | BL14: =((BL13-BL11)*(BM13-0)-(BL13-xal)*(BM13-BM11))/SQRT((BL13-BL11)^2+(BM13-BM11)^2)/radiusleft -> -0.4525629259 | BM14: =ASIN(BL14/NF) -> -0.2182662002 | BN14: =((BN13-BN11)*(BO13-0)-(BN13-xal)*(BO13-BO11))/SQRT((BN13-BN11)^2+(BO13-BO11)^2)/radiusleft -> -0.367898884 | BO14: =ASIN(BN14/NF) -> -0.1769501545 | BP14: =((BP13-BP11)*(BQ13-0)-(BP13-xal)*(BQ13-BQ11))/SQRT((BP13-BP11)^2+(BQ13-BQ11)^2)/radiusleft -> -0.283234842 | BQ14: =ASIN(BP14/NF) -> -0.13593734 | BR14: =((BR13-BR11)*(BS13-0)-(BR13-xal)*(BS13-BS11))/SQRT((BR13-BR11)^2+(BS13-BS11)^2)/radiusleft -> -0.1985708001 | BS14: =ASIN(BR14/NF) -> -0.09515347671 | BT14: =((BT13-BT11)*(BU13-0)-(BT13-xal)*(BU13-BU11))/SQRT((BT13-BT11)^2+(BU13-BU11)^2)/radiusleft -> -0.1139067581 | BU14: =ASIN(BT14/NF) -> -0.05452785835 | BV14: =((BV13-BV11)*(BW13-0)-(BV13-xal)*(BW13-BW11))/SQRT((BV13-BV11)^2+(BW13-BW11)^2)/radiusleft -> -0.02924271615 | BW14: =ASIN(BV14/NF) -> -0.01399218678 | BX14: =((BX13-BX11)*(BY13-0)-(BX13-xal)*(BY13-BY11))/SQRT((BX13-BX11)^2+(BY13-BY11)^2)/radiusleft -> 0.0554213258 | BY14: =ASIN(BX14/NF) -> 0.02652048946 | BZ14: =((BZ13-BZ11)*(CA13-0)-(BZ13-xal)*(CA13-CA11))/SQRT((BZ13-BZ11)^2+(CA13-CA11)^2)/radiusleft -> 0.1400853678 | CA14: =ASIN(BZ14/NF) -> 0.06707678013 | CB14: =((CB13-CB11)*(CC13-0)-(CB13-xal)*(CC13-CC11))/SQRT((CB13-CB11)^2+(CC13-CC11)^2)/radiusleft -> 0.2247494097 | CC14: =ASIN(CB14/NF) -> 0.107743944 | CD14: =((CD13-CD11)*(CE13-0)-(CD13-xal)*(CE13-CE11))/SQRT((CD13-CD11)^2+(CE13-CE11)^2)/radiusleft -> 0.3094134517 | CE14: =ASIN(CD14/NF) -> 0.1485909065 | CF14: =((CF13-CF11)*(CG13-0)-(CF13-xal)*(CG13-CG11))/SQRT((CF13-CF11)^2+(CG13-CG11)^2)/radiusleft -> 0.3940774936 | CG14: =ASIN(CF14/NF) -> 0.1896893484 | CH14: =((CH13-CH11)*(CI13-0)-(CH13-xal)*(CI13-CI11))/SQRT((CH13-CH11)^2+(CI13-CI11)^2)/radiusleft -> 0.4787415356 | CI14: =ASIN(CH14/NF) -> 0.2311149138 | CJ14: =((CJ13-CJ11)*(CK13-0)-(CJ13-xal)*(CK13-CK11))/SQRT((CJ13-CJ11)^2+(CK13-CK11)^2)/radiusleft -> 0.5634055775 | CK14: =ASIN(CJ14/NF) -> 0.2729485987 | CL14: =((CL13-CL11)*(CM13-0)-(CL13-xal)*(CM13-CM11))/SQRT((CL13-CL11)^2+(CM13-CM11)^2)/radiusleft -> 0.6480696195 | CM14: =ASIN(CL14/NF) -> 0.3152783965 | CN14: =((CN13-CN11)*(CO13-0)-(CN13-xal)*(CO13-CO11))/SQRT((CN13-CN11)^2+(CO13-CO11)^2)/radiusleft -> -0.01308930483 | CO14: =ASIN(CN14/NF) -> -0.006262866218
E15: THESI H2 | F15: =xbr-radiusright-F13 -> -13.49381018 | R15: -222.925734 | S15: 57.57854484 | U15: x3,y3 | V15: =IF(ABS((V12)/NF)<1,(-W14*(W11-V11*W14)+xbr-SQRT(V14))/(1+W14^2),V11) -> -29.99990607 | W15: =IF(ABS((V12)/NF)<1,W11+W14*(V15-V11),W11) -> -0.1501405173 | X15: =IF(ABS((X12)/NF)<1,(-Y14*(Y11-X11*Y14)+xbr-SQRT(X14))/(1+Y14^2),X11) -> -20.22809107 | Y15: =IF(ABS((X12)/NF)<1,Y11+Y14*(X15-X11),Y11) -> -47.43171871 | Z15: =IF(ABS((Z12)/NF)<1,(-AA14*(AA11-Z11*AA14)+xbr-SQRT(Z14))/(1+AA14^2),Z11) -> -23.21184006 | AA15: =IF(ABS((Z12)/NF)<1,AA11+AA14*(Z15-Z11),AA11) -> -39.78792869 | AB15: =IF(ABS((AB12)/NF)<1,(-AC14*(AC11-AB11*AC14)+xbr-SQRT(AB14))/(1+AC14^2),AB11) -> -25.41704185 | AC15: =IF(ABS((AB12)/NF)<1,AC11+AC14*(AB15-AB11),AC11) -> -32.8467114 | AD15: =IF(ABS((AD12)/NF)<1,(-AE14*(AE11-AD11*AE14)+xbr-SQRT(AD14))/(1+AE14^2),AD11) -> -27.06291882 | AE15: =IF(ABS((AD12)/NF)<1,AE11+AE14*(AD15-AD11),AE11) -> -26.38698613 | AF15: =IF(ABS((AF12)/NF)<1,(-AG14*(AG11-AF11*AG14)+xbr-SQRT(AF14))/(1+AG14^2),AF11) -> -28.27690392 | AG15: =IF(ABS((AF12)/NF)<1,AG11+AG14*(AF15-AF11),AG11) -> -20.26262566 | AH15: =IF(ABS((AH12)/NF)<1,(-AI14*(AI11-AH11*AI14)+xbr-SQRT(AH14))/(1+AI14^2),AH11) -> -29.13660454 | AI15: =IF(ABS((AH12)/NF)<1,AI11+AI14*(AH15-AH11),AI11) -> -14.36904518 | AJ15: =IF(ABS((AJ12)/NF)<1,(-AK14*(AK11-AJ11*AK14)+xbr-SQRT(AJ14))/(1+AK14^2),AJ11) -> -29.68957987 | AK15: =IF(ABS((AJ12)/NF)<1,AK11+AK14*(AJ15-AJ11),AK11) -> -8.625802634 | AL15: =IF(ABS((AL12)/NF)<1,(-AM14*(AM11-AL11*AM14)+xbr-SQRT(AL14))/(1+AM14^2),AL11) -> -29.96332856 | AM15: =IF(ABS((AL12)/NF)<1,AM11+AM14*(AL15-AL11),AM11) -> -2.96644567 | AN15: =IF(ABS((AN12)/NF)<1,(-AO14*(AO11-AN11*AO14)+xbr-SQRT(AN14))/(1+AO14^2),AN11) -> -29.97033374 | AO15: =IF(ABS((AN12)/NF)<1,AO11+AO14*(AN15-AN11),AO11) -> 2.668149438 | AP15: =IF(ABS((AP12)/NF)<1,(-AQ14*(AQ11-AP11*AQ14)+xbr-SQRT(AP14))/(1+AQ14^2),AP11) -> -29.71019503 | AQ15: =IF(ABS((AP12)/NF)<1,AQ11+AQ14*(AP15-AP11),AQ11) -> 8.334818936 | AR15: =IF(ABS((AR12)/NF)<1,(-AS14*(AS11-AR11*AS14)+xbr-SQRT(AR14))/(1+AS14^2),AR11) -> -29.16961288 | AS15: =IF(ABS((AR12)/NF)<1,AS11+AS14*(AR15-AR11),AS11) -> 14.09267067 | AT15: =IF(ABS((AT12)/NF)<1,(-AU14*(AU11-AT11*AU14)+xbr-SQRT(AT14))/(1+AU14^2),AT11) -> -28.32022635 | AU15: =IF(ABS((AT12)/NF)<1,AU11+AU14*(AT15-AT11),AU11) -> 20.00809929 | AV15: =IF(ABS((AV12)/NF)<1,(-AW14*(AW11-AV11*AW14)+xbr-SQRT(AV14))/(1+AW14^2),AV11) -> -27.11354308 | AW15: =IF(ABS((AV12)/NF)<1,AW11+AW14*(AV15-AV11),AW11) -> 26.16138429 | AX15: =IF(ABS((AX12)/NF)<1,(-AY14*(AY11-AX11*AY14)+xbr-SQRT(AX14))/(1+AY14^2),AX11) -> -25.47094437 | AY15: =IF(ABS((AX12)/NF)<1,AY11+AY14*(AX15-AX11),AY11) -> 32.65671456 | AZ15: =IF(ABS((AZ12)/NF)<1,(-BA14*(BA11-AZ11*BA14)+xbr-SQRT(AZ14))/(1+BA14^2),AZ11) -> -23.26395456 | BA15: =IF(ABS((AZ12)/NF)<1,BA11+BA14*(AZ15-AZ11),BA11) -> 39.63933145 | BB15: =IF(ABS((BB12)/NF)<1,(-BC14*(BC11-BB11*BC14)+xbr-SQRT(BB14))/(1+BC14^2),BB11) -> -20.27248336 | BC15: =IF(ABS((BB12)/NF)<1,BC11+BC14*(BB15-BB11),BC11) -> 47.32842079 | BD15: x3,y3 | BF15: INSIDE INSIDENCE | BH15: =ASIN((radiusleft)*BI13/radiusleft^2) -> 0.6886084498 | BI15: =BI14+BH15 -> 0.3864772917 | BJ15: =ASIN((radiusleft)*BK13/radiusleft^2) -> 0.5845991728 | BK15: =BK14+BJ15 -> 0.3246345163 | BL15: =ASIN((radiusleft)*BM13/radiusleft^2) -> 0.4870906398 | BM15: =BM14+BL15 -> 0.2688244396 | BN15: =ASIN((radiusleft)*BO13/radiusleft^2) -> 0.3942017097 | BO15: =BO14+BN15 -> 0.2172515553 | BP15: =ASIN((radiusleft)*BQ13/radiusleft^2) -> 0.3046186927 | BQ15: =BQ14+BP15 -> 0.1686813527 | BR15: =ASIN((radiusleft)*BS13/radiusleft^2) -> 0.2173527588 | BS15: =BS14+BR15 -> 0.1221992821 | BT15: =ASIN((radiusleft)*BU13/radiusleft^2) -> 0.1316078186 | BU15: =BU14+BT15 -> 0.07707996026 | BV15: =ASIN((radiusleft)*BW13/radiusleft^2) -> 0.04670017803 | BW15: =BW14+BV15 -> 0.03270799125 | BX15: =ASIN((radiusleft)*BY13/radiusleft^2) -> -0.03799644389 | BY15: =BY14+BX15 -> -0.01147595442 | BZ15: =ASIN((radiusleft)*CA13/radiusleft^2) -> -0.1230943396 | CA15: =CA14+BZ15 -> -0.05601755945 | CB15: =ASIN((radiusleft)*CC13/radiusleft^2) -> -0.2092325665 | CC15: =CC14+CB15 -> -0.1014886225 | CD15: =ASIN((radiusleft)*CE13/radiusleft^2) -> -0.297122861 | CE15: =CE14+CD15 -> -0.1485319544 | CF15: =ASIN((radiusleft)*CG13/radiusleft^2) -> -0.3876106112 | CG15: =CG14+CF15 -> -0.1979212628 | CH15: =ASIN((radiusleft)*CI13/radiusleft^2) -> -0.481767456 | CI15: =CI14+CH15 -> -0.2506525422 | CJ15: =ASIN((radiusleft)*CK13/radiusleft^2) -> -0.5810488164 | CK15: =CK14+CJ15 -> -0.3081002177 | CL15: =ASIN((radiusleft)*CM13/radiusleft^2) -> -0.6875937008 | CM15: =CM14+CL15 -> -0.3723153043 | CN15: =ASIN((radiusleft)*CO13/radiusleft^2) -> 0.004363613898 | CO15: =CO14+CN15 -> -0.00189925232
F16: =xbr-radiusright+F10 -> -76.79277665 | V16: =((V15-V11)*(W15-0)-(W15-W11)*(V15-xbr))/SQRT((V15-V11)^2+(W15-W11)^2)/radiusright -> -0.01274963471 | W16: =ASIN(V16*NF) -> -0.02664989096 | X16: =((X15-X11)*(Y15-0)-(Y15-Y11)*(X15-xbr))/SQRT((X15-X11)^2+(Y15-Y11)^2)/radiusright -> 0.6137874735 | Y16: =ASIN(X16*NF) ->  | Z16: =((Z15-Z11)*(AA15-0)-(AA15-AA11)*(Z15-xbr))/SQRT((Z15-Z11)^2+(AA15-AA11)^2)/radiusright -> 0.5244114281 | AA16: =ASIN(Z16*NF) ->  | AB16: =((AB15-AB11)*(AC15-0)-(AC15-AC11)*(AB15-xbr))/SQRT((AB15-AB11)^2+(AC15-AC11)^2)/radiusright -> 0.4377149316 | AC16: =ASIN(AB16*NF) -> 1.155072416 | AD16: =((AD15-AD11)*(AE15-0)-(AE15-AE11)*(AD15-xbr))/SQRT((AD15-AD11)^2+(AE15-AE11)^2)/radiusright -> 0.3531212731 | AE16: =ASIN(AD16*NF) -> 0.8301364644 | AF16: =((AF15-AF11)*(AG15-0)-(AG15-AG11)*(AF15-xbr))/SQRT((AF15-AF11)^2+(AG15-AG11)^2)/radiusright -> 0.2701579598 | AG16: =ASIN(AF16*NF) -> 0.5999850518 | AH16: =((AH15-AH11)*(AI15-0)-(AI15-AI11)*(AH15-xbr))/SQRT((AH15-AH11)^2+(AI15-AI11)^2)/radiusright -> 0.1884243483 | AI16: =ASIN(AH16*NF) -> 0.4047694903 | AJ16: =((AJ15-AJ11)*(AK15-0)-(AK15-AK11)*(AJ15-xbr))/SQRT((AJ15-AJ11)^2+(AK15-AK11)^2)/radiusright -> 0.1075691818 | AK16: =ASIN(AJ16*NF) -> 0.2267578824 | AL16: =((AL15-AL11)*(AM15-0)-(AM15-AM11)*(AL15-xbr))/SQRT((AL15-AL11)^2+(AM15-AM11)^2)/radiusright -> 0.02727406089 | AM16: =ASIN(AL16*NF) -> 0.05703370251 | AN16: =((AN15-AN11)*(AO15-0)-(AO15-AO11)*(AN15-xbr))/SQRT((AN15-AN11)^2+(AO15-AO11)^2)/radiusright -> -0.05275954076 | AO16: =ASIN(AN16*NF) -> -0.110492127 | AP16: =((AP15-AP11)*(AQ15-0)-(AQ15-AQ11)*(AP15-xbr))/SQRT((AP15-AP11)^2+(AQ15-AQ11)^2)/radiusright -> -0.1328212763 | AQ16: =ASIN(AP16*NF) -> -0.2812913403 | AR16: =((AR15-AR11)*(AS15-0)-(AS15-AS11)*(AR15-xbr))/SQRT((AR15-AR11)^2+(AS15-AS11)^2)/radiusright -> -0.2132020874 | AS16: =ASIN(AR16*NF) -> -0.4618358351 | AT16: =((AT15-AT11)*(AU15-0)-(AU15-AU11)*(AT15-xbr))/SQRT((AT15-AT11)^2+(AU15-AU11)^2)/radiusright -> -0.2942045091 | AU16: =ASIN(AT16*NF) -> -0.6622432071 | AV16: =((AV15-AV11)*(AW15-0)-(AW15-AW11)*(AV15-xbr))/SQRT((AV15-AV11)^2+(AW15-AW11)^2)/radiusright -> -0.3761541299 | AW16: =ASIN(AV16*NF) -> -0.9045742944 | AX16: =((AX15-AX11)*(AY15-0)-(AY15-AY11)*(AX15-xbr))/SQRT((AX15-AX11)^2+(AY15-AY11)^2)/radiusright -> -0.4594134557 | AY16: =ASIN(AX16*NF) -> -1.287624748 | AZ16: =((AZ15-AZ11)*(BA15-0)-(BA15-BA11)*(AZ15-xbr))/SQRT((AZ15-AZ11)^2+(BA15-BA11)^2)/radiusright -> -0.5443999595 | BA16: =ASIN(AZ16*NF) ->  | BB16: =((BB15-BB11)*(BC15-0)-(BC15-BC11)*(BB15-xbr))/SQRT((BB15-BB11)^2+(BC15-BC11)^2)/radiusright -> -0.6316111281 | BC16: =ASIN(BB16*NF) ->  | BF16: OUTSIDE INCLINATION | BH16: =radiusright^2*(1+BI16^2)-(BI13-BH13*BI16+xbr*BI16)^2 -> 4285.495793 | BI16: =TAN(BI15) -> 0.4069429257 | BJ16: =radiusright^2*(1+BK16^2)-(BK13-BJ13*BK16+xbr*BK16)^2 -> 7359.074156 | BK16: =TAN(BK15) -> 0.3365408278 | BL16: =radiusright^2*(1+BM16^2)-(BM13-BL13*BM16+xbr*BM16)^2 -> 9634.346796 | BM16: =TAN(BM15) -> 0.2754929444 | BN16: =radiusright^2*(1+BO16^2)-(BO13-BN13*BO16+xbr*BO16)^2 -> 11336.05868 | BO16: =TAN(BO15) -> 0.2207353044 | BP16: =radiusright^2*(1+BQ16^2)-(BQ13-BP13*BQ16+xbr*BQ16)^2 -> 12594.47239 | BQ16: =TAN(BQ15) -> 0.170299626 | BR16: =radiusright^2*(1+BS16^2)-(BS13-BR13*BS16+xbr*BS16)^2 -> 13488.70859 | BS16: =TAN(BS15) -> 0.122811191 | BT16: =radiusright^2*(1+BU16^2)-(BU13-BT13*BU16+xbr*BU16)^2 -> 14067.2215 | BU16: =TAN(BU15) -> 0.07723297616 | BV16: =radiusright^2*(1+BW16^2)-(BW13-BV13*BW16+xbr*BW16)^2 -> 14358.1198 | BW16: =TAN(BW15) -> 0.03271966005 | BX16: =radiusright^2*(1+BY16^2)-(BY13-BX13*BY16+xbr*BY16)^2 -> 14374.3545 | BY16: =TAN(BY15) -> -0.01147645824 | BZ16: =radiusright^2*(1+CA16^2)-(CA13-BZ13*CA16+xbr*CA16)^2 -> 14115.87577 | CA16: =TAN(CA15) -> -0.05607622684 | CB16: =radiusright^2*(1+CC16^2)-(CC13-CB13*CC16+xbr*CC16)^2 -> 13569.53172 | CC16: =TAN(CC15) -> -0.1018385063 | CD16: =radiusright^2*(1+CE16^2)-(CE13-CD13*CE16+xbr*CE16)^2 -> 12706.65622 | CE16: =TAN(CE15) -> -0.1496339716 | CF16: =radiusright^2*(1+CG16^2)-(CG13-CF13*CG16+xbr*CG16)^2 -> 11477.42553 | CG16: =TAN(CG15) -> -0.2005467886 | CH16: =radiusright^2*(1+CI16^2)-(CI13-CH13*CI16+xbr*CI16)^2 -> 9799.565416 | CI16: =TAN(CI15) -> -0.2560371248 | CJ16: =radiusright^2*(1+CK16^2)-(CK13-CJ13*CK16+xbr*CK16)^2 -> 7535.54464 | CK16: =TAN(CK15) -> -0.3182340581 | CL16: =radiusright^2*(1+CM16^2)-(CM13-CL13*CM16+xbr*CM16)^2 -> 4442.927502 | CM16: =TAN(CM15) -> -0.3905291742 | CN16: =radiusright^2*(1+CO16^2)-(CO13-CN13*CO16+xbr*CO16)^2 -> 14399.88411 | CO16: =TAN(CO15) -> -0.001899254604
F17: =xal+radiusleft+F11 -> 76.79277665 | T17: OUTSIDE INCL TAN | V17: =-W16+ATAN2(xbr-V15,-W15) -> 0.02790106226 | W17: =TAN(V17) -> 0.02790830456 | X17: =-Y16+ATAN2(xbr-X15,-Y15) ->  | Y17: =TAN(X17) ->  | Z17: =-AA16+ATAN2(xbr-Z15,-AA15) ->  | AA17: =TAN(Z17) ->  | AB17: =-AC16+ATAN2(xbr-AB15,-AC15) -> -0.8778110926 | AC17: =TAN(AB17) -> -1.204286444 | AD17: =-AE16+ATAN2(xbr-AD15,-AE15) -> -0.6084331652 | AE17: =TAN(AD17) -> -0.6965891974 | AF17: =-AG16+ATAN2(xbr-AF15,-AG15) -> -0.4303169622 | AG17: =TAN(AF17) -> -0.4590047092 | AH17: =-AI16+ATAN2(xbr-AH15,-AI15) -> -0.2847394382 | AI17: =TAN(AH17) -> -0.2926926975 | AJ17: =-AK16+ATAN2(xbr-AJ15,-AK15) -> -0.1548141476 | AK17: =TAN(AJ17) -> -0.1560629531 | AL17: =-AM16+ATAN2(xbr-AL15,-AM15) -> -0.03231080348 | AM17: =TAN(AL17) -> -0.0323220522 | AN17: =-AO16+ATAN2(xbr-AN15,-AO15) -> 0.08825571592 | AO17: =TAN(AN17) -> 0.08848557546 | AP17: =-AQ16+ATAN2(xbr-AP15,-AQ15) -> 0.211778548 | AQ17: =TAN(AP17) -> 0.2150024984 | AR17: =-AS16+ATAN2(xbr-AR15,-AS15) -> 0.3441252726 | AS17: =TAN(AR17) -> 0.3583851545 | AT17: =-AU16+ATAN2(xbr-AT15,-AU15) -> 0.494726676 | AU17: =TAN(AT17) -> 0.5394749669 | AV17: =-AW16+ATAN2(xbr-AV15,-AW15) -> 0.6847977624 | AW17: =TAN(AV17) -> 0.8166275217 | AX17: =-AY16+ATAN2(xbr-AX15,-AY15) -> 1.012009217 | AY17: =TAN(AX17) -> 1.599331652 | AZ17: =-BA16+ATAN2(xbr-AZ15,-BA15) ->  | BA17: =TAN(AZ17) ->  | BB17: =-BC16+ATAN2(xbr-BB15,-BC15) ->  | BC17: =TAN(BB17) ->  | BG17: x3,y3 | BH17: =IF(BH16>0,(-BI16*(BI13-BH13*BI16)+xbr-SQRT(BH16))/(1+BI16^2),BH13) -> -5.195236343 | BI17: =IF(BH16>0,BI13+BI16*(BH17-BH13),BI13) -> 73.06070748 | BJ17: =IF(BJ16>0,(-BK16*(BK13-BJ13*BK16)+xbr-SQRT(BJ16))/(1+BK16^2),BJ13) -> -15.20877166 | BK17: =IF(BJ16>0,BK13+BK16*(BJ17-BJ13),BK13) -> 57.7158069 | BL17: =IF(BL16>0,(-BM16*(BM13-BL13*BM16)+xbr-SQRT(BL16))/(1+BM16^2),BL13) -> -20.82970734 | BM17: =IF(BL16>0,BM13+BM16*(BL17-BL13),BM13) -> 46.00843369 | BN17: =IF(BN16>0,(-BO16*(BO13-BN13*BO16)+xbr-SQRT(BN16))/(1+BO16^2),BN13) -> -24.44018726 | BO17: =IF(BN16>0,BO13+BO16*(BN17-BN13),BO13) -> 36.10323447 | BP17: =IF(BP16>0,(-BQ16*(BQ13-BP13*BQ16)+xbr-SQRT(BP16))/(1+BQ16^2),BP13) -> -26.86545698 | BQ17: =IF(BP16>0,BQ13+BQ16*(BP17-BP13),BQ13) -> 27.24821032 | BR17: =IF(BR16>0,(-BS16*(BS13-BR13*BS16)+xbr-SQRT(BR16))/(1+BS16^2),BR13) -> -28.47950209 | BS17: =IF(BR16>0,BS13+BS16*(BR17-BR13),BS13) -> 19.04225786 | BT17: =IF(BT16>0,(-BU16*(BU13-BT13*BU16)+xbr-SQRT(BT16))/(1+BU16^2),BT13) -> -29.47297353 | BU17: =IF(BT16>0,BU13+BU16*(BT17-BT13),BU13) -> 11.23425997 | BV17: =IF(BV16>0,(-BW16*(BW13-BV13*BW16)+xbr-SQRT(BV16))/(1+BW16^2),BV13) -> -29.94463191 | BW17: =IF(BV16>0,BW13+BW16*(BV17-BV13),BW13) -> 3.644897366 | BX17: =IF(BX16>0,(-BY16*(BY13-BX13*BY16)+xbr-SQRT(BX16))/(1+BY16^2),BX13) -> -29.93752839 | BY17: =IF(BX16>0,BY13+BY16*(BX17-BX13),BY13) -> -3.871599687 | BZ17: =IF(BZ16>0,(-CA16*(CA13-BZ13*CA16)+xbr-SQRT(BZ16))/(1+CA16^2),BZ13) -> -29.45238541 | CA17: =IF(BZ16>0,CA13+CA16*(BZ17-BZ13),CA13) -> -11.45109692 | CB17: =IF(CB16>0,(-CC16*(CC13-CB13*CC16)+xbr-SQRT(CB16))/(1+CC16^2),CB13) -> -28.44764627 | CC17: =IF(CB16>0,CC13+CC16*(CB17-CB13),CC13) -> -19.23941512 | CD17: =IF(CD16>0,(-CE16*(CE13-CD13*CE16)+xbr-SQRT(CD16))/(1+CE16^2),CD13) -> -26.8261849 | CE17: =IF(CD16>0,CE13+CE16*(CD17-CD13),CE13) -> -27.41609967 | CF17: =IF(CF16>0,(-CG16*(CG13-CF13*CG16)+xbr-SQRT(CF16))/(1+CG16^2),CF13) -> -24.39916263 | CG17: =IF(CF16>0,CG13+CG16*(CF17-CF13),CG13) -> -36.23301793 | CH17: =IF(CH16>0,(-CI16*(CI13-CH13*CI16)+xbr-SQRT(CH16))/(1+CI16^2),CH13) -> -20.7943841 | CI17: =IF(CH16>0,CI13+CI16*(CH17-CH13),CI13) -> -46.09343176 | CJ17: =IF(CJ16>0,(-CK16*(CK13-CJ13*CK16)+xbr-SQRT(CJ16))/(1+CK16^2),CJ13) -> -15.18717375 | CK17: =IF(CJ16>0,CK13+CK16*(CJ17-CJ13),CK13) -> -57.75515976 | CL17: =IF(CL16>0,(-CM16*(CM13-CL13*CM16)+xbr-SQRT(CL16))/(1+CM16^2),CL13) -> -5.190192653 | CM17: =IF(CL16>0,CM13+CM16*(CL17-CL13),CM13) -> -73.06727874 | CN17: =IF(CN16>0,(-CO16*(CO13-CN13*CO16)+xbr-SQRT(CN16))/(1+CO16^2),CN13) -> -29.99830619 | CO17: =IF(CN16>0,CO13+CO16*(CN17-CN13),CO13) -> 0.6375818955 | CP17: x3,y3
A18: =(1/(NF-1))*((-NF*radiusleft*radiusright)/((NF-1)*ddd_2+NF*(-radiusright-radiusleft))) -> 63.29896647 | U18: X4,Y4 | V18: =-200 -> -200 | W18: =W15+W17*(V18-V15) -> -4.894554914 | X18: =-200 -> -200 | Y18: =Y15+Y17*(X18-X15) ->  | Z18: =-200 -> -200 | AA18: =AA15+AA17*(Z18-Z15) ->  | AB18: =-200 -> -200 | AC18: =AC15+AC17*(AB18-AB15) -> 177.4011785 | AD18: =-200 -> -200 | AE18: =AE15+AE17*(AD18-AD15) -> 94.07911646 | AF18: =-200 -> -200 | AG18: =AG15+AG17*(AF18-AF15) -> 58.55908411 | AH18: =-200 -> -200 | AI18: =AI15+AI17*(AH18-AH15) -> 35.64142294 | AJ18: =-200 -> -200 | AK18: =AK15+AK17*(AJ18-AJ15) -> 17.95334448 | AL18: =-200 -> -200 | AM18: =AM15+AM17*(AL18-AL15) -> 2.529488501 | AN18: =-200 -> -200 | AO18: =AO15+AO17*(AN18-AN15) -> -12.37702343 | AP18: =-200 -> -200 | AQ18: =AQ15+AQ17*(AP18-AP15) -> -28.27791458 | AR18: =-200 -> -200 | AS18: =AS15+AS17*(AR18-AR15) -> -47.13040402 | AT18: =-200 -> -200 | AU18: =AU15+AU17*(AT18-AT15) -> -72.60884093 | AV18: =-200 -> -200 | AW18: =AW15+AW17*(AV18-AV15) -> -115.0224546 | AX18: =-200 -> -200 | AY18: =AY15+AY17*(AX18-AX15) -> -246.4731282 | AZ18: =-200 -> -200 | BA18: =BA15+BA17*(AZ18-AZ15) ->  | BB18: =-200 -> -200 | BC18: =BC15+BC17*(BB18-BB15) ->  | BD18: X4,Y4 | BH18: =ASIN(((BH17-xbr)*(BI17-0)-(BI17-0)*(0))/radiusright^2) -> -0.504064252 | BI18: =TAN(BI19) -> 7.966401503 | BJ18: =ASIN(((BJ17-xbr)*(BK17-0)-(BK17-0)*(0))/radiusright^2) -> -0.4352986187 | BK18: =TAN(BK19) -> -4.039932171 | BL18: =ASIN(((BL17-xbr)*(BM17-0)-(BM17-0)*(0))/radiusright^2) -> -0.361956086 | BM18: =TAN(BM19) -> -1.766907296 | BN18: =ASIN(((BN17-xbr)*(BO17-0)-(BO17-0)*(0))/radiusright^2) -> -0.2910110349 | BO18: =TAN(BO19) -> -1.090015306 | BP18: =ASIN(((BP17-xbr)*(BQ17-0)-(BQ17-0)*(0))/radiusright^2) -> -0.2229803049 | BQ18: =TAN(BQ19) -> -1.378995108 | BR18: =ASIN(((BR17-xbr)*(BS17-0)-(BS17-0)*(0))/radiusright^2) -> -0.1573229759 | BS18: =TAN(BS19) -> -0.7133113559 | BT18: =ASIN(((BT17-xbr)*(BU17-0)-(BU17-0)*(0))/radiusright^2) -> -0.09334315962 | BU18: =TAN(BU19) -> -0.3801168747 | BV18: =ASIN(((BV17-xbr)*(BW17-0)-(BW17-0)*(0))/radiusright^2) -> -0.03036479601 | BW18: =TAN(BW19) -> -0.1329229262 | BX18: =ASIN(((BX17-xbr)*(BY17-0)-(BY17-0)*(0))/radiusright^2) -> 0.03225212569 | BY18: =TAN(BY19) -> 0.09178180829 | BZ18: =ASIN(((BZ17-xbr)*(CA17-0)-(CA17-0)*(0))/radiusright^2) -> 0.09513377167 | CA18: =TAN(CA19) -> 0.3326083767 | CB18: =ASIN(((CB17-xbr)*(CC17-0)-(CC17-0)*(0))/radiusright^2) -> 0.1589225287 | CC18: =TAN(CC19) -> 0.6455717478 | CD18: =ASIN(((CD17-xbr)*(CE17-0)-(CE17-0)*(0))/radiusright^2) -> 0.2243009563 | CE18: =TAN(CE19) -> 1.219838078 | CF18: =ASIN(((CF17-xbr)*(CG17-0)-(CG17-0)*(0))/radiusright^2) -> 0.2919801095 | CG18: =TAN(CG19) -> 1.053360082 | CH18: =ASIN(((CH17-xbr)*(CI17-0)-(CI17-0)*(0))/radiusright^2) -> 0.362534761 | CI18: =TAN(CI19) -> 1.700279455 | CJ18: =ASIN(((CJ17-xbr)*(CK17-0)-(CK17-0)*(0))/radiusright^2) -> 0.4355201856 | CK18: =TAN(CK19) -> 3.782872384 | CL18: =ASIN(((CL17-xbr)*(CM17-0)-(CM17-0)*(0))/radiusright^2) -> 0.5040846362 | CM18: =TAN(CM19) -> -8.984210069 | CN18: =ASIN(((CN17-xbr)*(CO17-0)-(CO17-0)*(0))/radiusright^2) -> -0.005313132464 | CO18: =TAN(CO19) -> -0.007135334018
S19: IF REFLECION | V19: =((V15-V13)*(W15-0)-(W15-W13)*(V15-xbr))/SQRT((V15-V13)^2+(W15-W13)^2)/radiusright -> -0.004219119276 | W19: =IF(ABS(V19)*NF<1,ASIN(V19*NF),PI()-(-2*ASIN(V19)-W13)) -> -0.008818073567 | X19: =((X15-X13)*(Y15-0)-(Y15-Y13)*(X15-xbr))/SQRT((X15-X13)^2+(Y15-Y13)^2)/radiusright -> -0.6948716684 | Y19: =IF(ABS(X16)*NF<1,ASIN(X19*NF),PI()-(-2*ASIN(X19)-Y13)) -> 1.350616201 | Z19: =((Z15-Z13)*(AA15-0)-(AA15-AA13)*(Z15-xbr))/SQRT((Z15-Z13)^2+(AA15-AA13)^2)/radiusright -> -0.6520794328 | AA19: =IF(ABS(Z19)*NF<1,ASIN(Z19*NF),PI()-(-2*ASIN(Z19)-AA13)) -> 1.506884035 | AB19: =((AB15-AB13)*(AC15-0)-(AC15-AC13)*(AB15-xbr))/SQRT((AB15-AB13)^2+(AC15-AC13)^2)/radiusright -> -0.5964891795 | AC19: =IF(ABS(AB19)*NF<1,ASIN(AB19*NF),PI()-(-2*ASIN(AB19)-AC13)) -> 1.687558812 | AD19: =((AD15-AD13)*(AE15-0)-(AE15-AE13)*(AD15-xbr))/SQRT((AD15-AD13)^2+(AE15-AE13)^2)/radiusright -> -0.525831209 | AE19: =IF(ABS(AD19)*NF<1,ASIN(AD19*NF),PI()-(-2*ASIN(AD19)-AE13)) -> 1.895006673 | AF19: =((AF15-AF13)*(AG15-0)-(AG15-AG13)*(AF15-xbr))/SQRT((AF15-AF13)^2+(AG15-AG13)^2)/radiusright -> -0.4379721256 | AG19: =IF(ABS(AF19)*NF<1,ASIN(AF19*NF),PI()-(-2*ASIN(AF19)-AG13)) -> -1.156405449 | AH19: =((AH15-AH13)*(AI15-0)-(AI15-AI13)*(AH15-xbr))/SQRT((AH15-AH13)^2+(AI15-AI13)^2)/radiusright -> -0.3318911398 | AI19: =IF(ABS(AH16)*NF<1,ASIN(AH19*NF),PI()-(-2*ASIN(AH19)-AI13)) -> -0.766547464 | AJ19: =((AJ15-AJ13)*(AK15-0)-(AK15-AK13)*(AJ15-xbr))/SQRT((AJ15-AJ13)^2+(AK15-AK13)^2)/radiusright -> -0.2089495458 | AK19: =IF(ABS(AJ16)*NF<1,ASIN(AJ19*NF),PI()-(-2*ASIN(AJ19)-AK13)) -> -0.4519321842 | AL19: =((AL15-AL13)*(AM15-0)-(AM15-AM13)*(AL15-xbr))/SQRT((AL15-AL13)^2+(AM15-AM13)^2)/radiusright -> -0.0738913096 | AM19: =IF(ABS(AL16)*NF<1,ASIN(AL19*NF),PI()-(-2*ASIN(AL19)-AM13)) -> -0.1550533779 | AN19: =((AN15-AN13)*(AO15-0)-(AO15-AO13)*(AN15-xbr))/SQRT((AN15-AN13)^2+(AO15-AO13)^2)/radiusright -> 0.06538871275 | AO19: =IF(ABS(AN16)*NF<1,ASIN(AN19*NF),PI()-(-2*ASIN(AN19)-AO13)) -> 0.1370914237 | AP19: =((AP15-AP13)*(AQ15-0)-(AQ15-AQ13)*(AP15-xbr))/SQRT((AP15-AP13)^2+(AQ15-AQ13)^2)/radiusright -> 0.1997760727 | AQ19: =IF(ABS(AP16)*NF<1,ASIN(AP19*NF),PI()-(-2*ASIN(AP19)-AQ13)) -> 0.4307275301 | AR19: =((AR15-AR13)*(AS15-0)-(AS15-AS13)*(AR15-xbr))/SQRT((AR15-AR13)^2+(AS15-AS13)^2)/radiusright -> 0.3216301034 | AS19: =IF(ABS(AR16)*NF<1,ASIN(AR19*NF),PI()-(-2*ASIN(AR19)-AS13)) -> 0.7371856245 | AT19: =((AT15-AT13)*(AU15-0)-(AU15-AU13)*(AT15-xbr))/SQRT((AT15-AT13)^2+(AU15-AU13)^2)/radiusright -> 0.426547836 | AU19: =IF(ABS(AT16)*NF<1,ASIN(AT19*NF),PI()-(-2*ASIN(AT19)-AU13)) -> 1.100612405 | AV19: =((AV15-AV13)*(AW15-0)-(AW15-AW13)*(AV15-xbr))/SQRT((AV15-AV13)^2+(AW15-AW13)^2)/radiusright -> 0.5134272156 | AW19: =IF(ABS(AV16)*NF<1,ASIN(AV19*NF),PI()-(-2*ASIN(AV19)-AW13)) ->  | AX19: =((AX15-AX13)*(AY15-0)-(AY15-AY13)*(AX15-xbr))/SQRT((AX15-AX13)^2+(AY15-AY13)^2)/radiusright -> 0.58340961 | AY19: =IF(ABS(AX16)*NF<1,ASIN(AX19*NF),PI()-(-2*ASIN(AX19)-AY13)) ->  | AZ19: =((AZ15-AZ13)*(BA15-0)-(BA15-BA13)*(AZ15-xbr))/SQRT((AZ15-AZ13)^2+(BA15-BA13)^2)/radiusright -> 0.6386430654 | BA19: =IF(ABS(AZ16)*NF<1,ASIN(AZ19*NF),PI()-(-2*ASIN(AZ19)-BA13)) -> 4.766082623 | BB19: =((BB15-BB13)*(BC15-0)-(BC15-BC13)*(BB15-xbr))/SQRT((BB15-BB13)^2+(BC15-BC13)^2)/radiusright -> 0.6813635011 | BC19: =IF(ABS(BB16)*NF<1,ASIN(BB19*NF),PI()-(-2*ASIN(BB19)-BC13)) -> 4.91905131 | BF19: for inside reflection | BH19: =((BH17-BH13)*(BI17-0)-(BI17-BI13)*(BH17-xbr))/SQRT((BH17-BH13)^2+(BI17-BI13)^2)/radiusright -> -0.8629473242 | BI19: =IF(ABS(BH19)*NF<1,ASIN(BH19*NF),PI()-(-2*ASIN(BH19)-BI15)) -> 1.445922286 | BJ19: =((BJ17-BJ13)*(BK17-0)-(BK17-BK13)*(BJ17-xbr))/SQRT((BJ17-BJ13)^2+(BK17-BK13)^2)/radiusright -> -0.7354900166 | BK19: =IF(ABS(BJ19)*NF<1,ASIN(BJ19*NF),PI()-(-2*ASIN(BJ19)-BK15)) -> 1.813447908 | BL19: =((BL17-BL13)*(BM17-0)-(BM17-BM13)*(BL17-xbr))/SQRT((BL17-BL13)^2+(BM17-BM13)^2)/radiusright -> -0.6149347077 | BM19: =IF(ABS(BL19)*NF<1,ASIN(BL19*NF),PI()-(-2*ASIN(BL19)-BM15)) -> 2.085810761 | BN19: =((BN17-BN13)*(BO17-0)-(BO17-BO13)*(BN17-xbr))/SQRT((BN17-BN13)^2+(BO17-BO13)^2)/radiusright -> -0.4993480772 | BO19: =IF(ABS(BN19)*NF<1,ASIN(BN19*NF),PI()-(-2*ASIN(BN19)-BO15)) -> 2.313151882 | BP19: =((BP17-BP13)*(BQ17-0)-(BQ17-BQ13)*(BP17-xbr))/SQRT((BP17-BP13)^2+(BQ17-BQ13)^2)/radiusright -> -0.3873429087 | BQ19: =IF(ABS(BP19)*NF<1,ASIN(BP19*NF),PI()-(-2*ASIN(BP19)-BQ15)) -> -0.9433795094 | BR19: =((BR17-BR13)*(BS17-0)-(BS17-BS13)*(BR17-xbr))/SQRT((BR17-BR13)^2+(BS17-BS13)^2)/radiusright -> -0.2778530256 | BS19: =IF(ABS(BR19)*NF<1,ASIN(BR19*NF),PI()-(-2*ASIN(BR19)-BS15)) -> -0.6196040054 | BT19: =((BT17-BT13)*(BU17-0)-(BU17-BU13)*(BT17-xbr))/SQRT((BT17-BT13)^2+(BU17-BU13)^2)/radiusright -> -0.1700063264 | BU19: =IF(ABS(BT19)*NF<1,ASIN(BT19*NF),PI()-(-2*ASIN(BT19)-BU15)) -> -0.3632491335 | BV19: =((BV17-BV13)*(BW17-0)-(BW17-BW13)*(BV17-xbr))/SQRT((BV17-BV13)^2+(BW17-BW13)^2)/radiusright -> -0.0630449697 | BW19: =IF(ABS(BV19)*NF<1,ASIN(BV19*NF),PI()-(-2*ASIN(BV19)-BW15)) -> -0.1321482722 | BX19: =((BX17-BX13)*(BY17-0)-(BY17-BY13)*(BX17-xbr))/SQRT((BX17-BX13)^2+(BY17-BY13)^2)/radiusright -> 0.04373093457 | BY19: =IF(ABS(BX19)*NF<1,ASIN(BX19*NF),PI()-(-2*ASIN(BX19)-BY15)) -> 0.09152538284 | BZ19: =((BZ17-BZ13)*(CA17-0)-(CA17-CA13)*(BZ17-xbr))/SQRT((BZ17-BZ13)^2+(CA17-CA13)^2)/radiusright -> 0.1510088925 | CA19: =IF(ABS(BZ19)*NF<1,ASIN(BZ19*NF),PI()-(-2*ASIN(BZ19)-CA15)) -> 0.3210979516 | CB19: =((CB17-CB13)*(CC17-0)-(CC17-CC13)*(CB17-xbr))/SQRT((CB17-CB13)^2+(CC17-CC13)^2)/radiusright -> 0.2595073393 | CC19: =IF(ABS(CB19)*NF<1,ASIN(CB19*NF),PI()-(-2*ASIN(CB19)-CC15)) -> 0.5732559121 | CD19: =((CD17-CD13)*(CE17-0)-(CE17-CE13)*(CD17-xbr))/SQRT((CD17-CD13)^2+(CE17-CE13)^2)/radiusright -> 0.3700243301 | CE19: =IF(ABS(CD19)*NF<1,ASIN(CD19*NF),PI()-(-2*ASIN(CD19)-CE15)) -> 0.8841096797 | CF19: =((CF17-CF13)*(CG17-0)-(CG17-CG13)*(CF17-xbr))/SQRT((CF17-CF13)^2+(CG17-CG13)^2)/radiusright -> 0.4835012279 | CG19: =IF(ABS(CF19)*NF<1,ASIN(CF19*NF),PI()-(-2*ASIN(CF19)-CG15)) -> 3.952971684 | CH19: =((CH17-CH13)*(CI17-0)-(CI17-CI13)*(CH17-xbr))/SQRT((CH17-CH13)^2+(CI17-CI13)^2)/radiusright -> 0.6011171799 | CI19: =IF(ABS(CH19)*NF<1,ASIN(CH19*NF),PI()-(-2*ASIN(CH19)-CI15)) -> 4.180736744 | CJ19: =((CJ17-CJ13)*(CK17-0)-(CK17-CK13)*(CJ17-xbr))/SQRT((CJ17-CJ13)^2+(CK17-CK13)^2)/radiusright -> 0.7244453375 | CK19: =IF(ABS(CJ19)*NF<1,ASIN(CJ19*NF),PI()-(-2*ASIN(CJ19)-CK15)) -> 4.453951268 | CL19: =((CL17-CL13)*(CM17-0)-(CM17-CM13)*(CL17-xbr))/SQRT((CL17-CL13)^2+(CM17-CM13)^2)/radiusright -> 0.8557407811 | CM19: =IF(ABS(CL19)*NF<1,ASIN(CL19*NF),PI()-(-2*ASIN(CL19)-CM15)) -> 4.823239096 | CN19: =((CN17-CN13)*(CO17-0)-(CO17-CO13)*(CN17-xbr))/SQRT((CN17-CN13)^2+(CO17-CO13)^2)/radiusright -> -0.003413948509 | CO19: =IF(ABS(CN19)*NF<1,ASIN(CN19*NF),PI()-(-2*ASIN(CN19)-CO15)) -> -0.007135212928
